Workbook

Sheet User Guide
A7: A tool to control on time delivery and capacity use for production departments that produce to
A8: customer order and face highly volatile demand.
A10: Een korte toelichting:
A11: Het tabblad Input 12NC biedt de mogelijkheid om de interne artikelcodes (12NC) in te brengen, en per artikel de instelcapaciteit en de capaciteit
A12: per eenheid van product op de bottleneck resourse in te geven.
A14: Het tabblad Input Demand biedt de mogelijkheid om voor alle artikelen de historische geplaatste orders per week in te geven, over een periode
A15: van 51 weken.
A17: Het tabblad Module 1 biedt de mogelijkheid om, op basis van twee in te geven parameterwaarden, Utilization en Category-B criteria (%), het
A18: artikelassortiment op te splitsen in twee categorieën; een categorie met relatief hoge vraag (A), en een categorie met relatief lage vraag (B).
A19: Ook wordt ingegeven de Safety Time in Nr. of Weeks: deze tijd is gelijk aan de levertijd die de klant vraagt minus de tijd die productie nodig heeft
A20: om de order te maken als er geen capaciteitstekort is.
A21: Door links boven op 'run module 1' te klikken, opent zich een nieuw tabblad.
A23: Het tabblad Simulation 1 biedt de mogelijkheid om, op basis van een simulatie over 5 jaren (255 weken) te simuleren wat er zou gebeuren met de
A24: leverperformance van de artikelen uit de A categorie als er geen veiligheidsvoorraden voor deze artikelen aangehouden zouden worden.
A25: Door links boven op 'run simulation' te klikken, opent zich een nieuw tabblad.
A27: Het tabblad Performance 1 geeft op basis van de simulatie resultaten wat de gerealiseerde leverperformance is zonder veiligheidsvoorraden, als
A28: percentage op tijd geleverd over een periode van 13 weken, zowel per artikel als geaggregeerd over alle orders.
A29: Door links boven op 'run performance' te klikken, opent zich een nieuw tabblad.
A31: Met het runnen van het programma onder het tabblad Safety Stock wordt op iteratieve wijze bepaald welke veiligheidsvoorraden voor A-categorie
A32: artikelen er nodig zijn om, bij de eerder ingegeven utilization, de gewenste leverperformance voor de A-categorie artikelen te realiseren.
A33: Door links boven op 'run safetystock' te klikken, opent zich een nieuw tabblad.
A35: Het tabblad Simulation 2 biedt de mogelijkheid om de te simuleren wat de gerealiseerde performance is met deze veiligheidsvoorraden.
A37: Het tabblad Performance 2 geeft de gerealiseerde performance met deze veiligheidsvoorraden, per artikel en geaggregeerd over alle artikelen.
A39: Wilt u meer weten over deze ontworpen tool, neem dan gerust contact op.
A44: Dit product is een resultaat van de Dinalog Conversion Factory (uitgevoerd door de Technische Universiteit Eindhoven).

Sheet INPUT 12NC
A1: 12NC | B1: PN | C1: Set-up Time (Min.) | D1: Process Time (Min.)
A2: 402265396241 | B2: 1 | C2: 10 | D2: 6.7
A3: 402265325711 | B3: 2 | C3: 10 | D3: 6.7
A4: 402265308151 | B4: 3 | C4: 10 | D4: 18
A5: 402265307691 | B5: 4 | C5: 10 | D5: 18
A6: 402265304731 | B6: 5 | C6: 10 | D6: 20
A7: 402265167072 | B7: 6 | C7: 10 | D7: 6.73
A8: 402265166901 | B8: 7 | C8: 80 | D8: 136
A9: 402264798011 | B9: 8 | C9: 10 | D9: 19.05
A10: 402264798001 | B10: 9 | C10: 10 | D10: 19.05
A11: 402264797991 | B11: 10 | C11: 5 | D11: 19.05
A12: 402264797981 | B12: 11 | C12: 5 | D12: 19.05
A13: 402264795061 | B13: 12 | C13: 10 | D13: 18
A14: 402264754681 | B14: 13 | C14: 10 | D14: 16.91
A15: 402264754671 | B15: 14 | C15: 10 | D15: 11.4
A16: 402264753621 | B16: 15 | C16: 5 | D16: 28.4
A17: 402264753611 | B17: 16 | C17: 5 | D17: 28.4
A18: 402264753581 | B18: 17 | C18: 10 | D18: 19.05
A19: 402264753521 | B19: 18 | C19: 10 | D19: 19.05
A20: 402264753461 | B20: 19 | C20: 5 | D20: 11.4
A21: 402264753441 | B21: 20 | C21: 5 | D21: 11.4
A22: 402264753432 | B22: 21 | C22: 5 | D22: 18
A23: 402264753421 | B23: 22 | C23: 5 | D23: 103
A24: 402264753411 | B24: 23 | C24: 5 | D24: 23
A25: 402264753401 | B25: 24 | C25: 5 | D25: 23
A26: 402264753391 | B26: 25 | C26: 5 | D26: 72
A27: 402264753381 | B27: 26 | C27: 10 | D27: 87
A28: 402264753371 | B28: 27 | C28: 5 | D28: 24
A29: 402264753362 | B29: 28 | C29: 5 | D29: 18
A30: 402264753351 | B30: 29 | C30: 10 | D30: 18
A31: 402264753341 | B31: 30 | C31: 10 | D31: 23
A32: 402264753311 | B32: 31 | C32: 5 | D32: 57
A33: 402264753301 | B33: 32 | C33: 5 | D33: 76
A34: 402264753291 | B34: 33 | C34: 5 | D34: 83
A35: 402264753281 | B35: 34 | C35: 5 | D35: 18
A36: 402264753271 | B36: 35 | C36: 5 | D36: 11.4
A37: 402264753261 | B37: 36 | C37: 5 | D37: 18
A38: 402264751272 | B38: 37 | C38: 5 | D38: 57
A39: 402264731822 | B39: 38 | C39: 5 | D39: 19.05
A40: 402264716201 | B40: 39 | C40: 10 | D40: 17.6
A41: 402264714672 | B41: 40 | C41: 5 | D41: 20
A42: 402264714662 | B42: 41 | C42: 5 | D42: 20
A43: 402264282891 | B43: 42 | C43: 10 | D43: 6.73
A44: 402264267351 | B44: 43 | C44: 10 | D44: 19.62
A45: 402264267341 | B45: 44 | C45: 10 | D45: 16.62
A46: 402264185662 | B46: 45 | C46: 5 | D46: 19.05
A47: 402264185652 | B47: 46 | C47: 5 | D47: 19.05
A48: 402264178922 | B48: 47 | C48: 5 | D48: 11.4
A49: 402264173692 | B49: 48 | C49: 5 | D49: 19
A50: 402264127762 | B50: 49 | C50: 10 | D50: 11.4
A51: 402264127751 | B51: 50 | C51: 10 | D51: 25
A52: 402264127541 | B52: 51 | C52: 10 | D52: 6.73
A53: 402264117172 | B53: 52 | C53: 5 | D53: 87
A54: 402263973264 | B54: 53 | C54: 5 | D54: 15
A55: 402263914623 | B55: 54 | C55: 20 | D55: 34.48
A56: 402263913153 | B56: 55 | C56: 23 | D56: 23
A57: 402263912841 | B57: 56 | C57: 10 | D57: 12
A58: 402263790321 | B58: 57 | C58: 10 | D58: 6.73
A59: 402263780641 | B59: 58 | C59: 13 | D59: 9
A60: 402263775483 | B60: 59 | C60: 10 | D60: 11
A61: 402263773804 | B61: 60 | C61: 5 | D61: 16.91
A62: 402263761751 | B62: 61 | C62: 13 | D62: 14
A63: 402263743432 | B63: 62 | C63: 5 | D63: 13
A64: 402263582725 | B64: 63 | C64: 10 | D64: 15
A65: 402263581483 | B65: 64 | C65: 5 | D65: 15
A66: 402263581453 | B66: 65 | C66: 5 | D66: 12
A67: 402263581443 | B67: 66 | C67: 5 | D67: 9.5
A68: 402263581433 | B68: 67 | C68: 10 | D68: 60
A69: 402263580853 | B69: 68 | C69: 10 | D69: 25
A70: 402263579753 | B70: 69 | C70: 5 | D70: 25
A71: 402263579743 | B71: 70 | C71: 23 | D71: 15
A72: 402263560321 | B72: 71 | C72: 5 | D72: 9
A73: 402263530922 | B73: 72 | C73: 5 | D73: 68.82
A74: 402263509022 | B74: 73 | C74: 5 | D74: 7
A75: 402263190362 | B75: 74 | C75: 13 | D75: 9
A76: 402263153362 | B76: 75 | C76: 10 | D76: 8
A77: 402263153352 | B77: 76 | C77: 10 | D77: 8
A78: 402263133262 | B78: 77 | C78: 13 | D78: 9
A79: 402263122324 | B79: 78 | C79: 5 | D79: 13
A80: 402263079943 | B80: 79 | C80: 10 | D80: 9
A81: 402263008174 | B81: 80 | C81: 10 | D81: 15
A82: 402263008163 | B82: 81 | C82: 10 | D82: 17
A83: 402263007944 | B83: 82 | C83: 5 | D83: 10
A84: 402262122922 | B84: 83 | C84: 10 | D84: 17.61
A85: 402262122912 | B85: 84 | C85: 10 | D85: 17.61
A86: 402262122902 | B86: 85 | C86: 10 | D86: 19.62
A87: 402262115642 | B87: 86 | C87: 10 | D87: 22
A88: 402262115632 | B88: 87 | C88: 10 | D88: 22
A89: 402262115622 | B89: 88 | C89: 10 | D89: 25
A90: 402262101751 | B90: 89 | C90: 10 | D90: 5.77
A91: 402262051394 | B91: 90 | C91: 35 | D91: 71
A92: 402248716262 | B92: 91 | C92: 13 | D92: 14
A93: 402248716253 | B93: 92 | C93: 5 | D93: 7
A94: 402248672583 | B94: 93 | C94: 5 | D94: 19
A95: 402248671154 | B95: 94 | C95: 13 | D95: 15
A96: 402248669334 | B96: 95 | C96: 10 | D96: 48
A97: 402248667422 | B97: 96 | C97: 5 | D97: 9.5
A98: 402248667402 | B98: 97 | C98: 5 | D98: 21
A99: 402248658201 | B99: 98 | C99: 13 | D99: 9
A100: 402248628711 | B100: 99 | C100: 13 | D100: 9
A101: 402248282071 | B101: 100 | C101: 5 | D101: 15
A102: 402248280573 | B102: 101 | C102: 5 | D102: 72
A103: 402248280482 | B103: 102 | C103: 5 | D103: 95
A104: 402248280161 | B104: 103 | C104: 10 | D104: 9
A105: 402248278943 | B105: 104 | C105: 5 | D105: 54
A106: 402248278153 | B106: 105 | C106: 5 | D106: 19.05
A107: 402248277063 | B107: 106 | C107: 10 | D107: 78
A108: 402248277053 | B108: 107 | C108: 5 | D108: 78
A109: 402248276992 | B109: 108 | C109: 5 | D109: 62
A110: 402248276702 | B110: 109 | C110: 5 | D110: 57
A111: 402248182412 | B111: 110 | C111: 5 | D111: 6.48
A112: 402248169723 | B112: 111 | C112: 10 | D112: 9
A113: 402248168092 | B113: 112 | C113: 10 | D113: 6.73
A114: 402248119919 | B114: 113 | C114: 5 | D114: 16
A115: 402247790384 | B115: 114 | C115: 5 | D115: 7
A116: 402247784649 | B116: 115 | C116: 5 | D116: 12
A117: 402247731477 | B117: 116 | C117: 5 | D117: 54

Sheet INPUT Demand
C1: Demand per Week per 12NC for 51 Weeks
A2: Year | C2: 13 | D2: 13 | E2: 13 | F2: 13 | G2: 13 | H2: 13 | I2: 13 | J2: 13 | K2: 13 | L2: 13 | M2: 13 | N2: 13 | O2: 13 | P2: 13 | Q2: 13 | R2: 13 | S2: 13 | T2: 13 | U2: 13 | V2: 13 | W2: 13 | X2: 13 | Y2: 13 | Z2: 13 | AA2: 14 | AB2: 14 | AC2: 14 | AD2: 14 | AE2: 14 | AF2: 14 | AG2: 14 | AH2: 14 | AI2: 14 | AJ2: 14 | AK2: 14 | AL2: 14 | AM2: 14 | AN2: 14 | AO2: 14 | AP2: 14 | AQ2: 14 | AR2: 14 | AS2: 14 | AT2: 14 | AU2: 14 | AV2: 14 | AW2: 14 | AX2: 14 | AY2: 14 | AZ2: 14 | BA2: 14
A3: Week | C3: 28 | D3: 29 | E3: 30 | F3: 31 | G3: 32 | H3: 33 | I3: 34 | J3: 35 | K3: 36 | L3: 37 | M3: 38 | N3: 39 | O3: 40 | P3: 41 | Q3: 42 | R3: 43 | S3: 44 | T3: 45 | U3: 46 | V3: 47 | W3: 48 | X3: 49 | Y3: 50 | Z3: 51 | AA3: 2 | AB3: 3 | AC3: 4 | AD3: 5 | AE3: 6 | AF3: 7 | AG3: 8 | AH3: 9 | AI3: 10 | AJ3: 11 | AK3: 12 | AL3: 13 | AM3: 14 | AN3: 15 | AO3: 16 | AP3: 17 | AQ3: 18 | AR3: 19 | AS3: 20 | AT3: 21 | AU3: 22 | AV3: 23 | AW3: 24 | AX3: 25 | AY3: 26 | AZ3: 27 | BA3: 28
A4: 12NC | B4: PN | BB4: Total
A5: =IF('INPUT 12NC'!A2="","",'INPUT 12NC'!A2) -> 402265396241 | B5: =IF('INPUT 12NC'!B2="","",'INPUT 12NC'!B2) -> 1 | C5: 0 | D5: 0 | E5: 0 | F5: 0 | G5: 0 | H5: 0 | I5: 0 | J5: 0 | K5: 0 | L5: 0 | M5: 0 | N5: 0 | O5: 0 | P5: 0 | Q5: 0 | R5: 0 | S5: 0 | T5: 0 | U5: 0 | V5: 0 | W5: 1 | X5: 0 | Y5: 0 | Z5: 0 | AA5: 0 | AB5: 0 | AC5: 0 | AD5: 0 | AE5: 0 | AF5: 0 | AG5: 0 | AH5: 0 | AI5: 0 | AJ5: 2 | AK5: 0 | AL5: 0 | AM5: 0 | AN5: 0 | AO5: 0 | AP5: 0 | AQ5: 0 | AR5: 0 | AS5: 2 | AT5: 0 | AU5: 0 | AV5: 0 | AW5: 0 | AX5: 0 | AY5: 0 | AZ5: 0 | BA5: 0 | BB5: =IF(A5="","",SUM(C5:BA5)) -> 5
A6: =IF('INPUT 12NC'!A3="","",'INPUT 12NC'!A3) -> 402265325711 | B6: =IF('INPUT 12NC'!B3="","",'INPUT 12NC'!B3) -> 2 | C6: 0 | D6: 0 | E6: 0 | F6: 0 | G6: 0 | H6: 0 | I6: 0 | J6: 0 | K6: 0 | L6: 0 | M6: 0 | N6: 0 | O6: 0 | P6: 0 | Q6: 0 | R6: 0 | S6: 3 | T6: 0 | U6: 0 | V6: 0 | W6: 0 | X6: 0 | Y6: 0 | Z6: 0 | AA6: 0 | AB6: 0 | AC6: 0 | AD6: 0 | AE6: 0 | AF6: 0 | AG6: 2 | AH6: 0 | AI6: 0 | AJ6: 0 | AK6: 0 | AL6: 0 | AM6: 0 | AN6: 0 | AO6: 0 | AP6: 0 | AQ6: 0 | AR6: 0 | AS6: 2 | AT6: 0 | AU6: 0 | AV6: 0 | AW6: 0 | AX6: 0 | AY6: 0 | AZ6: 0 | BA6: 0 | BB6: =IF(A6="","",SUM(C6:BA6)) -> 7
A7: =IF('INPUT 12NC'!A4="","",'INPUT 12NC'!A4) -> 402265308151 | B7: =IF('INPUT 12NC'!B4="","",'INPUT 12NC'!B4) -> 3 | C7: 0 | D7: 0 | E7: 0 | F7: 0 | G7: 0 | H7: 0 | I7: 0 | J7: 0 | K7: 2 | L7: 6 | M7: 4 | N7: 0 | O7: 1 | P7: 4 | Q7: 0 | R7: 1 | S7: 0 | T7: 0 | U7: 0 | V7: 0 | W7: 0 | X7: 0 | Y7: 0 | Z7: 0 | AA7: 2 | AB7: 0 | AC7: 0 | AD7: 1 | AE7: 0 | AF7: 0 | AG7: 0 | AH7: 0 | AI7: 0 | AJ7: 0 | AK7: 3 | AL7: 0 | AM7: 0 | AN7: 0 | AO7: 0 | AP7: 0 | AQ7: 0 | AR7: 0 | AS7: 0 | AT7: 0 | AU7: 0 | AV7: 0 | AW7: 0 | AX7: 0 | AY7: 0 | AZ7: 0 | BA7: 0 | BB7: 24
A8: =IF('INPUT 12NC'!A5="","",'INPUT 12NC'!A5) -> 402265307691 | B8: =IF('INPUT 12NC'!B5="","",'INPUT 12NC'!B5) -> 4 | C8: 0 | D8: 0 | E8: 0 | F8: 5 | G8: 0 | H8: 0 | I8: 0 | J8: 8 | K8: 0 | L8: 0 | M8: 2 | N8: 2 | O8: 0 | P8: 0 | Q8: 0 | R8: 1 | S8: 0 | T8: 0 | U8: 0 | V8: 0 | W8: 0 | X8: 0 | Y8: 0 | Z8: 0 | AA8: 2 | AB8: 0 | AC8: 0 | AD8: 1 | AE8: 0 | AF8: 0 | AG8: 0 | AH8: 0 | AI8: 0 | AJ8: 0 | AK8: 3 | AL8: 0 | AM8: 0 | AN8: 0 | AO8: 0 | AP8: 0 | AQ8: 0 | AR8: 0 | AS8: 0 | AT8: 0 | AU8: 0 | AV8: 0 | AW8: 0 | AX8: 0 | AY8: 0 | AZ8: 0 | BA8: 0 | BB8: 24
A9: =IF('INPUT 12NC'!A6="","",'INPUT 12NC'!A6) -> 402265304731 | B9: =IF('INPUT 12NC'!B6="","",'INPUT 12NC'!B6) -> 5 | C9: 0 | D9: 0 | E9: 5 | F9: 0 | G9: 0 | H9: 0 | I9: 0 | J9: 8 | K9: 0 | L9: 0 | M9: 0 | N9: 0 | O9: 0 | P9: 0 | Q9: 0 | R9: 0 | S9: 0 | T9: 4 | U9: 1 | V9: 0 | W9: 0 | X9: 0 | Y9: 0 | Z9: 0 | AA9: 2 | AB9: 0 | AC9: 2 | AD9: 0 | AE9: 0 | AF9: 0 | AG9: 0 | AH9: 0 | AI9: 0 | AJ9: 0 | AK9: 3 | AL9: 0 | AM9: 0 | AN9: 0 | AO9: 0 | AP9: 0 | AQ9: 0 | AR9: 0 | AS9: 0 | AT9: 0 | AU9: 0 | AV9: 0 | AW9: 0 | AX9: 0 | AY9: 0 | AZ9: 0 | BA9: 0 | BB9: 25
A10: =IF('INPUT 12NC'!A7="","",'INPUT 12NC'!A7) -> 402265167072 | B10: =IF('INPUT 12NC'!B7="","",'INPUT 12NC'!B7) -> 6 | C10: 0 | D10: 0 | E10: 0 | F10: 0 | G10: 0 | H10: 0 | I10: 0 | J10: 0 | K10: 0 | L10: 0 | M10: 0 | N10: 10 | O10: 0 | P10: 0 | Q10: 0 | R10: 0 | S10: 5 | T10: 0 | U10: 0 | V10: 0 | W10: 0 | X10: 0 | Y10: 0 | Z10: 0 | AA10: 0 | AB10: 0 | AC10: 0 | AD10: 0 | AE10: 0 | AF10: 0 | AG10: 0 | AH10: 0 | AI10: 0 | AJ10: 0 | AK10: 0 | AL10: 0 | AM10: 0 | AN10: 0 | AO10: 0 | AP10: 0 | AQ10: 0 | AR10: 0 | AS10: 0 | AT10: 0 | AU10: 0 | AV10: 0 | AW10: 0 | AX10: 0 | AY10: 0 | AZ10: 0 | BA10: 0 | BB10: 15
A11: =IF('INPUT 12NC'!A8="","",'INPUT 12NC'!A8) -> 402265166901 | B11: =IF('INPUT 12NC'!B8="","",'INPUT 12NC'!B8) -> 7 | C11: 0 | D11: 0 | E11: 0 | F11: 0 | G11: 0 | H11: 0 | I11: 0 | J11: 0 | K11: 0 | L11: 0 | M11: 0 | N11: 0 | O11: 0 | P11: 0 | Q11: 0 | R11: 0 | S11: 0 | T11: 0 | U11: 0 | V11: 1 | W11: 0 | X11: 1 | Y11: 0 | Z11: 0 | AA11: 0 | AB11: 0 | AC11: 0 | AD11: 0 | AE11: 1 | AF11: 0 | AG11: 0 | AH11: 0 | AI11: 0 | AJ11: 0 | AK11: 0 | AL11: 0 | AM11: 0 | AN11: 0 | AO11: 0 | AP11: 0 | AQ11: 0 | AR11: 0 | AS11: 0 | AT11: 0 | AU11: 0 | AV11: 0 | AW11: 0 | AX11: 0 | AY11: 1 | AZ11: 0 | BA11: 0 | BB11: 4
A12: =IF('INPUT 12NC'!A9="","",'INPUT 12NC'!A9) -> 402264798011 | B12: =IF('INPUT 12NC'!B9="","",'INPUT 12NC'!B9) -> 8 | C12: 0 | D12: 0 | E12: 0 | F12: 0 | G12: 0 | H12: 0 | I12: 0 | J12: 0 | K12: 0 | L12: 8 | M12: 0 | N12: 2 | O12: 1 | P12: 0 | Q12: 0 | R12: 0 | S12: 0 | T12: 0 | U12: 0 | V12: 0 | W12: 0 | X12: 0 | Y12: 0 | Z12: 0 | AA12: 0 | AB12: 0 | AC12: 0 | AD12: 0 | AE12: 0 | AF12: 0 | AG12: 0 | AH12: 0 | AI12: 0 | AJ12: 0 | AK12: 0 | AL12: 0 | AM12: 0 | AN12: 0 | AO12: 0 | AP12: 0 | AQ12: 0 | AR12: 0 | AS12: 0 | AT12: 0 | AU12: 0 | AV12: 0 | AW12: 0 | AX12: 0 | AY12: 0 | AZ12: 0 | BA12: 0 | BB12: 11
A13: =IF('INPUT 12NC'!A10="","",'INPUT 12NC'!A10) -> 402264798001 | B13: =IF('INPUT 12NC'!B10="","",'INPUT 12NC'!B10) -> 9 | C13: 0 | D13: 0 | E13: 0 | F13: 0 | G13: 0 | H13: 0 | I13: 0 | J13: 0 | K13: 0 | L13: 0 | M13: 7 | N13: 0 | O13: 0 | P13: 2 | Q13: 2 | R13: 0 | S13: 0 | T13: 0 | U13: 0 | V13: 0 | W13: 0 | X13: 0 | Y13: 0 | Z13: 0 | AA13: 0 | AB13: 0 | AC13: 0 | AD13: 0 | AE13: 0 | AF13: 0 | AG13: 0 | AH13: 0 | AI13: 0 | AJ13: 0 | AK13: 0 | AL13: 0 | AM13: 0 | AN13: 0 | AO13: 0 | AP13: 0 | AQ13: 0 | AR13: 0 | AS13: 0 | AT13: 0 | AU13: 0 | AV13: 0 | AW13: 0 | AX13: 0 | AY13: 0 | AZ13: 0 | BA13: 0 | BB13: 11
A14: =IF('INPUT 12NC'!A11="","",'INPUT 12NC'!A11) -> 402264797991 | B14: =IF('INPUT 12NC'!B11="","",'INPUT 12NC'!B11) -> 10 | C14: 0 | D14: 0 | E14: 0 | F14: 0 | G14: 0 | H14: 0 | I14: 0 | J14: 0 | K14: 0 | L14: 2 | M14: 0 | N14: 3 | O14: 0 | P14: 0 | Q14: 0 | R14: 0 | S14: 0 | T14: 0 | U14: 0 | V14: 0 | W14: 0 | X14: 0 | Y14: 0 | Z14: 0 | AA14: 0 | AB14: 0 | AC14: 0 | AD14: 0 | AE14: 0 | AF14: 0 | AG14: 0 | AH14: 0 | AI14: 0 | AJ14: 0 | AK14: 0 | AL14: 1 | AM14: 0 | AN14: 0 | AO14: 0 | AP14: 2 | AQ14: 0 | AR14: 0 | AS14: 0 | AT14: 0 | AU14: 0 | AV14: 3 | AW14: 0 | AX14: 0 | AY14: 0 | AZ14: 0 | BA14: 0 | BB14: 11
A15: =IF('INPUT 12NC'!A12="","",'INPUT 12NC'!A12) -> 402264797981 | B15: =IF('INPUT 12NC'!B12="","",'INPUT 12NC'!B12) -> 11 | C15: 0 | D15: 0 | E15: 0 | F15: 0 | G15: 0 | H15: 0 | I15: 0 | J15: 0 | K15: 0 | L15: 0 | M15: 0 | N15: 9 | O15: 0 | P15: 0 | Q15: 0 | R15: 0 | S15: 0 | T15: 0 | U15: 0 | V15: 0 | W15: 0 | X15: 0 | Y15: 0 | Z15: 0 | AA15: 0 | AB15: 0 | AC15: 0 | AD15: 0 | AE15: 1 | AF15: 0 | AG15: 0 | AH15: 0 | AI15: 0 | AJ15: 0 | AK15: 0 | AL15: 0 | AM15: 0 | AN15: 0 | AO15: 0 | AP15: 0 | AQ15: 0 | AR15: 0 | AS15: 0 | AT15: 0 | AU15: 0 | AV15: 8 | AW15: 0 | AX15: 0 | AY15: 0 | AZ15: 0 | BA15: 0 | BB15: 18
A16: =IF('INPUT 12NC'!A13="","",'INPUT 12NC'!A13) -> 402264795061 | B16: =IF('INPUT 12NC'!B13="","",'INPUT 12NC'!B13) -> 12 | C16: 0 | D16: 0 | E16: 5 | F16: 0 | G16: 0 | H16: 0 | I16: 0 | J16: 8 | K16: 0 | L16: 0 | M16: 0 | N16: 0 | O16: 0 | P16: 4 | Q16: 0 | R16: 1 | S16: 0 | T16: 0 | U16: 0 | V16: 0 | W16: 0 | X16: 0 | Y16: 0 | Z16: 0 | AA16: 2 | AB16: 0 | AC16: 0 | AD16: 1 | AE16: 0 | AF16: 0 | AG16: 0 | AH16: 0 | AI16: 0 | AJ16: 0 | AK16: 3 | AL16: 0 | AM16: 0 | AN16: 0 | AO16: 0 | AP16: 0 | AQ16: 0 | AR16: 0 | AS16: 0 | AT16: 0 | AU16: 0 | AV16: 0 | AW16: 0 | AX16: 0 | AY16: 0 | AZ16: 0 | BA16: 0 | BB16: 24
A17: =IF('INPUT 12NC'!A14="","",'INPUT 12NC'!A14) -> 402264754681 | B17: =IF('INPUT 12NC'!B14="","",'INPUT 12NC'!B14) -> 13 | C17: 0 | D17: 0 | E17: 0 | F17: 0 | G17: 0 | H17: 0 | I17: 0 | J17: 0 | K17: 0 | L17: 0 | M17: 0 | N17: 0 | O17: 0 | P17: 0 | Q17: 0 | R17: 2 | S17: 0 | T17: 0 | U17: 0 | V17: 0 | W17: 0 | X17: 0 | Y17: 0 | Z17: 0 | AA17: 0 | AB17: 0 | AC17: 0 | AD17: 0 | AE17: 1 | AF17: 0 | AG17: 0 | AH17: 0 | AI17: 0 | AJ17: 0 | AK17: 0 | AL17: 0 | AM17: 0 | AN17: 0 | AO17: 0 | AP17: 0 | AQ17: 0 | AR17: 0 | AS17: 0 | AT17: 0 | AU17: 0 | AV17: 0 | AW17: 0 | AX17: 0 | AY17: 0 | AZ17: 0 | BA17: 0 | BB17: 3
A18: =IF('INPUT 12NC'!A15="","",'INPUT 12NC'!A15) -> 402264754671 | B18: =IF('INPUT 12NC'!B15="","",'INPUT 12NC'!B15) -> 14 | C18: 0 | D18: 0 | E18: 0 | F18: 0 | G18: 0 | H18: 0 | I18: 0 | J18: 0 | K18: 0 | L18: 0 | M18: 0 | N18: 0 | O18: 0 | P18: 0 | Q18: 0 | R18: 4 | S18: 0 | T18: 0 | U18: 0 | V18: 0 | W18: 0 | X18: 0 | Y18: 0 | Z18: 0 | AA18: 0 | AB18: 0 | AC18: 0 | AD18: 0 | AE18: 0 | AF18: 0 | AG18: 0 | AH18: 0 | AI18: 0 | AJ18: 0 | AK18: 0 | AL18: 0 | AM18: 0 | AN18: 0 | AO18: 0 | AP18: 0 | AQ18: 0 | AR18: 0 | AS18: 0 | AT18: 0 | AU18: 0 | AV18: 0 | AW18: 0 | AX18: 0 | AY18: 0 | AZ18: 0 | BA18: 0 | BB18: 4
A19: =IF('INPUT 12NC'!A16="","",'INPUT 12NC'!A16) -> 402264753621 | B19: =IF('INPUT 12NC'!B16="","",'INPUT 12NC'!B16) -> 15 | C19: 3 | D19: 0 | E19: 0 | F19: 0 | G19: 0 | H19: 0 | I19: 0 | J19: 0 | K19: 0 | L19: 0 | M19: 0 | N19: 0 | O19: 0 | P19: 0 | Q19: 1 | R19: 0 | S19: 1 | T19: 0 | U19: 0 | V19: 0 | W19: 1 | X19: 0 | Y19: 0 | Z19: 0 | AA19: 0 | AB19: 0 | AC19: 1 | AD19: 0 | AE19: 0 | AF19: 1 | AG19: 0 | AH19: 0 | AI19: 0 | AJ19: 0 | AK19: 0 | AL19: 0 | AM19: 0 | AN19: 0 | AO19: 2 | AP19: 0 | AQ19: 0 | AR19: 0 | AS19: 0 | AT19: 0 | AU19: 0 | AV19: 0 | AW19: 0 | AX19: 0 | AY19: 0 | AZ19: 0 | BA19: 0 | BB19: 10
A20: =IF('INPUT 12NC'!A17="","",'INPUT 12NC'!A17) -> 402264753611 | B20: =IF('INPUT 12NC'!B17="","",'INPUT 12NC'!B17) -> 16 | C20: 3 | D20: 0 | E20: 0 | F20: 0 | G20: 0 | H20: 0 | I20: 0 | J20: 0 | K20: 0 | L20: 0 | M20: 0 | N20: 0 | O20: 0 | P20: 0 | Q20: 1 | R20: 0 | S20: 1 | T20: 0 | U20: 0 | V20: 0 | W20: 1 | X20: 0 | Y20: 0 | Z20: 0 | AA20: 0 | AB20: 0 | AC20: 0 | AD20: 1 | AE20: 2 | AF20: 0 | AG20: 0 | AH20: 0 | AI20: 0 | AJ20: 0 | AK20: 0 | AL20: 0 | AM20: 0 | AN20: 0 | AO20: 0 | AP20: 0 | AQ20: 0 | AR20: 0 | AS20: 0 | AT20: 0 | AU20: 0 | AV20: 0 | AW20: 0 | AX20: 0 | AY20: 1 | AZ20: 0 | BA20: 0 | BB20: 10
A21: =IF('INPUT 12NC'!A18="","",'INPUT 12NC'!A18) -> 402264753581 | B21: =IF('INPUT 12NC'!B18="","",'INPUT 12NC'!B18) -> 17 | C21: 0 | D21: 0 | E21: 0 | F21: 0 | G21: 0 | H21: 0 | I21: 0 | J21: 0 | K21: 0 | L21: 0 | M21: 0 | N21: 1 | O21: 0 | P21: 0 | Q21: 3 | R21: 0 | S21: 0 | T21: 0 | U21: 2 | V21: 0 | W21: 0 | X21: 0 | Y21: 0 | Z21: 0 | AA21: 0 | AB21: 0 | AC21: 0 | AD21: 0 | AE21: 0 | AF21: 0 | AG21: 0 | AH21: 0 | AI21: 0 | AJ21: 0 | AK21: 0 | AL21: 0 | AM21: 0 | AN21: 0 | AO21: 0 | AP21: 0 | AQ21: 0 | AR21: 0 | AS21: 0 | AT21: 0 | AU21: 0 | AV21: 0 | AW21: 0 | AX21: 0 | AY21: 0 | AZ21: 0 | BA21: 0 | BB21: 6
A22: =IF('INPUT 12NC'!A19="","",'INPUT 12NC'!A19) -> 402264753521 | B22: =IF('INPUT 12NC'!B19="","",'INPUT 12NC'!B19) -> 18 | C22: 0 | D22: 4 | E22: 0 | F22: 0 | G22: 0 | H22: 0 | I22: 0 | J22: 0 | K22: 0 | L22: 0 | M22: 3 | N22: 5 | O22: 0 | P22: 0 | Q22: 3 | R22: 0 | S22: 0 | T22: 0 | U22: 2 | V22: 0 | W22: 0 | X22: 0 | Y22: 0 | Z22: 0 | AA22: 0 | AB22: 0 | AC22: 0 | AD22: 0 | AE22: 0 | AF22: 0 | AG22: 0 | AH22: 0 | AI22: 0 | AJ22: 0 | AK22: 0 | AL22: 0 | AM22: 0 | AN22: 0 | AO22: 0 | AP22: 0 | AQ22: 0 | AR22: 0 | AS22: 0 | AT22: 0 | AU22: 0 | AV22: 0 | AW22: 0 | AX22: 0 | AY22: 0 | AZ22: 0 | BA22: 0 | BB22: 17
A23: =IF('INPUT 12NC'!A20="","",'INPUT 12NC'!A20) -> 402264753461 | B23: =IF('INPUT 12NC'!B20="","",'INPUT 12NC'!B20) -> 19 | C23: 0 | D23: 0 | E23: 0 | F23: 0 | G23: 0 | H23: 3 | I23: 0 | J23: 0 | K23: 0 | L23: 0 | M23: 0 | N23: 0 | O23: 0 | P23: 0 | Q23: 1 | R23: 0 | S23: 1 | T23: 0 | U23: 0 | V23: 0 | W23: 1 | X23: 0 | Y23: 0 | Z23: 0 | AA23: 0 | AB23: 0 | AC23: 0 | AD23: 0 | AE23: 0 | AF23: 0 | AG23: 0 | AH23: 0 | AI23: 1 | AJ23: 0 | AK23: 2 | AL23: 0 | AM23: 0 | AN23: 0 | AO23: 0 | AP23: 0 | AQ23: 0 | AR23: 0 | AS23: 0 | AT23: 0 | AU23: 0 | AV23: 0 | AW23: 0 | AX23: 0 | AY23: 0 | AZ23: 1 | BA23: 0 | BB23: 10
A24: =IF('INPUT 12NC'!A21="","",'INPUT 12NC'!A21) -> 402264753441 | B24: =IF('INPUT 12NC'!B21="","",'INPUT 12NC'!B21) -> 20 | C24: 3 | D24: 0 | E24: 0 | F24: 0 | G24: 0 | H24: 0 | I24: 0 | J24: 0 | K24: 0 | L24: 0 | M24: 0 | N24: 0 | O24: 0 | P24: 0 | Q24: 1 | R24: 0 | S24: 1 | T24: 0 | U24: 0 | V24: 0 | W24: 1 | X24: 0 | Y24: 0 | Z24: 0 | AA24: 0 | AB24: 0 | AC24: 1 | AD24: 0 | AE24: 2 | AF24: 0 | AG24: 0 | AH24: 0 | AI24: 0 | AJ24: 0 | AK24: 0 | AL24: 0 | AM24: 0 | AN24: 0 | AO24: 0 | AP24: 0 | AQ24: 0 | AR24: 0 | AS24: 1 | AT24: 0 | AU24: 0 | AV24: 0 | AW24: 0 | AX24: 0 | AY24: 1 | AZ24: 0 | BA24: 0 | BB24: 11
A25: =IF('INPUT 12NC'!A22="","",'INPUT 12NC'!A22) -> 402264753432 | B25: =IF('INPUT 12NC'!B22="","",'INPUT 12NC'!B22) -> 21 | C25: 0 | D25: 0 | E25: 0 | F25: 0 | G25: 0 | H25: 0 | I25: 0 | J25: 0 | K25: 0 | L25: 0 | M25: 0 | N25: 1 | O25: 0 | P25: 0 | Q25: 0 | R25: 0 | S25: 0 | T25: 1 | U25: 0 | V25: 0 | W25: 1 | X25: 0 | Y25: 0 | Z25: 0 | AA25: 0 | AB25: 0 | AC25: 1 | AD25: 0 | AE25: 2 | AF25: 0 | AG25: 0 | AH25: 0 | AI25: 0 | AJ25: 0 | AK25: 0 | AL25: 0 | AM25: 0 | AN25: 0 | AO25: 0 | AP25: 0 | AQ25: 0 | AR25: 0 | AS25: 0 | AT25: 0 | AU25: 0 | AV25: 0 | AW25: 0 | AX25: 0 | AY25: 1 | AZ25: 0 | BA25: 0 | BB25: 7
A26: =IF('INPUT 12NC'!A23="","",'INPUT 12NC'!A23) -> 402264753421 | B26: =IF('INPUT 12NC'!B23="","",'INPUT 12NC'!B23) -> 22 | C26: 0 | D26: 0 | E26: 2 | F26: 0 | G26: 0 | H26: 0 | I26: 0 | J26: 0 | K26: 0 | L26: 0 | M26: 0 | N26: 0 | O26: 0 | P26: 0 | Q26: 0 | R26: 1 | S26: 1 | T26: 0 | U26: 2 | V26: 0 | W26: 1 | X26: 0 | Y26: 0 | Z26: 0 | AA26: 0 | AB26: 0 | AC26: 0 | AD26: 0 | AE26: 0 | AF26: 0 | AG26: 1 | AH26: 0 | AI26: 0 | AJ26: 0 | AK26: 0 | AL26: 0 | AM26: 0 | AN26: 0 | AO26: 1 | AP26: 0 | AQ26: 0 | AR26: 0 | AS26: 0 | AT26: 1 | AU26: 0 | AV26: 0 | AW26: 0 | AX26: 0 | AY26: 3 | AZ26: 0 | BA26: 0 | BB26: 13
A27: =IF('INPUT 12NC'!A24="","",'INPUT 12NC'!A24) -> 402264753411 | B27: =IF('INPUT 12NC'!B24="","",'INPUT 12NC'!B24) -> 23 | C27: 3 | D27: 0 | E27: 0 | F27: 0 | G27: 0 | H27: 0 | I27: 0 | J27: 0 | K27: 0 | L27: 0 | M27: 0 | N27: 0 | O27: 0 | P27: 0 | Q27: 1 | R27: 0 | S27: 1 | T27: 0 | U27: 0 | V27: 0 | W27: 1 | X27: 0 | Y27: 0 | Z27: 0 | AA27: 0 | AB27: 0 | AC27: 1 | AD27: 0 | AE27: 2 | AF27: 0 | AG27: 0 | AH27: 0 | AI27: 0 | AJ27: 0 | AK27: 0 | AL27: 0 | AM27: 0 | AN27: 0 | AO27: 0 | AP27: 0 | AQ27: 0 | AR27: 0 | AS27: 0 | AT27: 0 | AU27: 0 | AV27: 0 | AW27: 0 | AX27: 0 | AY27: 1 | AZ27: 0 | BA27: 0 | BB27: 10
A28: =IF('INPUT 12NC'!A25="","",'INPUT 12NC'!A25) -> 402264753401 | B28: =IF('INPUT 12NC'!B25="","",'INPUT 12NC'!B25) -> 24 | C28: 3 | D28: 0 | E28: 0 | F28: 0 | G28: 0 | H28: 0 | I28: 0 | J28: 0 | K28: 0 | L28: 0 | M28: 0 | N28: 0 | O28: 0 | P28: 0 | Q28: 1 | R28: 0 | S28: 1 | T28: 0 | U28: 0 | V28: 0 | W28: 1 | X28: 0 | Y28: 0 | Z28: 0 | AA28: 0 | AB28: 0 | AC28: 1 | AD28: 0 | AE28: 0 | AF28: 0 | AG28: 0 | AH28: 0 | AI28: 0 | AJ28: 0 | AK28: 0 | AL28: 0 | AM28: 0 | AN28: 0 | AO28: 1 | AP28: 0 | AQ28: 0 | AR28: 2 | AS28: 0 | AT28: 0 | AU28: 0 | AV28: 0 | AW28: 0 | AX28: 0 | AY28: 0 | AZ28: 0 | BA28: 0 | BB28: 10
A29: =IF('INPUT 12NC'!A26="","",'INPUT 12NC'!A26) -> 402264753391 | B29: =IF('INPUT 12NC'!B26="","",'INPUT 12NC'!B26) -> 25 | C29: 12 | D29: 0 | E29: 0 | F29: 0 | G29: 0 | H29: 12 | I29: 0 | J29: 0 | K29: 0 | L29: 0 | M29: 6 | N29: 0 | O29: 0 | P29: 0 | Q29: 0 | R29: 0 | S29: 6 | T29: 0 | U29: 0 | V29: 0 | W29: 6 | X29: 0 | Y29: 0 | Z29: 0 | AA29: 0 | AB29: 0 | AC29: 6 | AD29: 0 | AE29: 6 | AF29: 0 | AG29: 0 | AH29: 0 | AI29: 6 | AJ29: 0 | AK29: 0 | AL29: 0 | AM29: 0 | AN29: 0 | AO29: 0 | AP29: 0 | AQ29: 0 | AR29: 0 | AS29: 0 | AT29: 0 | AU29: 0 | AV29: 0 | AW29: 0 | AX29: 0 | AY29: 6 | AZ29: 0 | BA29: 0 | BB29: 66
A30: =IF('INPUT 12NC'!A27="","",'INPUT 12NC'!A27) -> 402264753381 | B30: =IF('INPUT 12NC'!B27="","",'INPUT 12NC'!B27) -> 26 | C30: 2 | D30: 0 | E30: 2 | F30: 5 | G30: 0 | H30: 3 | I30: 0 | J30: 13 | K30: 0 | L30: 0 | M30: 6 | N30: 0 | O30: 0 | P30: 0 | Q30: 0 | R30: 0 | S30: 0 | T30: 0 | U30: 0 | V30: 0 | W30: 5 | X30: 0 | Y30: 0 | Z30: 0 | AA30: 11 | AB30: 0 | AC30: 0 | AD30: 0 | AE30: 5 | AF30: 0 | AG30: 0 | AH30: 0 | AI30: 5 | AJ30: 0 | AK30: 0 | AL30: 0 | AM30: 0 | AN30: 0 | AO30: 0 | AP30: 0 | AQ30: 0 | AR30: 0 | AS30: 0 | AT30: 0 | AU30: 0 | AV30: 0 | AW30: 0 | AX30: 0 | AY30: 5 | AZ30: 0 | BA30: 0 | BB30: 62
A31: =IF('INPUT 12NC'!A28="","",'INPUT 12NC'!A28) -> 402264753371 | B31: =IF('INPUT 12NC'!B28="","",'INPUT 12NC'!B28) -> 27 | C31: 0 | D31: 0 | E31: 0 | F31: 0 | G31: 0 | H31: 8 | I31: 0 | J31: 0 | K31: 0 | L31: 0 | M31: 8 | N31: 0 | O31: 16 | P31: 0 | Q31: 0 | R31: 0 | S31: 8 | T31: 0 | U31: 0 | V31: 2 | W31: 8 | X31: 0 | Y31: 0 | Z31: 8 | AA31: 0 | AB31: 0 | AC31: 0 | AD31: 2 | AE31: 0 | AF31: 0 | AG31: 0 | AH31: 0 | AI31: 0 | AJ31: 0 | AK31: 16 | AL31: 0 | AM31: 0 | AN31: 0 | AO31: 0 | AP31: 0 | AQ31: 0 | AR31: 0 | AS31: 0 | AT31: 0 | AU31: 0 | AV31: 0 | AW31: 0 | AX31: 0 | AY31: 0 | AZ31: 0 | BA31: 0 | BB31: 76
A32: =IF('INPUT 12NC'!A29="","",'INPUT 12NC'!A29) -> 402264753362 | B32: =IF('INPUT 12NC'!B29="","",'INPUT 12NC'!B29) -> 28 | C32: 0 | D32: 0 | E32: 0 | F32: 0 | G32: 2 | H32: 0 | I32: 0 | J32: 0 | K32: 0 | L32: 0 | M32: 0 | N32: 1 | O32: 0 | P32: 0 | Q32: 0 | R32: 0 | S32: 0 | T32: 1 | U32: 0 | V32: 0 | W32: 1 | X32: 0 | Y32: 0 | Z32: 0 | AA32: 0 | AB32: 0 | AC32: 0 | AD32: 1 | AE32: 0 | AF32: 0 | AG32: 0 | AH32: 0 | AI32: 0 | AJ32: 0 | AK32: 0 | AL32: 0 | AM32: 0 | AN32: 0 | AO32: 2 | AP32: 0 | AQ32: 0 | AR32: 0 | AS32: 0 | AT32: 0 | AU32: 0 | AV32: 0 | AW32: 0 | AX32: 0 | AY32: 1 | AZ32: 0 | BA32: 0 | BB32: 9
A33: =IF('INPUT 12NC'!A30="","",'INPUT 12NC'!A30) -> 402264753351 | B33: =IF('INPUT 12NC'!B30="","",'INPUT 12NC'!B30) -> 29 | C33: 3 | D33: 0 | E33: 0 | F33: 0 | G33: 0 | H33: 0 | I33: 0 | J33: 0 | K33: 0 | L33: 0 | M33: 0 | N33: 0 | O33: 0 | P33: 0 | Q33: 0 | R33: 0 | S33: 1 | T33: 0 | U33: 0 | V33: 0 | W33: 1 | X33: 0 | Y33: 0 | Z33: 0 | AA33: 0 | AB33: 0 | AC33: 1 | AD33: 0 | AE33: 2 | AF33: 0 | AG33: 0 | AH33: 0 | AI33: 0 | AJ33: 0 | AK33: 0 | AL33: 0 | AM33: 0 | AN33: 0 | AO33: 0 | AP33: 0 | AQ33: 0 | AR33: 0 | AS33: 0 | AT33: 0 | AU33: 0 | AV33: 0 | AW33: 0 | AX33: 0 | AY33: 1 | AZ33: 0 | BA33: 0 | BB33: 9
A34: =IF('INPUT 12NC'!A31="","",'INPUT 12NC'!A31) -> 402264753341 | B34: =IF('INPUT 12NC'!B31="","",'INPUT 12NC'!B31) -> 30 | C34: 3 | D34: 0 | E34: 0 | F34: 0 | G34: 0 | H34: 0 | I34: 0 | J34: 0 | K34: 0 | L34: 0 | M34: 0 | N34: 1 | O34: 0 | P34: 0 | Q34: 0 | R34: 0 | S34: 1 | T34: 0 | U34: 0 | V34: 0 | W34: 1 | X34: 0 | Y34: 0 | Z34: 0 | AA34: 0 | AB34: 0 | AC34: 1 | AD34: 0 | AE34: 1 | AF34: 0 | AG34: 0 | AH34: 0 | AI34: 0 | AJ34: 0 | AK34: 0 | AL34: 0 | AM34: 0 | AN34: 0 | AO34: 0 | AP34: 0 | AQ34: 0 | AR34: 1 | AS34: 0 | AT34: 0 | AU34: 0 | AV34: 0 | AW34: 0 | AX34: 0 | AY34: 1 | AZ34: 0 | BA34: 0 | BB34: 10
A35: =IF('INPUT 12NC'!A32="","",'INPUT 12NC'!A32) -> 402264753311 | B35: =IF('INPUT 12NC'!B32="","",'INPUT 12NC'!B32) -> 31 | C35: 0 | D35: 0 | E35: 0 | F35: 8 | G35: 0 | H35: 0 | I35: 0 | J35: 0 | K35: 0 | L35: 0 | M35: 0 | N35: 15 | O35: 9 | P35: 0 | Q35: 0 | R35: 0 | S35: 8 | T35: 0 | U35: 0 | V35: 0 | W35: 8 | X35: 0 | Y35: 0 | Z35: 0 | AA35: 9 | AB35: 0 | AC35: 0 | AD35: 2 | AE35: 0 | AF35: 0 | AG35: 0 | AH35: 0 | AI35: 0 | AJ35: 8 | AK35: 8 | AL35: 0 | AM35: 0 | AN35: 0 | AO35: 0 | AP35: 0 | AQ35: 0 | AR35: 0 | AS35: 0 | AT35: 0 | AU35: 0 | AV35: 0 | AW35: 0 | AX35: 0 | AY35: 7 | AZ35: 0 | BA35: 0 | BB35: 82
A36: =IF('INPUT 12NC'!A33="","",'INPUT 12NC'!A33) -> 402264753301 | B36: =IF('INPUT 12NC'!B33="","",'INPUT 12NC'!B33) -> 32 | C36: 2 | D36: 0 | E36: 0 | F36: 0 | G36: 0 | H36: 1 | I36: 0 | J36: 0 | K36: 0 | L36: 0 | M36: 1 | N36: 0 | O36: 0 | P36: 0 | Q36: 0 | R36: 0 | S36: 1 | T36: 0 | U36: 0 | V36: 0 | W36: 1 | X36: 0 | Y36: 0 | Z36: 0 | AA36: 0 | AB36: 0 | AC36: 0 | AD36: 1 | AE36: 2 | AF36: 0 | AG36: 0 | AH36: 0 | AI36: 0 | AJ36: 0 | AK36: 0 | AL36: 0 | AM36: 0 | AN36: 0 | AO36: 0 | AP36: 0 | AQ36: 0 | AR36: 0 | AS36: 0 | AT36: 0 | AU36: 0 | AV36: 0 | AW36: 0 | AX36: 0 | AY36: 1 | AZ36: 0 | BA36: 0 | BB36: 10
A37: =IF('INPUT 12NC'!A34="","",'INPUT 12NC'!A34) -> 402264753291 | B37: =IF('INPUT 12NC'!B34="","",'INPUT 12NC'!B34) -> 33 | C37: 3 | D37: 0 | E37: 0 | F37: 0 | G37: 0 | H37: 0 | I37: 0 | J37: 0 | K37: 0 | L37: 0 | M37: 1 | N37: 0 | O37: 0 | P37: 0 | Q37: 0 | R37: 0 | S37: 1 | T37: 0 | U37: 0 | V37: 0 | W37: 1 | X37: 0 | Y37: 0 | Z37: 0 | AA37: 0 | AB37: 0 | AC37: 1 | AD37: 0 | AE37: 1 | AF37: 0 | AG37: 0 | AH37: 0 | AI37: 2 | AJ37: 0 | AK37: 0 | AL37: 0 | AM37: 0 | AN37: 0 | AO37: 0 | AP37: 0 | AQ37: 0 | AR37: 0 | AS37: 0 | AT37: 0 | AU37: 0 | AV37: 0 | AW37: 0 | AX37: 0 | AY37: 0 | AZ37: 0 | BA37: 0 | BB37: 10
A38: =IF('INPUT 12NC'!A35="","",'INPUT 12NC'!A35) -> 402264753281 | B38: =IF('INPUT 12NC'!B35="","",'INPUT 12NC'!B35) -> 34 | C38: 3 | D38: 0 | E38: 0 | F38: 0 | G38: 0 | H38: 0 | I38: 0 | J38: 0 | K38: 0 | L38: 0 | M38: 1 | N38: 0 | O38: 0 | P38: 0 | Q38: 0 | R38: 0 | S38: 1 | T38: 0 | U38: 0 | V38: 0 | W38: 1 | X38: 0 | Y38: 0 | Z38: 0 | AA38: 0 | AB38: 0 | AC38: 1 | AD38: 0 | AE38: 1 | AF38: 0 | AG38: 0 | AH38: 0 | AI38: 0 | AJ38: 0 | AK38: 0 | AL38: 0 | AM38: 0 | AN38: 0 | AO38: 1 | AP38: 0 | AQ38: 0 | AR38: 0 | AS38: 0 | AT38: 0 | AU38: 0 | AV38: 0 | AW38: 0 | AX38: 0 | AY38: 1 | AZ38: 0 | BA38: 0 | BB38: 10
A39: =IF('INPUT 12NC'!A36="","",'INPUT 12NC'!A36) -> 402264753271 | B39: =IF('INPUT 12NC'!B36="","",'INPUT 12NC'!B36) -> 35 | C39: 3 | D39: 0 | E39: 0 | F39: 0 | G39: 0 | H39: 0 | I39: 0 | J39: 0 | K39: 0 | L39: 0 | M39: 0 | N39: 0 | O39: 0 | P39: 0 | Q39: 1 | R39: 0 | S39: 1 | T39: 0 | U39: 0 | V39: 0 | W39: 1 | X39: 0 | Y39: 0 | Z39: 0 | AA39: 0 | AB39: 0 | AC39: 1 | AD39: 0 | AE39: 2 | AF39: 0 | AG39: 0 | AH39: 0 | AI39: 0 | AJ39: 0 | AK39: 0 | AL39: 0 | AM39: 0 | AN39: 0 | AO39: 0 | AP39: 0 | AQ39: 0 | AR39: 0 | AS39: 0 | AT39: 0 | AU39: 0 | AV39: 0 | AW39: 0 | AX39: 0 | AY39: 1 | AZ39: 0 | BA39: 0 | BB39: 10
A40: =IF('INPUT 12NC'!A37="","",'INPUT 12NC'!A37) -> 402264753261 | B40: =IF('INPUT 12NC'!B37="","",'INPUT 12NC'!B37) -> 36 | C40: 3 | D40: 0 | E40: 0 | F40: 0 | G40: 0 | H40: 0 | I40: 0 | J40: 0 | K40: 0 | L40: 0 | M40: 1 | N40: 0 | O40: 0 | P40: 0 | Q40: 0 | R40: 0 | S40: 1 | T40: 0 | U40: 0 | V40: 0 | W40: 1 | X40: 0 | Y40: 0 | Z40: 0 | AA40: 0 | AB40: 0 | AC40: 1 | AD40: 0 | AE40: 1 | AF40: 0 | AG40: 0 | AH40: 0 | AI40: 2 | AJ40: 0 | AK40: 0 | AL40: 0 | AM40: 0 | AN40: 0 | AO40: 0 | AP40: 0 | AQ40: 0 | AR40: 0 | AS40: 0 | AT40: 0 | AU40: 0 | AV40: 0 | AW40: 0 | AX40: 0 | AY40: 0 | AZ40: 0 | BA40: 0 | BB40: 10
A41: =IF('INPUT 12NC'!A38="","",'INPUT 12NC'!A38) -> 402264751272 | B41: =IF('INPUT 12NC'!B38="","",'INPUT 12NC'!B38) -> 37 | C41: 0 | D41: 0 | E41: 1 | F41: 0 | G41: 0 | H41: 0 | I41: 1 | J41: 0 | K41: 0 | L41: 0 | M41: 0 | N41: 0 | O41: 0 | P41: 0 | Q41: 0 | R41: 0 | S41: 0 | T41: 0 | U41: 0 | V41: 0 | W41: 2 | X41: 0 | Y41: 0 | Z41: 3 | AA41: 0 | AB41: 0 | AC41: 0 | AD41: 0 | AE41: 0 | AF41: 2 | AG41: 0 | AH41: 0 | AI41: 0 | AJ41: 0 | AK41: 0 | AL41: 0 | AM41: 0 | AN41: 0 | AO41: 0 | AP41: 0 | AQ41: 0 | AR41: 0 | AS41: 0 | AT41: 0 | AU41: 0 | AV41: 0 | AW41: 0 | AX41: 0 | AY41: 0 | AZ41: 0 | BA41: 0 | BB41: 9
A42: =IF('INPUT 12NC'!A39="","",'INPUT 12NC'!A39) -> 402264731822 | B42: =IF('INPUT 12NC'!B39="","",'INPUT 12NC'!B39) -> 38 | C42: 0 | D42: 0 | E42: 0 | F42: 0 | G42: 0 | H42: 0 | I42: 0 | J42: 4 | K42: 0 | L42: 0 | M42: 0 | N42: 0 | O42: 0 | P42: 0 | Q42: 0 | R42: 0 | S42: 0 | T42: 0 | U42: 0 | V42: 0 | W42: 3 | X42: 0 | Y42: 0 | Z42: 0 | AA42: 0 | AB42: 0 | AC42: 0 | AD42: 0 | AE42: 6 | AF42: 0 | AG42: 0 | AH42: 0 | AI42: 0 | AJ42: 0 | AK42: 0 | AL42: 0 | AM42: 0 | AN42: 0 | AO42: 0 | AP42: 0 | AQ42: 0 | AR42: 0 | AS42: 0 | AT42: 0 | AU42: 0 | AV42: 0 | AW42: 0 | AX42: 0 | AY42: 0 | AZ42: 0 | BA42: 0 | BB42: 13
A43: =IF('INPUT 12NC'!A40="","",'INPUT 12NC'!A40) -> 402264716201 | B43: =IF('INPUT 12NC'!B40="","",'INPUT 12NC'!B40) -> 39 | C43: 0 | D43: 0 | E43: 0 | F43: 2 | G43: 0 | H43: 0 | I43: 0 | J43: 0 | K43: 0 | L43: 0 | M43: 2 | N43: 0 | O43: 0 | P43: 0 | Q43: 0 | R43: 0 | S43: 0 | T43: 0 | U43: 0 | V43: 0 | W43: 0 | X43: 0 | Y43: 0 | Z43: 0 | AA43: 0 | AB43: 0 | AC43: 2 | AD43: 0 | AE43: 2 | AF43: 0 | AG43: 0 | AH43: 0 | AI43: 0 | AJ43: 0 | AK43: 0 | AL43: 0 | AM43: 0 | AN43: 0 | AO43: 0 | AP43: 0 | AQ43: 0 | AR43: 0 | AS43: 0 | AT43: 0 | AU43: 0 | AV43: 0 | AW43: 0 | AX43: 0 | AY43: 0 | AZ43: 0 | BA43: 0 | BB43: 8
A44: =IF('INPUT 12NC'!A41="","",'INPUT 12NC'!A41) -> 402264714672 | B44: =IF('INPUT 12NC'!B41="","",'INPUT 12NC'!B41) -> 40 | C44: 0 | D44: 0 | E44: 0 | F44: 0 | G44: 0 | H44: 0 | I44: 0 | J44: 0 | K44: 0 | L44: 0 | M44: 0 | N44: 0 | O44: 0 | P44: 0 | Q44: 0 | R44: 0 | S44: 0 | T44: 0 | U44: 0 | V44: 0 | W44: 0 | X44: 3 | Y44: 0 | Z44: 0 | AA44: 0 | AB44: 0 | AC44: 0 | AD44: 0 | AE44: 1 | AF44: 1 | AG44: 0 | AH44: 0 | AI44: 0 | AJ44: 0 | AK44: 0 | AL44: 0 | AM44: 0 | AN44: 0 | AO44: 0 | AP44: 0 | AQ44: 0 | AR44: 0 | AS44: 0 | AT44: 0 | AU44: 0 | AV44: 0 | AW44: 0 | AX44: 0 | AY44: 0 | AZ44: 0 | BA44: 0 | BB44: 5
A45: =IF('INPUT 12NC'!A42="","",'INPUT 12NC'!A42) -> 402264714662 | B45: =IF('INPUT 12NC'!B42="","",'INPUT 12NC'!B42) -> 41 | C45: 2 | D45: 0 | E45: 0 | F45: 0 | G45: 0 | H45: 0 | I45: 0 | J45: 0 | K45: 0 | L45: 0 | M45: 0 | N45: 0 | O45: 0 | P45: 0 | Q45: 2 | R45: 0 | S45: 0 | T45: 0 | U45: 0 | V45: 0 | W45: 2 | X45: 0 | Y45: 0 | Z45: 0 | AA45: 0 | AB45: 0 | AC45: 0 | AD45: 0 | AE45: 1 | AF45: 1 | AG45: 0 | AH45: 0 | AI45: 0 | AJ45: 0 | AK45: 0 | AL45: 0 | AM45: 0 | AN45: 0 | AO45: 0 | AP45: 0 | AQ45: 0 | AR45: 0 | AS45: 0 | AT45: 0 | AU45: 0 | AV45: 0 | AW45: 0 | AX45: 0 | AY45: 0 | AZ45: 0 | BA45: 0 | BB45: 8
A46: =IF('INPUT 12NC'!A43="","",'INPUT 12NC'!A43) -> 402264282891 | B46: =IF('INPUT 12NC'!B43="","",'INPUT 12NC'!B43) -> 42 | C46: 0 | D46: 0 | E46: 0 | F46: 19 | G46: 0 | H46: 0 | I46: 0 | J46: 0 | K46: 0 | L46: 0 | M46: 0 | N46: 0 | O46: 0 | P46: 10 | Q46: 0 | R46: 0 | S46: 0 | T46: 11 | U46: 0 | V46: 0 | W46: 0 | X46: 0 | Y46: 0 | Z46: 0 | AA46: 0 | AB46: 0 | AC46: 0 | AD46: 0 | AE46: 0 | AF46: 0 | AG46: 0 | AH46: 0 | AI46: 0 | AJ46: 0 | AK46: 0 | AL46: 0 | AM46: 0 | AN46: 0 | AO46: 0 | AP46: 0 | AQ46: 0 | AR46: 0 | AS46: 0 | AT46: 0 | AU46: 0 | AV46: 0 | AW46: 0 | AX46: 0 | AY46: 0 | AZ46: 0 | BA46: 0 | BB46: 40
A47: =IF('INPUT 12NC'!A44="","",'INPUT 12NC'!A44) -> 402264267351 | B47: =IF('INPUT 12NC'!B44="","",'INPUT 12NC'!B44) -> 43 | C47: 2 | D47: 0 | E47: 0 | F47: 0 | G47: 0 | H47: 0 | I47: 0 | J47: 0 | K47: 0 | L47: 0 | M47: 0 | N47: 2 | O47: 0 | P47: 0 | Q47: 0 | R47: 0 | S47: 0 | T47: 0 | U47: 0 | V47: 0 | W47: 2 | X47: 0 | Y47: 0 | Z47: 0 | AA47: 0 | AB47: 0 | AC47: 0 | AD47: 0 | AE47: 1 | AF47: 0 | AG47: 1 | AH47: 0 | AI47: 0 | AJ47: 0 | AK47: 0 | AL47: 0 | AM47: 0 | AN47: 0 | AO47: 0 | AP47: 0 | AQ47: 0 | AR47: 0 | AS47: 0 | AT47: 0 | AU47: 0 | AV47: 0 | AW47: 0 | AX47: 0 | AY47: 0 | AZ47: 0 | BA47: 0 | BB47: 8
A48: =IF('INPUT 12NC'!A45="","",'INPUT 12NC'!A45) -> 402264267341 | B48: =IF('INPUT 12NC'!B45="","",'INPUT 12NC'!B45) -> 44 | C48: 2 | D48: 0 | E48: 0 | F48: 0 | G48: 0 | H48: 0 | I48: 0 | J48: 0 | K48: 0 | L48: 0 | M48: 0 | N48: 2 | O48: 0 | P48: 0 | Q48: 0 | R48: 0 | S48: 0 | T48: 0 | U48: 0 | V48: 0 | W48: 2 | X48: 0 | Y48: 0 | Z48: 0 | AA48: 0 | AB48: 0 | AC48: 0 | AD48: 0 | AE48: 1 | AF48: 1 | AG48: 0 | AH48: 0 | AI48: 0 | AJ48: 0 | AK48: 0 | AL48: 0 | AM48: 0 | AN48: 0 | AO48: 0 | AP48: 0 | AQ48: 0 | AR48: 0 | AS48: 0 | AT48: 0 | AU48: 0 | AV48: 0 | AW48: 0 | AX48: 0 | AY48: 0 | AZ48: 0 | BA48: 0 | BB48: 8
A49: =IF('INPUT 12NC'!A46="","",'INPUT 12NC'!A46) -> 402264185662 | B49: =IF('INPUT 12NC'!B46="","",'INPUT 12NC'!B46) -> 45 | C49: 2 | D49: 0 | E49: 0 | F49: 0 | G49: 0 | H49: 0 | I49: 3 | J49: 0 | K49: 0 | L49: 0 | M49: 0 | N49: 0 | O49: 0 | P49: 0 | Q49: 0 | R49: 3 | S49: 0 | T49: 0 | U49: 0 | V49: 0 | W49: 0 | X49: 0 | Y49: 0 | Z49: 0 | AA49: 0 | AB49: 0 | AC49: 0 | AD49: 0 | AE49: 0 | AF49: 0 | AG49: 0 | AH49: 0 | AI49: 0 | AJ49: 0 | AK49: 0 | AL49: 0 | AM49: 0 | AN49: 0 | AO49: 0 | AP49: 0 | AQ49: 0 | AR49: 0 | AS49: 0 | AT49: 0 | AU49: 0 | AV49: 0 | AW49: 0 | AX49: 0 | AY49: 0 | AZ49: 0 | BA49: 0 | BB49: 8
A50: =IF('INPUT 12NC'!A47="","",'INPUT 12NC'!A47) -> 402264185652 | B50: =IF('INPUT 12NC'!B47="","",'INPUT 12NC'!B47) -> 46 | C50: 0 | D50: 0 | E50: 2 | F50: 0 | G50: 0 | H50: 0 | I50: 1 | J50: 4 | K50: 0 | L50: 0 | M50: 0 | N50: 0 | O50: 0 | P50: 0 | Q50: 0 | R50: 0 | S50: 0 | T50: 0 | U50: 5 | V50: 0 | W50: 0 | X50: 0 | Y50: 0 | Z50: 0 | AA50: 0 | AB50: 0 | AC50: 0 | AD50: 0 | AE50: 0 | AF50: 0 | AG50: 0 | AH50: 0 | AI50: 0 | AJ50: 0 | AK50: 0 | AL50: 0 | AM50: 0 | AN50: 0 | AO50: 0 | AP50: 0 | AQ50: 0 | AR50: 0 | AS50: 0 | AT50: 0 | AU50: 0 | AV50: 0 | AW50: 0 | AX50: 0 | AY50: 0 | AZ50: 0 | BA50: 0 | BB50: 12
A51: =IF('INPUT 12NC'!A48="","",'INPUT 12NC'!A48) -> 402264178922 | B51: =IF('INPUT 12NC'!B48="","",'INPUT 12NC'!B48) -> 47 | C51: 0 | D51: 0 | E51: 0 | F51: 0 | G51: 0 | H51: 0 | I51: 0 | J51: 2 | K51: 0 | L51: 0 | M51: 0 | N51: 0 | O51: 0 | P51: 0 | Q51: 0 | R51: 0 | S51: 0 | T51: 0 | U51: 0 | V51: 0 | W51: 0 | X51: 0 | Y51: 0 | Z51: 0 | AA51: 0 | AB51: 0 | AC51: 0 | AD51: 0 | AE51: 0 | AF51: 0 | AG51: 0 | AH51: 0 | AI51: 0 | AJ51: 0 | AK51: 0 | AL51: 0 | AM51: 0 | AN51: 0 | AO51: 0 | AP51: 0 | AQ51: 0 | AR51: 0 | AS51: 0 | AT51: 0 | AU51: 0 | AV51: 0 | AW51: 0 | AX51: 0 | AY51: 0 | AZ51: 0 | BA51: 0 | BB51: 2
A52: =IF('INPUT 12NC'!A49="","",'INPUT 12NC'!A49) -> 402264173692 | B52: =IF('INPUT 12NC'!B49="","",'INPUT 12NC'!B49) -> 48 | C52: 1 | D52: 0 | E52: 0 | F52: 0 | G52: 0 | H52: 0 | I52: 0 | J52: 0 | K52: 2 | L52: 0 | M52: 0 | N52: 0 | O52: 0 | P52: 0 | Q52: 0 | R52: 0 | S52: 0 | T52: 0 | U52: 0 | V52: 0 | W52: 0 | X52: 0 | Y52: 0 | Z52: 0 | AA52: 0 | AB52: 0 | AC52: 0 | AD52: 0 | AE52: 0 | AF52: 0 | AG52: 0 | AH52: 0 | AI52: 0 | AJ52: 0 | AK52: 0 | AL52: 0 | AM52: 0 | AN52: 0 | AO52: 0 | AP52: 0 | AQ52: 0 | AR52: 0 | AS52: 0 | AT52: 0 | AU52: 0 | AV52: 0 | AW52: 0 | AX52: 0 | AY52: 0 | AZ52: 0 | BA52: 0 | BB52: 3
A53: =IF('INPUT 12NC'!A50="","",'INPUT 12NC'!A50) -> 402264127762 | B53: =IF('INPUT 12NC'!B50="","",'INPUT 12NC'!B50) -> 49 | C53: 0 | D53: 0 | E53: 0 | F53: 0 | G53: 0 | H53: 0 | I53: 0 | J53: 0 | K53: 0 | L53: 0 | M53: 0 | N53: 0 | O53: 0 | P53: 0 | Q53: 2 | R53: 0 | S53: 0 | T53: 0 | U53: 1 | V53: 0 | W53: 0 | X53: 1 | Y53: 0 | Z53: 0 | AA53: 1 | AB53: 0 | AC53: 0 | AD53: 0 | AE53: 0 | AF53: 0 | AG53: 0 | AH53: 2 | AI53: 0 | AJ53: 0 | AK53: 3 | AL53: 0 | AM53: 0 | AN53: 0 | AO53: 0 | AP53: 0 | AQ53: 0 | AR53: 0 | AS53: 0 | AT53: 0 | AU53: 0 | AV53: 0 | AW53: 0 | AX53: 0 | AY53: 0 | AZ53: 0 | BA53: 0 | BB53: 10
A54: =IF('INPUT 12NC'!A51="","",'INPUT 12NC'!A51) -> 402264127751 | B54: =IF('INPUT 12NC'!B51="","",'INPUT 12NC'!B51) -> 50 | C54: 0 | D54: 0 | E54: 0 | F54: 0 | G54: 0 | H54: 1 | I54: 0 | J54: 2 | K54: 0 | L54: 0 | M54: 2 | N54: 0 | O54: 0 | P54: 0 | Q54: 0 | R54: 0 | S54: 0 | T54: 0 | U54: 0 | V54: 0 | W54: 0 | X54: 2 | Y54: 0 | Z54: 0 | AA54: 0 | AB54: 0 | AC54: 0 | AD54: 0 | AE54: 0 | AF54: 1 | AG54: 1 | AH54: 0 | AI54: 0 | AJ54: 0 | AK54: 0 | AL54: 0 | AM54: 0 | AN54: 0 | AO54: 0 | AP54: 0 | AQ54: 0 | AR54: 0 | AS54: 0 | AT54: 0 | AU54: 0 | AV54: 0 | AW54: 0 | AX54: 0 | AY54: 0 | AZ54: 0 | BA54: 0 | BB54: 9
A55: =IF('INPUT 12NC'!A52="","",'INPUT 12NC'!A52) -> 402264127541 | B55: =IF('INPUT 12NC'!B52="","",'INPUT 12NC'!B52) -> 51 | C55: 3 | D55: 0 | E55: 0 | F55: 0 | G55: 0 | H55: 0 | I55: 0 | J55: 0 | K55: 0 | L55: 0 | M55: 0 | N55: 0 | O55: 0 | P55: 0 | Q55: 0 | R55: 0 | S55: 0 | T55: 0 | U55: 0 | V55: 0 | W55: 1 | X55: 1 | Y55: 0 | Z55: 0 | AA55: 1 | AB55: 0 | AC55: 0 | AD55: 0 | AE55: 0 | AF55: 0 | AG55: 0 | AH55: 2 | AI55: 0 | AJ55: 3 | AK55: 0 | AL55: 0 | AM55: 0 | AN55: 0 | AO55: 0 | AP55: 0 | AQ55: 0 | AR55: 0 | AS55: 0 | AT55: 0 | AU55: 0 | AV55: 0 | AW55: 0 | AX55: 0 | AY55: 0 | AZ55: 0 | BA55: 0 | BB55: 11
A56: =IF('INPUT 12NC'!A53="","",'INPUT 12NC'!A53) -> 402264117172 | B56: =IF('INPUT 12NC'!B53="","",'INPUT 12NC'!B53) -> 52 | C56: 0 | D56: 0 | E56: 0 | F56: 0 | G56: 8 | H56: 0 | I56: 0 | J56: 0 | K56: 0 | L56: 0 | M56: 6 | N56: 0 | O56: 0 | P56: 0 | Q56: 0 | R56: 0 | S56: 6 | T56: 0 | U56: 0 | V56: 0 | W56: 0 | X56: 0 | Y56: 0 | Z56: 0 | AA56: 0 | AB56: 0 | AC56: 6 | AD56: 0 | AE56: 5 | AF56: 0 | AG56: 1 | AH56: 0 | AI56: 0 | AJ56: 0 | AK56: 0 | AL56: 0 | AM56: 0 | AN56: 0 | AO56: 0 | AP56: 0 | AQ56: 0 | AR56: 0 | AS56: 0 | AT56: 0 | AU56: 0 | AV56: 0 | AW56: 0 | AX56: 0 | AY56: 0 | AZ56: 0 | BA56: 0 | BB56: 32
A57: =IF('INPUT 12NC'!A54="","",'INPUT 12NC'!A54) -> 402263973264 | B57: =IF('INPUT 12NC'!B54="","",'INPUT 12NC'!B54) -> 53 | C57: 0 | D57: 0 | E57: 0 | F57: 0 | G57: 0 | H57: 0 | I57: 0 | J57: 0 | K57: 0 | L57: 1 | M57: 0 | N57: 0 | O57: 0 | P57: 0 | Q57: 0 | R57: 0 | S57: 0 | T57: 0 | U57: 0 | V57: 0 | W57: 0 | X57: 0 | Y57: 0 | Z57: 0 | AA57: 0 | AB57: 0 | AC57: 0 | AD57: 0 | AE57: 0 | AF57: 0 | AG57: 0 | AH57: 0 | AI57: 0 | AJ57: 0 | AK57: 0 | AL57: 0 | AM57: 0 | AN57: 0 | AO57: 0 | AP57: 0 | AQ57: 0 | AR57: 0 | AS57: 0 | AT57: 0 | AU57: 0 | AV57: 2 | AW57: 0 | AX57: 0 | AY57: 0 | AZ57: 0 | BA57: 0 | BB57: 3
A58: =IF('INPUT 12NC'!A55="","",'INPUT 12NC'!A55) -> 402263914623 | B58: =IF('INPUT 12NC'!B55="","",'INPUT 12NC'!B55) -> 54 | C58: 0 | D58: 0 | E58: 6 | F58: 6 | G58: 0 | H58: 0 | I58: 0 | J58: 6 | K58: 0 | L58: 0 | M58: 3 | N58: 3 | O58: 0 | P58: 3 | Q58: 3 | R58: 3 | S58: 8 | T58: 5 | U58: 0 | V58: 5 | W58: 5 | X58: 0 | Y58: 0 | Z58: 0 | AA58: 0 | AB58: 0 | AC58: 5 | AD58: 0 | AE58: 0 | AF58: 0 | AG58: 5 | AH58: 0 | AI58: 0 | AJ58: 5 | AK58: 5 | AL58: 2 | AM58: 0 | AN58: 0 | AO58: 5 | AP58: 1 | AQ58: 0 | AR58: 0 | AS58: 4 | AT58: 5 | AU58: 3 | AV58: 0 | AW58: 0 | AX58: 0 | AY58: 5 | AZ58: 0 | BA58: 0 | BB58: 101
A59: =IF('INPUT 12NC'!A56="","",'INPUT 12NC'!A56) -> 402263913153 | B59: =IF('INPUT 12NC'!B56="","",'INPUT 12NC'!B56) -> 55 | C59: 8 | D59: 0 | E59: 0 | F59: 0 | G59: 0 | H59: 4 | I59: 2 | J59: 5 | K59: 0 | L59: 0 | M59: 0 | N59: 6 | O59: 7 | P59: 0 | Q59: 5 | R59: 0 | S59: 5 | T59: 0 | U59: 0 | V59: 0 | W59: 0 | X59: 7 | Y59: 0 | Z59: 0 | AA59: 6 | AB59: 0 | AC59: 0 | AD59: 10 | AE59: 0 | AF59: 10 | AG59: 0 | AH59: 0 | AI59: 0 | AJ59: 15 | AK59: 0 | AL59: 0 | AM59: 0 | AN59: 0 | AO59: 0 | AP59: 0 | AQ59: 0 | AR59: 10 | AS59: 0 | AT59: 0 | AU59: 5 | AV59: 0 | AW59: 0 | AX59: 0 | AY59: 5 | AZ59: 0 | BA59: 0 | BB59: 110
A60: =IF('INPUT 12NC'!A57="","",'INPUT 12NC'!A57) -> 402263912841 | B60: =IF('INPUT 12NC'!B57="","",'INPUT 12NC'!B57) -> 56 | C60: 23 | D60: 0 | E60: 15 | F60: 0 | G60: 5 | H60: 0 | I60: 21 | J60: 0 | K60: 0 | L60: 15 | M60: 15 | N60: 0 | O60: 0 | P60: 0 | Q60: 0 | R60: 16 | S60: 30 | T60: 0 | U60: 0 | V60: 0 | W60: 0 | X60: 0 | Y60: 0 | Z60: 15 | AA60: 15 | AB60: 15 | AC60: 0 | AD60: 0 | AE60: 15 | AF60: 15 | AG60: 0 | AH60: 0 | AI60: 0 | AJ60: 0 | AK60: 15 | AL60: 15 | AM60: 0 | AN60: 0 | AO60: 30 | AP60: 0 | AQ60: 17 | AR60: 0 | AS60: 0 | AT60: 0 | AU60: 0 | AV60: 0 | AW60: 0 | AX60: 15 | AY60: 0 | AZ60: 18 | BA60: 0 | BB60: 325
A61: =IF('INPUT 12NC'!A58="","",'INPUT 12NC'!A58) -> 402263790321 | B61: =IF('INPUT 12NC'!B58="","",'INPUT 12NC'!B58) -> 57 | C61: 0 | D61: 0 | E61: 0 | F61: 0 | G61: 0 | H61: 0 | I61: 0 | J61: 0 | K61: 0 | L61: 0 | M61: 0 | N61: 0 | O61: 15 | P61: 0 | Q61: 0 | R61: 0 | S61: 0 | T61: 0 | U61: 0 | V61: 0 | W61: 0 | X61: 0 | Y61: 0 | Z61: 0 | AA61: 0 | AB61: 0 | AC61: 0 | AD61: 0 | AE61: 0 | AF61: 0 | AG61: 0 | AH61: 0 | AI61: 0 | AJ61: 0 | AK61: 0 | AL61: 0 | AM61: 0 | AN61: 0 | AO61: 0 | AP61: 0 | AQ61: 0 | AR61: 0 | AS61: 0 | AT61: 0 | AU61: 0 | AV61: 0 | AW61: 0 | AX61: 0 | AY61: 0 | AZ61: 0 | BA61: 0 | BB61: 15
A62: =IF('INPUT 12NC'!A59="","",'INPUT 12NC'!A59) -> 402263780641 | B62: =IF('INPUT 12NC'!B59="","",'INPUT 12NC'!B59) -> 58 | C62: 0 | D62: 0 | E62: 0 | F62: 0 | G62: 0 | H62: 0 | I62: 0 | J62: 0 | K62: 0 | L62: 0 | M62: 0 | N62: 0 | O62: 5 | P62: 0 | Q62: 0 | R62: 0 | S62: 0 | T62: 0 | U62: 0 | V62: 0 | W62: 0 | X62: 0 | Y62: 0 | Z62: 0 | AA62: 0 | AB62: 0 | AC62: 0 | AD62: 0 | AE62: 0 | AF62: 0 | AG62: 0 | AH62: 0 | AI62: 0 | AJ62: 0 | AK62: 0 | AL62: 0 | AM62: 0 | AN62: 0 | AO62: 0 | AP62: 0 | AQ62: 0 | AR62: 0 | AS62: 0 | AT62: 0 | AU62: 0 | AV62: 0 | AW62: 0 | AX62: 0 | AY62: 0 | AZ62: 0 | BA62: 0 | BB62: 5
A63: =IF('INPUT 12NC'!A60="","",'INPUT 12NC'!A60) -> 402263775483 | B63: =IF('INPUT 12NC'!B60="","",'INPUT 12NC'!B60) -> 59 | C63: 0 | D63: 0 | E63: 0 | F63: 0 | G63: 4 | H63: 0 | I63: 0 | J63: 0 | K63: 0 | L63: 0 | M63: 4 | N63: 0 | O63: 0 | P63: 0 | Q63: 0 | R63: 0 | S63: 0 | T63: 0 | U63: 0 | V63: 0 | W63: 4 | X63: 0 | Y63: 0 | Z63: 0 | AA63: 0 | AB63: 0 | AC63: 0 | AD63: 0 | AE63: 4 | AF63: 0 | AG63: 0 | AH63: 0 | AI63: 0 | AJ63: 0 | AK63: 0 | AL63: 0 | AM63: 0 | AN63: 0 | AO63: 0 | AP63: 0 | AQ63: 0 | AR63: 0 | AS63: 0 | AT63: 0 | AU63: 0 | AV63: 0 | AW63: 0 | AX63: 0 | AY63: 0 | AZ63: 0 | BA63: 0 | BB63: 16
A64: =IF('INPUT 12NC'!A61="","",'INPUT 12NC'!A61) -> 402263773804 | B64: =IF('INPUT 12NC'!B61="","",'INPUT 12NC'!B61) -> 60 | C64: 0 | D64: 0 | E64: 0 | F64: 0 | G64: 0 | H64: 0 | I64: 0 | J64: 0 | K64: 0 | L64: 0 | M64: 0 | N64: 5 | O64: 0 | P64: 0 | Q64: 0 | R64: 0 | S64: 0 | T64: 0 | U64: 2 | V64: 0 | W64: 0 | X64: 0 | Y64: 0 | Z64: 0 | AA64: 0 | AB64: 0 | AC64: 0 | AD64: 0 | AE64: 0 | AF64: 4 | AG64: 0 | AH64: 0 | AI64: 0 | AJ64: 0 | AK64: 0 | AL64: 0 | AM64: 0 | AN64: 0 | AO64: 0 | AP64: 0 | AQ64: 3 | AR64: 0 | AS64: 0 | AT64: 0 | AU64: 0 | AV64: 0 | AW64: 0 | AX64: 0 | AY64: 0 | AZ64: 0 | BA64: 0 | BB64: 14
A65: =IF('INPUT 12NC'!A62="","",'INPUT 12NC'!A62) -> 402263761751 | B65: =IF('INPUT 12NC'!B62="","",'INPUT 12NC'!B62) -> 61 | C65: 0 | D65: 0 | E65: 0 | F65: 10 | G65: 0 | H65: 0 | I65: 0 | J65: 0 | K65: 0 | L65: 0 | M65: 0 | N65: 0 | O65: 0 | P65: 10 | Q65: 0 | R65: 0 | S65: 0 | T65: 14 | U65: 0 | V65: 0 | W65: 0 | X65: 0 | Y65: 0 | Z65: 0 | AA65: 0 | AB65: 0 | AC65: 0 | AD65: 0 | AE65: 0 | AF65: 0 | AG65: 0 | AH65: 0 | AI65: 0 | AJ65: 0 | AK65: 0 | AL65: 0 | AM65: 0 | AN65: 0 | AO65: 0 | AP65: 0 | AQ65: 0 | AR65: 0 | AS65: 0 | AT65: 0 | AU65: 0 | AV65: 0 | AW65: 0 | AX65: 0 | AY65: 0 | AZ65: 0 | BA65: 0 | BB65: 34
A66: =IF('INPUT 12NC'!A63="","",'INPUT 12NC'!A63) -> 402263743432 | B66: =IF('INPUT 12NC'!B63="","",'INPUT 12NC'!B63) -> 62 | C66: 0 | D66: 0 | E66: 12 | F66: 0 | G66: 0 | H66: 6 | I66: 10 | J66: 0 | K66: 0 | L66: 14 | M66: 0 | N66: 0 | O66: 0 | P66: 12 | Q66: 0 | R66: 4 | S66: 10 | T66: 0 | U66: 0 | V66: 0 | W66: 12 | X66: 0 | Y66: 0 | Z66: 14 | AA66: 0 | AB66: 0 | AC66: 20 | AD66: 0 | AE66: 22 | AF66: 0 | AG66: 0 | AH66: 0 | AI66: 0 | AJ66: 0 | AK66: 0 | AL66: 0 | AM66: 10 | AN66: 15 | AO66: 0 | AP66: 0 | AQ66: 0 | AR66: 0 | AS66: 5 | AT66: 0 | AU66: 20 | AV66: 0 | AW66: 0 | AX66: 0 | AY66: 15 | AZ66: 0 | BA66: 0 | BB66: 201
A67: =IF('INPUT 12NC'!A64="","",'INPUT 12NC'!A64) -> 402263582725 | B67: =IF('INPUT 12NC'!B64="","",'INPUT 12NC'!B64) -> 63 | C67: 8 | D67: 0 | E67: 0 | F67: 0 | G67: 5 | H67: 3 | I67: 0 | J67: 0 | K67: 0 | L67: 5 | M67: 0 | N67: 0 | O67: 7 | P67: 0 | Q67: 0 | R67: 0 | S67: 5 | T67: 0 | U67: 0 | V67: 0 | W67: 8 | X67: 0 | Y67: 0 | Z67: 0 | AA67: 0 | AB67: 0 | AC67: 0 | AD67: 10 | AE67: 0 | AF67: 0 | AG67: 0 | AH67: 0 | AI67: 0 | AJ67: 0 | AK67: 6 | AL67: 0 | AM67: 0 | AN67: 0 | AO67: 0 | AP67: 0 | AQ67: 0 | AR67: 0 | AS67: 0 | AT67: 0 | AU67: 0 | AV67: 0 | AW67: 0 | AX67: 0 | AY67: 0 | AZ67: 0 | BA67: 0 | BB67: 57
A68: =IF('INPUT 12NC'!A65="","",'INPUT 12NC'!A65) -> 402263581483 | B68: =IF('INPUT 12NC'!B65="","",'INPUT 12NC'!B65) -> 64 | C68: 20 | D68: 0 | E68: 0 | F68: 0 | G68: 0 | H68: 0 | I68: 0 | J68: 0 | K68: 0 | L68: 10 | M68: 10 | N68: 0 | O68: 0 | P68: 20 | Q68: 0 | R68: 0 | S68: 0 | T68: 0 | U68: 0 | V68: 0 | W68: 20 | X68: 0 | Y68: 0 | Z68: 0 | AA68: 0 | AB68: 20 | AC68: 0 | AD68: 10 | AE68: 10 | AF68: 0 | AG68: 20 | AH68: 0 | AI68: 0 | AJ68: 0 | AK68: 0 | AL68: 0 | AM68: 0 | AN68: 0 | AO68: 0 | AP68: 30 | AQ68: 0 | AR68: 0 | AS68: 10 | AT68: 0 | AU68: 10 | AV68: 0 | AW68: 0 | AX68: 0 | AY68: 10 | AZ68: 10 | BA68: 0 | BB68: 210
A69: =IF('INPUT 12NC'!A66="","",'INPUT 12NC'!A66) -> 402263581453 | B69: =IF('INPUT 12NC'!B66="","",'INPUT 12NC'!B66) -> 65 | C69: 0 | D69: 8 | E69: 0 | F69: 0 | G69: 0 | H69: 0 | I69: 2 | J69: 4 | K69: 4 | L69: 1 | M69: 0 | N69: 6 | O69: 0 | P69: 8 | Q69: 0 | R69: 0 | S69: 5 | T69: 0 | U69: 0 | V69: 0 | W69: 7 | X69: 0 | Y69: 0 | Z69: 0 | AA69: 12 | AB69: 0 | AC69: 0 | AD69: 8 | AE69: 0 | AF69: 9 | AG69: 0 | AH69: 0 | AI69: 0 | AJ69: 15 | AK69: 0 | AL69: 0 | AM69: 0 | AN69: 0 | AO69: 0 | AP69: 0 | AQ69: 0 | AR69: 6 | AS69: 0 | AT69: 5 | AU69: 0 | AV69: 0 | AW69: 5 | AX69: 0 | AY69: 0 | AZ69: 5 | BA69: 0 | BB69: 110
A70: =IF('INPUT 12NC'!A67="","",'INPUT 12NC'!A67) -> 402263581443 | B70: =IF('INPUT 12NC'!B67="","",'INPUT 12NC'!B67) -> 66 | C70: 0 | D70: 0 | E70: 5 | F70: 0 | G70: 3 | H70: 2 | I70: 5 | J70: 0 | K70: 0 | L70: 2 | M70: 5 | N70: 0 | O70: 0 | P70: 8 | Q70: 0 | R70: 0 | S70: 5 | T70: 0 | U70: 0 | V70: 0 | W70: 7 | X70: 0 | Y70: 0 | Z70: 0 | AA70: 12 | AB70: 0 | AC70: 0 | AD70: 8 | AE70: 0 | AF70: 9 | AG70: 0 | AH70: 0 | AI70: 0 | AJ70: 15 | AK70: 0 | AL70: 0 | AM70: 0 | AN70: 0 | AO70: 0 | AP70: 0 | AQ70: 0 | AR70: 5 | AS70: 0 | AT70: 5 | AU70: 0 | AV70: 0 | AW70: 5 | AX70: 0 | AY70: 0 | AZ70: 7 | BA70: 0 | BB70: =IF(A70="","",SUM(C70:BA70)) -> 108
A71: =IF('INPUT 12NC'!A68="","",'INPUT 12NC'!A68) -> 402263581433 | B71: =IF('INPUT 12NC'!B68="","",'INPUT 12NC'!B68) -> 67 | C71: 0 | D71: 0 | E71: 0 | F71: 0 | G71: 8 | H71: 4 | I71: 0 | J71: 0 | K71: 0 | L71: 0 | M71: 0 | N71: 10 | O71: 9 | P71: 0 | Q71: 6 | R71: 0 | S71: 11 | T71: 0 | U71: 0 | V71: 0 | W71: 10 | X71: 0 | Y71: 0 | Z71: 0 | AA71: 10 | AB71: 0 | AC71: 0 | AD71: 10 | AE71: 0 | AF71: 0 | AG71: 10 | AH71: 0 | AI71: 0 | AJ71: 10 | AK71: 0 | AL71: 10 | AM71: 0 | AN71: 20 | AO71: 0 | AP71: 0 | AQ71: 0 | AR71: 0 | AS71: 0 | AT71: 0 | AU71: 0 | AV71: 0 | AW71: 0 | AX71: 20 | AY71: 0 | AZ71: 10 | BA71: 0 | BB71: 158
A72: =IF('INPUT 12NC'!A69="","",'INPUT 12NC'!A69) -> 402263580853 | B72: =IF('INPUT 12NC'!B69="","",'INPUT 12NC'!B69) -> 68 | C72: 0 | D72: 0 | E72: 5 | F72: 0 | G72: 3 | H72: 0 | I72: 2 | J72: 0 | K72: 0 | L72: 5 | M72: 0 | N72: 0 | O72: 7 | P72: 0 | Q72: 0 | R72: 5 | S72: 0 | T72: 0 | U72: 0 | V72: 0 | W72: 6 | X72: 0 | Y72: 0 | Z72: 8 | AA72: 0 | AB72: 10 | AC72: 0 | AD72: 0 | AE72: 0 | AF72: 0 | AG72: 5 | AH72: 0 | AI72: 0 | AJ72: 0 | AK72: 11 | AL72: 0 | AM72: 0 | AN72: 10 | AO72: 0 | AP72: 0 | AQ72: 0 | AR72: 6 | AS72: 0 | AT72: 5 | AU72: 0 | AV72: 0 | AW72: 5 | AX72: 0 | AY72: 0 | AZ72: 5 | BA72: 0 | BB72: 98
A73: =IF('INPUT 12NC'!A70="","",'INPUT 12NC'!A70) -> 402263579753 | B73: =IF('INPUT 12NC'!B70="","",'INPUT 12NC'!B70) -> 69 | C73: 0 | D73: 0 | E73: 0 | F73: 5 | G73: 0 | H73: 0 | I73: 2 | J73: 0 | K73: 0 | L73: 5 | M73: 0 | N73: 0 | O73: 7 | P73: 0 | Q73: 0 | R73: 5 | S73: 0 | T73: 0 | U73: 0 | V73: 0 | W73: 6 | X73: 0 | Y73: 0 | Z73: 8 | AA73: 0 | AB73: 10 | AC73: 0 | AD73: 0 | AE73: 0 | AF73: 0 | AG73: 5 | AH73: 10 | AI73: 0 | AJ73: 0 | AK73: 0 | AL73: 0 | AM73: 0 | AN73: 15 | AO73: 0 | AP73: 0 | AQ73: 0 | AR73: 0 | AS73: 6 | AT73: 0 | AU73: 5 | AV73: 0 | AW73: 0 | AX73: 0 | AY73: 0 | AZ73: 6 | BA73: 0 | BB73: 95
A74: =IF('INPUT 12NC'!A71="","",'INPUT 12NC'!A71) -> 402263579743 | B74: =IF('INPUT 12NC'!B71="","",'INPUT 12NC'!B71) -> 70 | C74: 7 | D74: 0 | E74: 6 | F74: 0 | G74: 0 | H74: 0 | I74: 5 | J74: 0 | K74: 0 | L74: 0 | M74: 0 | N74: 0 | O74: 5 | P74: 0 | Q74: 5 | R74: 0 | S74: 5 | T74: 0 | U74: 0 | V74: 0 | W74: 5 | X74: 0 | Y74: 0 | Z74: 6 | AA74: 0 | AB74: 12 | AC74: 0 | AD74: 0 | AE74: 0 | AF74: 0 | AG74: 5 | AH74: 0 | AI74: 0 | AJ74: 0 | AK74: 0 | AL74: 10 | AM74: 6 | AN74: 0 | AO74: 0 | AP74: 10 | AQ74: 0 | AR74: 0 | AS74: 0 | AT74: 5 | AU74: 0 | AV74: 0 | AW74: 0 | AX74: 0 | AY74: 5 | AZ74: 0 | BA74: 0 | BB74: 97
A75: =IF('INPUT 12NC'!A72="","",'INPUT 12NC'!A72) -> 402263560321 | B75: =IF('INPUT 12NC'!B72="","",'INPUT 12NC'!B72) -> 71 | C75: 0 | D75: 0 | E75: 0 | F75: 0 | G75: 0 | H75: 0 | I75: 30 | J75: 0 | K75: 0 | L75: 0 | M75: 0 | N75: 0 | O75: 0 | P75: 0 | Q75: 30 | R75: 0 | S75: 0 | T75: 0 | U75: 0 | V75: 0 | W75: 42 | X75: 0 | Y75: 0 | Z75: 0 | AA75: 0 | AB75: 0 | AC75: 30 | AD75: 0 | AE75: 0 | AF75: 0 | AG75: 0 | AH75: 0 | AI75: 57 | AJ75: 0 | AK75: 0 | AL75: 0 | AM75: 0 | AN75: 0 | AO75: 0 | AP75: 42 | AQ75: 0 | AR75: 0 | AS75: 0 | AT75: 0 | AU75: 0 | AV75: 30 | AW75: 0 | AX75: 0 | AY75: 0 | AZ75: 0 | BA75: 0 | BB75: 261
A76: =IF('INPUT 12NC'!A73="","",'INPUT 12NC'!A73) -> 402263530922 | B76: =IF('INPUT 12NC'!B73="","",'INPUT 12NC'!B73) -> 72 | C76: 0 | D76: 0 | E76: 0 | F76: 0 | G76: 0 | H76: 0 | I76: 0 | J76: 13 | K76: 0 | L76: 0 | M76: 0 | N76: 0 | O76: 0 | P76: 0 | Q76: 0 | R76: 15 | S76: 0 | T76: 0 | U76: 0 | V76: 0 | W76: 0 | X76: 0 | Y76: 0 | Z76: 12 | AA76: 0 | AB76: 0 | AC76: 0 | AD76: 0 | AE76: 0 | AF76: 0 | AG76: 16 | AH76: 0 | AI76: 0 | AJ76: 0 | AK76: 0 | AL76: 0 | AM76: 0 | AN76: 16 | AO76: 0 | AP76: 0 | AQ76: 0 | AR76: 0 | AS76: 0 | AT76: 0 | AU76: 0 | AV76: 16 | AW76: 0 | AX76: 0 | AY76: 0 | AZ76: 0 | BA76: 0 | BB76: 88
A77: =IF('INPUT 12NC'!A74="","",'INPUT 12NC'!A74) -> 402263509022 | B77: =IF('INPUT 12NC'!B74="","",'INPUT 12NC'!B74) -> 73 | C77: 0 | D77: 0 | E77: 2 | F77: 0 | G77: 0 | H77: 0 | I77: 0 | J77: 0 | K77: 0 | L77: 0 | M77: 0 | N77: 0 | O77: 0 | P77: 1 | Q77: 0 | R77: 0 | S77: 0 | T77: 0 | U77: 0 | V77: 0 | W77: 0 | X77: 0 | Y77: 0 | Z77: 0 | AA77: 0 | AB77: 0 | AC77: 0 | AD77: 1 | AE77: 0 | AF77: 0 | AG77: 1 | AH77: 0 | AI77: 0 | AJ77: 0 | AK77: 0 | AL77: 0 | AM77: 1 | AN77: 0 | AO77: 2 | AP77: 0 | AQ77: 0 | AR77: 0 | AS77: 0 | AT77: 0 | AU77: 0 | AV77: 0 | AW77: 0 | AX77: 0 | AY77: 0 | AZ77: 3 | BA77: 0 | BB77: 11
A78: =IF('INPUT 12NC'!A75="","",'INPUT 12NC'!A75) -> 402263190362 | B78: =IF('INPUT 12NC'!B75="","",'INPUT 12NC'!B75) -> 74 | C78: 0 | D78: 0 | E78: 0 | F78: 0 | G78: 15 | H78: 0 | I78: 0 | J78: 0 | K78: 0 | L78: 0 | M78: 0 | N78: 0 | O78: 0 | P78: 15 | Q78: 0 | R78: 0 | S78: 0 | T78: 0 | U78: 0 | V78: 0 | W78: 0 | X78: 0 | Y78: 0 | Z78: 0 | AA78: 0 | AB78: 0 | AC78: 0 | AD78: 0 | AE78: 0 | AF78: 0 | AG78: 0 | AH78: 0 | AI78: 0 | AJ78: 0 | AK78: 0 | AL78: 0 | AM78: 0 | AN78: 0 | AO78: 0 | AP78: 0 | AQ78: 0 | AR78: 0 | AS78: 0 | AT78: 0 | AU78: 0 | AV78: 0 | AW78: 0 | AX78: 0 | AY78: 0 | AZ78: 0 | BA78: 0 | BB78: 30
A79: =IF('INPUT 12NC'!A76="","",'INPUT 12NC'!A76) -> 402263153362 | B79: =IF('INPUT 12NC'!B76="","",'INPUT 12NC'!B76) -> 75 | C79: 0 | D79: 0 | E79: 0 | F79: 0 | G79: 15 | H79: 0 | I79: 0 | J79: 0 | K79: 0 | L79: 0 | M79: 0 | N79: 0 | O79: 0 | P79: 15 | Q79: 0 | R79: 0 | S79: 0 | T79: 0 | U79: 0 | V79: 0 | W79: 0 | X79: 0 | Y79: 0 | Z79: 0 | AA79: 0 | AB79: 0 | AC79: 0 | AD79: 0 | AE79: 0 | AF79: 0 | AG79: 0 | AH79: 0 | AI79: 0 | AJ79: 0 | AK79: 0 | AL79: 0 | AM79: 0 | AN79: 0 | AO79: 0 | AP79: 0 | AQ79: 0 | AR79: 0 | AS79: 0 | AT79: 0 | AU79: 0 | AV79: 0 | AW79: 0 | AX79: 0 | AY79: 0 | AZ79: 0 | BA79: 0 | BB79: 30
A80: =IF('INPUT 12NC'!A77="","",'INPUT 12NC'!A77) -> 402263153352 | B80: =IF('INPUT 12NC'!B77="","",'INPUT 12NC'!B77) -> 76 | C80: 0 | D80: 0 | E80: 0 | F80: 0 | G80: 15 | H80: 0 | I80: 0 | J80: 0 | K80: 0 | L80: 0 | M80: 0 | N80: 0 | O80: 0 | P80: 15 | Q80: 0 | R80: 0 | S80: 0 | T80: 0 | U80: 0 | V80: 0 | W80: 0 | X80: 0 | Y80: 0 | Z80: 0 | AA80: 0 | AB80: 0 | AC80: 0 | AD80: 0 | AE80: 0 | AF80: 0 | AG80: 0 | AH80: 0 | AI80: 0 | AJ80: 0 | AK80: 0 | AL80: 0 | AM80: 0 | AN80: 0 | AO80: 0 | AP80: 0 | AQ80: 0 | AR80: 0 | AS80: 0 | AT80: 0 | AU80: 0 | AV80: 0 | AW80: 0 | AX80: 0 | AY80: 0 | AZ80: 0 | BA80: 0 | BB80: 30
A81: =IF('INPUT 12NC'!A78="","",'INPUT 12NC'!A78) -> 402263133262 | B81: =IF('INPUT 12NC'!B78="","",'INPUT 12NC'!B78) -> 77 | C81: 0 | D81: 0 | E81: 0 | F81: 0 | G81: 15 | H81: 0 | I81: 0 | J81: 0 | K81: 0 | L81: 0 | M81: 0 | N81: 0 | O81: 0 | P81: 15 | Q81: 0 | R81: 0 | S81: 0 | T81: 0 | U81: 0 | V81: 0 | W81: 0 | X81: 0 | Y81: 0 | Z81: 0 | AA81: 0 | AB81: 0 | AC81: 0 | AD81: 0 | AE81: 0 | AF81: 0 | AG81: 0 | AH81: 0 | AI81: 0 | AJ81: 0 | AK81: 0 | AL81: 0 | AM81: 0 | AN81: 0 | AO81: 0 | AP81: 0 | AQ81: 0 | AR81: 0 | AS81: 0 | AT81: 0 | AU81: 0 | AV81: 0 | AW81: 0 | AX81: 0 | AY81: 0 | AZ81: 0 | BA81: 0 | BB81: 30
A82: =IF('INPUT 12NC'!A79="","",'INPUT 12NC'!A79) -> 402263122324 | B82: =IF('INPUT 12NC'!B79="","",'INPUT 12NC'!B79) -> 78 | C82: 0 | D82: 0 | E82: 0 | F82: 0 | G82: 0 | H82: 0 | I82: 0 | J82: 0 | K82: 0 | L82: 2 | M82: 0 | N82: 0 | O82: 0 | P82: 0 | Q82: 0 | R82: 0 | S82: 0 | T82: 0 | U82: 0 | V82: 0 | W82: 0 | X82: 0 | Y82: 0 | Z82: 0 | AA82: 0 | AB82: 0 | AC82: 1 | AD82: 0 | AE82: 0 | AF82: 0 | AG82: 0 | AH82: 2 | AI82: 0 | AJ82: 0 | AK82: 1 | AL82: 0 | AM82: 0 | AN82: 0 | AO82: 0 | AP82: 2 | AQ82: 0 | AR82: 0 | AS82: 0 | AT82: 0 | AU82: 0 | AV82: 0 | AW82: 0 | AX82: 0 | AY82: 0 | AZ82: 3 | BA82: 0 | BB82: 11
A83: =IF('INPUT 12NC'!A80="","",'INPUT 12NC'!A80) -> 402263079943 | B83: =IF('INPUT 12NC'!B80="","",'INPUT 12NC'!B80) -> 79 | C83: 6 | D83: 11 | E83: 0 | F83: 0 | G83: 0 | H83: 0 | I83: 5 | J83: 5 | K83: 0 | L83: 0 | M83: 0 | N83: 0 | O83: 12 | P83: 0 | Q83: 0 | R83: 0 | S83: 7 | T83: 0 | U83: 0 | V83: 0 | W83: 0 | X83: 6 | Y83: 0 | Z83: 7 | AA83: 0 | AB83: 6 | AC83: 0 | AD83: 6 | AE83: 11 | AF83: 0 | AG83: 0 | AH83: 0 | AI83: 0 | AJ83: 0 | AK83: 0 | AL83: 0 | AM83: 0 | AN83: 15 | AO83: 0 | AP83: 0 | AQ83: 0 | AR83: 10 | AS83: 0 | AT83: 0 | AU83: 5 | AV83: 0 | AW83: 0 | AX83: 5 | AY83: 0 | AZ83: 0 | BA83: 0 | BB83: 117
A84: =IF('INPUT 12NC'!A81="","",'INPUT 12NC'!A81) -> 402263008174 | B84: =IF('INPUT 12NC'!B81="","",'INPUT 12NC'!B81) -> 80 | C84: 7 | D84: 0 | E84: 0 | F84: 0 | G84: 4 | H84: 0 | I84: 5 | J84: 2 | K84: 0 | L84: 5 | M84: 0 | N84: 0 | O84: 0 | P84: 0 | Q84: 5 | R84: 0 | S84: 5 | T84: 0 | U84: 0 | V84: 0 | W84: 5 | X84: 0 | Y84: 0 | Z84: 6 | AA84: 0 | AB84: 12 | AC84: 0 | AD84: 0 | AE84: 0 | AF84: 0 | AG84: 5 | AH84: 0 | AI84: 0 | AJ84: 0 | AK84: 0 | AL84: 15 | AM84: 0 | AN84: 0 | AO84: 10 | AP84: 0 | AQ84: 0 | AR84: 0 | AS84: 0 | AT84: 0 | AU84: 6 | AV84: 0 | AW84: 0 | AX84: 5 | AY84: 5 | AZ84: 0 | BA84: 0 | BB84: 102
A85: =IF('INPUT 12NC'!A82="","",'INPUT 12NC'!A82) -> 402263008163 | B85: =IF('INPUT 12NC'!B82="","",'INPUT 12NC'!B82) -> 81 | C85: 9 | D85: 0 | E85: 0 | F85: 5 | G85: 0 | H85: 3 | I85: 5 | J85: 0 | K85: 0 | L85: 0 | M85: 0 | N85: 6 | O85: 0 | P85: 8 | Q85: 0 | R85: 0 | S85: 5 | T85: 0 | U85: 0 | V85: 0 | W85: 7 | X85: 0 | Y85: 0 | Z85: 0 | AA85: 8 | AB85: 0 | AC85: 10 | AD85: 0 | AE85: 0 | AF85: 0 | AG85: 0 | AH85: 0 | AI85: 15 | AJ85: 0 | AK85: 0 | AL85: 0 | AM85: 0 | AN85: 0 | AO85: 10 | AP85: 0 | AQ85: 8 | AR85: 0 | AS85: 6 | AT85: 0 | AU85: 0 | AV85: 0 | AW85: 5 | AX85: 0 | AY85: 0 | AZ85: 5 | BA85: 0 | BB85: 115
A86: =IF('INPUT 12NC'!A83="","",'INPUT 12NC'!A83) -> 402263007944 | B86: =IF('INPUT 12NC'!B83="","",'INPUT 12NC'!B83) -> 82 | C86: 0 | D86: 0 | E86: 0 | F86: 6 | G86: 0 | H86: 0 | I86: 5 | J86: 0 | K86: 0 | L86: 0 | M86: 0 | N86: 8 | O86: 0 | P86: 8 | Q86: 0 | R86: 0 | S86: 5 | T86: 0 | U86: 0 | V86: 0 | W86: 5 | X86: 0 | Y86: 0 | Z86: 0 | AA86: 5 | AB86: 5 | AC86: 6 | AD86: 0 | AE86: 0 | AF86: 0 | AG86: 0 | AH86: 0 | AI86: 6 | AJ86: 0 | AK86: 6 | AL86: 6 | AM86: 0 | AN86: 0 | AO86: 0 | AP86: 11 | AQ86: 0 | AR86: 0 | AS86: 0 | AT86: 0 | AU86: 0 | AV86: 0 | AW86: 5 | AX86: 0 | AY86: 5 | AZ86: 0 | BA86: 0 | BB86: 92
A87: =IF('INPUT 12NC'!A84="","",'INPUT 12NC'!A84) -> 402262122922 | B87: =IF('INPUT 12NC'!B84="","",'INPUT 12NC'!B84) -> 83 | C87: 0 | D87: 0 | E87: 0 | F87: 0 | G87: 0 | H87: 0 | I87: 0 | J87: 0 | K87: 0 | L87: 0 | M87: 0 | N87: 0 | O87: 0 | P87: 0 | Q87: 0 | R87: 1 | S87: 0 | T87: 0 | U87: 0 | V87: 0 | W87: 0 | X87: 0 | Y87: 0 | Z87: 0 | AA87: 0 | AB87: 0 | AC87: 0 | AD87: 0 | AE87: 0 | AF87: 0 | AG87: 0 | AH87: 0 | AI87: 0 | AJ87: 0 | AK87: 0 | AL87: 0 | AM87: 0 | AN87: 0 | AO87: 0 | AP87: 0 | AQ87: 0 | AR87: 0 | AS87: 0 | AT87: 0 | AU87: 0 | AV87: 0 | AW87: 0 | AX87: 0 | AY87: 0 | AZ87: 0 | BA87: 0 | BB87: 1
A88: =IF('INPUT 12NC'!A85="","",'INPUT 12NC'!A85) -> 402262122912 | B88: =IF('INPUT 12NC'!B85="","",'INPUT 12NC'!B85) -> 84 | C88: 0 | D88: 0 | E88: 0 | F88: 0 | G88: 0 | H88: 0 | I88: 0 | J88: 0 | K88: 0 | L88: 0 | M88: 0 | N88: 0 | O88: 0 | P88: 0 | Q88: 0 | R88: 2 | S88: 0 | T88: 0 | U88: 0 | V88: 0 | W88: 0 | X88: 0 | Y88: 0 | Z88: 0 | AA88: 0 | AB88: 0 | AC88: 0 | AD88: 0 | AE88: 0 | AF88: 0 | AG88: 0 | AH88: 0 | AI88: 0 | AJ88: 0 | AK88: 0 | AL88: 0 | AM88: 0 | AN88: 0 | AO88: 0 | AP88: 0 | AQ88: 0 | AR88: 0 | AS88: 0 | AT88: 0 | AU88: 0 | AV88: 0 | AW88: 0 | AX88: 0 | AY88: 0 | AZ88: 0 | BA88: 0 | BB88: 2
A89: =IF('INPUT 12NC'!A86="","",'INPUT 12NC'!A86) -> 402262122902 | B89: =IF('INPUT 12NC'!B86="","",'INPUT 12NC'!B86) -> 85 | C89: 0 | D89: 0 | E89: 0 | F89: 0 | G89: 0 | H89: 0 | I89: 0 | J89: 0 | K89: 0 | L89: 0 | M89: 0 | N89: 0 | O89: 0 | P89: 0 | Q89: 0 | R89: 0 | S89: 1 | T89: 0 | U89: 0 | V89: 0 | W89: 0 | X89: 0 | Y89: 0 | Z89: 0 | AA89: 0 | AB89: 0 | AC89: 0 | AD89: 0 | AE89: 0 | AF89: 0 | AG89: 0 | AH89: 0 | AI89: 0 | AJ89: 0 | AK89: 0 | AL89: 0 | AM89: 0 | AN89: 0 | AO89: 0 | AP89: 0 | AQ89: 0 | AR89: 0 | AS89: 0 | AT89: 0 | AU89: 0 | AV89: 0 | AW89: 0 | AX89: 0 | AY89: 0 | AZ89: 0 | BA89: 0 | BB89: 1
A90: =IF('INPUT 12NC'!A87="","",'INPUT 12NC'!A87) -> 402262115642 | B90: =IF('INPUT 12NC'!B87="","",'INPUT 12NC'!B87) -> 86 | C90: 0 | D90: 0 | E90: 0 | F90: 0 | G90: 0 | H90: 1 | I90: 0 | J90: 0 | K90: 0 | L90: 0 | M90: 0 | N90: 0 | O90: 0 | P90: 0 | Q90: 0 | R90: 1 | S90: 0 | T90: 0 | U90: 0 | V90: 0 | W90: 0 | X90: 0 | Y90: 0 | Z90: 0 | AA90: 0 | AB90: 0 | AC90: 0 | AD90: 0 | AE90: 0 | AF90: 0 | AG90: 0 | AH90: 0 | AI90: 0 | AJ90: 0 | AK90: 0 | AL90: 0 | AM90: 0 | AN90: 0 | AO90: 0 | AP90: 0 | AQ90: 0 | AR90: 0 | AS90: 0 | AT90: 0 | AU90: 0 | AV90: 0 | AW90: 0 | AX90: 0 | AY90: 0 | AZ90: 0 | BA90: 0 | BB90: 2
A91: =IF('INPUT 12NC'!A88="","",'INPUT 12NC'!A88) -> 402262115632 | B91: =IF('INPUT 12NC'!B88="","",'INPUT 12NC'!B88) -> 87 | C91: 0 | D91: 0 | E91: 0 | F91: 0 | G91: 0 | H91: 1 | I91: 0 | J91: 0 | K91: 0 | L91: 0 | M91: 0 | N91: 0 | O91: 0 | P91: 0 | Q91: 0 | R91: 1 | S91: 0 | T91: 0 | U91: 0 | V91: 0 | W91: 0 | X91: 0 | Y91: 0 | Z91: 0 | AA91: 0 | AB91: 0 | AC91: 0 | AD91: 0 | AE91: 0 | AF91: 0 | AG91: 0 | AH91: 0 | AI91: 0 | AJ91: 0 | AK91: 0 | AL91: 0 | AM91: 0 | AN91: 0 | AO91: 0 | AP91: 0 | AQ91: 0 | AR91: 0 | AS91: 0 | AT91: 0 | AU91: 0 | AV91: 0 | AW91: 0 | AX91: 0 | AY91: 0 | AZ91: 0 | BA91: 0 | BB91: 2
A92: =IF('INPUT 12NC'!A89="","",'INPUT 12NC'!A89) -> 402262115622 | B92: =IF('INPUT 12NC'!B89="","",'INPUT 12NC'!B89) -> 88 | C92: 1 | D92: 0 | E92: 0 | F92: 0 | G92: 0 | H92: 0 | I92: 0 | J92: 0 | K92: 0 | L92: 0 | M92: 1 | N92: 0 | O92: 0 | P92: 0 | Q92: 0 | R92: 1 | S92: 0 | T92: 0 | U92: 0 | V92: 0 | W92: 0 | X92: 0 | Y92: 0 | Z92: 0 | AA92: 0 | AB92: 0 | AC92: 0 | AD92: 0 | AE92: 0 | AF92: 0 | AG92: 0 | AH92: 0 | AI92: 0 | AJ92: 0 | AK92: 0 | AL92: 0 | AM92: 0 | AN92: 0 | AO92: 0 | AP92: 0 | AQ92: 0 | AR92: 0 | AS92: 0 | AT92: 0 | AU92: 0 | AV92: 0 | AW92: 0 | AX92: 0 | AY92: 0 | AZ92: 0 | BA92: 0 | BB92: 3
A93: =IF('INPUT 12NC'!A90="","",'INPUT 12NC'!A90) -> 402262101751 | B93: =IF('INPUT 12NC'!B90="","",'INPUT 12NC'!B90) -> 89 | C93: 0 | D93: 0 | E93: 0 | F93: 0 | G93: 0 | H93: 3 | I93: 0 | J93: 0 | K93: 0 | L93: 0 | M93: 0 | N93: 0 | O93: 0 | P93: 0 | Q93: 0 | R93: 0 | S93: 0 | T93: 0 | U93: 0 | V93: 0 | W93: 0 | X93: 0 | Y93: 0 | Z93: 5 | AA93: 0 | AB93: 0 | AC93: 0 | AD93: 0 | AE93: 0 | AF93: 0 | AG93: 0 | AH93: 0 | AI93: 0 | AJ93: 2 | AK93: 0 | AL93: 0 | AM93: 0 | AN93: 0 | AO93: 0 | AP93: 0 | AQ93: 0 | AR93: 0 | AS93: 0 | AT93: 0 | AU93: 2 | AV93: 0 | AW93: 0 | AX93: 0 | AY93: 0 | AZ93: 0 | BA93: 0 | BB93: 12
A94: =IF('INPUT 12NC'!A91="","",'INPUT 12NC'!A91) -> 402262051394 | B94: =IF('INPUT 12NC'!B91="","",'INPUT 12NC'!B91) -> 90 | C94: 0 | D94: 0 | E94: 0 | F94: 0 | G94: 0 | H94: 0 | I94: 0 | J94: 0 | K94: 2 | L94: 0 | M94: 0 | N94: 0 | O94: 0 | P94: 0 | Q94: 0 | R94: 0 | S94: 0 | T94: 0 | U94: 0 | V94: 0 | W94: 0 | X94: 0 | Y94: 0 | Z94: 1 | AA94: 0 | AB94: 0 | AC94: 0 | AD94: 1 | AE94: 0 | AF94: 0 | AG94: 1 | AH94: 0 | AI94: 0 | AJ94: 0 | AK94: 0 | AL94: 0 | AM94: 0 | AN94: 0 | AO94: 0 | AP94: 0 | AQ94: 0 | AR94: 0 | AS94: 0 | AT94: 0 | AU94: 0 | AV94: 1 | AW94: 0 | AX94: 0 | AY94: 0 | AZ94: 0 | BA94: 0 | BB94: 6
A95: =IF('INPUT 12NC'!A92="","",'INPUT 12NC'!A92) -> 402248716262 | B95: =IF('INPUT 12NC'!B92="","",'INPUT 12NC'!B92) -> 91 | C95: 0 | D95: 0 | E95: 0 | F95: 0 | G95: 0 | H95: 0 | I95: 0 | J95: 0 | K95: 0 | L95: 0 | M95: 1 | N95: 0 | O95: 0 | P95: 0 | Q95: 0 | R95: 0 | S95: 0 | T95: 2 | U95: 0 | V95: 0 | W95: 0 | X95: 0 | Y95: 0 | Z95: 0 | AA95: 0 | AB95: 0 | AC95: 0 | AD95: 0 | AE95: 0 | AF95: 0 | AG95: 0 | AH95: 0 | AI95: 0 | AJ95: 0 | AK95: 0 | AL95: 0 | AM95: 0 | AN95: 0 | AO95: 0 | AP95: 0 | AQ95: 0 | AR95: 0 | AS95: 0 | AT95: 0 | AU95: 2 | AV95: 0 | AW95: 0 | AX95: 0 | AY95: 0 | AZ95: 0 | BA95: 0 | BB95: 5
A96: =IF('INPUT 12NC'!A93="","",'INPUT 12NC'!A93) -> 402248716253 | B96: =IF('INPUT 12NC'!B93="","",'INPUT 12NC'!B93) -> 92 | C96: 0 | D96: 0 | E96: 2 | F96: 0 | G96: 0 | H96: 0 | I96: 0 | J96: 0 | K96: 0 | L96: 0 | M96: 0 | N96: 0 | O96: 0 | P96: 0 | Q96: 1 | R96: 1 | S96: 0 | T96: 2 | U96: 0 | V96: 1 | W96: 0 | X96: 0 | Y96: 0 | Z96: 0 | AA96: 0 | AB96: 0 | AC96: 1 | AD96: 0 | AE96: 0 | AF96: 2 | AG96: 0 | AH96: 0 | AI96: 0 | AJ96: 0 | AK96: 2 | AL96: 0 | AM96: 0 | AN96: 2 | AO96: 0 | AP96: 0 | AQ96: 0 | AR96: 0 | AS96: 0 | AT96: 0 | AU96: 4 | AV96: 0 | AW96: 0 | AX96: 3 | AY96: 0 | AZ96: 0 | BA96: 0 | BB96: 21
A97: =IF('INPUT 12NC'!A94="","",'INPUT 12NC'!A94) -> 402248672583 | B97: =IF('INPUT 12NC'!B94="","",'INPUT 12NC'!B94) -> 93 | C97: 5 | D97: 0 | E97: 6 | F97: 0 | G97: 0 | H97: 0 | I97: 5 | J97: 0 | K97: 0 | L97: 0 | M97: 5 | N97: 0 | O97: 0 | P97: 0 | Q97: 5 | R97: 0 | S97: 5 | T97: 0 | U97: 0 | V97: 0 | W97: 5 | X97: 0 | Y97: 0 | Z97: 6 | AA97: 0 | AB97: 10 | AC97: 0 | AD97: 0 | AE97: 2 | AF97: 5 | AG97: 0 | AH97: 0 | AI97: 0 | AJ97: 0 | AK97: 15 | AL97: 0 | AM97: 0 | AN97: 0 | AO97: 10 | AP97: 0 | AQ97: 0 | AR97: 0 | AS97: 0 | AT97: 0 | AU97: 0 | AV97: 0 | AW97: 6 | AX97: 10 | AY97: 0 | AZ97: 0 | BA97: 0 | BB97: 100
A98: =IF('INPUT 12NC'!A95="","",'INPUT 12NC'!A95) -> 402248671154 | B98: =IF('INPUT 12NC'!B95="","",'INPUT 12NC'!B95) -> 94 | C98: 0 | D98: 11 | E98: 18 | F98: 0 | G98: 0 | H98: 10 | I98: 0 | J98: 0 | K98: 0 | L98: 0 | M98: 0 | N98: 0 | O98: 10 | P98: 0 | Q98: 10 | R98: 10 | S98: 0 | T98: 0 | U98: 0 | V98: 10 | W98: 0 | X98: 0 | Y98: 0 | Z98: 10 | AA98: 10 | AB98: 12 | AC98: 0 | AD98: 0 | AE98: 0 | AF98: 10 | AG98: 0 | AH98: 0 | AI98: 10 | AJ98: 0 | AK98: 10 | AL98: 10 | AM98: 0 | AN98: 15 | AO98: 11 | AP98: 0 | AQ98: 0 | AR98: 0 | AS98: 0 | AT98: 0 | AU98: 0 | AV98: 0 | AW98: 0 | AX98: 11 | AY98: 10 | AZ98: 0 | BA98: 0 | BB98: 198
A99: =IF('INPUT 12NC'!A96="","",'INPUT 12NC'!A96) -> 402248669334 | B99: =IF('INPUT 12NC'!B96="","",'INPUT 12NC'!B96) -> 95 | C99: 0 | D99: 0 | E99: 0 | F99: 13 | G99: 3 | H99: 0 | I99: 0 | J99: 8 | K99: 0 | L99: 0 | M99: 0 | N99: 16 | O99: 0 | P99: 0 | Q99: 16 | R99: 0 | S99: 0 | T99: 0 | U99: 0 | V99: 0 | W99: 0 | X99: 0 | Y99: 0 | Z99: 17 | AA99: 0 | AB99: 0 | AC99: 0 | AD99: 18 | AE99: 0 | AF99: 0 | AG99: 0 | AH99: 6 | AI99: 0 | AJ99: 0 | AK99: 0 | AL99: 0 | AM99: 0 | AN99: 0 | AO99: 7 | AP99: 0 | AQ99: 0 | AR99: 8 | AS99: 0 | AT99: 0 | AU99: 0 | AV99: 0 | AW99: 0 | AX99: 0 | AY99: 18 | AZ99: 0 | BA99: 0 | BB99: 130
A100: =IF('INPUT 12NC'!A97="","",'INPUT 12NC'!A97) -> 402248667422 | B100: =IF('INPUT 12NC'!B97="","",'INPUT 12NC'!B97) -> 96 | C100: 0 | D100: 0 | E100: 6 | F100: 9 | G100: 0 | H100: 0 | I100: 0 | J100: 0 | K100: 0 | L100: 0 | M100: 13 | N100: 0 | O100: 0 | P100: 0 | Q100: 0 | R100: 0 | S100: 11 | T100: 0 | U100: 0 | V100: 0 | W100: 0 | X100: 0 | Y100: 0 | Z100: 0 | AA100: 20 | AB100: 0 | AC100: 0 | AD100: 0 | AE100: 0 | AF100: 0 | AG100: 16 | AH100: 0 | AI100: 0 | AJ100: 0 | AK100: 0 | AL100: 20 | AM100: 0 | AN100: 0 | AO100: 0 | AP100: 0 | AQ100: 0 | AR100: 0 | AS100: 0 | AT100: 0 | AU100: 15 | AV100: 0 | AW100: 0 | AX100: 0 | AY100: 0 | AZ100: 0 | BA100: 0 | BB100: 110
A101: =IF('INPUT 12NC'!A98="","",'INPUT 12NC'!A98) -> 402248667402 | B101: =IF('INPUT 12NC'!B98="","",'INPUT 12NC'!B98) -> 97 | C101: 9 | D101: 0 | E101: 0 | F101: 0 | G101: 7 | H101: 3 | I101: 0 | J101: 0 | K101: 6 | L101: 0 | M101: 0 | N101: 0 | O101: 9 | P101: 0 | Q101: 0 | R101: 10 | S101: 0 | T101: 0 | U101: 0 | V101: 0 | W101: 7 | X101: 0 | Y101: 0 | Z101: 0 | AA101: 7 | AB101: 0 | AC101: 0 | AD101: 14 | AE101: 0 | AF101: 10 | AG101: 0 | AH101: 0 | AI101: 0 | AJ101: 15 | AK101: 0 | AL101: 0 | AM101: 0 | AN101: 0 | AO101: 0 | AP101: 0 | AQ101: 10 | AR101: 0 | AS101: 5 | AT101: 0 | AU101: 5 | AV101: 0 | AW101: 0 | AX101: 0 | AY101: 0 | AZ101: 5 | BA101: 0 | BB101: 122
A102: =IF('INPUT 12NC'!A99="","",'INPUT 12NC'!A99) -> 402248658201 | B102: =IF('INPUT 12NC'!B99="","",'INPUT 12NC'!B99) -> 98 | C102: 0 | D102: 0 | E102: 0 | F102: 0 | G102: 0 | H102: 4 | I102: 0 | J102: 0 | K102: 0 | L102: 0 | M102: 0 | N102: 0 | O102: 0 | P102: 0 | Q102: 0 | R102: 0 | S102: 4 | T102: 0 | U102: 0 | V102: 0 | W102: 0 | X102: 0 | Y102: 0 | Z102: 0 | AA102: 0 | AB102: 0 | AC102: 0 | AD102: 0 | AE102: 0 | AF102: 0 | AG102: 0 | AH102: 0 | AI102: 0 | AJ102: 0 | AK102: 0 | AL102: 0 | AM102: 0 | AN102: 0 | AO102: 0 | AP102: 0 | AQ102: 0 | AR102: 0 | AS102: 0 | AT102: 0 | AU102: 0 | AV102: 0 | AW102: 0 | AX102: 0 | AY102: 0 | AZ102: 0 | BA102: 0 | BB102: 8
A103: =IF('INPUT 12NC'!A100="","",'INPUT 12NC'!A100) -> 402248628711 | B103: =IF('INPUT 12NC'!B100="","",'INPUT 12NC'!B100) -> 99 | C103: 0 | D103: 0 | E103: 0 | F103: 0 | G103: 0 | H103: 0 | I103: 0 | J103: 0 | K103: 10 | L103: 0 | M103: 0 | N103: 0 | O103: 8 | P103: 0 | Q103: 0 | R103: 0 | S103: 0 | T103: 0 | U103: 0 | V103: 5 | W103: 0 | X103: 0 | Y103: 0 | Z103: 5 | AA103: 0 | AB103: 0 | AC103: 0 | AD103: 0 | AE103: 0 | AF103: 0 | AG103: 0 | AH103: 5 | AI103: 0 | AJ103: 0 | AK103: 0 | AL103: 5 | AM103: 0 | AN103: 0 | AO103: 0 | AP103: 0 | AQ103: 0 | AR103: 0 | AS103: 0 | AT103: 0 | AU103: 0 | AV103: 0 | AW103: 0 | AX103: 0 | AY103: 0 | AZ103: 0 | BA103: 0 | BB103: 38
A104: =IF('INPUT 12NC'!A101="","",'INPUT 12NC'!A101) -> 402248282071 | B104: =IF('INPUT 12NC'!B101="","",'INPUT 12NC'!B101) -> 100 | C104: 0 | D104: 0 | E104: 0 | F104: 0 | G104: 0 | H104: 0 | I104: 0 | J104: 0 | K104: 0 | L104: 0 | M104: 0 | N104: 0 | O104: 0 | P104: 0 | Q104: 0 | R104: 0 | S104: 0 | T104: 0 | U104: 0 | V104: 0 | W104: 3 | X104: 0 | Y104: 0 | Z104: 0 | AA104: 0 | AB104: 0 | AC104: 2 | AD104: 0 | AE104: 0 | AF104: 2 | AG104: 0 | AH104: 0 | AI104: 0 | AJ104: 8 | AK104: 0 | AL104: 0 | AM104: 0 | AN104: 0 | AO104: 0 | AP104: 0 | AQ104: 0 | AR104: 0 | AS104: 0 | AT104: 0 | AU104: 0 | AV104: 0 | AW104: 0 | AX104: 0 | AY104: 0 | AZ104: 0 | BA104: 0 | BB104: 15
A105: =IF('INPUT 12NC'!A102="","",'INPUT 12NC'!A102) -> 402248280573 | B105: =IF('INPUT 12NC'!B102="","",'INPUT 12NC'!B102) -> 101 | C105: 0 | D105: 0 | E105: 0 | F105: 0 | G105: 4 | H105: 0 | I105: 0 | J105: 0 | K105: 0 | L105: 0 | M105: 2 | N105: 0 | O105: 0 | P105: 0 | Q105: 2 | R105: 0 | S105: 0 | T105: 0 | U105: 0 | V105: 0 | W105: 4 | X105: 0 | Y105: 0 | Z105: 0 | AA105: 0 | AB105: 0 | AC105: 0 | AD105: 0 | AE105: 4 | AF105: 0 | AG105: 0 | AH105: 0 | AI105: 0 | AJ105: 0 | AK105: 0 | AL105: 0 | AM105: 0 | AN105: 0 | AO105: 0 | AP105: 0 | AQ105: 0 | AR105: 0 | AS105: 0 | AT105: 0 | AU105: 0 | AV105: 0 | AW105: 0 | AX105: 0 | AY105: 0 | AZ105: 0 | BA105: 0 | BB105: 16
A106: =IF('INPUT 12NC'!A103="","",'INPUT 12NC'!A103) -> 402248280482 | B106: =IF('INPUT 12NC'!B103="","",'INPUT 12NC'!B103) -> 102 | C106: 1 | D106: 0 | E106: 0 | F106: 1 | G106: 0 | H106: 0 | I106: 0 | J106: 0 | K106: 0 | L106: 0 | M106: 0 | N106: 0 | O106: 2 | P106: 0 | Q106: 0 | R106: 0 | S106: 0 | T106: 0 | U106: 0 | V106: 0 | W106: 2 | X106: 0 | Y106: 0 | Z106: 0 | AA106: 0 | AB106: 0 | AC106: 0 | AD106: 0 | AE106: 2 | AF106: 0 | AG106: 0 | AH106: 0 | AI106: 0 | AJ106: 0 | AK106: 0 | AL106: 0 | AM106: 0 | AN106: 0 | AO106: 0 | AP106: 0 | AQ106: 0 | AR106: 0 | AS106: 0 | AT106: 0 | AU106: 0 | AV106: 0 | AW106: 0 | AX106: 0 | AY106: 0 | AZ106: 0 | BA106: 0 | BB106: 8
A107: =IF('INPUT 12NC'!A104="","",'INPUT 12NC'!A104) -> 402248280161 | B107: =IF('INPUT 12NC'!B104="","",'INPUT 12NC'!B104) -> 103 | C107: 5 | D107: 0 | E107: 0 | F107: 0 | G107: 0 | H107: 0 | I107: 0 | J107: 0 | K107: 0 | L107: 0 | M107: 6 | N107: 0 | O107: 0 | P107: 0 | Q107: 0 | R107: 0 | S107: 0 | T107: 1 | U107: 0 | V107: 0 | W107: 5 | X107: 0 | Y107: 0 | Z107: 0 | AA107: 0 | AB107: 0 | AC107: 0 | AD107: 0 | AE107: 3 | AF107: 4 | AG107: 0 | AH107: 0 | AI107: 0 | AJ107: 0 | AK107: 0 | AL107: 0 | AM107: 0 | AN107: 0 | AO107: 0 | AP107: 0 | AQ107: 0 | AR107: 0 | AS107: 0 | AT107: 0 | AU107: 0 | AV107: 0 | AW107: 0 | AX107: 0 | AY107: 0 | AZ107: 0 | BA107: 0 | BB107: 24
A108: =IF('INPUT 12NC'!A105="","",'INPUT 12NC'!A105) -> 402248278943 | B108: =IF('INPUT 12NC'!B105="","",'INPUT 12NC'!B105) -> 104 | C108: 0 | D108: 0 | E108: 0 | F108: 0 | G108: 2 | H108: 0 | I108: 0 | J108: 0 | K108: 0 | L108: 0 | M108: 0 | N108: 0 | O108: 0 | P108: 2 | Q108: 0 | R108: 0 | S108: 0 | T108: 0 | U108: 0 | V108: 0 | W108: 2 | X108: 0 | Y108: 0 | Z108: 0 | AA108: 0 | AB108: 0 | AC108: 0 | AD108: 0 | AE108: 2 | AF108: 0 | AG108: 0 | AH108: 0 | AI108: 0 | AJ108: 0 | AK108: 0 | AL108: 0 | AM108: 0 | AN108: 0 | AO108: 0 | AP108: 0 | AQ108: 0 | AR108: 0 | AS108: 0 | AT108: 0 | AU108: 0 | AV108: 0 | AW108: 0 | AX108: 0 | AY108: 0 | AZ108: 0 | BA108: 0 | BB108: 8
A109: =IF('INPUT 12NC'!A106="","",'INPUT 12NC'!A106) -> 402248278153 | B109: =IF('INPUT 12NC'!B106="","",'INPUT 12NC'!B106) -> 105 | C109: 6 | D109: 0 | E109: 0 | F109: 0 | G109: 0 | H109: 0 | I109: 0 | J109: 0 | K109: 0 | L109: 0 | M109: 0 | N109: 6 | O109: 0 | P109: 0 | Q109: 0 | R109: 0 | S109: 0 | T109: 0 | U109: 0 | V109: 0 | W109: 0 | X109: 0 | Y109: 0 | Z109: 0 | AA109: 0 | AB109: 0 | AC109: 0 | AD109: 0 | AE109: 4 | AF109: 0 | AG109: 0 | AH109: 0 | AI109: 0 | AJ109: 0 | AK109: 0 | AL109: 0 | AM109: 0 | AN109: 0 | AO109: 0 | AP109: 0 | AQ109: 0 | AR109: 0 | AS109: 0 | AT109: 0 | AU109: 0 | AV109: 0 | AW109: 0 | AX109: 0 | AY109: 0 | AZ109: 0 | BA109: 0 | BB109: 16
A110: =IF('INPUT 12NC'!A107="","",'INPUT 12NC'!A107) -> 402248277063 | B110: =IF('INPUT 12NC'!B107="","",'INPUT 12NC'!B107) -> 106 | C110: 0 | D110: 0 | E110: 0 | F110: 0 | G110: 0 | H110: 6 | I110: 0 | J110: 0 | K110: 0 | L110: 0 | M110: 0 | N110: 0 | O110: 8 | P110: 0 | Q110: 0 | R110: 0 | S110: 5 | T110: 0 | U110: 13 | V110: 5 | W110: 5 | X110: 0 | Y110: 0 | Z110: 0 | AA110: 0 | AB110: 0 | AC110: 0 | AD110: 10 | AE110: 0 | AF110: 0 | AG110: 0 | AH110: 15 | AI110: 0 | AJ110: 0 | AK110: 0 | AL110: 0 | AM110: 0 | AN110: 0 | AO110: 0 | AP110: 0 | AQ110: 0 | AR110: 0 | AS110: 0 | AT110: 0 | AU110: 0 | AV110: 0 | AW110: 0 | AX110: 0 | AY110: 0 | AZ110: 0 | BA110: 0 | BB110: 67
A111: =IF('INPUT 12NC'!A108="","",'INPUT 12NC'!A108) -> 402248277053 | B111: =IF('INPUT 12NC'!B108="","",'INPUT 12NC'!B108) -> 107 | C111: 6 | D111: 0 | E111: 0 | F111: 0 | G111: 0 | H111: 0 | I111: 0 | J111: 0 | K111: 0 | L111: 0 | M111: 4 | N111: 0 | O111: 1 | P111: 0 | Q111: 0 | R111: 0 | S111: 0 | T111: 0 | U111: 0 | V111: 0 | W111: 4 | X111: 0 | Y111: 0 | Z111: 0 | AA111: 0 | AB111: 0 | AC111: 0 | AD111: 0 | AE111: 6 | AF111: 0 | AG111: 0 | AH111: 0 | AI111: 0 | AJ111: 0 | AK111: 0 | AL111: 0 | AM111: 0 | AN111: 0 | AO111: 0 | AP111: 0 | AQ111: 0 | AR111: 0 | AS111: 0 | AT111: 0 | AU111: 0 | AV111: 0 | AW111: 0 | AX111: 0 | AY111: 0 | AZ111: 0 | BA111: 0 | BB111: 21
A112: =IF('INPUT 12NC'!A109="","",'INPUT 12NC'!A109) -> 402248276992 | B112: =IF('INPUT 12NC'!B109="","",'INPUT 12NC'!B109) -> 108 | C112: 6 | D112: 0 | E112: 0 | F112: 0 | G112: 0 | H112: 0 | I112: 0 | J112: 0 | K112: 0 | L112: 0 | M112: 0 | N112: 0 | O112: 0 | P112: 6 | Q112: 0 | R112: 0 | S112: 0 | T112: 0 | U112: 0 | V112: 0 | W112: 6 | X112: 0 | Y112: 0 | Z112: 0 | AA112: 0 | AB112: 0 | AC112: 0 | AD112: 0 | AE112: 0 | AF112: 0 | AG112: 6 | AH112: 0 | AI112: 0 | AJ112: 0 | AK112: 0 | AL112: 0 | AM112: 0 | AN112: 0 | AO112: 0 | AP112: 0 | AQ112: 0 | AR112: 0 | AS112: 0 | AT112: 0 | AU112: 0 | AV112: 0 | AW112: 0 | AX112: 0 | AY112: 0 | AZ112: 0 | BA112: 0 | BB112: 24
A113: =IF('INPUT 12NC'!A110="","",'INPUT 12NC'!A110) -> 402248276702 | B113: =IF('INPUT 12NC'!B110="","",'INPUT 12NC'!B110) -> 109 | C113: 0 | D113: 0 | E113: 0 | F113: 0 | G113: 0 | H113: 0 | I113: 0 | J113: 0 | K113: 0 | L113: 0 | M113: 0 | N113: 0 | O113: 0 | P113: 2 | Q113: 0 | R113: 0 | S113: 0 | T113: 0 | U113: 0 | V113: 0 | W113: 2 | X113: 0 | Y113: 0 | Z113: 0 | AA113: 0 | AB113: 0 | AC113: 0 | AD113: 0 | AE113: 0 | AF113: 0 | AG113: 0 | AH113: 0 | AI113: 0 | AJ113: 2 | AK113: 0 | AL113: 0 | AM113: 0 | AN113: 0 | AO113: 0 | AP113: 0 | AQ113: 0 | AR113: 0 | AS113: 0 | AT113: 0 | AU113: 0 | AV113: 0 | AW113: 0 | AX113: 0 | AY113: 0 | AZ113: 0 | BA113: 0 | BB113: 6
A114: =IF('INPUT 12NC'!A111="","",'INPUT 12NC'!A111) -> 402248182412 | B114: =IF('INPUT 12NC'!B111="","",'INPUT 12NC'!B111) -> 110 | C114: 0 | D114: 0 | E114: 0 | F114: 0 | G114: 0 | H114: 0 | I114: 0 | J114: 15 | K114: 0 | L114: 0 | M114: 0 | N114: 0 | O114: 0 | P114: 0 | Q114: 0 | R114: 0 | S114: 0 | T114: 0 | U114: 0 | V114: 0 | W114: 0 | X114: 0 | Y114: 0 | Z114: 0 | AA114: 0 | AB114: 0 | AC114: 0 | AD114: 0 | AE114: 0 | AF114: 0 | AG114: 0 | AH114: 0 | AI114: 0 | AJ114: 0 | AK114: 0 | AL114: 0 | AM114: 0 | AN114: 0 | AO114: 0 | AP114: 0 | AQ114: 0 | AR114: 0 | AS114: 0 | AT114: 0 | AU114: 0 | AV114: 0 | AW114: 0 | AX114: 0 | AY114: 0 | AZ114: 0 | BA114: 0 | BB114: 15
A115: =IF('INPUT 12NC'!A112="","",'INPUT 12NC'!A112) -> 402248169723 | B115: =IF('INPUT 12NC'!B112="","",'INPUT 12NC'!B112) -> 111 | C115: 31 | D115: 0 | E115: 0 | F115: 60 | G115: 0 | H115: 0 | I115: 30 | J115: 0 | K115: 0 | L115: 30 | M115: 30 | N115: 0 | O115: 30 | P115: 0 | Q115: 30 | R115: 30 | S115: 30 | T115: 30 | U115: 30 | V115: 30 | W115: 30 | X115: 0 | Y115: 30 | Z115: 90 | AA115: 0 | AB115: 30 | AC115: 30 | AD115: 0 | AE115: 0 | AF115: 0 | AG115: 30 | AH115: 0 | AI115: 30 | AJ115: 30 | AK115: 30 | AL115: 30 | AM115: 0 | AN115: 60 | AO115: 0 | AP115: 30 | AQ115: 0 | AR115: 0 | AS115: 30 | AT115: 30 | AU115: 30 | AV115: 0 | AW115: 60 | AX115: 0 | AY115: 30 | AZ115: 30 | BA115: 0 | BB115: 1051
A116: =IF('INPUT 12NC'!A113="","",'INPUT 12NC'!A113) -> 402248168092 | B116: =IF('INPUT 12NC'!B113="","",'INPUT 12NC'!B113) -> 112 | C116: 0 | D116: 0 | E116: 0 | F116: 0 | G116: 0 | H116: 4 | I116: 0 | J116: 7 | K116: 0 | L116: 0 | M116: 0 | N116: 5 | O116: 0 | P116: 0 | Q116: 5 | R116: 9 | S116: 0 | T116: 0 | U116: 0 | V116: 0 | W116: 0 | X116: 6 | Y116: 0 | Z116: 7 | AA116: 0 | AB116: 0 | AC116: 5 | AD116: 5 | AE116: 0 | AF116: 0 | AG116: 0 | AH116: 0 | AI116: 0 | AJ116: 0 | AK116: 0 | AL116: 0 | AM116: 0 | AN116: 0 | AO116: 5 | AP116: 0 | AQ116: 0 | AR116: 5 | AS116: 0 | AT116: 0 | AU116: 0 | AV116: 5 | AW116: 0 | AX116: 0 | AY116: 0 | AZ116: 0 | BA116: 0 | BB116: 68
A117: =IF('INPUT 12NC'!A114="","",'INPUT 12NC'!A114) -> 402248119919 | B117: =IF('INPUT 12NC'!B114="","",'INPUT 12NC'!B114) -> 113 | C117: 0 | D117: 0 | E117: 20 | F117: 0 | G117: 0 | H117: 0 | I117: 0 | J117: 0 | K117: 20 | L117: 0 | M117: 0 | N117: 0 | O117: 0 | P117: 25 | Q117: 0 | R117: 0 | S117: 0 | T117: 0 | U117: 0 | V117: 0 | W117: 25 | X117: 0 | Y117: 0 | Z117: 0 | AA117: 0 | AB117: 23 | AC117: 0 | AD117: 0 | AE117: 0 | AF117: 0 | AG117: 28 | AH117: 0 | AI117: 0 | AJ117: 0 | AK117: 0 | AL117: 0 | AM117: 20 | AN117: 0 | AO117: 0 | AP117: 0 | AQ117: 0 | AR117: 20 | AS117: 0 | AT117: 0 | AU117: 0 | AV117: 0 | AW117: 0 | AX117: 20 | AY117: 0 | AZ117: 0 | BA117: 0 | BB117: 201
A118: =IF('INPUT 12NC'!A115="","",'INPUT 12NC'!A115) -> 402247790384 | B118: =IF('INPUT 12NC'!B115="","",'INPUT 12NC'!B115) -> 114 | C118: 0 | D118: 0 | E118: 0 | F118: 0 | G118: 0 | H118: 0 | I118: 0 | J118: 0 | K118: 0 | L118: 0 | M118: 5 | N118: 0 | O118: 0 | P118: 0 | Q118: 0 | R118: 0 | S118: 0 | T118: 0 | U118: 0 | V118: 0 | W118: 5 | X118: 0 | Y118: 0 | Z118: 0 | AA118: 0 | AB118: 0 | AC118: 0 | AD118: 0 | AE118: 0 | AF118: 0 | AG118: 0 | AH118: 0 | AI118: 0 | AJ118: 0 | AK118: 0 | AL118: 0 | AM118: 0 | AN118: 0 | AO118: 0 | AP118: 0 | AQ118: 0 | AR118: 0 | AS118: 0 | AT118: 0 | AU118: 0 | AV118: 0 | AW118: 0 | AX118: 0 | AY118: 0 | AZ118: 0 | BA118: 0 | BB118: 10
A119: =IF('INPUT 12NC'!A116="","",'INPUT 12NC'!A116) -> 402247784649 | B119: =IF('INPUT 12NC'!B116="","",'INPUT 12NC'!B116) -> 115 | C119: 0 | D119: 0 | E119: 20 | F119: 0 | G119: 0 | H119: 0 | I119: 0 | J119: 20 | K119: 0 | L119: 0 | M119: 0 | N119: 0 | O119: 0 | P119: 21 | Q119: 0 | R119: 0 | S119: 0 | T119: 0 | U119: 0 | V119: 24 | W119: 0 | X119: 0 | Y119: 0 | Z119: 0 | AA119: 26 | AB119: 0 | AC119: 0 | AD119: 0 | AE119: 0 | AF119: 0 | AG119: 22 | AH119: 0 | AI119: 0 | AJ119: 0 | AK119: 31 | AL119: 0 | AM119: 0 | AN119: 0 | AO119: 0 | AP119: 0 | AQ119: 0 | AR119: 20 | AS119: 0 | AT119: 0 | AU119: 0 | AV119: 0 | AW119: 0 | AX119: 0 | AY119: 0 | AZ119: 0 | BA119: 0 | BB119: 184
A120: =IF('INPUT 12NC'!A117="","",'INPUT 12NC'!A117) -> 402247731477 | B120: =IF('INPUT 12NC'!B117="","",'INPUT 12NC'!B117) -> 116 | C120: 0 | D120: 0 | E120: 20 | F120: 0 | G120: 0 | H120: 0 | I120: 40 | J120: 0 | K120: 0 | L120: 0 | M120: 20 | N120: 20 | O120: 0 | P120: 0 | Q120: 20 | R120: 0 | S120: 20 | T120: 0 | U120: 0 | V120: 20 | W120: 0 | X120: 20 | Y120: 0 | Z120: 20 | AA120: 0 | AB120: 20 | AC120: 0 | AD120: 0 | AE120: 20 | AF120: 0 | AG120: 0 | AH120: 0 | AI120: 0 | AJ120: 0 | AK120: 0 | AL120: 20 | AM120: 20 | AN120: 20 | AO120: 0 | AP120: 20 | AQ120: 0 | AR120: 0 | AS120: 0 | AT120: 0 | AU120: 20 | AV120: 0 | AW120: 0 | AX120: 0 | AY120: 0 | AZ120: 0 | BA120: 0 | BB120: 340
A121: =IF('INPUT 12NC'!A118="","",'INPUT 12NC'!A118) ->  | B121: =IF('INPUT 12NC'!B118="","",'INPUT 12NC'!B118) -> 
A122: =IF('INPUT 12NC'!A119="","",'INPUT 12NC'!A119) ->  | B122: =IF('INPUT 12NC'!B119="","",'INPUT 12NC'!B119) -> 
A123: =IF('INPUT 12NC'!A120="","",'INPUT 12NC'!A120) ->  | B123: =IF('INPUT 12NC'!B120="","",'INPUT 12NC'!B120) -> 
A124: =IF('INPUT 12NC'!A121="","",'INPUT 12NC'!A121) ->  | B124: =IF('INPUT 12NC'!B121="","",'INPUT 12NC'!B121) -> 
A125: =IF('INPUT 12NC'!A122="","",'INPUT 12NC'!A122) ->  | B125: =IF('INPUT 12NC'!B122="","",'INPUT 12NC'!B122) -> 
A126: =IF('INPUT 12NC'!A123="","",'INPUT 12NC'!A123) ->  | B126: =IF('INPUT 12NC'!B123="","",'INPUT 12NC'!B123) -> 
A127: =IF('INPUT 12NC'!A124="","",'INPUT 12NC'!A124) ->  | B127: =IF('INPUT 12NC'!B124="","",'INPUT 12NC'!B124) -> 
A128: =IF('INPUT 12NC'!A125="","",'INPUT 12NC'!A125) ->  | B128: =IF('INPUT 12NC'!B125="","",'INPUT 12NC'!B125) -> 
A129: =IF('INPUT 12NC'!A126="","",'INPUT 12NC'!A126) ->  | B129: =IF('INPUT 12NC'!B126="","",'INPUT 12NC'!B126) -> 
A130: =IF('INPUT 12NC'!A127="","",'INPUT 12NC'!A127) ->  | B130: =IF('INPUT 12NC'!B127="","",'INPUT 12NC'!B127) -> 
A131: =IF('INPUT 12NC'!A128="","",'INPUT 12NC'!A128) ->  | B131: =IF('INPUT 12NC'!B128="","",'INPUT 12NC'!B128) -> 
A132: =IF('INPUT 12NC'!A129="","",'INPUT 12NC'!A129) ->  | B132: =IF('INPUT 12NC'!B129="","",'INPUT 12NC'!B129) -> 
A133: =IF('INPUT 12NC'!A130="","",'INPUT 12NC'!A130) ->  | B133: =IF('INPUT 12NC'!B130="","",'INPUT 12NC'!B130) -> 
A134: =IF('INPUT 12NC'!A131="","",'INPUT 12NC'!A131) ->  | B134: =IF('INPUT 12NC'!B131="","",'INPUT 12NC'!B131) ->  | BB134: =IF(A134="","",SUM(C134:BA134)) -> 
A135: =IF('INPUT 12NC'!A132="","",'INPUT 12NC'!A132) ->  | B135: =IF('INPUT 12NC'!B132="","",'INPUT 12NC'!B132) -> 
A136: =IF('INPUT 12NC'!A133="","",'INPUT 12NC'!A133) ->  | B136: =IF('INPUT 12NC'!B133="","",'INPUT 12NC'!B133) -> 
A137: =IF('INPUT 12NC'!A134="","",'INPUT 12NC'!A134) ->  | B137: =IF('INPUT 12NC'!B134="","",'INPUT 12NC'!B134) -> 
A138: =IF('INPUT 12NC'!A135="","",'INPUT 12NC'!A135) ->  | B138: =IF('INPUT 12NC'!B135="","",'INPUT 12NC'!B135) -> 
A139: =IF('INPUT 12NC'!A136="","",'INPUT 12NC'!A136) ->  | B139: =IF('INPUT 12NC'!B136="","",'INPUT 12NC'!B136) -> 
A140: =IF('INPUT 12NC'!A137="","",'INPUT 12NC'!A137) ->  | B140: =IF('INPUT 12NC'!B137="","",'INPUT 12NC'!B137) -> 
A141: =IF('INPUT 12NC'!A138="","",'INPUT 12NC'!A138) ->  | B141: =IF('INPUT 12NC'!B138="","",'INPUT 12NC'!B138) -> 
A142: =IF('INPUT 12NC'!A139="","",'INPUT 12NC'!A139) ->  | B142: =IF('INPUT 12NC'!B139="","",'INPUT 12NC'!B139) -> 
A143: =IF('INPUT 12NC'!A140="","",'INPUT 12NC'!A140) ->  | B143: =IF('INPUT 12NC'!B140="","",'INPUT 12NC'!B140) -> 
A144: =IF('INPUT 12NC'!A141="","",'INPUT 12NC'!A141) ->  | B144: =IF('INPUT 12NC'!B141="","",'INPUT 12NC'!B141) -> 
A145: =IF('INPUT 12NC'!A142="","",'INPUT 12NC'!A142) ->  | B145: =IF('INPUT 12NC'!B142="","",'INPUT 12NC'!B142) -> 
A146: =IF('INPUT 12NC'!A143="","",'INPUT 12NC'!A143) ->  | B146: =IF('INPUT 12NC'!B143="","",'INPUT 12NC'!B143) -> 
A147: =IF('INPUT 12NC'!A144="","",'INPUT 12NC'!A144) ->  | B147: =IF('INPUT 12NC'!B144="","",'INPUT 12NC'!B144) -> 
A148: =IF('INPUT 12NC'!A145="","",'INPUT 12NC'!A145) ->  | B148: =IF('INPUT 12NC'!B145="","",'INPUT 12NC'!B145) -> 
A149: =IF('INPUT 12NC'!A146="","",'INPUT 12NC'!A146) ->  | B149: =IF('INPUT 12NC'!B146="","",'INPUT 12NC'!B146) -> 
A150: =IF('INPUT 12NC'!A147="","",'INPUT 12NC'!A147) ->  | B150: =IF('INPUT 12NC'!B147="","",'INPUT 12NC'!B147) -> 
A151: =IF('INPUT 12NC'!A148="","",'INPUT 12NC'!A148) ->  | B151: =IF('INPUT 12NC'!B148="","",'INPUT 12NC'!B148) -> 
A152: =IF('INPUT 12NC'!A149="","",'INPUT 12NC'!A149) ->  | B152: =IF('INPUT 12NC'!B149="","",'INPUT 12NC'!B149) -> 
A153: =IF('INPUT 12NC'!A150="","",'INPUT 12NC'!A150) ->  | B153: =IF('INPUT 12NC'!B150="","",'INPUT 12NC'!B150) -> 
A154: =IF('INPUT 12NC'!A151="","",'INPUT 12NC'!A151) ->  | B154: =IF('INPUT 12NC'!B151="","",'INPUT 12NC'!B151) -> 
A155: =IF('INPUT 12NC'!A152="","",'INPUT 12NC'!A152) ->  | B155: =IF('INPUT 12NC'!B152="","",'INPUT 12NC'!B152) -> 
A156: =IF('INPUT 12NC'!A153="","",'INPUT 12NC'!A153) ->  | B156: =IF('INPUT 12NC'!B153="","",'INPUT 12NC'!B153) -> 
A157: =IF('INPUT 12NC'!A154="","",'INPUT 12NC'!A154) ->  | B157: =IF('INPUT 12NC'!B154="","",'INPUT 12NC'!B154) -> 
A158: =IF('INPUT 12NC'!A155="","",'INPUT 12NC'!A155) ->  | B158: =IF('INPUT 12NC'!B155="","",'INPUT 12NC'!B155) -> 
A159: =IF('INPUT 12NC'!A156="","",'INPUT 12NC'!A156) ->  | B159: =IF('INPUT 12NC'!B156="","",'INPUT 12NC'!B156) -> 
A160: =IF('INPUT 12NC'!A157="","",'INPUT 12NC'!A157) ->  | B160: =IF('INPUT 12NC'!B157="","",'INPUT 12NC'!B157) -> 
A161: =IF('INPUT 12NC'!A158="","",'INPUT 12NC'!A158) ->  | B161: =IF('INPUT 12NC'!B158="","",'INPUT 12NC'!B158) -> 
A162: =IF('INPUT 12NC'!A159="","",'INPUT 12NC'!A159) ->  | B162: =IF('INPUT 12NC'!B159="","",'INPUT 12NC'!B159) -> 
A163: =IF('INPUT 12NC'!A160="","",'INPUT 12NC'!A160) ->  | B163: =IF('INPUT 12NC'!B160="","",'INPUT 12NC'!B160) -> 
A164: =IF('INPUT 12NC'!A161="","",'INPUT 12NC'!A161) ->  | B164: =IF('INPUT 12NC'!B161="","",'INPUT 12NC'!B161) -> 
A165: =IF('INPUT 12NC'!A162="","",'INPUT 12NC'!A162) ->  | B165: =IF('INPUT 12NC'!B162="","",'INPUT 12NC'!B162) -> 
A166: =IF('INPUT 12NC'!A163="","",'INPUT 12NC'!A163) ->  | B166: =IF('INPUT 12NC'!B163="","",'INPUT 12NC'!B163) -> 
A167: =IF('INPUT 12NC'!A164="","",'INPUT 12NC'!A164) ->  | B167: =IF('INPUT 12NC'!B164="","",'INPUT 12NC'!B164) -> 
A168: =IF('INPUT 12NC'!A165="","",'INPUT 12NC'!A165) ->  | B168: =IF('INPUT 12NC'!B165="","",'INPUT 12NC'!B165) -> 
A169: =IF('INPUT 12NC'!A166="","",'INPUT 12NC'!A166) ->  | B169: =IF('INPUT 12NC'!B166="","",'INPUT 12NC'!B166) -> 
A170: =IF('INPUT 12NC'!A167="","",'INPUT 12NC'!A167) ->  | B170: =IF('INPUT 12NC'!B167="","",'INPUT 12NC'!B167) -> 
A171: =IF('INPUT 12NC'!A168="","",'INPUT 12NC'!A168) ->  | B171: =IF('INPUT 12NC'!B168="","",'INPUT 12NC'!B168) -> 
A172: =IF('INPUT 12NC'!A169="","",'INPUT 12NC'!A169) ->  | B172: =IF('INPUT 12NC'!B169="","",'INPUT 12NC'!B169) -> 
A173: =IF('INPUT 12NC'!A170="","",'INPUT 12NC'!A170) ->  | B173: =IF('INPUT 12NC'!B170="","",'INPUT 12NC'!B170) -> 
A174: =IF('INPUT 12NC'!A171="","",'INPUT 12NC'!A171) ->  | B174: =IF('INPUT 12NC'!B171="","",'INPUT 12NC'!B171) -> 
A175: =IF('INPUT 12NC'!A172="","",'INPUT 12NC'!A172) ->  | B175: =IF('INPUT 12NC'!B172="","",'INPUT 12NC'!B172) -> 
A176: =IF('INPUT 12NC'!A173="","",'INPUT 12NC'!A173) ->  | B176: =IF('INPUT 12NC'!B173="","",'INPUT 12NC'!B173) -> 
A177: =IF('INPUT 12NC'!A174="","",'INPUT 12NC'!A174) ->  | B177: =IF('INPUT 12NC'!B174="","",'INPUT 12NC'!B174) -> 
A178: =IF('INPUT 12NC'!A175="","",'INPUT 12NC'!A175) ->  | B178: =IF('INPUT 12NC'!B175="","",'INPUT 12NC'!B175) -> 
A179: =IF('INPUT 12NC'!A176="","",'INPUT 12NC'!A176) ->  | B179: =IF('INPUT 12NC'!B176="","",'INPUT 12NC'!B176) -> 
A180: =IF('INPUT 12NC'!A177="","",'INPUT 12NC'!A177) ->  | B180: =IF('INPUT 12NC'!B177="","",'INPUT 12NC'!B177) -> 
A181: =IF('INPUT 12NC'!A178="","",'INPUT 12NC'!A178) ->  | B181: =IF('INPUT 12NC'!B178="","",'INPUT 12NC'!B178) -> 
A182: =IF('INPUT 12NC'!A179="","",'INPUT 12NC'!A179) ->  | B182: =IF('INPUT 12NC'!B179="","",'INPUT 12NC'!B179) -> 
A183: =IF('INPUT 12NC'!A180="","",'INPUT 12NC'!A180) ->  | B183: =IF('INPUT 12NC'!B180="","",'INPUT 12NC'!B180) -> 
A184: =IF('INPUT 12NC'!A181="","",'INPUT 12NC'!A181) ->  | B184: =IF('INPUT 12NC'!B181="","",'INPUT 12NC'!B181) -> 
A185: =IF('INPUT 12NC'!A182="","",'INPUT 12NC'!A182) ->  | B185: =IF('INPUT 12NC'!B182="","",'INPUT 12NC'!B182) -> 
A186: =IF('INPUT 12NC'!A183="","",'INPUT 12NC'!A183) ->  | B186: =IF('INPUT 12NC'!B183="","",'INPUT 12NC'!B183) -> 
A187: =IF('INPUT 12NC'!A184="","",'INPUT 12NC'!A184) ->  | B187: =IF('INPUT 12NC'!B184="","",'INPUT 12NC'!B184) -> 
A188: =IF('INPUT 12NC'!A185="","",'INPUT 12NC'!A185) ->  | B188: =IF('INPUT 12NC'!B185="","",'INPUT 12NC'!B185) -> 
A189: =IF('INPUT 12NC'!A186="","",'INPUT 12NC'!A186) ->  | B189: =IF('INPUT 12NC'!B186="","",'INPUT 12NC'!B186) -> 
A190: =IF('INPUT 12NC'!A187="","",'INPUT 12NC'!A187) ->  | B190: =IF('INPUT 12NC'!B187="","",'INPUT 12NC'!B187) -> 
A191: =IF('INPUT 12NC'!A188="","",'INPUT 12NC'!A188) ->  | B191: =IF('INPUT 12NC'!B188="","",'INPUT 12NC'!B188) -> 
A192: =IF('INPUT 12NC'!A189="","",'INPUT 12NC'!A189) ->  | B192: =IF('INPUT 12NC'!B189="","",'INPUT 12NC'!B189) -> 
A193: =IF('INPUT 12NC'!A190="","",'INPUT 12NC'!A190) ->  | B193: =IF('INPUT 12NC'!B190="","",'INPUT 12NC'!B190) -> 
A194: =IF('INPUT 12NC'!A191="","",'INPUT 12NC'!A191) ->  | B194: =IF('INPUT 12NC'!B191="","",'INPUT 12NC'!B191) -> 
A195: =IF('INPUT 12NC'!A192="","",'INPUT 12NC'!A192) ->  | B195: =IF('INPUT 12NC'!B192="","",'INPUT 12NC'!B192) -> 
A196: =IF('INPUT 12NC'!A193="","",'INPUT 12NC'!A193) ->  | B196: =IF('INPUT 12NC'!B193="","",'INPUT 12NC'!B193) -> 
A197: =IF('INPUT 12NC'!A194="","",'INPUT 12NC'!A194) ->  | B197: =IF('INPUT 12NC'!B194="","",'INPUT 12NC'!B194) -> 
A198: =IF('INPUT 12NC'!A195="","",'INPUT 12NC'!A195) ->  | B198: =IF('INPUT 12NC'!B195="","",'INPUT 12NC'!B195) ->  | BB198: =IF(A198="","",SUM(C198:BA198)) -> 
A199: =IF('INPUT 12NC'!A196="","",'INPUT 12NC'!A196) ->  | B199: =IF('INPUT 12NC'!B196="","",'INPUT 12NC'!B196) -> 
A200: =IF('INPUT 12NC'!A197="","",'INPUT 12NC'!A197) ->  | B200: =IF('INPUT 12NC'!B197="","",'INPUT 12NC'!B197) -> 
... 804 more rows

Sheet Module1
E1: Capacity | J1: Criteria
E2: Description | H2: Value | J2: Description | N2: Value
E3: Total Past Capacity (Min.) | H3: =SUM(BC17:BC1016) -> 151283.84 | J3: Category-B Criteria (%) | N3: 96
E4: Total Past Capacity (Hrs.) | H4: =H3/60 -> 2521.397333 | J4: Allowed Nr. of Weeks Out-Of-Capacity | N4: =51-ROUNDUP((51/100)*N3,0) -> 2
E5: Weekly Avarage (Min.) | H5: =H3/51 -> 2966.349804 | J5: Nr. Of Weeks Out-Of-Capacity | N5: =COUNTIF(D10:BB10,">"&H6) -> 2
E6: Weekly Future Capacity (Min.) | H6: =H5*(1+(1-H7)) -> 3559.619765 | J6: Number of Products in Category-A | N6: =SUM(C17:C1016) -> 10
E7: Utilization | H7: 0.8 | J7: Safety Time in Nr. of Weeks | N7: 1
A9: Sum over products in category A | D9: =SUMIF($C$17:$C$1016,1,D17:D1016) -> 1628 | E9: =SUMIF($C$17:$C$1016,1,E17:E1016) -> 0 | F9: 1459 | G9: 2090 | H9: 714 | I9: 1868 | J9: 2707 | K9: 2434.66 | L9: 0 | M9: 470 | N9: 2524 | O9: 3333 | P9: 1982 | Q9: 0 | R9: 2513 | S9: 1519.3 | T9: 3703 | U9: 280 | V9: 1304 | W9: 1765 | X9: 2633 | Y9: 1085 | Z9: 280 | AA9: 3751.84 | AB9: 2285 | AC9: 1555 | AD9: 717 | AE9: 2393 | AF9: 2157 | AG9: 190 | AH9: 1996.12 | AI9: 1478 | AJ9: 1162 | AK9: 1351 | AL9: 931 | AM9: 2165 | AN9: 1085 | AO9: 3951.12 | AP9: 716 | AQ9: 1365 | AR9: 214 | AS9: 394 | AT9: 280 | AU9: 280 | AV9: 1365 | AW9: 1106.12 | AX9: 550 | AY9: 1400 | AZ9: 2440 | BA9: 1116 | BB9: =SUMIF($C$17:$C$1016,1,BB17:BB1016) -> 0
A10: Sum over products in category B | D10: =SUMIF($C$17:$C$1016,0,D17:D1016) -> 3878.87 | E10: =SUMIF($C$17:$C$1016,0,E17:E1016) -> 474.2 | F10: 2286.48 | G10: 1143.45 | H10: 2183.5 | I10: 1098.43 | J10: 1311.7 | K10: 1645.39 | L10: 878 | M10: 1192.5 | N10: 2628.14 | O10: 1526.72 | P10: 2215 | Q10: 3283.84 | R10: 1619.29 | S10: 1431.41 | T10: 2819.21 | U10: 700.43 | V10: 497.67 | W10: 987.4 | X10: 5434.96 | Y10: 677.51 | Z10: 0 | AA10: 1802.96 | AB10: 1683.13 | AC10: 2093 | AD10: 2048.45 | AE10: 1549.05 | AF10: 3401.3 | AG10: 1371.16 | AH10: 2607.42 | AI10: 400.26 | AJ10: 1239.4 | AK10: 1532.03 | AL10: 2232.4 | AM10: 1002.01 | AN10: 585 | AO10: 1242 | AP10: 1229.85 | AQ10: 1254.58 | AR10: 416.73 | AS10: 1340.15 | AT10: 823.12 | AU10: 650.9 | AV10: 1319.48 | AW10: 679.2 | AX10: 521.5 | AY10: 864 | AZ10: 1921.6 | BA10: 872.9 | BB10: =SUMIF($C$17:$C$1016,0,BB17:BB1016) -> 0
A11: Sum over all products | D11: =SUM(D17:D1016) -> 5506.87 | E11: =SUM(E17:E1016) -> 474.2 | F11: 3745.48 | G11: 3233.45 | H11: 2897.5 | I11: 2966.43 | J11: 4018.7 | K11: 4080.05 | L11: 878 | M11: 1662.5 | N11: 5152.14 | O11: 4859.72 | P11: 4197 | Q11: 3283.84 | R11: 4132.29 | S11: 2950.71 | T11: 6522.21 | U11: 980.43 | V11: 1801.67 | W11: 2752.4 | X11: 8067.96 | Y11: 1762.51 | Z11: 280 | AA11: 5554.8 | AB11: 3968.13 | AC11: 3648 | AD11: 2765.45 | AE11: 3942.05 | AF11: 5558.3 | AG11: 1561.16 | AH11: 4603.54 | AI11: 1878.26 | AJ11: 2401.4 | AK11: 2883.03 | AL11: 3163.4 | AM11: 3167.01 | AN11: 1670 | AO11: 5193.12 | AP11: 1945.85 | AQ11: 2619.58 | AR11: 630.73 | AS11: 1734.15 | AT11: 1103.12 | AU11: 930.9 | AV11: 2684.48 | AW11: 1785.32 | AX11: 1071.5 | AY11: 2264 | AZ11: 4361.6 | BA11: 1988.9 | BB11: =SUM(BB17:BB1016) -> 0
D13: Operation Time per Week per 12NC for 51 Weeks
C14: Year | D14: ='INPUT Demand'!C2 -> 13 | E14: ='INPUT Demand'!D2 -> 13 | F14: ='INPUT Demand'!E2 -> 13 | G14: ='INPUT Demand'!F2 -> 13 | H14: ='INPUT Demand'!G2 -> 13 | I14: ='INPUT Demand'!H2 -> 13 | J14: ='INPUT Demand'!I2 -> 13 | K14: ='INPUT Demand'!J2 -> 13 | L14: ='INPUT Demand'!K2 -> 13 | M14: ='INPUT Demand'!L2 -> 13 | N14: ='INPUT Demand'!M2 -> 13 | O14: ='INPUT Demand'!N2 -> 13 | P14: ='INPUT Demand'!O2 -> 13 | Q14: ='INPUT Demand'!P2 -> 13 | R14: ='INPUT Demand'!Q2 -> 13 | S14: ='INPUT Demand'!R2 -> 13 | T14: ='INPUT Demand'!S2 -> 13 | U14: ='INPUT Demand'!T2 -> 13 | V14: ='INPUT Demand'!U2 -> 13 | W14: ='INPUT Demand'!V2 -> 13 | X14: ='INPUT Demand'!W2 -> 13 | Y14: ='INPUT Demand'!X2 -> 13 | Z14: ='INPUT Demand'!Y2 -> 13 | AA14: ='INPUT Demand'!Z2 -> 13 | AB14: ='INPUT Demand'!AA2 -> 14 | AC14: ='INPUT Demand'!AB2 -> 14 | AD14: ='INPUT Demand'!AC2 -> 14 | AE14: ='INPUT Demand'!AD2 -> 14 | AF14: ='INPUT Demand'!AE2 -> 14 | AG14: ='INPUT Demand'!AF2 -> 14 | AH14: ='INPUT Demand'!AG2 -> 14 | AI14: ='INPUT Demand'!AH2 -> 14 | AJ14: ='INPUT Demand'!AI2 -> 14 | AK14: ='INPUT Demand'!AJ2 -> 14 | AL14: ='INPUT Demand'!AK2 -> 14 | AM14: ='INPUT Demand'!AL2 -> 14 | AN14: ='INPUT Demand'!AM2 -> 14 | AO14: ='INPUT Demand'!AN2 -> 14 | AP14: ='INPUT Demand'!AO2 -> 14 | AQ14: ='INPUT Demand'!AP2 -> 14 | AR14: ='INPUT Demand'!AQ2 -> 14 | AS14: ='INPUT Demand'!AR2 -> 14 | AT14: ='INPUT Demand'!AS2 -> 14 | AU14: ='INPUT Demand'!AT2 -> 14 | AV14: ='INPUT Demand'!AU2 -> 14 | AW14: ='INPUT Demand'!AV2 -> 14 | AX14: ='INPUT Demand'!AW2 -> 14 | AY14: ='INPUT Demand'!AX2 -> 14 | AZ14: ='INPUT Demand'!AY2 -> 14 | BA14: ='INPUT Demand'!AZ2 -> 14 | BB14: ='INPUT Demand'!BA2 -> 14
C15: Week | D15: ='INPUT Demand'!C3 -> 28 | E15: ='INPUT Demand'!D3 -> 29 | F15: ='INPUT Demand'!E3 -> 30 | G15: ='INPUT Demand'!F3 -> 31 | H15: ='INPUT Demand'!G3 -> 32 | I15: ='INPUT Demand'!H3 -> 33 | J15: ='INPUT Demand'!I3 -> 34 | K15: ='INPUT Demand'!J3 -> 35 | L15: ='INPUT Demand'!K3 -> 36 | M15: ='INPUT Demand'!L3 -> 37 | N15: ='INPUT Demand'!M3 -> 38 | O15: ='INPUT Demand'!N3 -> 39 | P15: ='INPUT Demand'!O3 -> 40 | Q15: ='INPUT Demand'!P3 -> 41 | R15: ='INPUT Demand'!Q3 -> 42 | S15: ='INPUT Demand'!R3 -> 43 | T15: ='INPUT Demand'!S3 -> 44 | U15: ='INPUT Demand'!T3 -> 45 | V15: ='INPUT Demand'!U3 -> 46 | W15: ='INPUT Demand'!V3 -> 47 | X15: ='INPUT Demand'!W3 -> 48 | Y15: ='INPUT Demand'!X3 -> 49 | Z15: ='INPUT Demand'!Y3 -> 50 | AA15: ='INPUT Demand'!Z3 -> 51 | AB15: ='INPUT Demand'!AA3 -> 2 | AC15: ='INPUT Demand'!AB3 -> 3 | AD15: ='INPUT Demand'!AC3 -> 4 | AE15: ='INPUT Demand'!AD3 -> 5 | AF15: ='INPUT Demand'!AE3 -> 6 | AG15: ='INPUT Demand'!AF3 -> 7 | AH15: ='INPUT Demand'!AG3 -> 8 | AI15: ='INPUT Demand'!AH3 -> 9 | AJ15: ='INPUT Demand'!AI3 -> 10 | AK15: ='INPUT Demand'!AJ3 -> 11 | AL15: ='INPUT Demand'!AK3 -> 12 | AM15: ='INPUT Demand'!AL3 -> 13 | AN15: ='INPUT Demand'!AM3 -> 14 | AO15: ='INPUT Demand'!AN3 -> 15 | AP15: ='INPUT Demand'!AO3 -> 16 | AQ15: ='INPUT Demand'!AP3 -> 17 | AR15: ='INPUT Demand'!AQ3 -> 18 | AS15: ='INPUT Demand'!AR3 -> 19 | AT15: ='INPUT Demand'!AS3 -> 20 | AU15: ='INPUT Demand'!AT3 -> 21 | AV15: ='INPUT Demand'!AU3 -> 22 | AW15: ='INPUT Demand'!AV3 -> 23 | AX15: ='INPUT Demand'!AW3 -> 24 | AY15: ='INPUT Demand'!AX3 -> 25 | AZ15: ='INPUT Demand'!AY3 -> 26 | BA15: ='INPUT Demand'!AZ3 -> 27 | BB15: ='INPUT Demand'!BA3 -> 28
A16: 12NC | B16: PN | C16: Category | BC16: Total | BD16: Total A
A17: 402247731477 | B17: 116 | C17: 1 | D17: =IF(A17="","",IF(VLOOKUP(A17,'INPUT Demand'!$A$5:$BA$1004,3,FALSE)=0,0,(VLOOKUP(A17,'INPUT Demand'!$A$5:$BA$1004,3,FALSE)*'INPUT 12NC'!D117)+'INPUT 12NC'!C117)) -> 0 | E17: =IF(A17="","",IF(VLOOKUP(A17,'INPUT Demand'!$A$5:$BA$1004,4,FALSE)=0,0,(VLOOKUP(A17,'INPUT Demand'!$A$5:$BA$1004,4,FALSE)*'INPUT 12NC'!D117)+'INPUT 12NC'!C117)) -> 0 | F17: =IF(A17="","",IF(VLOOKUP(A17,'INPUT Demand'!$A$5:$BA$1004,5,FALSE)=0,0,(VLOOKUP(A17,'INPUT Demand'!$A$5:$BA$1004,5,FALSE)*'INPUT 12NC'!D117)+'INPUT 12NC'!C117)) -> 1085 | G17: =IF(A17="","",IF(VLOOKUP(A17,'INPUT Demand'!$A$5:$BA$1004,6,FALSE)=0,0,(VLOOKUP(A17,'INPUT Demand'!$A$5:$BA$1004,6,FALSE)*'INPUT 12NC'!D117)+'INPUT 12NC'!C117)) -> 0 | H17: =IF(A17="","",IF(VLOOKUP(A17,'INPUT Demand'!$A$5:$BA$1004,7,FALSE)=0,0,(VLOOKUP(A17,'INPUT Demand'!$A$5:$BA$1004,7,FALSE)*'INPUT 12NC'!D117)+'INPUT 12NC'!C117)) -> 0 | I17: =IF(A17="","",IF(VLOOKUP(A17,'INPUT Demand'!$A$5:$BA$1004,8,FALSE)=0,0,(VLOOKUP(A17,'INPUT Demand'!$A$5:$BA$1004,8,FALSE)*'INPUT 12NC'!D117)+'INPUT 12NC'!C117)) -> 0 | J17: =IF(A17="","",IF(VLOOKUP(A17,'INPUT Demand'!$A$5:$BA$1004,9,FALSE)=0,0,(VLOOKUP(A17,'INPUT Demand'!$A$5:$BA$1004,9,FALSE)*'INPUT 12NC'!D117)+'INPUT 12NC'!C117)) -> 2165 | K17: =IF(A17="","",IF(VLOOKUP(A17,'INPUT Demand'!$A$5:$BA$1004,10,FALSE)=0,0,(VLOOKUP(A17,'INPUT Demand'!$A$5:$BA$1004,10,FALSE)*'INPUT 12NC'!D117)+'INPUT 12NC'!C117)) -> 0 | L17: =IF(A17="","",IF(VLOOKUP(A17,'INPUT Demand'!$A$5:$BA$1004,11,FALSE)=0,0,(VLOOKUP(A17,'INPUT Demand'!$A$5:$BA$1004,11,FALSE)*'INPUT 12NC'!D117)+'INPUT 12NC'!C117)) -> 0 | M17: =IF(A17="","",IF(VLOOKUP(A17,'INPUT Demand'!$A$5:$BA$1004,12,FALSE)=0,0,(VLOOKUP(A17,'INPUT Demand'!$A$5:$BA$1004,12,FALSE)*'INPUT 12NC'!D117)+'INPUT 12NC'!C117)) -> 0 | N17: =IF(A17="","",IF(VLOOKUP(A17,'INPUT Demand'!$A$5:$BA$1004,13,FALSE)=0,0,(VLOOKUP(A17,'INPUT Demand'!$A$5:$BA$1004,13,FALSE)*'INPUT 12NC'!D117)+'INPUT 12NC'!C117)) -> 1085 | O17: =IF(A17="","",IF(VLOOKUP(A17,'INPUT Demand'!$A$5:$BA$1004,14,FALSE)=0,0,(VLOOKUP(A17,'INPUT Demand'!$A$5:$BA$1004,14,FALSE)*'INPUT 12NC'!D117)+'INPUT 12NC'!C117)) -> 1085 | P17: =IF(A17="","",IF(VLOOKUP(A17,'INPUT Demand'!$A$5:$BA$1004,15,FALSE)=0,0,(VLOOKUP(A17,'INPUT Demand'!$A$5:$BA$1004,15,FALSE)*'INPUT 12NC'!D117)+'INPUT 12NC'!C117)) -> 0 | Q17: =IF(A17="","",IF(VLOOKUP(A17,'INPUT Demand'!$A$5:$BA$1004,16,FALSE)=0,0,(VLOOKUP(A17,'INPUT Demand'!$A$5:$BA$1004,16,FALSE)*'INPUT 12NC'!D117)+'INPUT 12NC'!C117)) -> 0 | R17: =IF(A17="","",IF(VLOOKUP(A17,'INPUT Demand'!$A$5:$BA$1004,17,FALSE)=0,0,(VLOOKUP(A17,'INPUT Demand'!$A$5:$BA$1004,17,FALSE)*'INPUT 12NC'!D117)+'INPUT 12NC'!C117)) -> 1085 | S17: =IF(A17="","",IF(VLOOKUP(A17,'INPUT Demand'!$A$5:$BA$1004,18,FALSE)=0,0,(VLOOKUP(A17,'INPUT Demand'!$A$5:$BA$1004,18,FALSE)*'INPUT 12NC'!D117)+'INPUT 12NC'!C117)) -> 0 | T17: =IF(A17="","",IF(VLOOKUP(A17,'INPUT Demand'!$A$5:$BA$1004,19,FALSE)=0,0,(VLOOKUP(A17,'INPUT Demand'!$A$5:$BA$1004,19,FALSE)*'INPUT 12NC'!D117)+'INPUT 12NC'!C117)) -> 1085 | U17: =IF(A17="","",IF(VLOOKUP(A17,'INPUT Demand'!$A$5:$BA$1004,20,FALSE)=0,0,(VLOOKUP(A17,'INPUT Demand'!$A$5:$BA$1004,20,FALSE)*'INPUT 12NC'!D117)+'INPUT 12NC'!C117)) -> 0 | V17: =IF(A17="","",IF(VLOOKUP(A17,'INPUT Demand'!$A$5:$BA$1004,21,FALSE)=0,0,(VLOOKUP(A17,'INPUT Demand'!$A$5:$BA$1004,21,FALSE)*'INPUT 12NC'!D117)+'INPUT 12NC'!C117)) -> 0 | W17: =IF(A17="","",IF(VLOOKUP(A17,'INPUT Demand'!$A$5:$BA$1004,22,FALSE)=0,0,(VLOOKUP(A17,'INPUT Demand'!$A$5:$BA$1004,22,FALSE)*'INPUT 12NC'!D117)+'INPUT 12NC'!C117)) -> 1085 | X17: =IF(A17="","",IF(VLOOKUP(A17,'INPUT Demand'!$A$5:$BA$1004,23,FALSE)=0,0,(VLOOKUP(A17,'INPUT Demand'!$A$5:$BA$1004,23,FALSE)*'INPUT 12NC'!D117)+'INPUT 12NC'!C117)) -> 0 | Y17: =IF(A17="","",IF(VLOOKUP(A17,'INPUT Demand'!$A$5:$BA$1004,24,FALSE)=0,0,(VLOOKUP(A17,'INPUT Demand'!$A$5:$BA$1004,24,FALSE)*'INPUT 12NC'!D117)+'INPUT 12NC'!C117)) -> 1085 | Z17: =IF(A17="","",IF(VLOOKUP(A17,'INPUT Demand'!$A$5:$BA$1004,25,FALSE)=0,0,(VLOOKUP(A17,'INPUT Demand'!$A$5:$BA$1004,25,FALSE)*'INPUT 12NC'!D117)+'INPUT 12NC'!C117)) -> 0 | AA17: =IF(A17="","",IF(VLOOKUP(A17,'INPUT Demand'!$A$5:$BA$1004,26,FALSE)=0,0,(VLOOKUP(A17,'INPUT Demand'!$A$5:$BA$1004,26,FALSE)*'INPUT 12NC'!D117)+'INPUT 12NC'!C117)) -> 1085 | AB17: =IF(A17="","",IF(VLOOKUP(A17,'INPUT Demand'!$A$5:$BA$1004,27,FALSE)=0,0,(VLOOKUP(A17,'INPUT Demand'!$A$5:$BA$1004,27,FALSE)*'INPUT 12NC'!D117)+'INPUT 12NC'!C117)) -> 0 | AC17: =IF(A17="","",IF(VLOOKUP(A17,'INPUT Demand'!$A$5:$BA$1004,28,FALSE)=0,0,(VLOOKUP(A17,'INPUT Demand'!$A$5:$BA$1004,28,FALSE)*'INPUT 12NC'!D117)+'INPUT 12NC'!C117)) -> 1085 | AD17: =IF(A17="","",IF(VLOOKUP(A17,'INPUT Demand'!$A$5:$BA$1004,29,FALSE)=0,0,(VLOOKUP(A17,'INPUT Demand'!$A$5:$BA$1004,29,FALSE)*'INPUT 12NC'!D117)+'INPUT 12NC'!C117)) -> 0 | AE17: =IF(A17="","",IF(VLOOKUP(A17,'INPUT Demand'!$A$5:$BA$1004,30,FALSE)=0,0,(VLOOKUP(A17,'INPUT Demand'!$A$5:$BA$1004,30,FALSE)*'INPUT 12NC'!D117)+'INPUT 12NC'!C117)) -> 0 | AF17: =IF(A17="","",IF(VLOOKUP(A17,'INPUT Demand'!$A$5:$BA$1004,31,FALSE)=0,0,(VLOOKUP(A17,'INPUT Demand'!$A$5:$BA$1004,31,FALSE)*'INPUT 12NC'!D117)+'INPUT 12NC'!C117)) -> 1085 | AG17: =IF(A17="","",IF(VLOOKUP(A17,'INPUT Demand'!$A$5:$BA$1004,32,FALSE)=0,0,(VLOOKUP(A17,'INPUT Demand'!$A$5:$BA$1004,32,FALSE)*'INPUT 12NC'!D117)+'INPUT 12NC'!C117)) -> 0 | AH17: =IF(A17="","",IF(VLOOKUP(A17,'INPUT Demand'!$A$5:$BA$1004,33,FALSE)=0,0,(VLOOKUP(A17,'INPUT Demand'!$A$5:$BA$1004,33,FALSE)*'INPUT 12NC'!D117)+'INPUT 12NC'!C117)) -> 0 | AI17: =IF(A17="","",IF(VLOOKUP(A17,'INPUT Demand'!$A$5:$BA$1004,34,FALSE)=0,0,(VLOOKUP(A17,'INPUT Demand'!$A$5:$BA$1004,34,FALSE)*'INPUT 12NC'!D117)+'INPUT 12NC'!C117)) -> 0 | AJ17: =IF(A17="","",IF(VLOOKUP(A17,'INPUT Demand'!$A$5:$BA$1004,35,FALSE)=0,0,(VLOOKUP(A17,'INPUT Demand'!$A$5:$BA$1004,35,FALSE)*'INPUT 12NC'!D117)+'INPUT 12NC'!C117)) -> 0 | AK17: =IF(A17="","",IF(VLOOKUP(A17,'INPUT Demand'!$A$5:$BA$1004,36,FALSE)=0,0,(VLOOKUP(A17,'INPUT Demand'!$A$5:$BA$1004,36,FALSE)*'INPUT 12NC'!D117)+'INPUT 12NC'!C117)) -> 0 | AL17: =IF(A17="","",IF(VLOOKUP(A17,'INPUT Demand'!$A$5:$BA$1004,37,FALSE)=0,0,(VLOOKUP(A17,'INPUT Demand'!$A$5:$BA$1004,37,FALSE)*'INPUT 12NC'!D117)+'INPUT 12NC'!C117)) -> 0 | AM17: =IF(A17="","",IF(VLOOKUP(A17,'INPUT Demand'!$A$5:$BA$1004,38,FALSE)=0,0,(VLOOKUP(A17,'INPUT Demand'!$A$5:$BA$1004,38,FALSE)*'INPUT 12NC'!D117)+'INPUT 12NC'!C117)) -> 1085 | AN17: =IF(A17="","",IF(VLOOKUP(A17,'INPUT Demand'!$A$5:$BA$1004,39,FALSE)=0,0,(VLOOKUP(A17,'INPUT Demand'!$A$5:$BA$1004,39,FALSE)*'INPUT 12NC'!D117)+'INPUT 12NC'!C117)) -> 1085 | AO17: =IF(A17="","",IF(VLOOKUP(A17,'INPUT Demand'!$A$5:$BA$1004,40,FALSE)=0,0,(VLOOKUP(A17,'INPUT Demand'!$A$5:$BA$1004,40,FALSE)*'INPUT 12NC'!D117)+'INPUT 12NC'!C117)) -> 1085 | AP17: =IF(A17="","",IF(VLOOKUP(A17,'INPUT Demand'!$A$5:$BA$1004,41,FALSE)=0,0,(VLOOKUP(A17,'INPUT Demand'!$A$5:$BA$1004,41,FALSE)*'INPUT 12NC'!D117)+'INPUT 12NC'!C117)) -> 0 | AQ17: =IF(A17="","",IF(VLOOKUP(A17,'INPUT Demand'!$A$5:$BA$1004,42,FALSE)=0,0,(VLOOKUP(A17,'INPUT Demand'!$A$5:$BA$1004,42,FALSE)*'INPUT 12NC'!D117)+'INPUT 12NC'!C117)) -> 1085 | AR17: =IF(A17="","",IF(VLOOKUP(A17,'INPUT Demand'!$A$5:$BA$1004,43,FALSE)=0,0,(VLOOKUP(A17,'INPUT Demand'!$A$5:$BA$1004,43,FALSE)*'INPUT 12NC'!D117)+'INPUT 12NC'!C117)) -> 0 | AS17: =IF(A17="","",IF(VLOOKUP(A17,'INPUT Demand'!$A$5:$BA$1004,44,FALSE)=0,0,(VLOOKUP(A17,'INPUT Demand'!$A$5:$BA$1004,44,FALSE)*'INPUT 12NC'!D117)+'INPUT 12NC'!C117)) -> 0 | AT17: =IF(A17="","",IF(VLOOKUP(A17,'INPUT Demand'!$A$5:$BA$1004,45,FALSE)=0,0,(VLOOKUP(A17,'INPUT Demand'!$A$5:$BA$1004,45,FALSE)*'INPUT 12NC'!D117)+'INPUT 12NC'!C117)) -> 0 | AU17: =IF(A17="","",IF(VLOOKUP(A17,'INPUT Demand'!$A$5:$BA$1004,46,FALSE)=0,0,(VLOOKUP(A17,'INPUT Demand'!$A$5:$BA$1004,46,FALSE)*'INPUT 12NC'!D117)+'INPUT 12NC'!C117)) -> 0 | AV17: =IF(A17="","",IF(VLOOKUP(A17,'INPUT Demand'!$A$5:$BA$1004,47,FALSE)=0,0,(VLOOKUP(A17,'INPUT Demand'!$A$5:$BA$1004,47,FALSE)*'INPUT 12NC'!D117)+'INPUT 12NC'!C117)) -> 1085 | AW17: =IF(A17="","",IF(VLOOKUP(A17,'INPUT Demand'!$A$5:$BA$1004,48,FALSE)=0,0,(VLOOKUP(A17,'INPUT Demand'!$A$5:$BA$1004,48,FALSE)*'INPUT 12NC'!D117)+'INPUT 12NC'!C117)) -> 0 | AX17: =IF(A17="","",IF(VLOOKUP(A17,'INPUT Demand'!$A$5:$BA$1004,49,FALSE)=0,0,(VLOOKUP(A17,'INPUT Demand'!$A$5:$BA$1004,49,FALSE)*'INPUT 12NC'!D117)+'INPUT 12NC'!C117)) -> 0 | AY17: =IF(A17="","",IF(VLOOKUP(A17,'INPUT Demand'!$A$5:$BA$1004,50,FALSE)=0,0,(VLOOKUP(A17,'INPUT Demand'!$A$5:$BA$1004,50,FALSE)*'INPUT 12NC'!D117)+'INPUT 12NC'!C117)) -> 0 | AZ17: =IF(A17="","",IF(VLOOKUP(A17,'INPUT Demand'!$A$5:$BA$1004,51,FALSE)=0,0,(VLOOKUP(A17,'INPUT Demand'!$A$5:$BA$1004,51,FALSE)*'INPUT 12NC'!D117)+'INPUT 12NC'!C117)) -> 0 | BA17: =IF(A17="","",IF(VLOOKUP(A17,'INPUT Demand'!$A$5:$BA$1004,52,FALSE)=0,0,(VLOOKUP(A17,'INPUT Demand'!$A$5:$BA$1004,52,FALSE)*'INPUT 12NC'!D117)+'INPUT 12NC'!C117)) -> 0 | BB17: =IF(A17="","",IF(VLOOKUP(A17,'INPUT Demand'!$A$5:$BA$1004,53,FALSE)=0,0,(VLOOKUP(A17,'INPUT Demand'!$A$5:$BA$1004,53,FALSE)*'INPUT 12NC'!D117)+'INPUT 12NC'!C117)) -> 0 | BC17: =IF(A17="","",SUM(D17:BB17)) -> 18440 | BD17: =IF(A17="","",IF(C17=1,BC17,0)) -> 18440
A18: 402248169723 | B18: 111 | C18: 1 | D18: =IF(A18="","",IF(VLOOKUP(A18,'INPUT Demand'!$A$5:$BA$1004,3,FALSE)=0,0,(VLOOKUP(A18,'INPUT Demand'!$A$5:$BA$1004,3,FALSE)*'INPUT 12NC'!D112)+'INPUT 12NC'!C112)) -> 289 | E18: =IF(A18="","",IF(VLOOKUP(A18,'INPUT Demand'!$A$5:$BA$1004,4,FALSE)=0,0,(VLOOKUP(A18,'INPUT Demand'!$A$5:$BA$1004,4,FALSE)*'INPUT 12NC'!D112)+'INPUT 12NC'!C112)) -> 0 | F18: =IF(A18="","",IF(VLOOKUP(A18,'INPUT Demand'!$A$5:$BA$1004,5,FALSE)=0,0,(VLOOKUP(A18,'INPUT Demand'!$A$5:$BA$1004,5,FALSE)*'INPUT 12NC'!D112)+'INPUT 12NC'!C112)) -> 0 | G18: =IF(A18="","",IF(VLOOKUP(A18,'INPUT Demand'!$A$5:$BA$1004,6,FALSE)=0,0,(VLOOKUP(A18,'INPUT Demand'!$A$5:$BA$1004,6,FALSE)*'INPUT 12NC'!D112)+'INPUT 12NC'!C112)) -> 550 | H18: =IF(A18="","",IF(VLOOKUP(A18,'INPUT Demand'!$A$5:$BA$1004,7,FALSE)=0,0,(VLOOKUP(A18,'INPUT Demand'!$A$5:$BA$1004,7,FALSE)*'INPUT 12NC'!D112)+'INPUT 12NC'!C112)) -> 0 | I18: =IF(A18="","",IF(VLOOKUP(A18,'INPUT Demand'!$A$5:$BA$1004,8,FALSE)=0,0,(VLOOKUP(A18,'INPUT Demand'!$A$5:$BA$1004,8,FALSE)*'INPUT 12NC'!D112)+'INPUT 12NC'!C112)) -> 0 | J18: =IF(A18="","",IF(VLOOKUP(A18,'INPUT Demand'!$A$5:$BA$1004,9,FALSE)=0,0,(VLOOKUP(A18,'INPUT Demand'!$A$5:$BA$1004,9,FALSE)*'INPUT 12NC'!D112)+'INPUT 12NC'!C112)) -> 280 | K18: =IF(A18="","",IF(VLOOKUP(A18,'INPUT Demand'!$A$5:$BA$1004,10,FALSE)=0,0,(VLOOKUP(A18,'INPUT Demand'!$A$5:$BA$1004,10,FALSE)*'INPUT 12NC'!D112)+'INPUT 12NC'!C112)) -> 0 | L18: =IF(A18="","",IF(VLOOKUP(A18,'INPUT Demand'!$A$5:$BA$1004,11,FALSE)=0,0,(VLOOKUP(A18,'INPUT Demand'!$A$5:$BA$1004,11,FALSE)*'INPUT 12NC'!D112)+'INPUT 12NC'!C112)) -> 0 | M18: =IF(A18="","",IF(VLOOKUP(A18,'INPUT Demand'!$A$5:$BA$1004,12,FALSE)=0,0,(VLOOKUP(A18,'INPUT Demand'!$A$5:$BA$1004,12,FALSE)*'INPUT 12NC'!D112)+'INPUT 12NC'!C112)) -> 280 | N18: =IF(A18="","",IF(VLOOKUP(A18,'INPUT Demand'!$A$5:$BA$1004,13,FALSE)=0,0,(VLOOKUP(A18,'INPUT Demand'!$A$5:$BA$1004,13,FALSE)*'INPUT 12NC'!D112)+'INPUT 12NC'!C112)) -> 280 | O18: =IF(A18="","",IF(VLOOKUP(A18,'INPUT Demand'!$A$5:$BA$1004,14,FALSE)=0,0,(VLOOKUP(A18,'INPUT Demand'!$A$5:$BA$1004,14,FALSE)*'INPUT 12NC'!D112)+'INPUT 12NC'!C112)) -> 0 | P18: =IF(A18="","",IF(VLOOKUP(A18,'INPUT Demand'!$A$5:$BA$1004,15,FALSE)=0,0,(VLOOKUP(A18,'INPUT Demand'!$A$5:$BA$1004,15,FALSE)*'INPUT 12NC'!D112)+'INPUT 12NC'!C112)) -> 280 | Q18: =IF(A18="","",IF(VLOOKUP(A18,'INPUT Demand'!$A$5:$BA$1004,16,FALSE)=0,0,(VLOOKUP(A18,'INPUT Demand'!$A$5:$BA$1004,16,FALSE)*'INPUT 12NC'!D112)+'INPUT 12NC'!C112)) -> 0 | R18: =IF(A18="","",IF(VLOOKUP(A18,'INPUT Demand'!$A$5:$BA$1004,17,FALSE)=0,0,(VLOOKUP(A18,'INPUT Demand'!$A$5:$BA$1004,17,FALSE)*'INPUT 12NC'!D112)+'INPUT 12NC'!C112)) -> 280 | S18: =IF(A18="","",IF(VLOOKUP(A18,'INPUT Demand'!$A$5:$BA$1004,18,FALSE)=0,0,(VLOOKUP(A18,'INPUT Demand'!$A$5:$BA$1004,18,FALSE)*'INPUT 12NC'!D112)+'INPUT 12NC'!C112)) -> 280 | T18: =IF(A18="","",IF(VLOOKUP(A18,'INPUT Demand'!$A$5:$BA$1004,19,FALSE)=0,0,(VLOOKUP(A18,'INPUT Demand'!$A$5:$BA$1004,19,FALSE)*'INPUT 12NC'!D112)+'INPUT 12NC'!C112)) -> 280 | U18: =IF(A18="","",IF(VLOOKUP(A18,'INPUT Demand'!$A$5:$BA$1004,20,FALSE)=0,0,(VLOOKUP(A18,'INPUT Demand'!$A$5:$BA$1004,20,FALSE)*'INPUT 12NC'!D112)+'INPUT 12NC'!C112)) -> 280 | V18: =IF(A18="","",IF(VLOOKUP(A18,'INPUT Demand'!$A$5:$BA$1004,21,FALSE)=0,0,(VLOOKUP(A18,'INPUT Demand'!$A$5:$BA$1004,21,FALSE)*'INPUT 12NC'!D112)+'INPUT 12NC'!C112)) -> 280 | W18: =IF(A18="","",IF(VLOOKUP(A18,'INPUT Demand'!$A$5:$BA$1004,22,FALSE)=0,0,(VLOOKUP(A18,'INPUT Demand'!$A$5:$BA$1004,22,FALSE)*'INPUT 12NC'!D112)+'INPUT 12NC'!C112)) -> 280 | X18: =IF(A18="","",IF(VLOOKUP(A18,'INPUT Demand'!$A$5:$BA$1004,23,FALSE)=0,0,(VLOOKUP(A18,'INPUT Demand'!$A$5:$BA$1004,23,FALSE)*'INPUT 12NC'!D112)+'INPUT 12NC'!C112)) -> 280 | Y18: =IF(A18="","",IF(VLOOKUP(A18,'INPUT Demand'!$A$5:$BA$1004,24,FALSE)=0,0,(VLOOKUP(A18,'INPUT Demand'!$A$5:$BA$1004,24,FALSE)*'INPUT 12NC'!D112)+'INPUT 12NC'!C112)) -> 0 | Z18: =IF(A18="","",IF(VLOOKUP(A18,'INPUT Demand'!$A$5:$BA$1004,25,FALSE)=0,0,(VLOOKUP(A18,'INPUT Demand'!$A$5:$BA$1004,25,FALSE)*'INPUT 12NC'!D112)+'INPUT 12NC'!C112)) -> 280 | AA18: =IF(A18="","",IF(VLOOKUP(A18,'INPUT Demand'!$A$5:$BA$1004,26,FALSE)=0,0,(VLOOKUP(A18,'INPUT Demand'!$A$5:$BA$1004,26,FALSE)*'INPUT 12NC'!D112)+'INPUT 12NC'!C112)) -> 820 | AB18: =IF(A18="","",IF(VLOOKUP(A18,'INPUT Demand'!$A$5:$BA$1004,27,FALSE)=0,0,(VLOOKUP(A18,'INPUT Demand'!$A$5:$BA$1004,27,FALSE)*'INPUT 12NC'!D112)+'INPUT 12NC'!C112)) -> 0 | AC18: =IF(A18="","",IF(VLOOKUP(A18,'INPUT Demand'!$A$5:$BA$1004,28,FALSE)=0,0,(VLOOKUP(A18,'INPUT Demand'!$A$5:$BA$1004,28,FALSE)*'INPUT 12NC'!D112)+'INPUT 12NC'!C112)) -> 280 | AD18: =IF(A18="","",IF(VLOOKUP(A18,'INPUT Demand'!$A$5:$BA$1004,29,FALSE)=0,0,(VLOOKUP(A18,'INPUT Demand'!$A$5:$BA$1004,29,FALSE)*'INPUT 12NC'!D112)+'INPUT 12NC'!C112)) -> 280 | AE18: =IF(A18="","",IF(VLOOKUP(A18,'INPUT Demand'!$A$5:$BA$1004,30,FALSE)=0,0,(VLOOKUP(A18,'INPUT Demand'!$A$5:$BA$1004,30,FALSE)*'INPUT 12NC'!D112)+'INPUT 12NC'!C112)) -> 0 | AF18: =IF(A18="","",IF(VLOOKUP(A18,'INPUT Demand'!$A$5:$BA$1004,31,FALSE)=0,0,(VLOOKUP(A18,'INPUT Demand'!$A$5:$BA$1004,31,FALSE)*'INPUT 12NC'!D112)+'INPUT 12NC'!C112)) -> 0 | AG18: =IF(A18="","",IF(VLOOKUP(A18,'INPUT Demand'!$A$5:$BA$1004,32,FALSE)=0,0,(VLOOKUP(A18,'INPUT Demand'!$A$5:$BA$1004,32,FALSE)*'INPUT 12NC'!D112)+'INPUT 12NC'!C112)) -> 0 | AH18: =IF(A18="","",IF(VLOOKUP(A18,'INPUT Demand'!$A$5:$BA$1004,33,FALSE)=0,0,(VLOOKUP(A18,'INPUT Demand'!$A$5:$BA$1004,33,FALSE)*'INPUT 12NC'!D112)+'INPUT 12NC'!C112)) -> 280 | AI18: =IF(A18="","",IF(VLOOKUP(A18,'INPUT Demand'!$A$5:$BA$1004,34,FALSE)=0,0,(VLOOKUP(A18,'INPUT Demand'!$A$5:$BA$1004,34,FALSE)*'INPUT 12NC'!D112)+'INPUT 12NC'!C112)) -> 0 | AJ18: =IF(A18="","",IF(VLOOKUP(A18,'INPUT Demand'!$A$5:$BA$1004,35,FALSE)=0,0,(VLOOKUP(A18,'INPUT Demand'!$A$5:$BA$1004,35,FALSE)*'INPUT 12NC'!D112)+'INPUT 12NC'!C112)) -> 280 | AK18: =IF(A18="","",IF(VLOOKUP(A18,'INPUT Demand'!$A$5:$BA$1004,36,FALSE)=0,0,(VLOOKUP(A18,'INPUT Demand'!$A$5:$BA$1004,36,FALSE)*'INPUT 12NC'!D112)+'INPUT 12NC'!C112)) -> 280 | AL18: =IF(A18="","",IF(VLOOKUP(A18,'INPUT Demand'!$A$5:$BA$1004,37,FALSE)=0,0,(VLOOKUP(A18,'INPUT Demand'!$A$5:$BA$1004,37,FALSE)*'INPUT 12NC'!D112)+'INPUT 12NC'!C112)) -> 280 | AM18: =IF(A18="","",IF(VLOOKUP(A18,'INPUT Demand'!$A$5:$BA$1004,38,FALSE)=0,0,(VLOOKUP(A18,'INPUT Demand'!$A$5:$BA$1004,38,FALSE)*'INPUT 12NC'!D112)+'INPUT 12NC'!C112)) -> 280 | AN18: =IF(A18="","",IF(VLOOKUP(A18,'INPUT Demand'!$A$5:$BA$1004,39,FALSE)=0,0,(VLOOKUP(A18,'INPUT Demand'!$A$5:$BA$1004,39,FALSE)*'INPUT 12NC'!D112)+'INPUT 12NC'!C112)) -> 0 | AO18: =IF(A18="","",IF(VLOOKUP(A18,'INPUT Demand'!$A$5:$BA$1004,40,FALSE)=0,0,(VLOOKUP(A18,'INPUT Demand'!$A$5:$BA$1004,40,FALSE)*'INPUT 12NC'!D112)+'INPUT 12NC'!C112)) -> 550 | AP18: =IF(A18="","",IF(VLOOKUP(A18,'INPUT Demand'!$A$5:$BA$1004,41,FALSE)=0,0,(VLOOKUP(A18,'INPUT Demand'!$A$5:$BA$1004,41,FALSE)*'INPUT 12NC'!D112)+'INPUT 12NC'!C112)) -> 0 | AQ18: =IF(A18="","",IF(VLOOKUP(A18,'INPUT Demand'!$A$5:$BA$1004,42,FALSE)=0,0,(VLOOKUP(A18,'INPUT Demand'!$A$5:$BA$1004,42,FALSE)*'INPUT 12NC'!D112)+'INPUT 12NC'!C112)) -> 280 | AR18: =IF(A18="","",IF(VLOOKUP(A18,'INPUT Demand'!$A$5:$BA$1004,43,FALSE)=0,0,(VLOOKUP(A18,'INPUT Demand'!$A$5:$BA$1004,43,FALSE)*'INPUT 12NC'!D112)+'INPUT 12NC'!C112)) -> 0 | AS18: =IF(A18="","",IF(VLOOKUP(A18,'INPUT Demand'!$A$5:$BA$1004,44,FALSE)=0,0,(VLOOKUP(A18,'INPUT Demand'!$A$5:$BA$1004,44,FALSE)*'INPUT 12NC'!D112)+'INPUT 12NC'!C112)) -> 0 | AT18: =IF(A18="","",IF(VLOOKUP(A18,'INPUT Demand'!$A$5:$BA$1004,45,FALSE)=0,0,(VLOOKUP(A18,'INPUT Demand'!$A$5:$BA$1004,45,FALSE)*'INPUT 12NC'!D112)+'INPUT 12NC'!C112)) -> 280 | AU18: =IF(A18="","",IF(VLOOKUP(A18,'INPUT Demand'!$A$5:$BA$1004,46,FALSE)=0,0,(VLOOKUP(A18,'INPUT Demand'!$A$5:$BA$1004,46,FALSE)*'INPUT 12NC'!D112)+'INPUT 12NC'!C112)) -> 280 | AV18: =IF(A18="","",IF(VLOOKUP(A18,'INPUT Demand'!$A$5:$BA$1004,47,FALSE)=0,0,(VLOOKUP(A18,'INPUT Demand'!$A$5:$BA$1004,47,FALSE)*'INPUT 12NC'!D112)+'INPUT 12NC'!C112)) -> 280 | AW18: =IF(A18="","",IF(VLOOKUP(A18,'INPUT Demand'!$A$5:$BA$1004,48,FALSE)=0,0,(VLOOKUP(A18,'INPUT Demand'!$A$5:$BA$1004,48,FALSE)*'INPUT 12NC'!D112)+'INPUT 12NC'!C112)) -> 0 | AX18: =IF(A18="","",IF(VLOOKUP(A18,'INPUT Demand'!$A$5:$BA$1004,49,FALSE)=0,0,(VLOOKUP(A18,'INPUT Demand'!$A$5:$BA$1004,49,FALSE)*'INPUT 12NC'!D112)+'INPUT 12NC'!C112)) -> 550 | AY18: =IF(A18="","",IF(VLOOKUP(A18,'INPUT Demand'!$A$5:$BA$1004,50,FALSE)=0,0,(VLOOKUP(A18,'INPUT Demand'!$A$5:$BA$1004,50,FALSE)*'INPUT 12NC'!D112)+'INPUT 12NC'!C112)) -> 0 | AZ18: =IF(A18="","",IF(VLOOKUP(A18,'INPUT Demand'!$A$5:$BA$1004,51,FALSE)=0,0,(VLOOKUP(A18,'INPUT Demand'!$A$5:$BA$1004,51,FALSE)*'INPUT 12NC'!D112)+'INPUT 12NC'!C112)) -> 280 | BA18: =IF(A18="","",IF(VLOOKUP(A18,'INPUT Demand'!$A$5:$BA$1004,52,FALSE)=0,0,(VLOOKUP(A18,'INPUT Demand'!$A$5:$BA$1004,52,FALSE)*'INPUT 12NC'!D112)+'INPUT 12NC'!C112)) -> 280 | BB18: =IF(A18="","",IF(VLOOKUP(A18,'INPUT Demand'!$A$5:$BA$1004,53,FALSE)=0,0,(VLOOKUP(A18,'INPUT Demand'!$A$5:$BA$1004,53,FALSE)*'INPUT 12NC'!D112)+'INPUT 12NC'!C112)) -> 0 | BC18: =IF(A18="","",SUM(D18:BB18)) -> 9759 | BD18: =IF(A18="","",IF(C18=1,BC18,0)) -> 9759
A19: 402263581433 | B19: 67 | C19: 1 | D19: =IF(A19="","",IF(VLOOKUP(A19,'INPUT Demand'!$A$5:$BA$1004,3,FALSE)=0,0,(VLOOKUP(A19,'INPUT Demand'!$A$5:$BA$1004,3,FALSE)*'INPUT 12NC'!D68)+'INPUT 12NC'!C68)) -> 0 | E19: =IF(A19="","",IF(VLOOKUP(A19,'INPUT Demand'!$A$5:$BA$1004,4,FALSE)=0,0,(VLOOKUP(A19,'INPUT Demand'!$A$5:$BA$1004,4,FALSE)*'INPUT 12NC'!D68)+'INPUT 12NC'!C68)) -> 0 | F19: =IF(A19="","",IF(VLOOKUP(A19,'INPUT Demand'!$A$5:$BA$1004,5,FALSE)=0,0,(VLOOKUP(A19,'INPUT Demand'!$A$5:$BA$1004,5,FALSE)*'INPUT 12NC'!D68)+'INPUT 12NC'!C68)) -> 0 | G19: =IF(A19="","",IF(VLOOKUP(A19,'INPUT Demand'!$A$5:$BA$1004,6,FALSE)=0,0,(VLOOKUP(A19,'INPUT Demand'!$A$5:$BA$1004,6,FALSE)*'INPUT 12NC'!D68)+'INPUT 12NC'!C68)) -> 0 | H19: =IF(A19="","",IF(VLOOKUP(A19,'INPUT Demand'!$A$5:$BA$1004,7,FALSE)=0,0,(VLOOKUP(A19,'INPUT Demand'!$A$5:$BA$1004,7,FALSE)*'INPUT 12NC'!D68)+'INPUT 12NC'!C68)) -> 490 | I19: =IF(A19="","",IF(VLOOKUP(A19,'INPUT Demand'!$A$5:$BA$1004,8,FALSE)=0,0,(VLOOKUP(A19,'INPUT Demand'!$A$5:$BA$1004,8,FALSE)*'INPUT 12NC'!D68)+'INPUT 12NC'!C68)) -> 250 | J19: =IF(A19="","",IF(VLOOKUP(A19,'INPUT Demand'!$A$5:$BA$1004,9,FALSE)=0,0,(VLOOKUP(A19,'INPUT Demand'!$A$5:$BA$1004,9,FALSE)*'INPUT 12NC'!D68)+'INPUT 12NC'!C68)) -> 0 | K19: =IF(A19="","",IF(VLOOKUP(A19,'INPUT Demand'!$A$5:$BA$1004,10,FALSE)=0,0,(VLOOKUP(A19,'INPUT Demand'!$A$5:$BA$1004,10,FALSE)*'INPUT 12NC'!D68)+'INPUT 12NC'!C68)) -> 0 | L19: =IF(A19="","",IF(VLOOKUP(A19,'INPUT Demand'!$A$5:$BA$1004,11,FALSE)=0,0,(VLOOKUP(A19,'INPUT Demand'!$A$5:$BA$1004,11,FALSE)*'INPUT 12NC'!D68)+'INPUT 12NC'!C68)) -> 0 | M19: =IF(A19="","",IF(VLOOKUP(A19,'INPUT Demand'!$A$5:$BA$1004,12,FALSE)=0,0,(VLOOKUP(A19,'INPUT Demand'!$A$5:$BA$1004,12,FALSE)*'INPUT 12NC'!D68)+'INPUT 12NC'!C68)) -> 0 | N19: =IF(A19="","",IF(VLOOKUP(A19,'INPUT Demand'!$A$5:$BA$1004,13,FALSE)=0,0,(VLOOKUP(A19,'INPUT Demand'!$A$5:$BA$1004,13,FALSE)*'INPUT 12NC'!D68)+'INPUT 12NC'!C68)) -> 0 | O19: =IF(A19="","",IF(VLOOKUP(A19,'INPUT Demand'!$A$5:$BA$1004,14,FALSE)=0,0,(VLOOKUP(A19,'INPUT Demand'!$A$5:$BA$1004,14,FALSE)*'INPUT 12NC'!D68)+'INPUT 12NC'!C68)) -> 610 | P19: =IF(A19="","",IF(VLOOKUP(A19,'INPUT Demand'!$A$5:$BA$1004,15,FALSE)=0,0,(VLOOKUP(A19,'INPUT Demand'!$A$5:$BA$1004,15,FALSE)*'INPUT 12NC'!D68)+'INPUT 12NC'!C68)) -> 550 | Q19: =IF(A19="","",IF(VLOOKUP(A19,'INPUT Demand'!$A$5:$BA$1004,16,FALSE)=0,0,(VLOOKUP(A19,'INPUT Demand'!$A$5:$BA$1004,16,FALSE)*'INPUT 12NC'!D68)+'INPUT 12NC'!C68)) -> 0 | R19: =IF(A19="","",IF(VLOOKUP(A19,'INPUT Demand'!$A$5:$BA$1004,17,FALSE)=0,0,(VLOOKUP(A19,'INPUT Demand'!$A$5:$BA$1004,17,FALSE)*'INPUT 12NC'!D68)+'INPUT 12NC'!C68)) -> 370 | S19: =IF(A19="","",IF(VLOOKUP(A19,'INPUT Demand'!$A$5:$BA$1004,18,FALSE)=0,0,(VLOOKUP(A19,'INPUT Demand'!$A$5:$BA$1004,18,FALSE)*'INPUT 12NC'!D68)+'INPUT 12NC'!C68)) -> 0 | T19: =IF(A19="","",IF(VLOOKUP(A19,'INPUT Demand'!$A$5:$BA$1004,19,FALSE)=0,0,(VLOOKUP(A19,'INPUT Demand'!$A$5:$BA$1004,19,FALSE)*'INPUT 12NC'!D68)+'INPUT 12NC'!C68)) -> 670 | U19: =IF(A19="","",IF(VLOOKUP(A19,'INPUT Demand'!$A$5:$BA$1004,20,FALSE)=0,0,(VLOOKUP(A19,'INPUT Demand'!$A$5:$BA$1004,20,FALSE)*'INPUT 12NC'!D68)+'INPUT 12NC'!C68)) -> 0 | V19: =IF(A19="","",IF(VLOOKUP(A19,'INPUT Demand'!$A$5:$BA$1004,21,FALSE)=0,0,(VLOOKUP(A19,'INPUT Demand'!$A$5:$BA$1004,21,FALSE)*'INPUT 12NC'!D68)+'INPUT 12NC'!C68)) -> 0 | W19: =IF(A19="","",IF(VLOOKUP(A19,'INPUT Demand'!$A$5:$BA$1004,22,FALSE)=0,0,(VLOOKUP(A19,'INPUT Demand'!$A$5:$BA$1004,22,FALSE)*'INPUT 12NC'!D68)+'INPUT 12NC'!C68)) -> 0 | X19: =IF(A19="","",IF(VLOOKUP(A19,'INPUT Demand'!$A$5:$BA$1004,23,FALSE)=0,0,(VLOOKUP(A19,'INPUT Demand'!$A$5:$BA$1004,23,FALSE)*'INPUT 12NC'!D68)+'INPUT 12NC'!C68)) -> 610 | Y19: =IF(A19="","",IF(VLOOKUP(A19,'INPUT Demand'!$A$5:$BA$1004,24,FALSE)=0,0,(VLOOKUP(A19,'INPUT Demand'!$A$5:$BA$1004,24,FALSE)*'INPUT 12NC'!D68)+'INPUT 12NC'!C68)) -> 0 | Z19: =IF(A19="","",IF(VLOOKUP(A19,'INPUT Demand'!$A$5:$BA$1004,25,FALSE)=0,0,(VLOOKUP(A19,'INPUT Demand'!$A$5:$BA$1004,25,FALSE)*'INPUT 12NC'!D68)+'INPUT 12NC'!C68)) -> 0 | AA19: =IF(A19="","",IF(VLOOKUP(A19,'INPUT Demand'!$A$5:$BA$1004,26,FALSE)=0,0,(VLOOKUP(A19,'INPUT Demand'!$A$5:$BA$1004,26,FALSE)*'INPUT 12NC'!D68)+'INPUT 12NC'!C68)) -> 0 | AB19: =IF(A19="","",IF(VLOOKUP(A19,'INPUT Demand'!$A$5:$BA$1004,27,FALSE)=0,0,(VLOOKUP(A19,'INPUT Demand'!$A$5:$BA$1004,27,FALSE)*'INPUT 12NC'!D68)+'INPUT 12NC'!C68)) -> 610 | AC19: =IF(A19="","",IF(VLOOKUP(A19,'INPUT Demand'!$A$5:$BA$1004,28,FALSE)=0,0,(VLOOKUP(A19,'INPUT Demand'!$A$5:$BA$1004,28,FALSE)*'INPUT 12NC'!D68)+'INPUT 12NC'!C68)) -> 0 | AD19: =IF(A19="","",IF(VLOOKUP(A19,'INPUT Demand'!$A$5:$BA$1004,29,FALSE)=0,0,(VLOOKUP(A19,'INPUT Demand'!$A$5:$BA$1004,29,FALSE)*'INPUT 12NC'!D68)+'INPUT 12NC'!C68)) -> 0 | AE19: =IF(A19="","",IF(VLOOKUP(A19,'INPUT Demand'!$A$5:$BA$1004,30,FALSE)=0,0,(VLOOKUP(A19,'INPUT Demand'!$A$5:$BA$1004,30,FALSE)*'INPUT 12NC'!D68)+'INPUT 12NC'!C68)) -> 610 | AF19: =IF(A19="","",IF(VLOOKUP(A19,'INPUT Demand'!$A$5:$BA$1004,31,FALSE)=0,0,(VLOOKUP(A19,'INPUT Demand'!$A$5:$BA$1004,31,FALSE)*'INPUT 12NC'!D68)+'INPUT 12NC'!C68)) -> 0 | AG19: =IF(A19="","",IF(VLOOKUP(A19,'INPUT Demand'!$A$5:$BA$1004,32,FALSE)=0,0,(VLOOKUP(A19,'INPUT Demand'!$A$5:$BA$1004,32,FALSE)*'INPUT 12NC'!D68)+'INPUT 12NC'!C68)) -> 0 | AH19: =IF(A19="","",IF(VLOOKUP(A19,'INPUT Demand'!$A$5:$BA$1004,33,FALSE)=0,0,(VLOOKUP(A19,'INPUT Demand'!$A$5:$BA$1004,33,FALSE)*'INPUT 12NC'!D68)+'INPUT 12NC'!C68)) -> 610 | AI19: =IF(A19="","",IF(VLOOKUP(A19,'INPUT Demand'!$A$5:$BA$1004,34,FALSE)=0,0,(VLOOKUP(A19,'INPUT Demand'!$A$5:$BA$1004,34,FALSE)*'INPUT 12NC'!D68)+'INPUT 12NC'!C68)) -> 0 | AJ19: =IF(A19="","",IF(VLOOKUP(A19,'INPUT Demand'!$A$5:$BA$1004,35,FALSE)=0,0,(VLOOKUP(A19,'INPUT Demand'!$A$5:$BA$1004,35,FALSE)*'INPUT 12NC'!D68)+'INPUT 12NC'!C68)) -> 0 | AK19: =IF(A19="","",IF(VLOOKUP(A19,'INPUT Demand'!$A$5:$BA$1004,36,FALSE)=0,0,(VLOOKUP(A19,'INPUT Demand'!$A$5:$BA$1004,36,FALSE)*'INPUT 12NC'!D68)+'INPUT 12NC'!C68)) -> 610 | AL19: =IF(A19="","",IF(VLOOKUP(A19,'INPUT Demand'!$A$5:$BA$1004,37,FALSE)=0,0,(VLOOKUP(A19,'INPUT Demand'!$A$5:$BA$1004,37,FALSE)*'INPUT 12NC'!D68)+'INPUT 12NC'!C68)) -> 0 | AM19: =IF(A19="","",IF(VLOOKUP(A19,'INPUT Demand'!$A$5:$BA$1004,38,FALSE)=0,0,(VLOOKUP(A19,'INPUT Demand'!$A$5:$BA$1004,38,FALSE)*'INPUT 12NC'!D68)+'INPUT 12NC'!C68)) -> 610 | AN19: =IF(A19="","",IF(VLOOKUP(A19,'INPUT Demand'!$A$5:$BA$1004,39,FALSE)=0,0,(VLOOKUP(A19,'INPUT Demand'!$A$5:$BA$1004,39,FALSE)*'INPUT 12NC'!D68)+'INPUT 12NC'!C68)) -> 0 | AO19: =IF(A19="","",IF(VLOOKUP(A19,'INPUT Demand'!$A$5:$BA$1004,40,FALSE)=0,0,(VLOOKUP(A19,'INPUT Demand'!$A$5:$BA$1004,40,FALSE)*'INPUT 12NC'!D68)+'INPUT 12NC'!C68)) -> 1210 | AP19: =IF(A19="","",IF(VLOOKUP(A19,'INPUT Demand'!$A$5:$BA$1004,41,FALSE)=0,0,(VLOOKUP(A19,'INPUT Demand'!$A$5:$BA$1004,41,FALSE)*'INPUT 12NC'!D68)+'INPUT 12NC'!C68)) -> 0 | AQ19: =IF(A19="","",IF(VLOOKUP(A19,'INPUT Demand'!$A$5:$BA$1004,42,FALSE)=0,0,(VLOOKUP(A19,'INPUT Demand'!$A$5:$BA$1004,42,FALSE)*'INPUT 12NC'!D68)+'INPUT 12NC'!C68)) -> 0 | AR19: =IF(A19="","",IF(VLOOKUP(A19,'INPUT Demand'!$A$5:$BA$1004,43,FALSE)=0,0,(VLOOKUP(A19,'INPUT Demand'!$A$5:$BA$1004,43,FALSE)*'INPUT 12NC'!D68)+'INPUT 12NC'!C68)) -> 0 | AS19: =IF(A19="","",IF(VLOOKUP(A19,'INPUT Demand'!$A$5:$BA$1004,44,FALSE)=0,0,(VLOOKUP(A19,'INPUT Demand'!$A$5:$BA$1004,44,FALSE)*'INPUT 12NC'!D68)+'INPUT 12NC'!C68)) -> 0 | AT19: =IF(A19="","",IF(VLOOKUP(A19,'INPUT Demand'!$A$5:$BA$1004,45,FALSE)=0,0,(VLOOKUP(A19,'INPUT Demand'!$A$5:$BA$1004,45,FALSE)*'INPUT 12NC'!D68)+'INPUT 12NC'!C68)) -> 0 | AU19: =IF(A19="","",IF(VLOOKUP(A19,'INPUT Demand'!$A$5:$BA$1004,46,FALSE)=0,0,(VLOOKUP(A19,'INPUT Demand'!$A$5:$BA$1004,46,FALSE)*'INPUT 12NC'!D68)+'INPUT 12NC'!C68)) -> 0 | AV19: =IF(A19="","",IF(VLOOKUP(A19,'INPUT Demand'!$A$5:$BA$1004,47,FALSE)=0,0,(VLOOKUP(A19,'INPUT Demand'!$A$5:$BA$1004,47,FALSE)*'INPUT 12NC'!D68)+'INPUT 12NC'!C68)) -> 0 | AW19: =IF(A19="","",IF(VLOOKUP(A19,'INPUT Demand'!$A$5:$BA$1004,48,FALSE)=0,0,(VLOOKUP(A19,'INPUT Demand'!$A$5:$BA$1004,48,FALSE)*'INPUT 12NC'!D68)+'INPUT 12NC'!C68)) -> 0 | AX19: =IF(A19="","",IF(VLOOKUP(A19,'INPUT Demand'!$A$5:$BA$1004,49,FALSE)=0,0,(VLOOKUP(A19,'INPUT Demand'!$A$5:$BA$1004,49,FALSE)*'INPUT 12NC'!D68)+'INPUT 12NC'!C68)) -> 0 | AY19: =IF(A19="","",IF(VLOOKUP(A19,'INPUT Demand'!$A$5:$BA$1004,50,FALSE)=0,0,(VLOOKUP(A19,'INPUT Demand'!$A$5:$BA$1004,50,FALSE)*'INPUT 12NC'!D68)+'INPUT 12NC'!C68)) -> 1210 | AZ19: =IF(A19="","",IF(VLOOKUP(A19,'INPUT Demand'!$A$5:$BA$1004,51,FALSE)=0,0,(VLOOKUP(A19,'INPUT Demand'!$A$5:$BA$1004,51,FALSE)*'INPUT 12NC'!D68)+'INPUT 12NC'!C68)) -> 0 | BA19: =IF(A19="","",IF(VLOOKUP(A19,'INPUT Demand'!$A$5:$BA$1004,52,FALSE)=0,0,(VLOOKUP(A19,'INPUT Demand'!$A$5:$BA$1004,52,FALSE)*'INPUT 12NC'!D68)+'INPUT 12NC'!C68)) -> 610 | BB19: =IF(A19="","",IF(VLOOKUP(A19,'INPUT Demand'!$A$5:$BA$1004,53,FALSE)=0,0,(VLOOKUP(A19,'INPUT Demand'!$A$5:$BA$1004,53,FALSE)*'INPUT 12NC'!D68)+'INPUT 12NC'!C68)) -> 0 | BC19: =IF(A19="","",SUM(D19:BB19)) -> 9630 | BD19: =IF(A19="","",IF(C19=1,BC19,0)) -> 9630
A20: 402248669334 | B20: 95 | C20: 1 | D20: =IF(A20="","",IF(VLOOKUP(A20,'INPUT Demand'!$A$5:$BA$1004,3,FALSE)=0,0,(VLOOKUP(A20,'INPUT Demand'!$A$5:$BA$1004,3,FALSE)*'INPUT 12NC'!D96)+'INPUT 12NC'!C96)) -> 0 | E20: =IF(A20="","",IF(VLOOKUP(A20,'INPUT Demand'!$A$5:$BA$1004,4,FALSE)=0,0,(VLOOKUP(A20,'INPUT Demand'!$A$5:$BA$1004,4,FALSE)*'INPUT 12NC'!D96)+'INPUT 12NC'!C96)) -> 0 | F20: =IF(A20="","",IF(VLOOKUP(A20,'INPUT Demand'!$A$5:$BA$1004,5,FALSE)=0,0,(VLOOKUP(A20,'INPUT Demand'!$A$5:$BA$1004,5,FALSE)*'INPUT 12NC'!D96)+'INPUT 12NC'!C96)) -> 0 | G20: =IF(A20="","",IF(VLOOKUP(A20,'INPUT Demand'!$A$5:$BA$1004,6,FALSE)=0,0,(VLOOKUP(A20,'INPUT Demand'!$A$5:$BA$1004,6,FALSE)*'INPUT 12NC'!D96)+'INPUT 12NC'!C96)) -> 634 | H20: =IF(A20="","",IF(VLOOKUP(A20,'INPUT Demand'!$A$5:$BA$1004,7,FALSE)=0,0,(VLOOKUP(A20,'INPUT Demand'!$A$5:$BA$1004,7,FALSE)*'INPUT 12NC'!D96)+'INPUT 12NC'!C96)) -> 154 | I20: =IF(A20="","",IF(VLOOKUP(A20,'INPUT Demand'!$A$5:$BA$1004,8,FALSE)=0,0,(VLOOKUP(A20,'INPUT Demand'!$A$5:$BA$1004,8,FALSE)*'INPUT 12NC'!D96)+'INPUT 12NC'!C96)) -> 0 | J20: =IF(A20="","",IF(VLOOKUP(A20,'INPUT Demand'!$A$5:$BA$1004,9,FALSE)=0,0,(VLOOKUP(A20,'INPUT Demand'!$A$5:$BA$1004,9,FALSE)*'INPUT 12NC'!D96)+'INPUT 12NC'!C96)) -> 0 | K20: =IF(A20="","",IF(VLOOKUP(A20,'INPUT Demand'!$A$5:$BA$1004,10,FALSE)=0,0,(VLOOKUP(A20,'INPUT Demand'!$A$5:$BA$1004,10,FALSE)*'INPUT 12NC'!D96)+'INPUT 12NC'!C96)) -> 394 | L20: =IF(A20="","",IF(VLOOKUP(A20,'INPUT Demand'!$A$5:$BA$1004,11,FALSE)=0,0,(VLOOKUP(A20,'INPUT Demand'!$A$5:$BA$1004,11,FALSE)*'INPUT 12NC'!D96)+'INPUT 12NC'!C96)) -> 0 | M20: =IF(A20="","",IF(VLOOKUP(A20,'INPUT Demand'!$A$5:$BA$1004,12,FALSE)=0,0,(VLOOKUP(A20,'INPUT Demand'!$A$5:$BA$1004,12,FALSE)*'INPUT 12NC'!D96)+'INPUT 12NC'!C96)) -> 0 | N20: =IF(A20="","",IF(VLOOKUP(A20,'INPUT Demand'!$A$5:$BA$1004,13,FALSE)=0,0,(VLOOKUP(A20,'INPUT Demand'!$A$5:$BA$1004,13,FALSE)*'INPUT 12NC'!D96)+'INPUT 12NC'!C96)) -> 0 | O20: =IF(A20="","",IF(VLOOKUP(A20,'INPUT Demand'!$A$5:$BA$1004,14,FALSE)=0,0,(VLOOKUP(A20,'INPUT Demand'!$A$5:$BA$1004,14,FALSE)*'INPUT 12NC'!D96)+'INPUT 12NC'!C96)) -> 778 | P20: =IF(A20="","",IF(VLOOKUP(A20,'INPUT Demand'!$A$5:$BA$1004,15,FALSE)=0,0,(VLOOKUP(A20,'INPUT Demand'!$A$5:$BA$1004,15,FALSE)*'INPUT 12NC'!D96)+'INPUT 12NC'!C96)) -> 0 | Q20: =IF(A20="","",IF(VLOOKUP(A20,'INPUT Demand'!$A$5:$BA$1004,16,FALSE)=0,0,(VLOOKUP(A20,'INPUT Demand'!$A$5:$BA$1004,16,FALSE)*'INPUT 12NC'!D96)+'INPUT 12NC'!C96)) -> 0 | R20: =IF(A20="","",IF(VLOOKUP(A20,'INPUT Demand'!$A$5:$BA$1004,17,FALSE)=0,0,(VLOOKUP(A20,'INPUT Demand'!$A$5:$BA$1004,17,FALSE)*'INPUT 12NC'!D96)+'INPUT 12NC'!C96)) -> 778 | S20: =IF(A20="","",IF(VLOOKUP(A20,'INPUT Demand'!$A$5:$BA$1004,18,FALSE)=0,0,(VLOOKUP(A20,'INPUT Demand'!$A$5:$BA$1004,18,FALSE)*'INPUT 12NC'!D96)+'INPUT 12NC'!C96)) -> 0 | T20: =IF(A20="","",IF(VLOOKUP(A20,'INPUT Demand'!$A$5:$BA$1004,19,FALSE)=0,0,(VLOOKUP(A20,'INPUT Demand'!$A$5:$BA$1004,19,FALSE)*'INPUT 12NC'!D96)+'INPUT 12NC'!C96)) -> 0 | U20: =IF(A20="","",IF(VLOOKUP(A20,'INPUT Demand'!$A$5:$BA$1004,20,FALSE)=0,0,(VLOOKUP(A20,'INPUT Demand'!$A$5:$BA$1004,20,FALSE)*'INPUT 12NC'!D96)+'INPUT 12NC'!C96)) -> 0 | V20: =IF(A20="","",IF(VLOOKUP(A20,'INPUT Demand'!$A$5:$BA$1004,21,FALSE)=0,0,(VLOOKUP(A20,'INPUT Demand'!$A$5:$BA$1004,21,FALSE)*'INPUT 12NC'!D96)+'INPUT 12NC'!C96)) -> 0 | W20: =IF(A20="","",IF(VLOOKUP(A20,'INPUT Demand'!$A$5:$BA$1004,22,FALSE)=0,0,(VLOOKUP(A20,'INPUT Demand'!$A$5:$BA$1004,22,FALSE)*'INPUT 12NC'!D96)+'INPUT 12NC'!C96)) -> 0 | X20: =IF(A20="","",IF(VLOOKUP(A20,'INPUT Demand'!$A$5:$BA$1004,23,FALSE)=0,0,(VLOOKUP(A20,'INPUT Demand'!$A$5:$BA$1004,23,FALSE)*'INPUT 12NC'!D96)+'INPUT 12NC'!C96)) -> 0 | Y20: =IF(A20="","",IF(VLOOKUP(A20,'INPUT Demand'!$A$5:$BA$1004,24,FALSE)=0,0,(VLOOKUP(A20,'INPUT Demand'!$A$5:$BA$1004,24,FALSE)*'INPUT 12NC'!D96)+'INPUT 12NC'!C96)) -> 0 | Z20: =IF(A20="","",IF(VLOOKUP(A20,'INPUT Demand'!$A$5:$BA$1004,25,FALSE)=0,0,(VLOOKUP(A20,'INPUT Demand'!$A$5:$BA$1004,25,FALSE)*'INPUT 12NC'!D96)+'INPUT 12NC'!C96)) -> 0 | AA20: =IF(A20="","",IF(VLOOKUP(A20,'INPUT Demand'!$A$5:$BA$1004,26,FALSE)=0,0,(VLOOKUP(A20,'INPUT Demand'!$A$5:$BA$1004,26,FALSE)*'INPUT 12NC'!D96)+'INPUT 12NC'!C96)) -> 826 | AB20: =IF(A20="","",IF(VLOOKUP(A20,'INPUT Demand'!$A$5:$BA$1004,27,FALSE)=0,0,(VLOOKUP(A20,'INPUT Demand'!$A$5:$BA$1004,27,FALSE)*'INPUT 12NC'!D96)+'INPUT 12NC'!C96)) -> 0 | AC20: =IF(A20="","",IF(VLOOKUP(A20,'INPUT Demand'!$A$5:$BA$1004,28,FALSE)=0,0,(VLOOKUP(A20,'INPUT Demand'!$A$5:$BA$1004,28,FALSE)*'INPUT 12NC'!D96)+'INPUT 12NC'!C96)) -> 0 | AD20: =IF(A20="","",IF(VLOOKUP(A20,'INPUT Demand'!$A$5:$BA$1004,29,FALSE)=0,0,(VLOOKUP(A20,'INPUT Demand'!$A$5:$BA$1004,29,FALSE)*'INPUT 12NC'!D96)+'INPUT 12NC'!C96)) -> 0 | AE20: =IF(A20="","",IF(VLOOKUP(A20,'INPUT Demand'!$A$5:$BA$1004,30,FALSE)=0,0,(VLOOKUP(A20,'INPUT Demand'!$A$5:$BA$1004,30,FALSE)*'INPUT 12NC'!D96)+'INPUT 12NC'!C96)) -> 874 | AF20: =IF(A20="","",IF(VLOOKUP(A20,'INPUT Demand'!$A$5:$BA$1004,31,FALSE)=0,0,(VLOOKUP(A20,'INPUT Demand'!$A$5:$BA$1004,31,FALSE)*'INPUT 12NC'!D96)+'INPUT 12NC'!C96)) -> 0 | AG20: =IF(A20="","",IF(VLOOKUP(A20,'INPUT Demand'!$A$5:$BA$1004,32,FALSE)=0,0,(VLOOKUP(A20,'INPUT Demand'!$A$5:$BA$1004,32,FALSE)*'INPUT 12NC'!D96)+'INPUT 12NC'!C96)) -> 0 | AH20: =IF(A20="","",IF(VLOOKUP(A20,'INPUT Demand'!$A$5:$BA$1004,33,FALSE)=0,0,(VLOOKUP(A20,'INPUT Demand'!$A$5:$BA$1004,33,FALSE)*'INPUT 12NC'!D96)+'INPUT 12NC'!C96)) -> 0 | AI20: =IF(A20="","",IF(VLOOKUP(A20,'INPUT Demand'!$A$5:$BA$1004,34,FALSE)=0,0,(VLOOKUP(A20,'INPUT Demand'!$A$5:$BA$1004,34,FALSE)*'INPUT 12NC'!D96)+'INPUT 12NC'!C96)) -> 298 | AJ20: =IF(A20="","",IF(VLOOKUP(A20,'INPUT Demand'!$A$5:$BA$1004,35,FALSE)=0,0,(VLOOKUP(A20,'INPUT Demand'!$A$5:$BA$1004,35,FALSE)*'INPUT 12NC'!D96)+'INPUT 12NC'!C96)) -> 0 | AK20: =IF(A20="","",IF(VLOOKUP(A20,'INPUT Demand'!$A$5:$BA$1004,36,FALSE)=0,0,(VLOOKUP(A20,'INPUT Demand'!$A$5:$BA$1004,36,FALSE)*'INPUT 12NC'!D96)+'INPUT 12NC'!C96)) -> 0 | AL20: =IF(A20="","",IF(VLOOKUP(A20,'INPUT Demand'!$A$5:$BA$1004,37,FALSE)=0,0,(VLOOKUP(A20,'INPUT Demand'!$A$5:$BA$1004,37,FALSE)*'INPUT 12NC'!D96)+'INPUT 12NC'!C96)) -> 0 | AM20: =IF(A20="","",IF(VLOOKUP(A20,'INPUT Demand'!$A$5:$BA$1004,38,FALSE)=0,0,(VLOOKUP(A20,'INPUT Demand'!$A$5:$BA$1004,38,FALSE)*'INPUT 12NC'!D96)+'INPUT 12NC'!C96)) -> 0 | AN20: =IF(A20="","",IF(VLOOKUP(A20,'INPUT Demand'!$A$5:$BA$1004,39,FALSE)=0,0,(VLOOKUP(A20,'INPUT Demand'!$A$5:$BA$1004,39,FALSE)*'INPUT 12NC'!D96)+'INPUT 12NC'!C96)) -> 0 | AO20: =IF(A20="","",IF(VLOOKUP(A20,'INPUT Demand'!$A$5:$BA$1004,40,FALSE)=0,0,(VLOOKUP(A20,'INPUT Demand'!$A$5:$BA$1004,40,FALSE)*'INPUT 12NC'!D96)+'INPUT 12NC'!C96)) -> 0 | AP20: =IF(A20="","",IF(VLOOKUP(A20,'INPUT Demand'!$A$5:$BA$1004,41,FALSE)=0,0,(VLOOKUP(A20,'INPUT Demand'!$A$5:$BA$1004,41,FALSE)*'INPUT 12NC'!D96)+'INPUT 12NC'!C96)) -> 346 | AQ20: =IF(A20="","",IF(VLOOKUP(A20,'INPUT Demand'!$A$5:$BA$1004,42,FALSE)=0,0,(VLOOKUP(A20,'INPUT Demand'!$A$5:$BA$1004,42,FALSE)*'INPUT 12NC'!D96)+'INPUT 12NC'!C96)) -> 0 | AR20: =IF(A20="","",IF(VLOOKUP(A20,'INPUT Demand'!$A$5:$BA$1004,43,FALSE)=0,0,(VLOOKUP(A20,'INPUT Demand'!$A$5:$BA$1004,43,FALSE)*'INPUT 12NC'!D96)+'INPUT 12NC'!C96)) -> 0 | AS20: =IF(A20="","",IF(VLOOKUP(A20,'INPUT Demand'!$A$5:$BA$1004,44,FALSE)=0,0,(VLOOKUP(A20,'INPUT Demand'!$A$5:$BA$1004,44,FALSE)*'INPUT 12NC'!D96)+'INPUT 12NC'!C96)) -> 394 | AT20: =IF(A20="","",IF(VLOOKUP(A20,'INPUT Demand'!$A$5:$BA$1004,45,FALSE)=0,0,(VLOOKUP(A20,'INPUT Demand'!$A$5:$BA$1004,45,FALSE)*'INPUT 12NC'!D96)+'INPUT 12NC'!C96)) -> 0 | AU20: =IF(A20="","",IF(VLOOKUP(A20,'INPUT Demand'!$A$5:$BA$1004,46,FALSE)=0,0,(VLOOKUP(A20,'INPUT Demand'!$A$5:$BA$1004,46,FALSE)*'INPUT 12NC'!D96)+'INPUT 12NC'!C96)) -> 0 | AV20: =IF(A20="","",IF(VLOOKUP(A20,'INPUT Demand'!$A$5:$BA$1004,47,FALSE)=0,0,(VLOOKUP(A20,'INPUT Demand'!$A$5:$BA$1004,47,FALSE)*'INPUT 12NC'!D96)+'INPUT 12NC'!C96)) -> 0 | AW20: =IF(A20="","",IF(VLOOKUP(A20,'INPUT Demand'!$A$5:$BA$1004,48,FALSE)=0,0,(VLOOKUP(A20,'INPUT Demand'!$A$5:$BA$1004,48,FALSE)*'INPUT 12NC'!D96)+'INPUT 12NC'!C96)) -> 0 | AX20: =IF(A20="","",IF(VLOOKUP(A20,'INPUT Demand'!$A$5:$BA$1004,49,FALSE)=0,0,(VLOOKUP(A20,'INPUT Demand'!$A$5:$BA$1004,49,FALSE)*'INPUT 12NC'!D96)+'INPUT 12NC'!C96)) -> 0 | AY20: =IF(A20="","",IF(VLOOKUP(A20,'INPUT Demand'!$A$5:$BA$1004,50,FALSE)=0,0,(VLOOKUP(A20,'INPUT Demand'!$A$5:$BA$1004,50,FALSE)*'INPUT 12NC'!D96)+'INPUT 12NC'!C96)) -> 0 | AZ20: =IF(A20="","",IF(VLOOKUP(A20,'INPUT Demand'!$A$5:$BA$1004,51,FALSE)=0,0,(VLOOKUP(A20,'INPUT Demand'!$A$5:$BA$1004,51,FALSE)*'INPUT 12NC'!D96)+'INPUT 12NC'!C96)) -> 874 | BA20: =IF(A20="","",IF(VLOOKUP(A20,'INPUT Demand'!$A$5:$BA$1004,52,FALSE)=0,0,(VLOOKUP(A20,'INPUT Demand'!$A$5:$BA$1004,52,FALSE)*'INPUT 12NC'!D96)+'INPUT 12NC'!C96)) -> 0 | BB20: =IF(A20="","",IF(VLOOKUP(A20,'INPUT Demand'!$A$5:$BA$1004,53,FALSE)=0,0,(VLOOKUP(A20,'INPUT Demand'!$A$5:$BA$1004,53,FALSE)*'INPUT 12NC'!D96)+'INPUT 12NC'!C96)) -> 0 | BC20: =IF(A20="","",SUM(D20:BB20)) -> 6350 | BD20: =IF(A20="","",IF(C20=1,BC20,0)) -> 6350
A21: 402263530922 | B21: 72 | C21: 1 | D21: =IF(A21="","",IF(VLOOKUP(A21,'INPUT Demand'!$A$5:$BA$1004,3,FALSE)=0,0,(VLOOKUP(A21,'INPUT Demand'!$A$5:$BA$1004,3,FALSE)*'INPUT 12NC'!D73)+'INPUT 12NC'!C73)) -> 0 | E21: =IF(A21="","",IF(VLOOKUP(A21,'INPUT Demand'!$A$5:$BA$1004,4,FALSE)=0,0,(VLOOKUP(A21,'INPUT Demand'!$A$5:$BA$1004,4,FALSE)*'INPUT 12NC'!D73)+'INPUT 12NC'!C73)) -> 0 | F21: =IF(A21="","",IF(VLOOKUP(A21,'INPUT Demand'!$A$5:$BA$1004,5,FALSE)=0,0,(VLOOKUP(A21,'INPUT Demand'!$A$5:$BA$1004,5,FALSE)*'INPUT 12NC'!D73)+'INPUT 12NC'!C73)) -> 0 | G21: =IF(A21="","",IF(VLOOKUP(A21,'INPUT Demand'!$A$5:$BA$1004,6,FALSE)=0,0,(VLOOKUP(A21,'INPUT Demand'!$A$5:$BA$1004,6,FALSE)*'INPUT 12NC'!D73)+'INPUT 12NC'!C73)) -> 0 | H21: =IF(A21="","",IF(VLOOKUP(A21,'INPUT Demand'!$A$5:$BA$1004,7,FALSE)=0,0,(VLOOKUP(A21,'INPUT Demand'!$A$5:$BA$1004,7,FALSE)*'INPUT 12NC'!D73)+'INPUT 12NC'!C73)) -> 0 | I21: =IF(A21="","",IF(VLOOKUP(A21,'INPUT Demand'!$A$5:$BA$1004,8,FALSE)=0,0,(VLOOKUP(A21,'INPUT Demand'!$A$5:$BA$1004,8,FALSE)*'INPUT 12NC'!D73)+'INPUT 12NC'!C73)) -> 0 | J21: =IF(A21="","",IF(VLOOKUP(A21,'INPUT Demand'!$A$5:$BA$1004,9,FALSE)=0,0,(VLOOKUP(A21,'INPUT Demand'!$A$5:$BA$1004,9,FALSE)*'INPUT 12NC'!D73)+'INPUT 12NC'!C73)) -> 0 | K21: =IF(A21="","",IF(VLOOKUP(A21,'INPUT Demand'!$A$5:$BA$1004,10,FALSE)=0,0,(VLOOKUP(A21,'INPUT Demand'!$A$5:$BA$1004,10,FALSE)*'INPUT 12NC'!D73)+'INPUT 12NC'!C73)) -> 899.66 | L21: =IF(A21="","",IF(VLOOKUP(A21,'INPUT Demand'!$A$5:$BA$1004,11,FALSE)=0,0,(VLOOKUP(A21,'INPUT Demand'!$A$5:$BA$1004,11,FALSE)*'INPUT 12NC'!D73)+'INPUT 12NC'!C73)) -> 0 | M21: =IF(A21="","",IF(VLOOKUP(A21,'INPUT Demand'!$A$5:$BA$1004,12,FALSE)=0,0,(VLOOKUP(A21,'INPUT Demand'!$A$5:$BA$1004,12,FALSE)*'INPUT 12NC'!D73)+'INPUT 12NC'!C73)) -> 0 | N21: =IF(A21="","",IF(VLOOKUP(A21,'INPUT Demand'!$A$5:$BA$1004,13,FALSE)=0,0,(VLOOKUP(A21,'INPUT Demand'!$A$5:$BA$1004,13,FALSE)*'INPUT 12NC'!D73)+'INPUT 12NC'!C73)) -> 0 | O21: =IF(A21="","",IF(VLOOKUP(A21,'INPUT Demand'!$A$5:$BA$1004,14,FALSE)=0,0,(VLOOKUP(A21,'INPUT Demand'!$A$5:$BA$1004,14,FALSE)*'INPUT 12NC'!D73)+'INPUT 12NC'!C73)) -> 0 | P21: =IF(A21="","",IF(VLOOKUP(A21,'INPUT Demand'!$A$5:$BA$1004,15,FALSE)=0,0,(VLOOKUP(A21,'INPUT Demand'!$A$5:$BA$1004,15,FALSE)*'INPUT 12NC'!D73)+'INPUT 12NC'!C73)) -> 0 | Q21: =IF(A21="","",IF(VLOOKUP(A21,'INPUT Demand'!$A$5:$BA$1004,16,FALSE)=0,0,(VLOOKUP(A21,'INPUT Demand'!$A$5:$BA$1004,16,FALSE)*'INPUT 12NC'!D73)+'INPUT 12NC'!C73)) -> 0 | R21: =IF(A21="","",IF(VLOOKUP(A21,'INPUT Demand'!$A$5:$BA$1004,17,FALSE)=0,0,(VLOOKUP(A21,'INPUT Demand'!$A$5:$BA$1004,17,FALSE)*'INPUT 12NC'!D73)+'INPUT 12NC'!C73)) -> 0 | S21: =IF(A21="","",IF(VLOOKUP(A21,'INPUT Demand'!$A$5:$BA$1004,18,FALSE)=0,0,(VLOOKUP(A21,'INPUT Demand'!$A$5:$BA$1004,18,FALSE)*'INPUT 12NC'!D73)+'INPUT 12NC'!C73)) -> 1037.3 | T21: =IF(A21="","",IF(VLOOKUP(A21,'INPUT Demand'!$A$5:$BA$1004,19,FALSE)=0,0,(VLOOKUP(A21,'INPUT Demand'!$A$5:$BA$1004,19,FALSE)*'INPUT 12NC'!D73)+'INPUT 12NC'!C73)) -> 0 | U21: =IF(A21="","",IF(VLOOKUP(A21,'INPUT Demand'!$A$5:$BA$1004,20,FALSE)=0,0,(VLOOKUP(A21,'INPUT Demand'!$A$5:$BA$1004,20,FALSE)*'INPUT 12NC'!D73)+'INPUT 12NC'!C73)) -> 0 | V21: =IF(A21="","",IF(VLOOKUP(A21,'INPUT Demand'!$A$5:$BA$1004,21,FALSE)=0,0,(VLOOKUP(A21,'INPUT Demand'!$A$5:$BA$1004,21,FALSE)*'INPUT 12NC'!D73)+'INPUT 12NC'!C73)) -> 0 | W21: =IF(A21="","",IF(VLOOKUP(A21,'INPUT Demand'!$A$5:$BA$1004,22,FALSE)=0,0,(VLOOKUP(A21,'INPUT Demand'!$A$5:$BA$1004,22,FALSE)*'INPUT 12NC'!D73)+'INPUT 12NC'!C73)) -> 0 | X21: =IF(A21="","",IF(VLOOKUP(A21,'INPUT Demand'!$A$5:$BA$1004,23,FALSE)=0,0,(VLOOKUP(A21,'INPUT Demand'!$A$5:$BA$1004,23,FALSE)*'INPUT 12NC'!D73)+'INPUT 12NC'!C73)) -> 0 | Y21: =IF(A21="","",IF(VLOOKUP(A21,'INPUT Demand'!$A$5:$BA$1004,24,FALSE)=0,0,(VLOOKUP(A21,'INPUT Demand'!$A$5:$BA$1004,24,FALSE)*'INPUT 12NC'!D73)+'INPUT 12NC'!C73)) -> 0 | Z21: =IF(A21="","",IF(VLOOKUP(A21,'INPUT Demand'!$A$5:$BA$1004,25,FALSE)=0,0,(VLOOKUP(A21,'INPUT Demand'!$A$5:$BA$1004,25,FALSE)*'INPUT 12NC'!D73)+'INPUT 12NC'!C73)) -> 0 | AA21: =IF(A21="","",IF(VLOOKUP(A21,'INPUT Demand'!$A$5:$BA$1004,26,FALSE)=0,0,(VLOOKUP(A21,'INPUT Demand'!$A$5:$BA$1004,26,FALSE)*'INPUT 12NC'!D73)+'INPUT 12NC'!C73)) -> 830.84 | AB21: =IF(A21="","",IF(VLOOKUP(A21,'INPUT Demand'!$A$5:$BA$1004,27,FALSE)=0,0,(VLOOKUP(A21,'INPUT Demand'!$A$5:$BA$1004,27,FALSE)*'INPUT 12NC'!D73)+'INPUT 12NC'!C73)) -> 0 | AC21: =IF(A21="","",IF(VLOOKUP(A21,'INPUT Demand'!$A$5:$BA$1004,28,FALSE)=0,0,(VLOOKUP(A21,'INPUT Demand'!$A$5:$BA$1004,28,FALSE)*'INPUT 12NC'!D73)+'INPUT 12NC'!C73)) -> 0 | AD21: =IF(A21="","",IF(VLOOKUP(A21,'INPUT Demand'!$A$5:$BA$1004,29,FALSE)=0,0,(VLOOKUP(A21,'INPUT Demand'!$A$5:$BA$1004,29,FALSE)*'INPUT 12NC'!D73)+'INPUT 12NC'!C73)) -> 0 | AE21: =IF(A21="","",IF(VLOOKUP(A21,'INPUT Demand'!$A$5:$BA$1004,30,FALSE)=0,0,(VLOOKUP(A21,'INPUT Demand'!$A$5:$BA$1004,30,FALSE)*'INPUT 12NC'!D73)+'INPUT 12NC'!C73)) -> 0 | AF21: =IF(A21="","",IF(VLOOKUP(A21,'INPUT Demand'!$A$5:$BA$1004,31,FALSE)=0,0,(VLOOKUP(A21,'INPUT Demand'!$A$5:$BA$1004,31,FALSE)*'INPUT 12NC'!D73)+'INPUT 12NC'!C73)) -> 0 | AG21: =IF(A21="","",IF(VLOOKUP(A21,'INPUT Demand'!$A$5:$BA$1004,32,FALSE)=0,0,(VLOOKUP(A21,'INPUT Demand'!$A$5:$BA$1004,32,FALSE)*'INPUT 12NC'!D73)+'INPUT 12NC'!C73)) -> 0 | AH21: =IF(A21="","",IF(VLOOKUP(A21,'INPUT Demand'!$A$5:$BA$1004,33,FALSE)=0,0,(VLOOKUP(A21,'INPUT Demand'!$A$5:$BA$1004,33,FALSE)*'INPUT 12NC'!D73)+'INPUT 12NC'!C73)) -> 1106.12 | AI21: =IF(A21="","",IF(VLOOKUP(A21,'INPUT Demand'!$A$5:$BA$1004,34,FALSE)=0,0,(VLOOKUP(A21,'INPUT Demand'!$A$5:$BA$1004,34,FALSE)*'INPUT 12NC'!D73)+'INPUT 12NC'!C73)) -> 0 | AJ21: =IF(A21="","",IF(VLOOKUP(A21,'INPUT Demand'!$A$5:$BA$1004,35,FALSE)=0,0,(VLOOKUP(A21,'INPUT Demand'!$A$5:$BA$1004,35,FALSE)*'INPUT 12NC'!D73)+'INPUT 12NC'!C73)) -> 0 | AK21: =IF(A21="","",IF(VLOOKUP(A21,'INPUT Demand'!$A$5:$BA$1004,36,FALSE)=0,0,(VLOOKUP(A21,'INPUT Demand'!$A$5:$BA$1004,36,FALSE)*'INPUT 12NC'!D73)+'INPUT 12NC'!C73)) -> 0 | AL21: =IF(A21="","",IF(VLOOKUP(A21,'INPUT Demand'!$A$5:$BA$1004,37,FALSE)=0,0,(VLOOKUP(A21,'INPUT Demand'!$A$5:$BA$1004,37,FALSE)*'INPUT 12NC'!D73)+'INPUT 12NC'!C73)) -> 0 | AM21: =IF(A21="","",IF(VLOOKUP(A21,'INPUT Demand'!$A$5:$BA$1004,38,FALSE)=0,0,(VLOOKUP(A21,'INPUT Demand'!$A$5:$BA$1004,38,FALSE)*'INPUT 12NC'!D73)+'INPUT 12NC'!C73)) -> 0 | AN21: =IF(A21="","",IF(VLOOKUP(A21,'INPUT Demand'!$A$5:$BA$1004,39,FALSE)=0,0,(VLOOKUP(A21,'INPUT Demand'!$A$5:$BA$1004,39,FALSE)*'INPUT 12NC'!D73)+'INPUT 12NC'!C73)) -> 0 | AO21: =IF(A21="","",IF(VLOOKUP(A21,'INPUT Demand'!$A$5:$BA$1004,40,FALSE)=0,0,(VLOOKUP(A21,'INPUT Demand'!$A$5:$BA$1004,40,FALSE)*'INPUT 12NC'!D73)+'INPUT 12NC'!C73)) -> 1106.12 | AP21: =IF(A21="","",IF(VLOOKUP(A21,'INPUT Demand'!$A$5:$BA$1004,41,FALSE)=0,0,(VLOOKUP(A21,'INPUT Demand'!$A$5:$BA$1004,41,FALSE)*'INPUT 12NC'!D73)+'INPUT 12NC'!C73)) -> 0 | AQ21: =IF(A21="","",IF(VLOOKUP(A21,'INPUT Demand'!$A$5:$BA$1004,42,FALSE)=0,0,(VLOOKUP(A21,'INPUT Demand'!$A$5:$BA$1004,42,FALSE)*'INPUT 12NC'!D73)+'INPUT 12NC'!C73)) -> 0 | AR21: =IF(A21="","",IF(VLOOKUP(A21,'INPUT Demand'!$A$5:$BA$1004,43,FALSE)=0,0,(VLOOKUP(A21,'INPUT Demand'!$A$5:$BA$1004,43,FALSE)*'INPUT 12NC'!D73)+'INPUT 12NC'!C73)) -> 0 | AS21: =IF(A21="","",IF(VLOOKUP(A21,'INPUT Demand'!$A$5:$BA$1004,44,FALSE)=0,0,(VLOOKUP(A21,'INPUT Demand'!$A$5:$BA$1004,44,FALSE)*'INPUT 12NC'!D73)+'INPUT 12NC'!C73)) -> 0 | AT21: =IF(A21="","",IF(VLOOKUP(A21,'INPUT Demand'!$A$5:$BA$1004,45,FALSE)=0,0,(VLOOKUP(A21,'INPUT Demand'!$A$5:$BA$1004,45,FALSE)*'INPUT 12NC'!D73)+'INPUT 12NC'!C73)) -> 0 | AU21: =IF(A21="","",IF(VLOOKUP(A21,'INPUT Demand'!$A$5:$BA$1004,46,FALSE)=0,0,(VLOOKUP(A21,'INPUT Demand'!$A$5:$BA$1004,46,FALSE)*'INPUT 12NC'!D73)+'INPUT 12NC'!C73)) -> 0 | AV21: =IF(A21="","",IF(VLOOKUP(A21,'INPUT Demand'!$A$5:$BA$1004,47,FALSE)=0,0,(VLOOKUP(A21,'INPUT Demand'!$A$5:$BA$1004,47,FALSE)*'INPUT 12NC'!D73)+'INPUT 12NC'!C73)) -> 0 | AW21: =IF(A21="","",IF(VLOOKUP(A21,'INPUT Demand'!$A$5:$BA$1004,48,FALSE)=0,0,(VLOOKUP(A21,'INPUT Demand'!$A$5:$BA$1004,48,FALSE)*'INPUT 12NC'!D73)+'INPUT 12NC'!C73)) -> 1106.12 | AX21: =IF(A21="","",IF(VLOOKUP(A21,'INPUT Demand'!$A$5:$BA$1004,49,FALSE)=0,0,(VLOOKUP(A21,'INPUT Demand'!$A$5:$BA$1004,49,FALSE)*'INPUT 12NC'!D73)+'INPUT 12NC'!C73)) -> 0 | AY21: =IF(A21="","",IF(VLOOKUP(A21,'INPUT Demand'!$A$5:$BA$1004,50,FALSE)=0,0,(VLOOKUP(A21,'INPUT Demand'!$A$5:$BA$1004,50,FALSE)*'INPUT 12NC'!D73)+'INPUT 12NC'!C73)) -> 0 | AZ21: =IF(A21="","",IF(VLOOKUP(A21,'INPUT Demand'!$A$5:$BA$1004,51,FALSE)=0,0,(VLOOKUP(A21,'INPUT Demand'!$A$5:$BA$1004,51,FALSE)*'INPUT 12NC'!D73)+'INPUT 12NC'!C73)) -> 0 | BA21: =IF(A21="","",IF(VLOOKUP(A21,'INPUT Demand'!$A$5:$BA$1004,52,FALSE)=0,0,(VLOOKUP(A21,'INPUT Demand'!$A$5:$BA$1004,52,FALSE)*'INPUT 12NC'!D73)+'INPUT 12NC'!C73)) -> 0 | BB21: =IF(A21="","",IF(VLOOKUP(A21,'INPUT Demand'!$A$5:$BA$1004,53,FALSE)=0,0,(VLOOKUP(A21,'INPUT Demand'!$A$5:$BA$1004,53,FALSE)*'INPUT 12NC'!D73)+'INPUT 12NC'!C73)) -> 0 | BC21: =IF(A21="","",SUM(D21:BB21)) -> 6086.16 | BD21: =IF(A21="","",IF(C21=1,BC21,0)) -> 6086.16
A22: 402264753381 | B22: 26 | C22: 1 | D22: =IF(A22="","",IF(VLOOKUP(A22,'INPUT Demand'!$A$5:$BA$1004,3,FALSE)=0,0,(VLOOKUP(A22,'INPUT Demand'!$A$5:$BA$1004,3,FALSE)*'INPUT 12NC'!D27)+'INPUT 12NC'!C27)) -> 184 | E22: =IF(A22="","",IF(VLOOKUP(A22,'INPUT Demand'!$A$5:$BA$1004,4,FALSE)=0,0,(VLOOKUP(A22,'INPUT Demand'!$A$5:$BA$1004,4,FALSE)*'INPUT 12NC'!D27)+'INPUT 12NC'!C27)) -> 0 | F22: =IF(A22="","",IF(VLOOKUP(A22,'INPUT Demand'!$A$5:$BA$1004,5,FALSE)=0,0,(VLOOKUP(A22,'INPUT Demand'!$A$5:$BA$1004,5,FALSE)*'INPUT 12NC'!D27)+'INPUT 12NC'!C27)) -> 184 | G22: =IF(A22="","",IF(VLOOKUP(A22,'INPUT Demand'!$A$5:$BA$1004,6,FALSE)=0,0,(VLOOKUP(A22,'INPUT Demand'!$A$5:$BA$1004,6,FALSE)*'INPUT 12NC'!D27)+'INPUT 12NC'!C27)) -> 445 | H22: =IF(A22="","",IF(VLOOKUP(A22,'INPUT Demand'!$A$5:$BA$1004,7,FALSE)=0,0,(VLOOKUP(A22,'INPUT Demand'!$A$5:$BA$1004,7,FALSE)*'INPUT 12NC'!D27)+'INPUT 12NC'!C27)) -> 0 | I22: =IF(A22="","",IF(VLOOKUP(A22,'INPUT Demand'!$A$5:$BA$1004,8,FALSE)=0,0,(VLOOKUP(A22,'INPUT Demand'!$A$5:$BA$1004,8,FALSE)*'INPUT 12NC'!D27)+'INPUT 12NC'!C27)) -> 271 | J22: =IF(A22="","",IF(VLOOKUP(A22,'INPUT Demand'!$A$5:$BA$1004,9,FALSE)=0,0,(VLOOKUP(A22,'INPUT Demand'!$A$5:$BA$1004,9,FALSE)*'INPUT 12NC'!D27)+'INPUT 12NC'!C27)) -> 0 | K22: =IF(A22="","",IF(VLOOKUP(A22,'INPUT Demand'!$A$5:$BA$1004,10,FALSE)=0,0,(VLOOKUP(A22,'INPUT Demand'!$A$5:$BA$1004,10,FALSE)*'INPUT 12NC'!D27)+'INPUT 12NC'!C27)) -> 1141 | L22: =IF(A22="","",IF(VLOOKUP(A22,'INPUT Demand'!$A$5:$BA$1004,11,FALSE)=0,0,(VLOOKUP(A22,'INPUT Demand'!$A$5:$BA$1004,11,FALSE)*'INPUT 12NC'!D27)+'INPUT 12NC'!C27)) -> 0 | M22: =IF(A22="","",IF(VLOOKUP(A22,'INPUT Demand'!$A$5:$BA$1004,12,FALSE)=0,0,(VLOOKUP(A22,'INPUT Demand'!$A$5:$BA$1004,12,FALSE)*'INPUT 12NC'!D27)+'INPUT 12NC'!C27)) -> 0 | N22: =IF(A22="","",IF(VLOOKUP(A22,'INPUT Demand'!$A$5:$BA$1004,13,FALSE)=0,0,(VLOOKUP(A22,'INPUT Demand'!$A$5:$BA$1004,13,FALSE)*'INPUT 12NC'!D27)+'INPUT 12NC'!C27)) -> 532 | O22: =IF(A22="","",IF(VLOOKUP(A22,'INPUT Demand'!$A$5:$BA$1004,14,FALSE)=0,0,(VLOOKUP(A22,'INPUT Demand'!$A$5:$BA$1004,14,FALSE)*'INPUT 12NC'!D27)+'INPUT 12NC'!C27)) -> 0 | P22: =IF(A22="","",IF(VLOOKUP(A22,'INPUT Demand'!$A$5:$BA$1004,15,FALSE)=0,0,(VLOOKUP(A22,'INPUT Demand'!$A$5:$BA$1004,15,FALSE)*'INPUT 12NC'!D27)+'INPUT 12NC'!C27)) -> 0 | Q22: =IF(A22="","",IF(VLOOKUP(A22,'INPUT Demand'!$A$5:$BA$1004,16,FALSE)=0,0,(VLOOKUP(A22,'INPUT Demand'!$A$5:$BA$1004,16,FALSE)*'INPUT 12NC'!D27)+'INPUT 12NC'!C27)) -> 0 | R22: =IF(A22="","",IF(VLOOKUP(A22,'INPUT Demand'!$A$5:$BA$1004,17,FALSE)=0,0,(VLOOKUP(A22,'INPUT Demand'!$A$5:$BA$1004,17,FALSE)*'INPUT 12NC'!D27)+'INPUT 12NC'!C27)) -> 0 | S22: =IF(A22="","",IF(VLOOKUP(A22,'INPUT Demand'!$A$5:$BA$1004,18,FALSE)=0,0,(VLOOKUP(A22,'INPUT Demand'!$A$5:$BA$1004,18,FALSE)*'INPUT 12NC'!D27)+'INPUT 12NC'!C27)) -> 0 | T22: =IF(A22="","",IF(VLOOKUP(A22,'INPUT Demand'!$A$5:$BA$1004,19,FALSE)=0,0,(VLOOKUP(A22,'INPUT Demand'!$A$5:$BA$1004,19,FALSE)*'INPUT 12NC'!D27)+'INPUT 12NC'!C27)) -> 0 | U22: =IF(A22="","",IF(VLOOKUP(A22,'INPUT Demand'!$A$5:$BA$1004,20,FALSE)=0,0,(VLOOKUP(A22,'INPUT Demand'!$A$5:$BA$1004,20,FALSE)*'INPUT 12NC'!D27)+'INPUT 12NC'!C27)) -> 0 | V22: =IF(A22="","",IF(VLOOKUP(A22,'INPUT Demand'!$A$5:$BA$1004,21,FALSE)=0,0,(VLOOKUP(A22,'INPUT Demand'!$A$5:$BA$1004,21,FALSE)*'INPUT 12NC'!D27)+'INPUT 12NC'!C27)) -> 0 | W22: =IF(A22="","",IF(VLOOKUP(A22,'INPUT Demand'!$A$5:$BA$1004,22,FALSE)=0,0,(VLOOKUP(A22,'INPUT Demand'!$A$5:$BA$1004,22,FALSE)*'INPUT 12NC'!D27)+'INPUT 12NC'!C27)) -> 0 | X22: =IF(A22="","",IF(VLOOKUP(A22,'INPUT Demand'!$A$5:$BA$1004,23,FALSE)=0,0,(VLOOKUP(A22,'INPUT Demand'!$A$5:$BA$1004,23,FALSE)*'INPUT 12NC'!D27)+'INPUT 12NC'!C27)) -> 445 | Y22: =IF(A22="","",IF(VLOOKUP(A22,'INPUT Demand'!$A$5:$BA$1004,24,FALSE)=0,0,(VLOOKUP(A22,'INPUT Demand'!$A$5:$BA$1004,24,FALSE)*'INPUT 12NC'!D27)+'INPUT 12NC'!C27)) -> 0 | Z22: =IF(A22="","",IF(VLOOKUP(A22,'INPUT Demand'!$A$5:$BA$1004,25,FALSE)=0,0,(VLOOKUP(A22,'INPUT Demand'!$A$5:$BA$1004,25,FALSE)*'INPUT 12NC'!D27)+'INPUT 12NC'!C27)) -> 0 | AA22: =IF(A22="","",IF(VLOOKUP(A22,'INPUT Demand'!$A$5:$BA$1004,26,FALSE)=0,0,(VLOOKUP(A22,'INPUT Demand'!$A$5:$BA$1004,26,FALSE)*'INPUT 12NC'!D27)+'INPUT 12NC'!C27)) -> 0 | AB22: =IF(A22="","",IF(VLOOKUP(A22,'INPUT Demand'!$A$5:$BA$1004,27,FALSE)=0,0,(VLOOKUP(A22,'INPUT Demand'!$A$5:$BA$1004,27,FALSE)*'INPUT 12NC'!D27)+'INPUT 12NC'!C27)) -> 967 | AC22: =IF(A22="","",IF(VLOOKUP(A22,'INPUT Demand'!$A$5:$BA$1004,28,FALSE)=0,0,(VLOOKUP(A22,'INPUT Demand'!$A$5:$BA$1004,28,FALSE)*'INPUT 12NC'!D27)+'INPUT 12NC'!C27)) -> 0 | AD22: =IF(A22="","",IF(VLOOKUP(A22,'INPUT Demand'!$A$5:$BA$1004,29,FALSE)=0,0,(VLOOKUP(A22,'INPUT Demand'!$A$5:$BA$1004,29,FALSE)*'INPUT 12NC'!D27)+'INPUT 12NC'!C27)) -> 0 | AE22: =IF(A22="","",IF(VLOOKUP(A22,'INPUT Demand'!$A$5:$BA$1004,30,FALSE)=0,0,(VLOOKUP(A22,'INPUT Demand'!$A$5:$BA$1004,30,FALSE)*'INPUT 12NC'!D27)+'INPUT 12NC'!C27)) -> 0 | AF22: =IF(A22="","",IF(VLOOKUP(A22,'INPUT Demand'!$A$5:$BA$1004,31,FALSE)=0,0,(VLOOKUP(A22,'INPUT Demand'!$A$5:$BA$1004,31,FALSE)*'INPUT 12NC'!D27)+'INPUT 12NC'!C27)) -> 445 | AG22: =IF(A22="","",IF(VLOOKUP(A22,'INPUT Demand'!$A$5:$BA$1004,32,FALSE)=0,0,(VLOOKUP(A22,'INPUT Demand'!$A$5:$BA$1004,32,FALSE)*'INPUT 12NC'!D27)+'INPUT 12NC'!C27)) -> 0 | AH22: =IF(A22="","",IF(VLOOKUP(A22,'INPUT Demand'!$A$5:$BA$1004,33,FALSE)=0,0,(VLOOKUP(A22,'INPUT Demand'!$A$5:$BA$1004,33,FALSE)*'INPUT 12NC'!D27)+'INPUT 12NC'!C27)) -> 0 | AI22: =IF(A22="","",IF(VLOOKUP(A22,'INPUT Demand'!$A$5:$BA$1004,34,FALSE)=0,0,(VLOOKUP(A22,'INPUT Demand'!$A$5:$BA$1004,34,FALSE)*'INPUT 12NC'!D27)+'INPUT 12NC'!C27)) -> 0 | AJ22: =IF(A22="","",IF(VLOOKUP(A22,'INPUT Demand'!$A$5:$BA$1004,35,FALSE)=0,0,(VLOOKUP(A22,'INPUT Demand'!$A$5:$BA$1004,35,FALSE)*'INPUT 12NC'!D27)+'INPUT 12NC'!C27)) -> 445 | AK22: =IF(A22="","",IF(VLOOKUP(A22,'INPUT Demand'!$A$5:$BA$1004,36,FALSE)=0,0,(VLOOKUP(A22,'INPUT Demand'!$A$5:$BA$1004,36,FALSE)*'INPUT 12NC'!D27)+'INPUT 12NC'!C27)) -> 0 | AL22: =IF(A22="","",IF(VLOOKUP(A22,'INPUT Demand'!$A$5:$BA$1004,37,FALSE)=0,0,(VLOOKUP(A22,'INPUT Demand'!$A$5:$BA$1004,37,FALSE)*'INPUT 12NC'!D27)+'INPUT 12NC'!C27)) -> 0 | AM22: =IF(A22="","",IF(VLOOKUP(A22,'INPUT Demand'!$A$5:$BA$1004,38,FALSE)=0,0,(VLOOKUP(A22,'INPUT Demand'!$A$5:$BA$1004,38,FALSE)*'INPUT 12NC'!D27)+'INPUT 12NC'!C27)) -> 0 | AN22: =IF(A22="","",IF(VLOOKUP(A22,'INPUT Demand'!$A$5:$BA$1004,39,FALSE)=0,0,(VLOOKUP(A22,'INPUT Demand'!$A$5:$BA$1004,39,FALSE)*'INPUT 12NC'!D27)+'INPUT 12NC'!C27)) -> 0 | AO22: =IF(A22="","",IF(VLOOKUP(A22,'INPUT Demand'!$A$5:$BA$1004,40,FALSE)=0,0,(VLOOKUP(A22,'INPUT Demand'!$A$5:$BA$1004,40,FALSE)*'INPUT 12NC'!D27)+'INPUT 12NC'!C27)) -> 0 | AP22: =IF(A22="","",IF(VLOOKUP(A22,'INPUT Demand'!$A$5:$BA$1004,41,FALSE)=0,0,(VLOOKUP(A22,'INPUT Demand'!$A$5:$BA$1004,41,FALSE)*'INPUT 12NC'!D27)+'INPUT 12NC'!C27)) -> 0 | AQ22: =IF(A22="","",IF(VLOOKUP(A22,'INPUT Demand'!$A$5:$BA$1004,42,FALSE)=0,0,(VLOOKUP(A22,'INPUT Demand'!$A$5:$BA$1004,42,FALSE)*'INPUT 12NC'!D27)+'INPUT 12NC'!C27)) -> 0 | AR22: =IF(A22="","",IF(VLOOKUP(A22,'INPUT Demand'!$A$5:$BA$1004,43,FALSE)=0,0,(VLOOKUP(A22,'INPUT Demand'!$A$5:$BA$1004,43,FALSE)*'INPUT 12NC'!D27)+'INPUT 12NC'!C27)) -> 0 | AS22: =IF(A22="","",IF(VLOOKUP(A22,'INPUT Demand'!$A$5:$BA$1004,44,FALSE)=0,0,(VLOOKUP(A22,'INPUT Demand'!$A$5:$BA$1004,44,FALSE)*'INPUT 12NC'!D27)+'INPUT 12NC'!C27)) -> 0 | AT22: =IF(A22="","",IF(VLOOKUP(A22,'INPUT Demand'!$A$5:$BA$1004,45,FALSE)=0,0,(VLOOKUP(A22,'INPUT Demand'!$A$5:$BA$1004,45,FALSE)*'INPUT 12NC'!D27)+'INPUT 12NC'!C27)) -> 0 | AU22: =IF(A22="","",IF(VLOOKUP(A22,'INPUT Demand'!$A$5:$BA$1004,46,FALSE)=0,0,(VLOOKUP(A22,'INPUT Demand'!$A$5:$BA$1004,46,FALSE)*'INPUT 12NC'!D27)+'INPUT 12NC'!C27)) -> 0 | AV22: =IF(A22="","",IF(VLOOKUP(A22,'INPUT Demand'!$A$5:$BA$1004,47,FALSE)=0,0,(VLOOKUP(A22,'INPUT Demand'!$A$5:$BA$1004,47,FALSE)*'INPUT 12NC'!D27)+'INPUT 12NC'!C27)) -> 0 | AW22: =IF(A22="","",IF(VLOOKUP(A22,'INPUT Demand'!$A$5:$BA$1004,48,FALSE)=0,0,(VLOOKUP(A22,'INPUT Demand'!$A$5:$BA$1004,48,FALSE)*'INPUT 12NC'!D27)+'INPUT 12NC'!C27)) -> 0 | AX22: =IF(A22="","",IF(VLOOKUP(A22,'INPUT Demand'!$A$5:$BA$1004,49,FALSE)=0,0,(VLOOKUP(A22,'INPUT Demand'!$A$5:$BA$1004,49,FALSE)*'INPUT 12NC'!D27)+'INPUT 12NC'!C27)) -> 0 | AY22: =IF(A22="","",IF(VLOOKUP(A22,'INPUT Demand'!$A$5:$BA$1004,50,FALSE)=0,0,(VLOOKUP(A22,'INPUT Demand'!$A$5:$BA$1004,50,FALSE)*'INPUT 12NC'!D27)+'INPUT 12NC'!C27)) -> 0 | AZ22: =IF(A22="","",IF(VLOOKUP(A22,'INPUT Demand'!$A$5:$BA$1004,51,FALSE)=0,0,(VLOOKUP(A22,'INPUT Demand'!$A$5:$BA$1004,51,FALSE)*'INPUT 12NC'!D27)+'INPUT 12NC'!C27)) -> 445 | BA22: =IF(A22="","",IF(VLOOKUP(A22,'INPUT Demand'!$A$5:$BA$1004,52,FALSE)=0,0,(VLOOKUP(A22,'INPUT Demand'!$A$5:$BA$1004,52,FALSE)*'INPUT 12NC'!D27)+'INPUT 12NC'!C27)) -> 0 | BB22: =IF(A22="","",IF(VLOOKUP(A22,'INPUT Demand'!$A$5:$BA$1004,53,FALSE)=0,0,(VLOOKUP(A22,'INPUT Demand'!$A$5:$BA$1004,53,FALSE)*'INPUT 12NC'!D27)+'INPUT 12NC'!C27)) -> 0 | BC22: =IF(A22="","",SUM(D22:BB22)) -> 5504 | BD22: =IF(A22="","",IF(C22=1,BC22,0)) -> 5504
A23: 402248277063 | B23: 106 | C23: 1 | D23: =IF(A23="","",IF(VLOOKUP(A23,'INPUT Demand'!$A$5:$BA$1004,3,FALSE)=0,0,(VLOOKUP(A23,'INPUT Demand'!$A$5:$BA$1004,3,FALSE)*'INPUT 12NC'!D107)+'INPUT 12NC'!C107)) -> 0 | E23: =IF(A23="","",IF(VLOOKUP(A23,'INPUT Demand'!$A$5:$BA$1004,4,FALSE)=0,0,(VLOOKUP(A23,'INPUT Demand'!$A$5:$BA$1004,4,FALSE)*'INPUT 12NC'!D107)+'INPUT 12NC'!C107)) -> 0 | F23: =IF(A23="","",IF(VLOOKUP(A23,'INPUT Demand'!$A$5:$BA$1004,5,FALSE)=0,0,(VLOOKUP(A23,'INPUT Demand'!$A$5:$BA$1004,5,FALSE)*'INPUT 12NC'!D107)+'INPUT 12NC'!C107)) -> 0 | G23: =IF(A23="","",IF(VLOOKUP(A23,'INPUT Demand'!$A$5:$BA$1004,6,FALSE)=0,0,(VLOOKUP(A23,'INPUT Demand'!$A$5:$BA$1004,6,FALSE)*'INPUT 12NC'!D107)+'INPUT 12NC'!C107)) -> 0 | H23: =IF(A23="","",IF(VLOOKUP(A23,'INPUT Demand'!$A$5:$BA$1004,7,FALSE)=0,0,(VLOOKUP(A23,'INPUT Demand'!$A$5:$BA$1004,7,FALSE)*'INPUT 12NC'!D107)+'INPUT 12NC'!C107)) -> 0 | I23: =IF(A23="","",IF(VLOOKUP(A23,'INPUT Demand'!$A$5:$BA$1004,8,FALSE)=0,0,(VLOOKUP(A23,'INPUT Demand'!$A$5:$BA$1004,8,FALSE)*'INPUT 12NC'!D107)+'INPUT 12NC'!C107)) -> 478 | J23: =IF(A23="","",IF(VLOOKUP(A23,'INPUT Demand'!$A$5:$BA$1004,9,FALSE)=0,0,(VLOOKUP(A23,'INPUT Demand'!$A$5:$BA$1004,9,FALSE)*'INPUT 12NC'!D107)+'INPUT 12NC'!C107)) -> 0 | K23: =IF(A23="","",IF(VLOOKUP(A23,'INPUT Demand'!$A$5:$BA$1004,10,FALSE)=0,0,(VLOOKUP(A23,'INPUT Demand'!$A$5:$BA$1004,10,FALSE)*'INPUT 12NC'!D107)+'INPUT 12NC'!C107)) -> 0 | L23: =IF(A23="","",IF(VLOOKUP(A23,'INPUT Demand'!$A$5:$BA$1004,11,FALSE)=0,0,(VLOOKUP(A23,'INPUT Demand'!$A$5:$BA$1004,11,FALSE)*'INPUT 12NC'!D107)+'INPUT 12NC'!C107)) -> 0 | M23: =IF(A23="","",IF(VLOOKUP(A23,'INPUT Demand'!$A$5:$BA$1004,12,FALSE)=0,0,(VLOOKUP(A23,'INPUT Demand'!$A$5:$BA$1004,12,FALSE)*'INPUT 12NC'!D107)+'INPUT 12NC'!C107)) -> 0 | N23: =IF(A23="","",IF(VLOOKUP(A23,'INPUT Demand'!$A$5:$BA$1004,13,FALSE)=0,0,(VLOOKUP(A23,'INPUT Demand'!$A$5:$BA$1004,13,FALSE)*'INPUT 12NC'!D107)+'INPUT 12NC'!C107)) -> 0 | O23: =IF(A23="","",IF(VLOOKUP(A23,'INPUT Demand'!$A$5:$BA$1004,14,FALSE)=0,0,(VLOOKUP(A23,'INPUT Demand'!$A$5:$BA$1004,14,FALSE)*'INPUT 12NC'!D107)+'INPUT 12NC'!C107)) -> 0 | P23: =IF(A23="","",IF(VLOOKUP(A23,'INPUT Demand'!$A$5:$BA$1004,15,FALSE)=0,0,(VLOOKUP(A23,'INPUT Demand'!$A$5:$BA$1004,15,FALSE)*'INPUT 12NC'!D107)+'INPUT 12NC'!C107)) -> 634 | Q23: =IF(A23="","",IF(VLOOKUP(A23,'INPUT Demand'!$A$5:$BA$1004,16,FALSE)=0,0,(VLOOKUP(A23,'INPUT Demand'!$A$5:$BA$1004,16,FALSE)*'INPUT 12NC'!D107)+'INPUT 12NC'!C107)) -> 0 | R23: =IF(A23="","",IF(VLOOKUP(A23,'INPUT Demand'!$A$5:$BA$1004,17,FALSE)=0,0,(VLOOKUP(A23,'INPUT Demand'!$A$5:$BA$1004,17,FALSE)*'INPUT 12NC'!D107)+'INPUT 12NC'!C107)) -> 0 | S23: =IF(A23="","",IF(VLOOKUP(A23,'INPUT Demand'!$A$5:$BA$1004,18,FALSE)=0,0,(VLOOKUP(A23,'INPUT Demand'!$A$5:$BA$1004,18,FALSE)*'INPUT 12NC'!D107)+'INPUT 12NC'!C107)) -> 0 | T23: =IF(A23="","",IF(VLOOKUP(A23,'INPUT Demand'!$A$5:$BA$1004,19,FALSE)=0,0,(VLOOKUP(A23,'INPUT Demand'!$A$5:$BA$1004,19,FALSE)*'INPUT 12NC'!D107)+'INPUT 12NC'!C107)) -> 400 | U23: =IF(A23="","",IF(VLOOKUP(A23,'INPUT Demand'!$A$5:$BA$1004,20,FALSE)=0,0,(VLOOKUP(A23,'INPUT Demand'!$A$5:$BA$1004,20,FALSE)*'INPUT 12NC'!D107)+'INPUT 12NC'!C107)) -> 0 | V23: =IF(A23="","",IF(VLOOKUP(A23,'INPUT Demand'!$A$5:$BA$1004,21,FALSE)=0,0,(VLOOKUP(A23,'INPUT Demand'!$A$5:$BA$1004,21,FALSE)*'INPUT 12NC'!D107)+'INPUT 12NC'!C107)) -> 1024 | W23: =IF(A23="","",IF(VLOOKUP(A23,'INPUT Demand'!$A$5:$BA$1004,22,FALSE)=0,0,(VLOOKUP(A23,'INPUT Demand'!$A$5:$BA$1004,22,FALSE)*'INPUT 12NC'!D107)+'INPUT 12NC'!C107)) -> 400 | X23: =IF(A23="","",IF(VLOOKUP(A23,'INPUT Demand'!$A$5:$BA$1004,23,FALSE)=0,0,(VLOOKUP(A23,'INPUT Demand'!$A$5:$BA$1004,23,FALSE)*'INPUT 12NC'!D107)+'INPUT 12NC'!C107)) -> 400 | Y23: =IF(A23="","",IF(VLOOKUP(A23,'INPUT Demand'!$A$5:$BA$1004,24,FALSE)=0,0,(VLOOKUP(A23,'INPUT Demand'!$A$5:$BA$1004,24,FALSE)*'INPUT 12NC'!D107)+'INPUT 12NC'!C107)) -> 0 | Z23: =IF(A23="","",IF(VLOOKUP(A23,'INPUT Demand'!$A$5:$BA$1004,25,FALSE)=0,0,(VLOOKUP(A23,'INPUT Demand'!$A$5:$BA$1004,25,FALSE)*'INPUT 12NC'!D107)+'INPUT 12NC'!C107)) -> 0 | AA23: =IF(A23="","",IF(VLOOKUP(A23,'INPUT Demand'!$A$5:$BA$1004,26,FALSE)=0,0,(VLOOKUP(A23,'INPUT Demand'!$A$5:$BA$1004,26,FALSE)*'INPUT 12NC'!D107)+'INPUT 12NC'!C107)) -> 0 | AB23: =IF(A23="","",IF(VLOOKUP(A23,'INPUT Demand'!$A$5:$BA$1004,27,FALSE)=0,0,(VLOOKUP(A23,'INPUT Demand'!$A$5:$BA$1004,27,FALSE)*'INPUT 12NC'!D107)+'INPUT 12NC'!C107)) -> 0 | AC23: =IF(A23="","",IF(VLOOKUP(A23,'INPUT Demand'!$A$5:$BA$1004,28,FALSE)=0,0,(VLOOKUP(A23,'INPUT Demand'!$A$5:$BA$1004,28,FALSE)*'INPUT 12NC'!D107)+'INPUT 12NC'!C107)) -> 0 | AD23: =IF(A23="","",IF(VLOOKUP(A23,'INPUT Demand'!$A$5:$BA$1004,29,FALSE)=0,0,(VLOOKUP(A23,'INPUT Demand'!$A$5:$BA$1004,29,FALSE)*'INPUT 12NC'!D107)+'INPUT 12NC'!C107)) -> 0 | AE23: =IF(A23="","",IF(VLOOKUP(A23,'INPUT Demand'!$A$5:$BA$1004,30,FALSE)=0,0,(VLOOKUP(A23,'INPUT Demand'!$A$5:$BA$1004,30,FALSE)*'INPUT 12NC'!D107)+'INPUT 12NC'!C107)) -> 790 | AF23: =IF(A23="","",IF(VLOOKUP(A23,'INPUT Demand'!$A$5:$BA$1004,31,FALSE)=0,0,(VLOOKUP(A23,'INPUT Demand'!$A$5:$BA$1004,31,FALSE)*'INPUT 12NC'!D107)+'INPUT 12NC'!C107)) -> 0 | AG23: =IF(A23="","",IF(VLOOKUP(A23,'INPUT Demand'!$A$5:$BA$1004,32,FALSE)=0,0,(VLOOKUP(A23,'INPUT Demand'!$A$5:$BA$1004,32,FALSE)*'INPUT 12NC'!D107)+'INPUT 12NC'!C107)) -> 0 | AH23: =IF(A23="","",IF(VLOOKUP(A23,'INPUT Demand'!$A$5:$BA$1004,33,FALSE)=0,0,(VLOOKUP(A23,'INPUT Demand'!$A$5:$BA$1004,33,FALSE)*'INPUT 12NC'!D107)+'INPUT 12NC'!C107)) -> 0 | AI23: =IF(A23="","",IF(VLOOKUP(A23,'INPUT Demand'!$A$5:$BA$1004,34,FALSE)=0,0,(VLOOKUP(A23,'INPUT Demand'!$A$5:$BA$1004,34,FALSE)*'INPUT 12NC'!D107)+'INPUT 12NC'!C107)) -> 1180 | AJ23: =IF(A23="","",IF(VLOOKUP(A23,'INPUT Demand'!$A$5:$BA$1004,35,FALSE)=0,0,(VLOOKUP(A23,'INPUT Demand'!$A$5:$BA$1004,35,FALSE)*'INPUT 12NC'!D107)+'INPUT 12NC'!C107)) -> 0 | AK23: =IF(A23="","",IF(VLOOKUP(A23,'INPUT Demand'!$A$5:$BA$1004,36,FALSE)=0,0,(VLOOKUP(A23,'INPUT Demand'!$A$5:$BA$1004,36,FALSE)*'INPUT 12NC'!D107)+'INPUT 12NC'!C107)) -> 0 | AL23: =IF(A23="","",IF(VLOOKUP(A23,'INPUT Demand'!$A$5:$BA$1004,37,FALSE)=0,0,(VLOOKUP(A23,'INPUT Demand'!$A$5:$BA$1004,37,FALSE)*'INPUT 12NC'!D107)+'INPUT 12NC'!C107)) -> 0 | AM23: =IF(A23="","",IF(VLOOKUP(A23,'INPUT Demand'!$A$5:$BA$1004,38,FALSE)=0,0,(VLOOKUP(A23,'INPUT Demand'!$A$5:$BA$1004,38,FALSE)*'INPUT 12NC'!D107)+'INPUT 12NC'!C107)) -> 0 | AN23: =IF(A23="","",IF(VLOOKUP(A23,'INPUT Demand'!$A$5:$BA$1004,39,FALSE)=0,0,(VLOOKUP(A23,'INPUT Demand'!$A$5:$BA$1004,39,FALSE)*'INPUT 12NC'!D107)+'INPUT 12NC'!C107)) -> 0 | AO23: =IF(A23="","",IF(VLOOKUP(A23,'INPUT Demand'!$A$5:$BA$1004,40,FALSE)=0,0,(VLOOKUP(A23,'INPUT Demand'!$A$5:$BA$1004,40,FALSE)*'INPUT 12NC'!D107)+'INPUT 12NC'!C107)) -> 0 | AP23: =IF(A23="","",IF(VLOOKUP(A23,'INPUT Demand'!$A$5:$BA$1004,41,FALSE)=0,0,(VLOOKUP(A23,'INPUT Demand'!$A$5:$BA$1004,41,FALSE)*'INPUT 12NC'!D107)+'INPUT 12NC'!C107)) -> 0 | AQ23: =IF(A23="","",IF(VLOOKUP(A23,'INPUT Demand'!$A$5:$BA$1004,42,FALSE)=0,0,(VLOOKUP(A23,'INPUT Demand'!$A$5:$BA$1004,42,FALSE)*'INPUT 12NC'!D107)+'INPUT 12NC'!C107)) -> 0 | AR23: =IF(A23="","",IF(VLOOKUP(A23,'INPUT Demand'!$A$5:$BA$1004,43,FALSE)=0,0,(VLOOKUP(A23,'INPUT Demand'!$A$5:$BA$1004,43,FALSE)*'INPUT 12NC'!D107)+'INPUT 12NC'!C107)) -> 0 | AS23: =IF(A23="","",IF(VLOOKUP(A23,'INPUT Demand'!$A$5:$BA$1004,44,FALSE)=0,0,(VLOOKUP(A23,'INPUT Demand'!$A$5:$BA$1004,44,FALSE)*'INPUT 12NC'!D107)+'INPUT 12NC'!C107)) -> 0 | AT23: =IF(A23="","",IF(VLOOKUP(A23,'INPUT Demand'!$A$5:$BA$1004,45,FALSE)=0,0,(VLOOKUP(A23,'INPUT Demand'!$A$5:$BA$1004,45,FALSE)*'INPUT 12NC'!D107)+'INPUT 12NC'!C107)) -> 0 | AU23: =IF(A23="","",IF(VLOOKUP(A23,'INPUT Demand'!$A$5:$BA$1004,46,FALSE)=0,0,(VLOOKUP(A23,'INPUT Demand'!$A$5:$BA$1004,46,FALSE)*'INPUT 12NC'!D107)+'INPUT 12NC'!C107)) -> 0 | AV23: =IF(A23="","",IF(VLOOKUP(A23,'INPUT Demand'!$A$5:$BA$1004,47,FALSE)=0,0,(VLOOKUP(A23,'INPUT Demand'!$A$5:$BA$1004,47,FALSE)*'INPUT 12NC'!D107)+'INPUT 12NC'!C107)) -> 0 | AW23: =IF(A23="","",IF(VLOOKUP(A23,'INPUT Demand'!$A$5:$BA$1004,48,FALSE)=0,0,(VLOOKUP(A23,'INPUT Demand'!$A$5:$BA$1004,48,FALSE)*'INPUT 12NC'!D107)+'INPUT 12NC'!C107)) -> 0 | AX23: =IF(A23="","",IF(VLOOKUP(A23,'INPUT Demand'!$A$5:$BA$1004,49,FALSE)=0,0,(VLOOKUP(A23,'INPUT Demand'!$A$5:$BA$1004,49,FALSE)*'INPUT 12NC'!D107)+'INPUT 12NC'!C107)) -> 0 | AY23: =IF(A23="","",IF(VLOOKUP(A23,'INPUT Demand'!$A$5:$BA$1004,50,FALSE)=0,0,(VLOOKUP(A23,'INPUT Demand'!$A$5:$BA$1004,50,FALSE)*'INPUT 12NC'!D107)+'INPUT 12NC'!C107)) -> 0 | AZ23: =IF(A23="","",IF(VLOOKUP(A23,'INPUT Demand'!$A$5:$BA$1004,51,FALSE)=0,0,(VLOOKUP(A23,'INPUT Demand'!$A$5:$BA$1004,51,FALSE)*'INPUT 12NC'!D107)+'INPUT 12NC'!C107)) -> 0 | BA23: =IF(A23="","",IF(VLOOKUP(A23,'INPUT Demand'!$A$5:$BA$1004,52,FALSE)=0,0,(VLOOKUP(A23,'INPUT Demand'!$A$5:$BA$1004,52,FALSE)*'INPUT 12NC'!D107)+'INPUT 12NC'!C107)) -> 0 | BB23: =IF(A23="","",IF(VLOOKUP(A23,'INPUT Demand'!$A$5:$BA$1004,53,FALSE)=0,0,(VLOOKUP(A23,'INPUT Demand'!$A$5:$BA$1004,53,FALSE)*'INPUT 12NC'!D107)+'INPUT 12NC'!C107)) -> 0 | BC23: =IF(A23="","",SUM(D23:BB23)) -> 5306 | BD23: =IF(A23="","",IF(C23=1,BC23,0)) -> 5306
A24: 402264753391 | B24: 25 | C24: 1 | D24: =IF(A24="","",IF(VLOOKUP(A24,'INPUT Demand'!$A$5:$BA$1004,3,FALSE)=0,0,(VLOOKUP(A24,'INPUT Demand'!$A$5:$BA$1004,3,FALSE)*'INPUT 12NC'!D26)+'INPUT 12NC'!C26)) -> 869 | E24: =IF(A24="","",IF(VLOOKUP(A24,'INPUT Demand'!$A$5:$BA$1004,4,FALSE)=0,0,(VLOOKUP(A24,'INPUT Demand'!$A$5:$BA$1004,4,FALSE)*'INPUT 12NC'!D26)+'INPUT 12NC'!C26)) -> 0 | F24: =IF(A24="","",IF(VLOOKUP(A24,'INPUT Demand'!$A$5:$BA$1004,5,FALSE)=0,0,(VLOOKUP(A24,'INPUT Demand'!$A$5:$BA$1004,5,FALSE)*'INPUT 12NC'!D26)+'INPUT 12NC'!C26)) -> 0 | G24: =IF(A24="","",IF(VLOOKUP(A24,'INPUT Demand'!$A$5:$BA$1004,6,FALSE)=0,0,(VLOOKUP(A24,'INPUT Demand'!$A$5:$BA$1004,6,FALSE)*'INPUT 12NC'!D26)+'INPUT 12NC'!C26)) -> 0 | H24: =IF(A24="","",IF(VLOOKUP(A24,'INPUT Demand'!$A$5:$BA$1004,7,FALSE)=0,0,(VLOOKUP(A24,'INPUT Demand'!$A$5:$BA$1004,7,FALSE)*'INPUT 12NC'!D26)+'INPUT 12NC'!C26)) -> 0 | I24: =IF(A24="","",IF(VLOOKUP(A24,'INPUT Demand'!$A$5:$BA$1004,8,FALSE)=0,0,(VLOOKUP(A24,'INPUT Demand'!$A$5:$BA$1004,8,FALSE)*'INPUT 12NC'!D26)+'INPUT 12NC'!C26)) -> 869 | J24: =IF(A24="","",IF(VLOOKUP(A24,'INPUT Demand'!$A$5:$BA$1004,9,FALSE)=0,0,(VLOOKUP(A24,'INPUT Demand'!$A$5:$BA$1004,9,FALSE)*'INPUT 12NC'!D26)+'INPUT 12NC'!C26)) -> 0 | K24: =IF(A24="","",IF(VLOOKUP(A24,'INPUT Demand'!$A$5:$BA$1004,10,FALSE)=0,0,(VLOOKUP(A24,'INPUT Demand'!$A$5:$BA$1004,10,FALSE)*'INPUT 12NC'!D26)+'INPUT 12NC'!C26)) -> 0 | L24: =IF(A24="","",IF(VLOOKUP(A24,'INPUT Demand'!$A$5:$BA$1004,11,FALSE)=0,0,(VLOOKUP(A24,'INPUT Demand'!$A$5:$BA$1004,11,FALSE)*'INPUT 12NC'!D26)+'INPUT 12NC'!C26)) -> 0 | M24: =IF(A24="","",IF(VLOOKUP(A24,'INPUT Demand'!$A$5:$BA$1004,12,FALSE)=0,0,(VLOOKUP(A24,'INPUT Demand'!$A$5:$BA$1004,12,FALSE)*'INPUT 12NC'!D26)+'INPUT 12NC'!C26)) -> 0 | N24: =IF(A24="","",IF(VLOOKUP(A24,'INPUT Demand'!$A$5:$BA$1004,13,FALSE)=0,0,(VLOOKUP(A24,'INPUT Demand'!$A$5:$BA$1004,13,FALSE)*'INPUT 12NC'!D26)+'INPUT 12NC'!C26)) -> 437 | O24: =IF(A24="","",IF(VLOOKUP(A24,'INPUT Demand'!$A$5:$BA$1004,14,FALSE)=0,0,(VLOOKUP(A24,'INPUT Demand'!$A$5:$BA$1004,14,FALSE)*'INPUT 12NC'!D26)+'INPUT 12NC'!C26)) -> 0 | P24: =IF(A24="","",IF(VLOOKUP(A24,'INPUT Demand'!$A$5:$BA$1004,15,FALSE)=0,0,(VLOOKUP(A24,'INPUT Demand'!$A$5:$BA$1004,15,FALSE)*'INPUT 12NC'!D26)+'INPUT 12NC'!C26)) -> 0 | Q24: =IF(A24="","",IF(VLOOKUP(A24,'INPUT Demand'!$A$5:$BA$1004,16,FALSE)=0,0,(VLOOKUP(A24,'INPUT Demand'!$A$5:$BA$1004,16,FALSE)*'INPUT 12NC'!D26)+'INPUT 12NC'!C26)) -> 0 | R24: =IF(A24="","",IF(VLOOKUP(A24,'INPUT Demand'!$A$5:$BA$1004,17,FALSE)=0,0,(VLOOKUP(A24,'INPUT Demand'!$A$5:$BA$1004,17,FALSE)*'INPUT 12NC'!D26)+'INPUT 12NC'!C26)) -> 0 | S24: =IF(A24="","",IF(VLOOKUP(A24,'INPUT Demand'!$A$5:$BA$1004,18,FALSE)=0,0,(VLOOKUP(A24,'INPUT Demand'!$A$5:$BA$1004,18,FALSE)*'INPUT 12NC'!D26)+'INPUT 12NC'!C26)) -> 0 | T24: =IF(A24="","",IF(VLOOKUP(A24,'INPUT Demand'!$A$5:$BA$1004,19,FALSE)=0,0,(VLOOKUP(A24,'INPUT Demand'!$A$5:$BA$1004,19,FALSE)*'INPUT 12NC'!D26)+'INPUT 12NC'!C26)) -> 437 | U24: =IF(A24="","",IF(VLOOKUP(A24,'INPUT Demand'!$A$5:$BA$1004,20,FALSE)=0,0,(VLOOKUP(A24,'INPUT Demand'!$A$5:$BA$1004,20,FALSE)*'INPUT 12NC'!D26)+'INPUT 12NC'!C26)) -> 0 | V24: =IF(A24="","",IF(VLOOKUP(A24,'INPUT Demand'!$A$5:$BA$1004,21,FALSE)=0,0,(VLOOKUP(A24,'INPUT Demand'!$A$5:$BA$1004,21,FALSE)*'INPUT 12NC'!D26)+'INPUT 12NC'!C26)) -> 0 | W24: =IF(A24="","",IF(VLOOKUP(A24,'INPUT Demand'!$A$5:$BA$1004,22,FALSE)=0,0,(VLOOKUP(A24,'INPUT Demand'!$A$5:$BA$1004,22,FALSE)*'INPUT 12NC'!D26)+'INPUT 12NC'!C26)) -> 0 | X24: =IF(A24="","",IF(VLOOKUP(A24,'INPUT Demand'!$A$5:$BA$1004,23,FALSE)=0,0,(VLOOKUP(A24,'INPUT Demand'!$A$5:$BA$1004,23,FALSE)*'INPUT 12NC'!D26)+'INPUT 12NC'!C26)) -> 437 | Y24: =IF(A24="","",IF(VLOOKUP(A24,'INPUT Demand'!$A$5:$BA$1004,24,FALSE)=0,0,(VLOOKUP(A24,'INPUT Demand'!$A$5:$BA$1004,24,FALSE)*'INPUT 12NC'!D26)+'INPUT 12NC'!C26)) -> 0 | Z24: =IF(A24="","",IF(VLOOKUP(A24,'INPUT Demand'!$A$5:$BA$1004,25,FALSE)=0,0,(VLOOKUP(A24,'INPUT Demand'!$A$5:$BA$1004,25,FALSE)*'INPUT 12NC'!D26)+'INPUT 12NC'!C26)) -> 0 | AA24: =IF(A24="","",IF(VLOOKUP(A24,'INPUT Demand'!$A$5:$BA$1004,26,FALSE)=0,0,(VLOOKUP(A24,'INPUT Demand'!$A$5:$BA$1004,26,FALSE)*'INPUT 12NC'!D26)+'INPUT 12NC'!C26)) -> 0 | AB24: =IF(A24="","",IF(VLOOKUP(A24,'INPUT Demand'!$A$5:$BA$1004,27,FALSE)=0,0,(VLOOKUP(A24,'INPUT Demand'!$A$5:$BA$1004,27,FALSE)*'INPUT 12NC'!D26)+'INPUT 12NC'!C26)) -> 0 | AC24: =IF(A24="","",IF(VLOOKUP(A24,'INPUT Demand'!$A$5:$BA$1004,28,FALSE)=0,0,(VLOOKUP(A24,'INPUT Demand'!$A$5:$BA$1004,28,FALSE)*'INPUT 12NC'!D26)+'INPUT 12NC'!C26)) -> 0 | AD24: =IF(A24="","",IF(VLOOKUP(A24,'INPUT Demand'!$A$5:$BA$1004,29,FALSE)=0,0,(VLOOKUP(A24,'INPUT Demand'!$A$5:$BA$1004,29,FALSE)*'INPUT 12NC'!D26)+'INPUT 12NC'!C26)) -> 437 | AE24: =IF(A24="","",IF(VLOOKUP(A24,'INPUT Demand'!$A$5:$BA$1004,30,FALSE)=0,0,(VLOOKUP(A24,'INPUT Demand'!$A$5:$BA$1004,30,FALSE)*'INPUT 12NC'!D26)+'INPUT 12NC'!C26)) -> 0 | AF24: =IF(A24="","",IF(VLOOKUP(A24,'INPUT Demand'!$A$5:$BA$1004,31,FALSE)=0,0,(VLOOKUP(A24,'INPUT Demand'!$A$5:$BA$1004,31,FALSE)*'INPUT 12NC'!D26)+'INPUT 12NC'!C26)) -> 437 | AG24: =IF(A24="","",IF(VLOOKUP(A24,'INPUT Demand'!$A$5:$BA$1004,32,FALSE)=0,0,(VLOOKUP(A24,'INPUT Demand'!$A$5:$BA$1004,32,FALSE)*'INPUT 12NC'!D26)+'INPUT 12NC'!C26)) -> 0 | AH24: =IF(A24="","",IF(VLOOKUP(A24,'INPUT Demand'!$A$5:$BA$1004,33,FALSE)=0,0,(VLOOKUP(A24,'INPUT Demand'!$A$5:$BA$1004,33,FALSE)*'INPUT 12NC'!D26)+'INPUT 12NC'!C26)) -> 0 | AI24: =IF(A24="","",IF(VLOOKUP(A24,'INPUT Demand'!$A$5:$BA$1004,34,FALSE)=0,0,(VLOOKUP(A24,'INPUT Demand'!$A$5:$BA$1004,34,FALSE)*'INPUT 12NC'!D26)+'INPUT 12NC'!C26)) -> 0 | AJ24: =IF(A24="","",IF(VLOOKUP(A24,'INPUT Demand'!$A$5:$BA$1004,35,FALSE)=0,0,(VLOOKUP(A24,'INPUT Demand'!$A$5:$BA$1004,35,FALSE)*'INPUT 12NC'!D26)+'INPUT 12NC'!C26)) -> 437 | AK24: =IF(A24="","",IF(VLOOKUP(A24,'INPUT Demand'!$A$5:$BA$1004,36,FALSE)=0,0,(VLOOKUP(A24,'INPUT Demand'!$A$5:$BA$1004,36,FALSE)*'INPUT 12NC'!D26)+'INPUT 12NC'!C26)) -> 0 | AL24: =IF(A24="","",IF(VLOOKUP(A24,'INPUT Demand'!$A$5:$BA$1004,37,FALSE)=0,0,(VLOOKUP(A24,'INPUT Demand'!$A$5:$BA$1004,37,FALSE)*'INPUT 12NC'!D26)+'INPUT 12NC'!C26)) -> 0 | AM24: =IF(A24="","",IF(VLOOKUP(A24,'INPUT Demand'!$A$5:$BA$1004,38,FALSE)=0,0,(VLOOKUP(A24,'INPUT Demand'!$A$5:$BA$1004,38,FALSE)*'INPUT 12NC'!D26)+'INPUT 12NC'!C26)) -> 0 | AN24: =IF(A24="","",IF(VLOOKUP(A24,'INPUT Demand'!$A$5:$BA$1004,39,FALSE)=0,0,(VLOOKUP(A24,'INPUT Demand'!$A$5:$BA$1004,39,FALSE)*'INPUT 12NC'!D26)+'INPUT 12NC'!C26)) -> 0 | AO24: =IF(A24="","",IF(VLOOKUP(A24,'INPUT Demand'!$A$5:$BA$1004,40,FALSE)=0,0,(VLOOKUP(A24,'INPUT Demand'!$A$5:$BA$1004,40,FALSE)*'INPUT 12NC'!D26)+'INPUT 12NC'!C26)) -> 0 | AP24: =IF(A24="","",IF(VLOOKUP(A24,'INPUT Demand'!$A$5:$BA$1004,41,FALSE)=0,0,(VLOOKUP(A24,'INPUT Demand'!$A$5:$BA$1004,41,FALSE)*'INPUT 12NC'!D26)+'INPUT 12NC'!C26)) -> 0 | AQ24: =IF(A24="","",IF(VLOOKUP(A24,'INPUT Demand'!$A$5:$BA$1004,42,FALSE)=0,0,(VLOOKUP(A24,'INPUT Demand'!$A$5:$BA$1004,42,FALSE)*'INPUT 12NC'!D26)+'INPUT 12NC'!C26)) -> 0 | AR24: =IF(A24="","",IF(VLOOKUP(A24,'INPUT Demand'!$A$5:$BA$1004,43,FALSE)=0,0,(VLOOKUP(A24,'INPUT Demand'!$A$5:$BA$1004,43,FALSE)*'INPUT 12NC'!D26)+'INPUT 12NC'!C26)) -> 0 | AS24: =IF(A24="","",IF(VLOOKUP(A24,'INPUT Demand'!$A$5:$BA$1004,44,FALSE)=0,0,(VLOOKUP(A24,'INPUT Demand'!$A$5:$BA$1004,44,FALSE)*'INPUT 12NC'!D26)+'INPUT 12NC'!C26)) -> 0 | AT24: =IF(A24="","",IF(VLOOKUP(A24,'INPUT Demand'!$A$5:$BA$1004,45,FALSE)=0,0,(VLOOKUP(A24,'INPUT Demand'!$A$5:$BA$1004,45,FALSE)*'INPUT 12NC'!D26)+'INPUT 12NC'!C26)) -> 0 | AU24: =IF(A24="","",IF(VLOOKUP(A24,'INPUT Demand'!$A$5:$BA$1004,46,FALSE)=0,0,(VLOOKUP(A24,'INPUT Demand'!$A$5:$BA$1004,46,FALSE)*'INPUT 12NC'!D26)+'INPUT 12NC'!C26)) -> 0 | AV24: =IF(A24="","",IF(VLOOKUP(A24,'INPUT Demand'!$A$5:$BA$1004,47,FALSE)=0,0,(VLOOKUP(A24,'INPUT Demand'!$A$5:$BA$1004,47,FALSE)*'INPUT 12NC'!D26)+'INPUT 12NC'!C26)) -> 0 | AW24: =IF(A24="","",IF(VLOOKUP(A24,'INPUT Demand'!$A$5:$BA$1004,48,FALSE)=0,0,(VLOOKUP(A24,'INPUT Demand'!$A$5:$BA$1004,48,FALSE)*'INPUT 12NC'!D26)+'INPUT 12NC'!C26)) -> 0 | AX24: =IF(A24="","",IF(VLOOKUP(A24,'INPUT Demand'!$A$5:$BA$1004,49,FALSE)=0,0,(VLOOKUP(A24,'INPUT Demand'!$A$5:$BA$1004,49,FALSE)*'INPUT 12NC'!D26)+'INPUT 12NC'!C26)) -> 0 | AY24: =IF(A24="","",IF(VLOOKUP(A24,'INPUT Demand'!$A$5:$BA$1004,50,FALSE)=0,0,(VLOOKUP(A24,'INPUT Demand'!$A$5:$BA$1004,50,FALSE)*'INPUT 12NC'!D26)+'INPUT 12NC'!C26)) -> 0 | AZ24: =IF(A24="","",IF(VLOOKUP(A24,'INPUT Demand'!$A$5:$BA$1004,51,FALSE)=0,0,(VLOOKUP(A24,'INPUT Demand'!$A$5:$BA$1004,51,FALSE)*'INPUT 12NC'!D26)+'INPUT 12NC'!C26)) -> 437 | BA24: =IF(A24="","",IF(VLOOKUP(A24,'INPUT Demand'!$A$5:$BA$1004,52,FALSE)=0,0,(VLOOKUP(A24,'INPUT Demand'!$A$5:$BA$1004,52,FALSE)*'INPUT 12NC'!D26)+'INPUT 12NC'!C26)) -> 0 | BB24: =IF(A24="","",IF(VLOOKUP(A24,'INPUT Demand'!$A$5:$BA$1004,53,FALSE)=0,0,(VLOOKUP(A24,'INPUT Demand'!$A$5:$BA$1004,53,FALSE)*'INPUT 12NC'!D26)+'INPUT 12NC'!C26)) -> 0 | BC24: =IF(A24="","",SUM(D24:BB24)) -> 4797 | BD24: =IF(A24="","",IF(C24=1,BC24,0)) -> 4797
A25: 402264753311 | B25: 31 | C25: 1 | D25: =IF(A25="","",IF(VLOOKUP(A25,'INPUT Demand'!$A$5:$BA$1004,3,FALSE)=0,0,(VLOOKUP(A25,'INPUT Demand'!$A$5:$BA$1004,3,FALSE)*'INPUT 12NC'!D32)+'INPUT 12NC'!C32)) -> 0 | E25: =IF(A25="","",IF(VLOOKUP(A25,'INPUT Demand'!$A$5:$BA$1004,4,FALSE)=0,0,(VLOOKUP(A25,'INPUT Demand'!$A$5:$BA$1004,4,FALSE)*'INPUT 12NC'!D32)+'INPUT 12NC'!C32)) -> 0 | F25: =IF(A25="","",IF(VLOOKUP(A25,'INPUT Demand'!$A$5:$BA$1004,5,FALSE)=0,0,(VLOOKUP(A25,'INPUT Demand'!$A$5:$BA$1004,5,FALSE)*'INPUT 12NC'!D32)+'INPUT 12NC'!C32)) -> 0 | G25: =IF(A25="","",IF(VLOOKUP(A25,'INPUT Demand'!$A$5:$BA$1004,6,FALSE)=0,0,(VLOOKUP(A25,'INPUT Demand'!$A$5:$BA$1004,6,FALSE)*'INPUT 12NC'!D32)+'INPUT 12NC'!C32)) -> 461 | H25: =IF(A25="","",IF(VLOOKUP(A25,'INPUT Demand'!$A$5:$BA$1004,7,FALSE)=0,0,(VLOOKUP(A25,'INPUT Demand'!$A$5:$BA$1004,7,FALSE)*'INPUT 12NC'!D32)+'INPUT 12NC'!C32)) -> 0 | I25: =IF(A25="","",IF(VLOOKUP(A25,'INPUT Demand'!$A$5:$BA$1004,8,FALSE)=0,0,(VLOOKUP(A25,'INPUT Demand'!$A$5:$BA$1004,8,FALSE)*'INPUT 12NC'!D32)+'INPUT 12NC'!C32)) -> 0 | J25: =IF(A25="","",IF(VLOOKUP(A25,'INPUT Demand'!$A$5:$BA$1004,9,FALSE)=0,0,(VLOOKUP(A25,'INPUT Demand'!$A$5:$BA$1004,9,FALSE)*'INPUT 12NC'!D32)+'INPUT 12NC'!C32)) -> 0 | K25: =IF(A25="","",IF(VLOOKUP(A25,'INPUT Demand'!$A$5:$BA$1004,10,FALSE)=0,0,(VLOOKUP(A25,'INPUT Demand'!$A$5:$BA$1004,10,FALSE)*'INPUT 12NC'!D32)+'INPUT 12NC'!C32)) -> 0 | L25: =IF(A25="","",IF(VLOOKUP(A25,'INPUT Demand'!$A$5:$BA$1004,11,FALSE)=0,0,(VLOOKUP(A25,'INPUT Demand'!$A$5:$BA$1004,11,FALSE)*'INPUT 12NC'!D32)+'INPUT 12NC'!C32)) -> 0 | M25: =IF(A25="","",IF(VLOOKUP(A25,'INPUT Demand'!$A$5:$BA$1004,12,FALSE)=0,0,(VLOOKUP(A25,'INPUT Demand'!$A$5:$BA$1004,12,FALSE)*'INPUT 12NC'!D32)+'INPUT 12NC'!C32)) -> 0 | N25: =IF(A25="","",IF(VLOOKUP(A25,'INPUT Demand'!$A$5:$BA$1004,13,FALSE)=0,0,(VLOOKUP(A25,'INPUT Demand'!$A$5:$BA$1004,13,FALSE)*'INPUT 12NC'!D32)+'INPUT 12NC'!C32)) -> 0 | O25: =IF(A25="","",IF(VLOOKUP(A25,'INPUT Demand'!$A$5:$BA$1004,14,FALSE)=0,0,(VLOOKUP(A25,'INPUT Demand'!$A$5:$BA$1004,14,FALSE)*'INPUT 12NC'!D32)+'INPUT 12NC'!C32)) -> 860 | P25: =IF(A25="","",IF(VLOOKUP(A25,'INPUT Demand'!$A$5:$BA$1004,15,FALSE)=0,0,(VLOOKUP(A25,'INPUT Demand'!$A$5:$BA$1004,15,FALSE)*'INPUT 12NC'!D32)+'INPUT 12NC'!C32)) -> 518 | Q25: =IF(A25="","",IF(VLOOKUP(A25,'INPUT Demand'!$A$5:$BA$1004,16,FALSE)=0,0,(VLOOKUP(A25,'INPUT Demand'!$A$5:$BA$1004,16,FALSE)*'INPUT 12NC'!D32)+'INPUT 12NC'!C32)) -> 0 | R25: =IF(A25="","",IF(VLOOKUP(A25,'INPUT Demand'!$A$5:$BA$1004,17,FALSE)=0,0,(VLOOKUP(A25,'INPUT Demand'!$A$5:$BA$1004,17,FALSE)*'INPUT 12NC'!D32)+'INPUT 12NC'!C32)) -> 0 | S25: =IF(A25="","",IF(VLOOKUP(A25,'INPUT Demand'!$A$5:$BA$1004,18,FALSE)=0,0,(VLOOKUP(A25,'INPUT Demand'!$A$5:$BA$1004,18,FALSE)*'INPUT 12NC'!D32)+'INPUT 12NC'!C32)) -> 0 | T25: =IF(A25="","",IF(VLOOKUP(A25,'INPUT Demand'!$A$5:$BA$1004,19,FALSE)=0,0,(VLOOKUP(A25,'INPUT Demand'!$A$5:$BA$1004,19,FALSE)*'INPUT 12NC'!D32)+'INPUT 12NC'!C32)) -> 461 | U25: =IF(A25="","",IF(VLOOKUP(A25,'INPUT Demand'!$A$5:$BA$1004,20,FALSE)=0,0,(VLOOKUP(A25,'INPUT Demand'!$A$5:$BA$1004,20,FALSE)*'INPUT 12NC'!D32)+'INPUT 12NC'!C32)) -> 0 | V25: =IF(A25="","",IF(VLOOKUP(A25,'INPUT Demand'!$A$5:$BA$1004,21,FALSE)=0,0,(VLOOKUP(A25,'INPUT Demand'!$A$5:$BA$1004,21,FALSE)*'INPUT 12NC'!D32)+'INPUT 12NC'!C32)) -> 0 | W25: =IF(A25="","",IF(VLOOKUP(A25,'INPUT Demand'!$A$5:$BA$1004,22,FALSE)=0,0,(VLOOKUP(A25,'INPUT Demand'!$A$5:$BA$1004,22,FALSE)*'INPUT 12NC'!D32)+'INPUT 12NC'!C32)) -> 0 | X25: =IF(A25="","",IF(VLOOKUP(A25,'INPUT Demand'!$A$5:$BA$1004,23,FALSE)=0,0,(VLOOKUP(A25,'INPUT Demand'!$A$5:$BA$1004,23,FALSE)*'INPUT 12NC'!D32)+'INPUT 12NC'!C32)) -> 461 | Y25: =IF(A25="","",IF(VLOOKUP(A25,'INPUT Demand'!$A$5:$BA$1004,24,FALSE)=0,0,(VLOOKUP(A25,'INPUT Demand'!$A$5:$BA$1004,24,FALSE)*'INPUT 12NC'!D32)+'INPUT 12NC'!C32)) -> 0 | Z25: =IF(A25="","",IF(VLOOKUP(A25,'INPUT Demand'!$A$5:$BA$1004,25,FALSE)=0,0,(VLOOKUP(A25,'INPUT Demand'!$A$5:$BA$1004,25,FALSE)*'INPUT 12NC'!D32)+'INPUT 12NC'!C32)) -> 0 | AA25: =IF(A25="","",IF(VLOOKUP(A25,'INPUT Demand'!$A$5:$BA$1004,26,FALSE)=0,0,(VLOOKUP(A25,'INPUT Demand'!$A$5:$BA$1004,26,FALSE)*'INPUT 12NC'!D32)+'INPUT 12NC'!C32)) -> 0 | AB25: =IF(A25="","",IF(VLOOKUP(A25,'INPUT Demand'!$A$5:$BA$1004,27,FALSE)=0,0,(VLOOKUP(A25,'INPUT Demand'!$A$5:$BA$1004,27,FALSE)*'INPUT 12NC'!D32)+'INPUT 12NC'!C32)) -> 518 | AC25: =IF(A25="","",IF(VLOOKUP(A25,'INPUT Demand'!$A$5:$BA$1004,28,FALSE)=0,0,(VLOOKUP(A25,'INPUT Demand'!$A$5:$BA$1004,28,FALSE)*'INPUT 12NC'!D32)+'INPUT 12NC'!C32)) -> 0 | AD25: =IF(A25="","",IF(VLOOKUP(A25,'INPUT Demand'!$A$5:$BA$1004,29,FALSE)=0,0,(VLOOKUP(A25,'INPUT Demand'!$A$5:$BA$1004,29,FALSE)*'INPUT 12NC'!D32)+'INPUT 12NC'!C32)) -> 0 | AE25: =IF(A25="","",IF(VLOOKUP(A25,'INPUT Demand'!$A$5:$BA$1004,30,FALSE)=0,0,(VLOOKUP(A25,'INPUT Demand'!$A$5:$BA$1004,30,FALSE)*'INPUT 12NC'!D32)+'INPUT 12NC'!C32)) -> 119 | AF25: =IF(A25="","",IF(VLOOKUP(A25,'INPUT Demand'!$A$5:$BA$1004,31,FALSE)=0,0,(VLOOKUP(A25,'INPUT Demand'!$A$5:$BA$1004,31,FALSE)*'INPUT 12NC'!D32)+'INPUT 12NC'!C32)) -> 0 | AG25: =IF(A25="","",IF(VLOOKUP(A25,'INPUT Demand'!$A$5:$BA$1004,32,FALSE)=0,0,(VLOOKUP(A25,'INPUT Demand'!$A$5:$BA$1004,32,FALSE)*'INPUT 12NC'!D32)+'INPUT 12NC'!C32)) -> 0 | AH25: =IF(A25="","",IF(VLOOKUP(A25,'INPUT Demand'!$A$5:$BA$1004,33,FALSE)=0,0,(VLOOKUP(A25,'INPUT Demand'!$A$5:$BA$1004,33,FALSE)*'INPUT 12NC'!D32)+'INPUT 12NC'!C32)) -> 0 | AI25: =IF(A25="","",IF(VLOOKUP(A25,'INPUT Demand'!$A$5:$BA$1004,34,FALSE)=0,0,(VLOOKUP(A25,'INPUT Demand'!$A$5:$BA$1004,34,FALSE)*'INPUT 12NC'!D32)+'INPUT 12NC'!C32)) -> 0 | AJ25: =IF(A25="","",IF(VLOOKUP(A25,'INPUT Demand'!$A$5:$BA$1004,35,FALSE)=0,0,(VLOOKUP(A25,'INPUT Demand'!$A$5:$BA$1004,35,FALSE)*'INPUT 12NC'!D32)+'INPUT 12NC'!C32)) -> 0 | AK25: =IF(A25="","",IF(VLOOKUP(A25,'INPUT Demand'!$A$5:$BA$1004,36,FALSE)=0,0,(VLOOKUP(A25,'INPUT Demand'!$A$5:$BA$1004,36,FALSE)*'INPUT 12NC'!D32)+'INPUT 12NC'!C32)) -> 461 | AL25: =IF(A25="","",IF(VLOOKUP(A25,'INPUT Demand'!$A$5:$BA$1004,37,FALSE)=0,0,(VLOOKUP(A25,'INPUT Demand'!$A$5:$BA$1004,37,FALSE)*'INPUT 12NC'!D32)+'INPUT 12NC'!C32)) -> 461 | AM25: =IF(A25="","",IF(VLOOKUP(A25,'INPUT Demand'!$A$5:$BA$1004,38,FALSE)=0,0,(VLOOKUP(A25,'INPUT Demand'!$A$5:$BA$1004,38,FALSE)*'INPUT 12NC'!D32)+'INPUT 12NC'!C32)) -> 0 | AN25: =IF(A25="","",IF(VLOOKUP(A25,'INPUT Demand'!$A$5:$BA$1004,39,FALSE)=0,0,(VLOOKUP(A25,'INPUT Demand'!$A$5:$BA$1004,39,FALSE)*'INPUT 12NC'!D32)+'INPUT 12NC'!C32)) -> 0 | AO25: =IF(A25="","",IF(VLOOKUP(A25,'INPUT Demand'!$A$5:$BA$1004,40,FALSE)=0,0,(VLOOKUP(A25,'INPUT Demand'!$A$5:$BA$1004,40,FALSE)*'INPUT 12NC'!D32)+'INPUT 12NC'!C32)) -> 0 | AP25: =IF(A25="","",IF(VLOOKUP(A25,'INPUT Demand'!$A$5:$BA$1004,41,FALSE)=0,0,(VLOOKUP(A25,'INPUT Demand'!$A$5:$BA$1004,41,FALSE)*'INPUT 12NC'!D32)+'INPUT 12NC'!C32)) -> 0 | AQ25: =IF(A25="","",IF(VLOOKUP(A25,'INPUT Demand'!$A$5:$BA$1004,42,FALSE)=0,0,(VLOOKUP(A25,'INPUT Demand'!$A$5:$BA$1004,42,FALSE)*'INPUT 12NC'!D32)+'INPUT 12NC'!C32)) -> 0 | AR25: =IF(A25="","",IF(VLOOKUP(A25,'INPUT Demand'!$A$5:$BA$1004,43,FALSE)=0,0,(VLOOKUP(A25,'INPUT Demand'!$A$5:$BA$1004,43,FALSE)*'INPUT 12NC'!D32)+'INPUT 12NC'!C32)) -> 0 | AS25: =IF(A25="","",IF(VLOOKUP(A25,'INPUT Demand'!$A$5:$BA$1004,44,FALSE)=0,0,(VLOOKUP(A25,'INPUT Demand'!$A$5:$BA$1004,44,FALSE)*'INPUT 12NC'!D32)+'INPUT 12NC'!C32)) -> 0 | AT25: =IF(A25="","",IF(VLOOKUP(A25,'INPUT Demand'!$A$5:$BA$1004,45,FALSE)=0,0,(VLOOKUP(A25,'INPUT Demand'!$A$5:$BA$1004,45,FALSE)*'INPUT 12NC'!D32)+'INPUT 12NC'!C32)) -> 0 | AU25: =IF(A25="","",IF(VLOOKUP(A25,'INPUT Demand'!$A$5:$BA$1004,46,FALSE)=0,0,(VLOOKUP(A25,'INPUT Demand'!$A$5:$BA$1004,46,FALSE)*'INPUT 12NC'!D32)+'INPUT 12NC'!C32)) -> 0 | AV25: =IF(A25="","",IF(VLOOKUP(A25,'INPUT Demand'!$A$5:$BA$1004,47,FALSE)=0,0,(VLOOKUP(A25,'INPUT Demand'!$A$5:$BA$1004,47,FALSE)*'INPUT 12NC'!D32)+'INPUT 12NC'!C32)) -> 0 | AW25: =IF(A25="","",IF(VLOOKUP(A25,'INPUT Demand'!$A$5:$BA$1004,48,FALSE)=0,0,(VLOOKUP(A25,'INPUT Demand'!$A$5:$BA$1004,48,FALSE)*'INPUT 12NC'!D32)+'INPUT 12NC'!C32)) -> 0 | AX25: =IF(A25="","",IF(VLOOKUP(A25,'INPUT Demand'!$A$5:$BA$1004,49,FALSE)=0,0,(VLOOKUP(A25,'INPUT Demand'!$A$5:$BA$1004,49,FALSE)*'INPUT 12NC'!D32)+'INPUT 12NC'!C32)) -> 0 | AY25: =IF(A25="","",IF(VLOOKUP(A25,'INPUT Demand'!$A$5:$BA$1004,50,FALSE)=0,0,(VLOOKUP(A25,'INPUT Demand'!$A$5:$BA$1004,50,FALSE)*'INPUT 12NC'!D32)+'INPUT 12NC'!C32)) -> 0 | AZ25: =IF(A25="","",IF(VLOOKUP(A25,'INPUT Demand'!$A$5:$BA$1004,51,FALSE)=0,0,(VLOOKUP(A25,'INPUT Demand'!$A$5:$BA$1004,51,FALSE)*'INPUT 12NC'!D32)+'INPUT 12NC'!C32)) -> 404 | BA25: =IF(A25="","",IF(VLOOKUP(A25,'INPUT Demand'!$A$5:$BA$1004,52,FALSE)=0,0,(VLOOKUP(A25,'INPUT Demand'!$A$5:$BA$1004,52,FALSE)*'INPUT 12NC'!D32)+'INPUT 12NC'!C32)) -> 0 | BB25: =IF(A25="","",IF(VLOOKUP(A25,'INPUT Demand'!$A$5:$BA$1004,53,FALSE)=0,0,(VLOOKUP(A25,'INPUT Demand'!$A$5:$BA$1004,53,FALSE)*'INPUT 12NC'!D32)+'INPUT 12NC'!C32)) -> 0 | BC25: =IF(A25="","",SUM(D25:BB25)) -> 4724 | BD25: =IF(A25="","",IF(C25=1,BC25,0)) -> 4724
A26: 402263912841 | B26: 56 | C26: 1 | D26: =IF(A26="","",IF(VLOOKUP(A26,'INPUT Demand'!$A$5:$BA$1004,3,FALSE)=0,0,(VLOOKUP(A26,'INPUT Demand'!$A$5:$BA$1004,3,FALSE)*'INPUT 12NC'!D57)+'INPUT 12NC'!C57)) -> 286 | E26: =IF(A26="","",IF(VLOOKUP(A26,'INPUT Demand'!$A$5:$BA$1004,4,FALSE)=0,0,(VLOOKUP(A26,'INPUT Demand'!$A$5:$BA$1004,4,FALSE)*'INPUT 12NC'!D57)+'INPUT 12NC'!C57)) -> 0 | F26: =IF(A26="","",IF(VLOOKUP(A26,'INPUT Demand'!$A$5:$BA$1004,5,FALSE)=0,0,(VLOOKUP(A26,'INPUT Demand'!$A$5:$BA$1004,5,FALSE)*'INPUT 12NC'!D57)+'INPUT 12NC'!C57)) -> 190 | G26: =IF(A26="","",IF(VLOOKUP(A26,'INPUT Demand'!$A$5:$BA$1004,6,FALSE)=0,0,(VLOOKUP(A26,'INPUT Demand'!$A$5:$BA$1004,6,FALSE)*'INPUT 12NC'!D57)+'INPUT 12NC'!C57)) -> 0 | H26: =IF(A26="","",IF(VLOOKUP(A26,'INPUT Demand'!$A$5:$BA$1004,7,FALSE)=0,0,(VLOOKUP(A26,'INPUT Demand'!$A$5:$BA$1004,7,FALSE)*'INPUT 12NC'!D57)+'INPUT 12NC'!C57)) -> 70 | I26: =IF(A26="","",IF(VLOOKUP(A26,'INPUT Demand'!$A$5:$BA$1004,8,FALSE)=0,0,(VLOOKUP(A26,'INPUT Demand'!$A$5:$BA$1004,8,FALSE)*'INPUT 12NC'!D57)+'INPUT 12NC'!C57)) -> 0 | J26: =IF(A26="","",IF(VLOOKUP(A26,'INPUT Demand'!$A$5:$BA$1004,9,FALSE)=0,0,(VLOOKUP(A26,'INPUT Demand'!$A$5:$BA$1004,9,FALSE)*'INPUT 12NC'!D57)+'INPUT 12NC'!C57)) -> 262 | K26: =IF(A26="","",IF(VLOOKUP(A26,'INPUT Demand'!$A$5:$BA$1004,10,FALSE)=0,0,(VLOOKUP(A26,'INPUT Demand'!$A$5:$BA$1004,10,FALSE)*'INPUT 12NC'!D57)+'INPUT 12NC'!C57)) -> 0 | L26: =IF(A26="","",IF(VLOOKUP(A26,'INPUT Demand'!$A$5:$BA$1004,11,FALSE)=0,0,(VLOOKUP(A26,'INPUT Demand'!$A$5:$BA$1004,11,FALSE)*'INPUT 12NC'!D57)+'INPUT 12NC'!C57)) -> 0 | M26: =IF(A26="","",IF(VLOOKUP(A26,'INPUT Demand'!$A$5:$BA$1004,12,FALSE)=0,0,(VLOOKUP(A26,'INPUT Demand'!$A$5:$BA$1004,12,FALSE)*'INPUT 12NC'!D57)+'INPUT 12NC'!C57)) -> 190 | N26: =IF(A26="","",IF(VLOOKUP(A26,'INPUT Demand'!$A$5:$BA$1004,13,FALSE)=0,0,(VLOOKUP(A26,'INPUT Demand'!$A$5:$BA$1004,13,FALSE)*'INPUT 12NC'!D57)+'INPUT 12NC'!C57)) -> 190 | O26: =IF(A26="","",IF(VLOOKUP(A26,'INPUT Demand'!$A$5:$BA$1004,14,FALSE)=0,0,(VLOOKUP(A26,'INPUT Demand'!$A$5:$BA$1004,14,FALSE)*'INPUT 12NC'!D57)+'INPUT 12NC'!C57)) -> 0 | P26: =IF(A26="","",IF(VLOOKUP(A26,'INPUT Demand'!$A$5:$BA$1004,15,FALSE)=0,0,(VLOOKUP(A26,'INPUT Demand'!$A$5:$BA$1004,15,FALSE)*'INPUT 12NC'!D57)+'INPUT 12NC'!C57)) -> 0 | Q26: =IF(A26="","",IF(VLOOKUP(A26,'INPUT Demand'!$A$5:$BA$1004,16,FALSE)=0,0,(VLOOKUP(A26,'INPUT Demand'!$A$5:$BA$1004,16,FALSE)*'INPUT 12NC'!D57)+'INPUT 12NC'!C57)) -> 0 | R26: =IF(A26="","",IF(VLOOKUP(A26,'INPUT Demand'!$A$5:$BA$1004,17,FALSE)=0,0,(VLOOKUP(A26,'INPUT Demand'!$A$5:$BA$1004,17,FALSE)*'INPUT 12NC'!D57)+'INPUT 12NC'!C57)) -> 0 | S26: =IF(A26="","",IF(VLOOKUP(A26,'INPUT Demand'!$A$5:$BA$1004,18,FALSE)=0,0,(VLOOKUP(A26,'INPUT Demand'!$A$5:$BA$1004,18,FALSE)*'INPUT 12NC'!D57)+'INPUT 12NC'!C57)) -> 202 | T26: =IF(A26="","",IF(VLOOKUP(A26,'INPUT Demand'!$A$5:$BA$1004,19,FALSE)=0,0,(VLOOKUP(A26,'INPUT Demand'!$A$5:$BA$1004,19,FALSE)*'INPUT 12NC'!D57)+'INPUT 12NC'!C57)) -> 370 | U26: =IF(A26="","",IF(VLOOKUP(A26,'INPUT Demand'!$A$5:$BA$1004,20,FALSE)=0,0,(VLOOKUP(A26,'INPUT Demand'!$A$5:$BA$1004,20,FALSE)*'INPUT 12NC'!D57)+'INPUT 12NC'!C57)) -> 0 | V26: =IF(A26="","",IF(VLOOKUP(A26,'INPUT Demand'!$A$5:$BA$1004,21,FALSE)=0,0,(VLOOKUP(A26,'INPUT Demand'!$A$5:$BA$1004,21,FALSE)*'INPUT 12NC'!D57)+'INPUT 12NC'!C57)) -> 0 | W26: =IF(A26="","",IF(VLOOKUP(A26,'INPUT Demand'!$A$5:$BA$1004,22,FALSE)=0,0,(VLOOKUP(A26,'INPUT Demand'!$A$5:$BA$1004,22,FALSE)*'INPUT 12NC'!D57)+'INPUT 12NC'!C57)) -> 0 | X26: =IF(A26="","",IF(VLOOKUP(A26,'INPUT Demand'!$A$5:$BA$1004,23,FALSE)=0,0,(VLOOKUP(A26,'INPUT Demand'!$A$5:$BA$1004,23,FALSE)*'INPUT 12NC'!D57)+'INPUT 12NC'!C57)) -> 0 | Y26: =IF(A26="","",IF(VLOOKUP(A26,'INPUT Demand'!$A$5:$BA$1004,24,FALSE)=0,0,(VLOOKUP(A26,'INPUT Demand'!$A$5:$BA$1004,24,FALSE)*'INPUT 12NC'!D57)+'INPUT 12NC'!C57)) -> 0 | Z26: =IF(A26="","",IF(VLOOKUP(A26,'INPUT Demand'!$A$5:$BA$1004,25,FALSE)=0,0,(VLOOKUP(A26,'INPUT Demand'!$A$5:$BA$1004,25,FALSE)*'INPUT 12NC'!D57)+'INPUT 12NC'!C57)) -> 0 | AA26: =IF(A26="","",IF(VLOOKUP(A26,'INPUT Demand'!$A$5:$BA$1004,26,FALSE)=0,0,(VLOOKUP(A26,'INPUT Demand'!$A$5:$BA$1004,26,FALSE)*'INPUT 12NC'!D57)+'INPUT 12NC'!C57)) -> 190 | AB26: =IF(A26="","",IF(VLOOKUP(A26,'INPUT Demand'!$A$5:$BA$1004,27,FALSE)=0,0,(VLOOKUP(A26,'INPUT Demand'!$A$5:$BA$1004,27,FALSE)*'INPUT 12NC'!D57)+'INPUT 12NC'!C57)) -> 190 | AC26: =IF(A26="","",IF(VLOOKUP(A26,'INPUT Demand'!$A$5:$BA$1004,28,FALSE)=0,0,(VLOOKUP(A26,'INPUT Demand'!$A$5:$BA$1004,28,FALSE)*'INPUT 12NC'!D57)+'INPUT 12NC'!C57)) -> 190 | AD26: =IF(A26="","",IF(VLOOKUP(A26,'INPUT Demand'!$A$5:$BA$1004,29,FALSE)=0,0,(VLOOKUP(A26,'INPUT Demand'!$A$5:$BA$1004,29,FALSE)*'INPUT 12NC'!D57)+'INPUT 12NC'!C57)) -> 0 | AE26: =IF(A26="","",IF(VLOOKUP(A26,'INPUT Demand'!$A$5:$BA$1004,30,FALSE)=0,0,(VLOOKUP(A26,'INPUT Demand'!$A$5:$BA$1004,30,FALSE)*'INPUT 12NC'!D57)+'INPUT 12NC'!C57)) -> 0 | AF26: =IF(A26="","",IF(VLOOKUP(A26,'INPUT Demand'!$A$5:$BA$1004,31,FALSE)=0,0,(VLOOKUP(A26,'INPUT Demand'!$A$5:$BA$1004,31,FALSE)*'INPUT 12NC'!D57)+'INPUT 12NC'!C57)) -> 190 | AG26: =IF(A26="","",IF(VLOOKUP(A26,'INPUT Demand'!$A$5:$BA$1004,32,FALSE)=0,0,(VLOOKUP(A26,'INPUT Demand'!$A$5:$BA$1004,32,FALSE)*'INPUT 12NC'!D57)+'INPUT 12NC'!C57)) -> 190 | AH26: =IF(A26="","",IF(VLOOKUP(A26,'INPUT Demand'!$A$5:$BA$1004,33,FALSE)=0,0,(VLOOKUP(A26,'INPUT Demand'!$A$5:$BA$1004,33,FALSE)*'INPUT 12NC'!D57)+'INPUT 12NC'!C57)) -> 0 | AI26: =IF(A26="","",IF(VLOOKUP(A26,'INPUT Demand'!$A$5:$BA$1004,34,FALSE)=0,0,(VLOOKUP(A26,'INPUT Demand'!$A$5:$BA$1004,34,FALSE)*'INPUT 12NC'!D57)+'INPUT 12NC'!C57)) -> 0 | AJ26: =IF(A26="","",IF(VLOOKUP(A26,'INPUT Demand'!$A$5:$BA$1004,35,FALSE)=0,0,(VLOOKUP(A26,'INPUT Demand'!$A$5:$BA$1004,35,FALSE)*'INPUT 12NC'!D57)+'INPUT 12NC'!C57)) -> 0 | AK26: =IF(A26="","",IF(VLOOKUP(A26,'INPUT Demand'!$A$5:$BA$1004,36,FALSE)=0,0,(VLOOKUP(A26,'INPUT Demand'!$A$5:$BA$1004,36,FALSE)*'INPUT 12NC'!D57)+'INPUT 12NC'!C57)) -> 0 | AL26: =IF(A26="","",IF(VLOOKUP(A26,'INPUT Demand'!$A$5:$BA$1004,37,FALSE)=0,0,(VLOOKUP(A26,'INPUT Demand'!$A$5:$BA$1004,37,FALSE)*'INPUT 12NC'!D57)+'INPUT 12NC'!C57)) -> 190 | AM26: =IF(A26="","",IF(VLOOKUP(A26,'INPUT Demand'!$A$5:$BA$1004,38,FALSE)=0,0,(VLOOKUP(A26,'INPUT Demand'!$A$5:$BA$1004,38,FALSE)*'INPUT 12NC'!D57)+'INPUT 12NC'!C57)) -> 190 | AN26: =IF(A26="","",IF(VLOOKUP(A26,'INPUT Demand'!$A$5:$BA$1004,39,FALSE)=0,0,(VLOOKUP(A26,'INPUT Demand'!$A$5:$BA$1004,39,FALSE)*'INPUT 12NC'!D57)+'INPUT 12NC'!C57)) -> 0 | AO26: =IF(A26="","",IF(VLOOKUP(A26,'INPUT Demand'!$A$5:$BA$1004,40,FALSE)=0,0,(VLOOKUP(A26,'INPUT Demand'!$A$5:$BA$1004,40,FALSE)*'INPUT 12NC'!D57)+'INPUT 12NC'!C57)) -> 0 | AP26: =IF(A26="","",IF(VLOOKUP(A26,'INPUT Demand'!$A$5:$BA$1004,41,FALSE)=0,0,(VLOOKUP(A26,'INPUT Demand'!$A$5:$BA$1004,41,FALSE)*'INPUT 12NC'!D57)+'INPUT 12NC'!C57)) -> 370 | AQ26: =IF(A26="","",IF(VLOOKUP(A26,'INPUT Demand'!$A$5:$BA$1004,42,FALSE)=0,0,(VLOOKUP(A26,'INPUT Demand'!$A$5:$BA$1004,42,FALSE)*'INPUT 12NC'!D57)+'INPUT 12NC'!C57)) -> 0 | AR26: =IF(A26="","",IF(VLOOKUP(A26,'INPUT Demand'!$A$5:$BA$1004,43,FALSE)=0,0,(VLOOKUP(A26,'INPUT Demand'!$A$5:$BA$1004,43,FALSE)*'INPUT 12NC'!D57)+'INPUT 12NC'!C57)) -> 214 | AS26: =IF(A26="","",IF(VLOOKUP(A26,'INPUT Demand'!$A$5:$BA$1004,44,FALSE)=0,0,(VLOOKUP(A26,'INPUT Demand'!$A$5:$BA$1004,44,FALSE)*'INPUT 12NC'!D57)+'INPUT 12NC'!C57)) -> 0 | AT26: =IF(A26="","",IF(VLOOKUP(A26,'INPUT Demand'!$A$5:$BA$1004,45,FALSE)=0,0,(VLOOKUP(A26,'INPUT Demand'!$A$5:$BA$1004,45,FALSE)*'INPUT 12NC'!D57)+'INPUT 12NC'!C57)) -> 0 | AU26: =IF(A26="","",IF(VLOOKUP(A26,'INPUT Demand'!$A$5:$BA$1004,46,FALSE)=0,0,(VLOOKUP(A26,'INPUT Demand'!$A$5:$BA$1004,46,FALSE)*'INPUT 12NC'!D57)+'INPUT 12NC'!C57)) -> 0 | AV26: =IF(A26="","",IF(VLOOKUP(A26,'INPUT Demand'!$A$5:$BA$1004,47,FALSE)=0,0,(VLOOKUP(A26,'INPUT Demand'!$A$5:$BA$1004,47,FALSE)*'INPUT 12NC'!D57)+'INPUT 12NC'!C57)) -> 0 | AW26: =IF(A26="","",IF(VLOOKUP(A26,'INPUT Demand'!$A$5:$BA$1004,48,FALSE)=0,0,(VLOOKUP(A26,'INPUT Demand'!$A$5:$BA$1004,48,FALSE)*'INPUT 12NC'!D57)+'INPUT 12NC'!C57)) -> 0 | AX26: =IF(A26="","",IF(VLOOKUP(A26,'INPUT Demand'!$A$5:$BA$1004,49,FALSE)=0,0,(VLOOKUP(A26,'INPUT Demand'!$A$5:$BA$1004,49,FALSE)*'INPUT 12NC'!D57)+'INPUT 12NC'!C57)) -> 0 | AY26: =IF(A26="","",IF(VLOOKUP(A26,'INPUT Demand'!$A$5:$BA$1004,50,FALSE)=0,0,(VLOOKUP(A26,'INPUT Demand'!$A$5:$BA$1004,50,FALSE)*'INPUT 12NC'!D57)+'INPUT 12NC'!C57)) -> 190 | AZ26: =IF(A26="","",IF(VLOOKUP(A26,'INPUT Demand'!$A$5:$BA$1004,51,FALSE)=0,0,(VLOOKUP(A26,'INPUT Demand'!$A$5:$BA$1004,51,FALSE)*'INPUT 12NC'!D57)+'INPUT 12NC'!C57)) -> 0 | BA26: =IF(A26="","",IF(VLOOKUP(A26,'INPUT Demand'!$A$5:$BA$1004,52,FALSE)=0,0,(VLOOKUP(A26,'INPUT Demand'!$A$5:$BA$1004,52,FALSE)*'INPUT 12NC'!D57)+'INPUT 12NC'!C57)) -> 226 | BB26: =IF(A26="","",IF(VLOOKUP(A26,'INPUT Demand'!$A$5:$BA$1004,53,FALSE)=0,0,(VLOOKUP(A26,'INPUT Demand'!$A$5:$BA$1004,53,FALSE)*'INPUT 12NC'!D57)+'INPUT 12NC'!C57)) -> 0 | BC26: =IF(A26="","",SUM(D26:BB26)) -> 4090 | BD26: =IF(A26="","",IF(C26=1,BC26,0)) -> 4090
A27: 402263914623 | B27: 54 | C27: 0 | D27: =IF(A27="","",IF(VLOOKUP(A27,'INPUT Demand'!$A$5:$BA$1004,3,FALSE)=0,0,(VLOOKUP(A27,'INPUT Demand'!$A$5:$BA$1004,3,FALSE)*'INPUT 12NC'!D55)+'INPUT 12NC'!C55)) -> 0 | E27: =IF(A27="","",IF(VLOOKUP(A27,'INPUT Demand'!$A$5:$BA$1004,4,FALSE)=0,0,(VLOOKUP(A27,'INPUT Demand'!$A$5:$BA$1004,4,FALSE)*'INPUT 12NC'!D55)+'INPUT 12NC'!C55)) -> 0 | F27: =IF(A27="","",IF(VLOOKUP(A27,'INPUT Demand'!$A$5:$BA$1004,5,FALSE)=0,0,(VLOOKUP(A27,'INPUT Demand'!$A$5:$BA$1004,5,FALSE)*'INPUT 12NC'!D55)+'INPUT 12NC'!C55)) -> 226.88 | G27: =IF(A27="","",IF(VLOOKUP(A27,'INPUT Demand'!$A$5:$BA$1004,6,FALSE)=0,0,(VLOOKUP(A27,'INPUT Demand'!$A$5:$BA$1004,6,FALSE)*'INPUT 12NC'!D55)+'INPUT 12NC'!C55)) -> 226.88 | H27: =IF(A27="","",IF(VLOOKUP(A27,'INPUT Demand'!$A$5:$BA$1004,7,FALSE)=0,0,(VLOOKUP(A27,'INPUT Demand'!$A$5:$BA$1004,7,FALSE)*'INPUT 12NC'!D55)+'INPUT 12NC'!C55)) -> 0 | I27: =IF(A27="","",IF(VLOOKUP(A27,'INPUT Demand'!$A$5:$BA$1004,8,FALSE)=0,0,(VLOOKUP(A27,'INPUT Demand'!$A$5:$BA$1004,8,FALSE)*'INPUT 12NC'!D55)+'INPUT 12NC'!C55)) -> 0 | J27: =IF(A27="","",IF(VLOOKUP(A27,'INPUT Demand'!$A$5:$BA$1004,9,FALSE)=0,0,(VLOOKUP(A27,'INPUT Demand'!$A$5:$BA$1004,9,FALSE)*'INPUT 12NC'!D55)+'INPUT 12NC'!C55)) -> 0 | K27: =IF(A27="","",IF(VLOOKUP(A27,'INPUT Demand'!$A$5:$BA$1004,10,FALSE)=0,0,(VLOOKUP(A27,'INPUT Demand'!$A$5:$BA$1004,10,FALSE)*'INPUT 12NC'!D55)+'INPUT 12NC'!C55)) -> 226.88 | L27: =IF(A27="","",IF(VLOOKUP(A27,'INPUT Demand'!$A$5:$BA$1004,11,FALSE)=0,0,(VLOOKUP(A27,'INPUT Demand'!$A$5:$BA$1004,11,FALSE)*'INPUT 12NC'!D55)+'INPUT 12NC'!C55)) -> 0 | M27: =IF(A27="","",IF(VLOOKUP(A27,'INPUT Demand'!$A$5:$BA$1004,12,FALSE)=0,0,(VLOOKUP(A27,'INPUT Demand'!$A$5:$BA$1004,12,FALSE)*'INPUT 12NC'!D55)+'INPUT 12NC'!C55)) -> 0 | N27: =IF(A27="","",IF(VLOOKUP(A27,'INPUT Demand'!$A$5:$BA$1004,13,FALSE)=0,0,(VLOOKUP(A27,'INPUT Demand'!$A$5:$BA$1004,13,FALSE)*'INPUT 12NC'!D55)+'INPUT 12NC'!C55)) -> 123.44 | O27: =IF(A27="","",IF(VLOOKUP(A27,'INPUT Demand'!$A$5:$BA$1004,14,FALSE)=0,0,(VLOOKUP(A27,'INPUT Demand'!$A$5:$BA$1004,14,FALSE)*'INPUT 12NC'!D55)+'INPUT 12NC'!C55)) -> 123.44 | P27: =IF(A27="","",IF(VLOOKUP(A27,'INPUT Demand'!$A$5:$BA$1004,15,FALSE)=0,0,(VLOOKUP(A27,'INPUT Demand'!$A$5:$BA$1004,15,FALSE)*'INPUT 12NC'!D55)+'INPUT 12NC'!C55)) -> 0 | Q27: =IF(A27="","",IF(VLOOKUP(A27,'INPUT Demand'!$A$5:$BA$1004,16,FALSE)=0,0,(VLOOKUP(A27,'INPUT Demand'!$A$5:$BA$1004,16,FALSE)*'INPUT 12NC'!D55)+'INPUT 12NC'!C55)) -> 123.44 | R27: =IF(A27="","",IF(VLOOKUP(A27,'INPUT Demand'!$A$5:$BA$1004,17,FALSE)=0,0,(VLOOKUP(A27,'INPUT Demand'!$A$5:$BA$1004,17,FALSE)*'INPUT 12NC'!D55)+'INPUT 12NC'!C55)) -> 123.44 | S27: =IF(A27="","",IF(VLOOKUP(A27,'INPUT Demand'!$A$5:$BA$1004,18,FALSE)=0,0,(VLOOKUP(A27,'INPUT Demand'!$A$5:$BA$1004,18,FALSE)*'INPUT 12NC'!D55)+'INPUT 12NC'!C55)) -> 123.44 | T27: =IF(A27="","",IF(VLOOKUP(A27,'INPUT Demand'!$A$5:$BA$1004,19,FALSE)=0,0,(VLOOKUP(A27,'INPUT Demand'!$A$5:$BA$1004,19,FALSE)*'INPUT 12NC'!D55)+'INPUT 12NC'!C55)) -> 295.84 | U27: =IF(A27="","",IF(VLOOKUP(A27,'INPUT Demand'!$A$5:$BA$1004,20,FALSE)=0,0,(VLOOKUP(A27,'INPUT Demand'!$A$5:$BA$1004,20,FALSE)*'INPUT 12NC'!D55)+'INPUT 12NC'!C55)) -> 192.4 | V27: =IF(A27="","",IF(VLOOKUP(A27,'INPUT Demand'!$A$5:$BA$1004,21,FALSE)=0,0,(VLOOKUP(A27,'INPUT Demand'!$A$5:$BA$1004,21,FALSE)*'INPUT 12NC'!D55)+'INPUT 12NC'!C55)) -> 0 | W27: =IF(A27="","",IF(VLOOKUP(A27,'INPUT Demand'!$A$5:$BA$1004,22,FALSE)=0,0,(VLOOKUP(A27,'INPUT Demand'!$A$5:$BA$1004,22,FALSE)*'INPUT 12NC'!D55)+'INPUT 12NC'!C55)) -> 192.4 | X27: =IF(A27="","",IF(VLOOKUP(A27,'INPUT Demand'!$A$5:$BA$1004,23,FALSE)=0,0,(VLOOKUP(A27,'INPUT Demand'!$A$5:$BA$1004,23,FALSE)*'INPUT 12NC'!D55)+'INPUT 12NC'!C55)) -> 192.4 | Y27: =IF(A27="","",IF(VLOOKUP(A27,'INPUT Demand'!$A$5:$BA$1004,24,FALSE)=0,0,(VLOOKUP(A27,'INPUT Demand'!$A$5:$BA$1004,24,FALSE)*'INPUT 12NC'!D55)+'INPUT 12NC'!C55)) -> 0 | Z27: =IF(A27="","",IF(VLOOKUP(A27,'INPUT Demand'!$A$5:$BA$1004,25,FALSE)=0,0,(VLOOKUP(A27,'INPUT Demand'!$A$5:$BA$1004,25,FALSE)*'INPUT 12NC'!D55)+'INPUT 12NC'!C55)) -> 0 | AA27: =IF(A27="","",IF(VLOOKUP(A27,'INPUT Demand'!$A$5:$BA$1004,26,FALSE)=0,0,(VLOOKUP(A27,'INPUT Demand'!$A$5:$BA$1004,26,FALSE)*'INPUT 12NC'!D55)+'INPUT 12NC'!C55)) -> 0 | AB27: =IF(A27="","",IF(VLOOKUP(A27,'INPUT Demand'!$A$5:$BA$1004,27,FALSE)=0,0,(VLOOKUP(A27,'INPUT Demand'!$A$5:$BA$1004,27,FALSE)*'INPUT 12NC'!D55)+'INPUT 12NC'!C55)) -> 0 | AC27: =IF(A27="","",IF(VLOOKUP(A27,'INPUT Demand'!$A$5:$BA$1004,28,FALSE)=0,0,(VLOOKUP(A27,'INPUT Demand'!$A$5:$BA$1004,28,FALSE)*'INPUT 12NC'!D55)+'INPUT 12NC'!C55)) -> 0 | AD27: =IF(A27="","",IF(VLOOKUP(A27,'INPUT Demand'!$A$5:$BA$1004,29,FALSE)=0,0,(VLOOKUP(A27,'INPUT Demand'!$A$5:$BA$1004,29,FALSE)*'INPUT 12NC'!D55)+'INPUT 12NC'!C55)) -> 192.4 | AE27: =IF(A27="","",IF(VLOOKUP(A27,'INPUT Demand'!$A$5:$BA$1004,30,FALSE)=0,0,(VLOOKUP(A27,'INPUT Demand'!$A$5:$BA$1004,30,FALSE)*'INPUT 12NC'!D55)+'INPUT 12NC'!C55)) -> 0 | AF27: =IF(A27="","",IF(VLOOKUP(A27,'INPUT Demand'!$A$5:$BA$1004,31,FALSE)=0,0,(VLOOKUP(A27,'INPUT Demand'!$A$5:$BA$1004,31,FALSE)*'INPUT 12NC'!D55)+'INPUT 12NC'!C55)) -> 0 | AG27: =IF(A27="","",IF(VLOOKUP(A27,'INPUT Demand'!$A$5:$BA$1004,32,FALSE)=0,0,(VLOOKUP(A27,'INPUT Demand'!$A$5:$BA$1004,32,FALSE)*'INPUT 12NC'!D55)+'INPUT 12NC'!C55)) -> 0 | AH27: =IF(A27="","",IF(VLOOKUP(A27,'INPUT Demand'!$A$5:$BA$1004,33,FALSE)=0,0,(VLOOKUP(A27,'INPUT Demand'!$A$5:$BA$1004,33,FALSE)*'INPUT 12NC'!D55)+'INPUT 12NC'!C55)) -> 192.4 | AI27: =IF(A27="","",IF(VLOOKUP(A27,'INPUT Demand'!$A$5:$BA$1004,34,FALSE)=0,0,(VLOOKUP(A27,'INPUT Demand'!$A$5:$BA$1004,34,FALSE)*'INPUT 12NC'!D55)+'INPUT 12NC'!C55)) -> 0 | AJ27: =IF(A27="","",IF(VLOOKUP(A27,'INPUT Demand'!$A$5:$BA$1004,35,FALSE)=0,0,(VLOOKUP(A27,'INPUT Demand'!$A$5:$BA$1004,35,FALSE)*'INPUT 12NC'!D55)+'INPUT 12NC'!C55)) -> 0 | AK27: =IF(A27="","",IF(VLOOKUP(A27,'INPUT Demand'!$A$5:$BA$1004,36,FALSE)=0,0,(VLOOKUP(A27,'INPUT Demand'!$A$5:$BA$1004,36,FALSE)*'INPUT 12NC'!D55)+'INPUT 12NC'!C55)) -> 192.4 | AL27: =IF(A27="","",IF(VLOOKUP(A27,'INPUT Demand'!$A$5:$BA$1004,37,FALSE)=0,0,(VLOOKUP(A27,'INPUT Demand'!$A$5:$BA$1004,37,FALSE)*'INPUT 12NC'!D55)+'INPUT 12NC'!C55)) -> 192.4 | AM27: =IF(A27="","",IF(VLOOKUP(A27,'INPUT Demand'!$A$5:$BA$1004,38,FALSE)=0,0,(VLOOKUP(A27,'INPUT Demand'!$A$5:$BA$1004,38,FALSE)*'INPUT 12NC'!D55)+'INPUT 12NC'!C55)) -> 88.96 | AN27: =IF(A27="","",IF(VLOOKUP(A27,'INPUT Demand'!$A$5:$BA$1004,39,FALSE)=0,0,(VLOOKUP(A27,'INPUT Demand'!$A$5:$BA$1004,39,FALSE)*'INPUT 12NC'!D55)+'INPUT 12NC'!C55)) -> 0 | AO27: =IF(A27="","",IF(VLOOKUP(A27,'INPUT Demand'!$A$5:$BA$1004,40,FALSE)=0,0,(VLOOKUP(A27,'INPUT Demand'!$A$5:$BA$1004,40,FALSE)*'INPUT 12NC'!D55)+'INPUT 12NC'!C55)) -> 0 | AP27: =IF(A27="","",IF(VLOOKUP(A27,'INPUT Demand'!$A$5:$BA$1004,41,FALSE)=0,0,(VLOOKUP(A27,'INPUT Demand'!$A$5:$BA$1004,41,FALSE)*'INPUT 12NC'!D55)+'INPUT 12NC'!C55)) -> 192.4 | AQ27: =IF(A27="","",IF(VLOOKUP(A27,'INPUT Demand'!$A$5:$BA$1004,42,FALSE)=0,0,(VLOOKUP(A27,'INPUT Demand'!$A$5:$BA$1004,42,FALSE)*'INPUT 12NC'!D55)+'INPUT 12NC'!C55)) -> 54.48 | AR27: =IF(A27="","",IF(VLOOKUP(A27,'INPUT Demand'!$A$5:$BA$1004,43,FALSE)=0,0,(VLOOKUP(A27,'INPUT Demand'!$A$5:$BA$1004,43,FALSE)*'INPUT 12NC'!D55)+'INPUT 12NC'!C55)) -> 0 | AS27: =IF(A27="","",IF(VLOOKUP(A27,'INPUT Demand'!$A$5:$BA$1004,44,FALSE)=0,0,(VLOOKUP(A27,'INPUT Demand'!$A$5:$BA$1004,44,FALSE)*'INPUT 12NC'!D55)+'INPUT 12NC'!C55)) -> 0 | AT27: =IF(A27="","",IF(VLOOKUP(A27,'INPUT Demand'!$A$5:$BA$1004,45,FALSE)=0,0,(VLOOKUP(A27,'INPUT Demand'!$A$5:$BA$1004,45,FALSE)*'INPUT 12NC'!D55)+'INPUT 12NC'!C55)) -> 157.92 | AU27: =IF(A27="","",IF(VLOOKUP(A27,'INPUT Demand'!$A$5:$BA$1004,46,FALSE)=0,0,(VLOOKUP(A27,'INPUT Demand'!$A$5:$BA$1004,46,FALSE)*'INPUT 12NC'!D55)+'INPUT 12NC'!C55)) -> 192.4 | AV27: =IF(A27="","",IF(VLOOKUP(A27,'INPUT Demand'!$A$5:$BA$1004,47,FALSE)=0,0,(VLOOKUP(A27,'INPUT Demand'!$A$5:$BA$1004,47,FALSE)*'INPUT 12NC'!D55)+'INPUT 12NC'!C55)) -> 123.44 | AW27: =IF(A27="","",IF(VLOOKUP(A27,'INPUT Demand'!$A$5:$BA$1004,48,FALSE)=0,0,(VLOOKUP(A27,'INPUT Demand'!$A$5:$BA$1004,48,FALSE)*'INPUT 12NC'!D55)+'INPUT 12NC'!C55)) -> 0 | AX27: =IF(A27="","",IF(VLOOKUP(A27,'INPUT Demand'!$A$5:$BA$1004,49,FALSE)=0,0,(VLOOKUP(A27,'INPUT Demand'!$A$5:$BA$1004,49,FALSE)*'INPUT 12NC'!D55)+'INPUT 12NC'!C55)) -> 0 | AY27: =IF(A27="","",IF(VLOOKUP(A27,'INPUT Demand'!$A$5:$BA$1004,50,FALSE)=0,0,(VLOOKUP(A27,'INPUT Demand'!$A$5:$BA$1004,50,FALSE)*'INPUT 12NC'!D55)+'INPUT 12NC'!C55)) -> 0 | AZ27: =IF(A27="","",IF(VLOOKUP(A27,'INPUT Demand'!$A$5:$BA$1004,51,FALSE)=0,0,(VLOOKUP(A27,'INPUT Demand'!$A$5:$BA$1004,51,FALSE)*'INPUT 12NC'!D55)+'INPUT 12NC'!C55)) -> 192.4 | BA27: =IF(A27="","",IF(VLOOKUP(A27,'INPUT Demand'!$A$5:$BA$1004,52,FALSE)=0,0,(VLOOKUP(A27,'INPUT Demand'!$A$5:$BA$1004,52,FALSE)*'INPUT 12NC'!D55)+'INPUT 12NC'!C55)) -> 0 | BB27: =IF(A27="","",IF(VLOOKUP(A27,'INPUT Demand'!$A$5:$BA$1004,53,FALSE)=0,0,(VLOOKUP(A27,'INPUT Demand'!$A$5:$BA$1004,53,FALSE)*'INPUT 12NC'!D55)+'INPUT 12NC'!C55)) -> 0 | BC27: =IF(A27="","",SUM(D27:BB27)) -> 3942.48 | BD27: =IF(A27="","",IF(C27=1,BC27,0)) -> 0
A28: 402248119919 | B28: 113 | C28: 0 | D28: =IF(A28="","",IF(VLOOKUP(A28,'INPUT Demand'!$A$5:$BA$1004,3,FALSE)=0,0,(VLOOKUP(A28,'INPUT Demand'!$A$5:$BA$1004,3,FALSE)*'INPUT 12NC'!D114)+'INPUT 12NC'!C114)) -> 0 | E28: =IF(A28="","",IF(VLOOKUP(A28,'INPUT Demand'!$A$5:$BA$1004,4,FALSE)=0,0,(VLOOKUP(A28,'INPUT Demand'!$A$5:$BA$1004,4,FALSE)*'INPUT 12NC'!D114)+'INPUT 12NC'!C114)) -> 0 | F28: =IF(A28="","",IF(VLOOKUP(A28,'INPUT Demand'!$A$5:$BA$1004,5,FALSE)=0,0,(VLOOKUP(A28,'INPUT Demand'!$A$5:$BA$1004,5,FALSE)*'INPUT 12NC'!D114)+'INPUT 12NC'!C114)) -> 325 | G28: =IF(A28="","",IF(VLOOKUP(A28,'INPUT Demand'!$A$5:$BA$1004,6,FALSE)=0,0,(VLOOKUP(A28,'INPUT Demand'!$A$5:$BA$1004,6,FALSE)*'INPUT 12NC'!D114)+'INPUT 12NC'!C114)) -> 0 | H28: =IF(A28="","",IF(VLOOKUP(A28,'INPUT Demand'!$A$5:$BA$1004,7,FALSE)=0,0,(VLOOKUP(A28,'INPUT Demand'!$A$5:$BA$1004,7,FALSE)*'INPUT 12NC'!D114)+'INPUT 12NC'!C114)) -> 0 | I28: =IF(A28="","",IF(VLOOKUP(A28,'INPUT Demand'!$A$5:$BA$1004,8,FALSE)=0,0,(VLOOKUP(A28,'INPUT Demand'!$A$5:$BA$1004,8,FALSE)*'INPUT 12NC'!D114)+'INPUT 12NC'!C114)) -> 0 | J28: =IF(A28="","",IF(VLOOKUP(A28,'INPUT Demand'!$A$5:$BA$1004,9,FALSE)=0,0,(VLOOKUP(A28,'INPUT Demand'!$A$5:$BA$1004,9,FALSE)*'INPUT 12NC'!D114)+'INPUT 12NC'!C114)) -> 0 | K28: =IF(A28="","",IF(VLOOKUP(A28,'INPUT Demand'!$A$5:$BA$1004,10,FALSE)=0,0,(VLOOKUP(A28,'INPUT Demand'!$A$5:$BA$1004,10,FALSE)*'INPUT 12NC'!D114)+'INPUT 12NC'!C114)) -> 0 | L28: =IF(A28="","",IF(VLOOKUP(A28,'INPUT Demand'!$A$5:$BA$1004,11,FALSE)=0,0,(VLOOKUP(A28,'INPUT Demand'!$A$5:$BA$1004,11,FALSE)*'INPUT 12NC'!D114)+'INPUT 12NC'!C114)) -> 325 | M28: =IF(A28="","",IF(VLOOKUP(A28,'INPUT Demand'!$A$5:$BA$1004,12,FALSE)=0,0,(VLOOKUP(A28,'INPUT Demand'!$A$5:$BA$1004,12,FALSE)*'INPUT 12NC'!D114)+'INPUT 12NC'!C114)) -> 0 | N28: =IF(A28="","",IF(VLOOKUP(A28,'INPUT Demand'!$A$5:$BA$1004,13,FALSE)=0,0,(VLOOKUP(A28,'INPUT Demand'!$A$5:$BA$1004,13,FALSE)*'INPUT 12NC'!D114)+'INPUT 12NC'!C114)) -> 0 | O28: =IF(A28="","",IF(VLOOKUP(A28,'INPUT Demand'!$A$5:$BA$1004,14,FALSE)=0,0,(VLOOKUP(A28,'INPUT Demand'!$A$5:$BA$1004,14,FALSE)*'INPUT 12NC'!D114)+'INPUT 12NC'!C114)) -> 0 | P28: =IF(A28="","",IF(VLOOKUP(A28,'INPUT Demand'!$A$5:$BA$1004,15,FALSE)=0,0,(VLOOKUP(A28,'INPUT Demand'!$A$5:$BA$1004,15,FALSE)*'INPUT 12NC'!D114)+'INPUT 12NC'!C114)) -> 0 | Q28: =IF(A28="","",IF(VLOOKUP(A28,'INPUT Demand'!$A$5:$BA$1004,16,FALSE)=0,0,(VLOOKUP(A28,'INPUT Demand'!$A$5:$BA$1004,16,FALSE)*'INPUT 12NC'!D114)+'INPUT 12NC'!C114)) -> 405 | R28: =IF(A28="","",IF(VLOOKUP(A28,'INPUT Demand'!$A$5:$BA$1004,17,FALSE)=0,0,(VLOOKUP(A28,'INPUT Demand'!$A$5:$BA$1004,17,FALSE)*'INPUT 12NC'!D114)+'INPUT 12NC'!C114)) -> 0 | S28: =IF(A28="","",IF(VLOOKUP(A28,'INPUT Demand'!$A$5:$BA$1004,18,FALSE)=0,0,(VLOOKUP(A28,'INPUT Demand'!$A$5:$BA$1004,18,FALSE)*'INPUT 12NC'!D114)+'INPUT 12NC'!C114)) -> 0 | T28: =IF(A28="","",IF(VLOOKUP(A28,'INPUT Demand'!$A$5:$BA$1004,19,FALSE)=0,0,(VLOOKUP(A28,'INPUT Demand'!$A$5:$BA$1004,19,FALSE)*'INPUT 12NC'!D114)+'INPUT 12NC'!C114)) -> 0 | U28: =IF(A28="","",IF(VLOOKUP(A28,'INPUT Demand'!$A$5:$BA$1004,20,FALSE)=0,0,(VLOOKUP(A28,'INPUT Demand'!$A$5:$BA$1004,20,FALSE)*'INPUT 12NC'!D114)+'INPUT 12NC'!C114)) -> 0 | V28: =IF(A28="","",IF(VLOOKUP(A28,'INPUT Demand'!$A$5:$BA$1004,21,FALSE)=0,0,(VLOOKUP(A28,'INPUT Demand'!$A$5:$BA$1004,21,FALSE)*'INPUT 12NC'!D114)+'INPUT 12NC'!C114)) -> 0 | W28: =IF(A28="","",IF(VLOOKUP(A28,'INPUT Demand'!$A$5:$BA$1004,22,FALSE)=0,0,(VLOOKUP(A28,'INPUT Demand'!$A$5:$BA$1004,22,FALSE)*'INPUT 12NC'!D114)+'INPUT 12NC'!C114)) -> 0 | X28: =IF(A28="","",IF(VLOOKUP(A28,'INPUT Demand'!$A$5:$BA$1004,23,FALSE)=0,0,(VLOOKUP(A28,'INPUT Demand'!$A$5:$BA$1004,23,FALSE)*'INPUT 12NC'!D114)+'INPUT 12NC'!C114)) -> 405 | Y28: =IF(A28="","",IF(VLOOKUP(A28,'INPUT Demand'!$A$5:$BA$1004,24,FALSE)=0,0,(VLOOKUP(A28,'INPUT Demand'!$A$5:$BA$1004,24,FALSE)*'INPUT 12NC'!D114)+'INPUT 12NC'!C114)) -> 0 | Z28: =IF(A28="","",IF(VLOOKUP(A28,'INPUT Demand'!$A$5:$BA$1004,25,FALSE)=0,0,(VLOOKUP(A28,'INPUT Demand'!$A$5:$BA$1004,25,FALSE)*'INPUT 12NC'!D114)+'INPUT 12NC'!C114)) -> 0 | AA28: =IF(A28="","",IF(VLOOKUP(A28,'INPUT Demand'!$A$5:$BA$1004,26,FALSE)=0,0,(VLOOKUP(A28,'INPUT Demand'!$A$5:$BA$1004,26,FALSE)*'INPUT 12NC'!D114)+'INPUT 12NC'!C114)) -> 0 | AB28: =IF(A28="","",IF(VLOOKUP(A28,'INPUT Demand'!$A$5:$BA$1004,27,FALSE)=0,0,(VLOOKUP(A28,'INPUT Demand'!$A$5:$BA$1004,27,FALSE)*'INPUT 12NC'!D114)+'INPUT 12NC'!C114)) -> 0 | AC28: =IF(A28="","",IF(VLOOKUP(A28,'INPUT Demand'!$A$5:$BA$1004,28,FALSE)=0,0,(VLOOKUP(A28,'INPUT Demand'!$A$5:$BA$1004,28,FALSE)*'INPUT 12NC'!D114)+'INPUT 12NC'!C114)) -> 373 | AD28: =IF(A28="","",IF(VLOOKUP(A28,'INPUT Demand'!$A$5:$BA$1004,29,FALSE)=0,0,(VLOOKUP(A28,'INPUT Demand'!$A$5:$BA$1004,29,FALSE)*'INPUT 12NC'!D114)+'INPUT 12NC'!C114)) -> 0 | AE28: =IF(A28="","",IF(VLOOKUP(A28,'INPUT Demand'!$A$5:$BA$1004,30,FALSE)=0,0,(VLOOKUP(A28,'INPUT Demand'!$A$5:$BA$1004,30,FALSE)*'INPUT 12NC'!D114)+'INPUT 12NC'!C114)) -> 0 | AF28: =IF(A28="","",IF(VLOOKUP(A28,'INPUT Demand'!$A$5:$BA$1004,31,FALSE)=0,0,(VLOOKUP(A28,'INPUT Demand'!$A$5:$BA$1004,31,FALSE)*'INPUT 12NC'!D114)+'INPUT 12NC'!C114)) -> 0 | AG28: =IF(A28="","",IF(VLOOKUP(A28,'INPUT Demand'!$A$5:$BA$1004,32,FALSE)=0,0,(VLOOKUP(A28,'INPUT Demand'!$A$5:$BA$1004,32,FALSE)*'INPUT 12NC'!D114)+'INPUT 12NC'!C114)) -> 0 | AH28: =IF(A28="","",IF(VLOOKUP(A28,'INPUT Demand'!$A$5:$BA$1004,33,FALSE)=0,0,(VLOOKUP(A28,'INPUT Demand'!$A$5:$BA$1004,33,FALSE)*'INPUT 12NC'!D114)+'INPUT 12NC'!C114)) -> 453 | AI28: =IF(A28="","",IF(VLOOKUP(A28,'INPUT Demand'!$A$5:$BA$1004,34,FALSE)=0,0,(VLOOKUP(A28,'INPUT Demand'!$A$5:$BA$1004,34,FALSE)*'INPUT 12NC'!D114)+'INPUT 12NC'!C114)) -> 0 | AJ28: =IF(A28="","",IF(VLOOKUP(A28,'INPUT Demand'!$A$5:$BA$1004,35,FALSE)=0,0,(VLOOKUP(A28,'INPUT Demand'!$A$5:$BA$1004,35,FALSE)*'INPUT 12NC'!D114)+'INPUT 12NC'!C114)) -> 0 | AK28: =IF(A28="","",IF(VLOOKUP(A28,'INPUT Demand'!$A$5:$BA$1004,36,FALSE)=0,0,(VLOOKUP(A28,'INPUT Demand'!$A$5:$BA$1004,36,FALSE)*'INPUT 12NC'!D114)+'INPUT 12NC'!C114)) -> 0 | AL28: =IF(A28="","",IF(VLOOKUP(A28,'INPUT Demand'!$A$5:$BA$1004,37,FALSE)=0,0,(VLOOKUP(A28,'INPUT Demand'!$A$5:$BA$1004,37,FALSE)*'INPUT 12NC'!D114)+'INPUT 12NC'!C114)) -> 0 | AM28: =IF(A28="","",IF(VLOOKUP(A28,'INPUT Demand'!$A$5:$BA$1004,38,FALSE)=0,0,(VLOOKUP(A28,'INPUT Demand'!$A$5:$BA$1004,38,FALSE)*'INPUT 12NC'!D114)+'INPUT 12NC'!C114)) -> 0 | AN28: =IF(A28="","",IF(VLOOKUP(A28,'INPUT Demand'!$A$5:$BA$1004,39,FALSE)=0,0,(VLOOKUP(A28,'INPUT Demand'!$A$5:$BA$1004,39,FALSE)*'INPUT 12NC'!D114)+'INPUT 12NC'!C114)) -> 325 | AO28: =IF(A28="","",IF(VLOOKUP(A28,'INPUT Demand'!$A$5:$BA$1004,40,FALSE)=0,0,(VLOOKUP(A28,'INPUT Demand'!$A$5:$BA$1004,40,FALSE)*'INPUT 12NC'!D114)+'INPUT 12NC'!C114)) -> 0 | AP28: =IF(A28="","",IF(VLOOKUP(A28,'INPUT Demand'!$A$5:$BA$1004,41,FALSE)=0,0,(VLOOKUP(A28,'INPUT Demand'!$A$5:$BA$1004,41,FALSE)*'INPUT 12NC'!D114)+'INPUT 12NC'!C114)) -> 0 | AQ28: =IF(A28="","",IF(VLOOKUP(A28,'INPUT Demand'!$A$5:$BA$1004,42,FALSE)=0,0,(VLOOKUP(A28,'INPUT Demand'!$A$5:$BA$1004,42,FALSE)*'INPUT 12NC'!D114)+'INPUT 12NC'!C114)) -> 0 | AR28: =IF(A28="","",IF(VLOOKUP(A28,'INPUT Demand'!$A$5:$BA$1004,43,FALSE)=0,0,(VLOOKUP(A28,'INPUT Demand'!$A$5:$BA$1004,43,FALSE)*'INPUT 12NC'!D114)+'INPUT 12NC'!C114)) -> 0 | AS28: =IF(A28="","",IF(VLOOKUP(A28,'INPUT Demand'!$A$5:$BA$1004,44,FALSE)=0,0,(VLOOKUP(A28,'INPUT Demand'!$A$5:$BA$1004,44,FALSE)*'INPUT 12NC'!D114)+'INPUT 12NC'!C114)) -> 325 | AT28: =IF(A28="","",IF(VLOOKUP(A28,'INPUT Demand'!$A$5:$BA$1004,45,FALSE)=0,0,(VLOOKUP(A28,'INPUT Demand'!$A$5:$BA$1004,45,FALSE)*'INPUT 12NC'!D114)+'INPUT 12NC'!C114)) -> 0 | AU28: =IF(A28="","",IF(VLOOKUP(A28,'INPUT Demand'!$A$5:$BA$1004,46,FALSE)=0,0,(VLOOKUP(A28,'INPUT Demand'!$A$5:$BA$1004,46,FALSE)*'INPUT 12NC'!D114)+'INPUT 12NC'!C114)) -> 0 | AV28: =IF(A28="","",IF(VLOOKUP(A28,'INPUT Demand'!$A$5:$BA$1004,47,FALSE)=0,0,(VLOOKUP(A28,'INPUT Demand'!$A$5:$BA$1004,47,FALSE)*'INPUT 12NC'!D114)+'INPUT 12NC'!C114)) -> 0 | AW28: =IF(A28="","",IF(VLOOKUP(A28,'INPUT Demand'!$A$5:$BA$1004,48,FALSE)=0,0,(VLOOKUP(A28,'INPUT Demand'!$A$5:$BA$1004,48,FALSE)*'INPUT 12NC'!D114)+'INPUT 12NC'!C114)) -> 0 | AX28: =IF(A28="","",IF(VLOOKUP(A28,'INPUT Demand'!$A$5:$BA$1004,49,FALSE)=0,0,(VLOOKUP(A28,'INPUT Demand'!$A$5:$BA$1004,49,FALSE)*'INPUT 12NC'!D114)+'INPUT 12NC'!C114)) -> 0 | AY28: =IF(A28="","",IF(VLOOKUP(A28,'INPUT Demand'!$A$5:$BA$1004,50,FALSE)=0,0,(VLOOKUP(A28,'INPUT Demand'!$A$5:$BA$1004,50,FALSE)*'INPUT 12NC'!D114)+'INPUT 12NC'!C114)) -> 325 | AZ28: =IF(A28="","",IF(VLOOKUP(A28,'INPUT Demand'!$A$5:$BA$1004,51,FALSE)=0,0,(VLOOKUP(A28,'INPUT Demand'!$A$5:$BA$1004,51,FALSE)*'INPUT 12NC'!D114)+'INPUT 12NC'!C114)) -> 0 | BA28: =IF(A28="","",IF(VLOOKUP(A28,'INPUT Demand'!$A$5:$BA$1004,52,FALSE)=0,0,(VLOOKUP(A28,'INPUT Demand'!$A$5:$BA$1004,52,FALSE)*'INPUT 12NC'!D114)+'INPUT 12NC'!C114)) -> 0 | BB28: =IF(A28="","",IF(VLOOKUP(A28,'INPUT Demand'!$A$5:$BA$1004,53,FALSE)=0,0,(VLOOKUP(A28,'INPUT Demand'!$A$5:$BA$1004,53,FALSE)*'INPUT 12NC'!D114)+'INPUT 12NC'!C114)) -> 0 | BC28: =IF(A28="","",SUM(D28:BB28)) -> 3261 | BD28: =IF(A28="","",IF(C28=1,BC28,0)) -> 0
A29: 402263581483 | B29: 64 | C29: 0 | D29: =IF(A29="","",IF(VLOOKUP(A29,'INPUT Demand'!$A$5:$BA$1004,3,FALSE)=0,0,(VLOOKUP(A29,'INPUT Demand'!$A$5:$BA$1004,3,FALSE)*'INPUT 12NC'!D65)+'INPUT 12NC'!C65)) -> 305 | E29: =IF(A29="","",IF(VLOOKUP(A29,'INPUT Demand'!$A$5:$BA$1004,4,FALSE)=0,0,(VLOOKUP(A29,'INPUT Demand'!$A$5:$BA$1004,4,FALSE)*'INPUT 12NC'!D65)+'INPUT 12NC'!C65)) -> 0 | F29: =IF(A29="","",IF(VLOOKUP(A29,'INPUT Demand'!$A$5:$BA$1004,5,FALSE)=0,0,(VLOOKUP(A29,'INPUT Demand'!$A$5:$BA$1004,5,FALSE)*'INPUT 12NC'!D65)+'INPUT 12NC'!C65)) -> 0 | G29: =IF(A29="","",IF(VLOOKUP(A29,'INPUT Demand'!$A$5:$BA$1004,6,FALSE)=0,0,(VLOOKUP(A29,'INPUT Demand'!$A$5:$BA$1004,6,FALSE)*'INPUT 12NC'!D65)+'INPUT 12NC'!C65)) -> 0 | H29: =IF(A29="","",IF(VLOOKUP(A29,'INPUT Demand'!$A$5:$BA$1004,7,FALSE)=0,0,(VLOOKUP(A29,'INPUT Demand'!$A$5:$BA$1004,7,FALSE)*'INPUT 12NC'!D65)+'INPUT 12NC'!C65)) -> 0 | I29: =IF(A29="","",IF(VLOOKUP(A29,'INPUT Demand'!$A$5:$BA$1004,8,FALSE)=0,0,(VLOOKUP(A29,'INPUT Demand'!$A$5:$BA$1004,8,FALSE)*'INPUT 12NC'!D65)+'INPUT 12NC'!C65)) -> 0 | J29: =IF(A29="","",IF(VLOOKUP(A29,'INPUT Demand'!$A$5:$BA$1004,9,FALSE)=0,0,(VLOOKUP(A29,'INPUT Demand'!$A$5:$BA$1004,9,FALSE)*'INPUT 12NC'!D65)+'INPUT 12NC'!C65)) -> 0 | K29: =IF(A29="","",IF(VLOOKUP(A29,'INPUT Demand'!$A$5:$BA$1004,10,FALSE)=0,0,(VLOOKUP(A29,'INPUT Demand'!$A$5:$BA$1004,10,FALSE)*'INPUT 12NC'!D65)+'INPUT 12NC'!C65)) -> 0 | L29: =IF(A29="","",IF(VLOOKUP(A29,'INPUT Demand'!$A$5:$BA$1004,11,FALSE)=0,0,(VLOOKUP(A29,'INPUT Demand'!$A$5:$BA$1004,11,FALSE)*'INPUT 12NC'!D65)+'INPUT 12NC'!C65)) -> 0 | M29: =IF(A29="","",IF(VLOOKUP(A29,'INPUT Demand'!$A$5:$BA$1004,12,FALSE)=0,0,(VLOOKUP(A29,'INPUT Demand'!$A$5:$BA$1004,12,FALSE)*'INPUT 12NC'!D65)+'INPUT 12NC'!C65)) -> 155 | N29: =IF(A29="","",IF(VLOOKUP(A29,'INPUT Demand'!$A$5:$BA$1004,13,FALSE)=0,0,(VLOOKUP(A29,'INPUT Demand'!$A$5:$BA$1004,13,FALSE)*'INPUT 12NC'!D65)+'INPUT 12NC'!C65)) -> 155 | O29: =IF(A29="","",IF(VLOOKUP(A29,'INPUT Demand'!$A$5:$BA$1004,14,FALSE)=0,0,(VLOOKUP(A29,'INPUT Demand'!$A$5:$BA$1004,14,FALSE)*'INPUT 12NC'!D65)+'INPUT 12NC'!C65)) -> 0 | P29: =IF(A29="","",IF(VLOOKUP(A29,'INPUT Demand'!$A$5:$BA$1004,15,FALSE)=0,0,(VLOOKUP(A29,'INPUT Demand'!$A$5:$BA$1004,15,FALSE)*'INPUT 12NC'!D65)+'INPUT 12NC'!C65)) -> 0 | Q29: =IF(A29="","",IF(VLOOKUP(A29,'INPUT Demand'!$A$5:$BA$1004,16,FALSE)=0,0,(VLOOKUP(A29,'INPUT Demand'!$A$5:$BA$1004,16,FALSE)*'INPUT 12NC'!D65)+'INPUT 12NC'!C65)) -> 305 | R29: =IF(A29="","",IF(VLOOKUP(A29,'INPUT Demand'!$A$5:$BA$1004,17,FALSE)=0,0,(VLOOKUP(A29,'INPUT Demand'!$A$5:$BA$1004,17,FALSE)*'INPUT 12NC'!D65)+'INPUT 12NC'!C65)) -> 0 | S29: =IF(A29="","",IF(VLOOKUP(A29,'INPUT Demand'!$A$5:$BA$1004,18,FALSE)=0,0,(VLOOKUP(A29,'INPUT Demand'!$A$5:$BA$1004,18,FALSE)*'INPUT 12NC'!D65)+'INPUT 12NC'!C65)) -> 0 | T29: =IF(A29="","",IF(VLOOKUP(A29,'INPUT Demand'!$A$5:$BA$1004,19,FALSE)=0,0,(VLOOKUP(A29,'INPUT Demand'!$A$5:$BA$1004,19,FALSE)*'INPUT 12NC'!D65)+'INPUT 12NC'!C65)) -> 0 | U29: =IF(A29="","",IF(VLOOKUP(A29,'INPUT Demand'!$A$5:$BA$1004,20,FALSE)=0,0,(VLOOKUP(A29,'INPUT Demand'!$A$5:$BA$1004,20,FALSE)*'INPUT 12NC'!D65)+'INPUT 12NC'!C65)) -> 0 | V29: =IF(A29="","",IF(VLOOKUP(A29,'INPUT Demand'!$A$5:$BA$1004,21,FALSE)=0,0,(VLOOKUP(A29,'INPUT Demand'!$A$5:$BA$1004,21,FALSE)*'INPUT 12NC'!D65)+'INPUT 12NC'!C65)) -> 0 | W29: =IF(A29="","",IF(VLOOKUP(A29,'INPUT Demand'!$A$5:$BA$1004,22,FALSE)=0,0,(VLOOKUP(A29,'INPUT Demand'!$A$5:$BA$1004,22,FALSE)*'INPUT 12NC'!D65)+'INPUT 12NC'!C65)) -> 0 | X29: =IF(A29="","",IF(VLOOKUP(A29,'INPUT Demand'!$A$5:$BA$1004,23,FALSE)=0,0,(VLOOKUP(A29,'INPUT Demand'!$A$5:$BA$1004,23,FALSE)*'INPUT 12NC'!D65)+'INPUT 12NC'!C65)) -> 305 | Y29: =IF(A29="","",IF(VLOOKUP(A29,'INPUT Demand'!$A$5:$BA$1004,24,FALSE)=0,0,(VLOOKUP(A29,'INPUT Demand'!$A$5:$BA$1004,24,FALSE)*'INPUT 12NC'!D65)+'INPUT 12NC'!C65)) -> 0 | Z29: =IF(A29="","",IF(VLOOKUP(A29,'INPUT Demand'!$A$5:$BA$1004,25,FALSE)=0,0,(VLOOKUP(A29,'INPUT Demand'!$A$5:$BA$1004,25,FALSE)*'INPUT 12NC'!D65)+'INPUT 12NC'!C65)) -> 0 | AA29: =IF(A29="","",IF(VLOOKUP(A29,'INPUT Demand'!$A$5:$BA$1004,26,FALSE)=0,0,(VLOOKUP(A29,'INPUT Demand'!$A$5:$BA$1004,26,FALSE)*'INPUT 12NC'!D65)+'INPUT 12NC'!C65)) -> 0 | AB29: =IF(A29="","",IF(VLOOKUP(A29,'INPUT Demand'!$A$5:$BA$1004,27,FALSE)=0,0,(VLOOKUP(A29,'INPUT Demand'!$A$5:$BA$1004,27,FALSE)*'INPUT 12NC'!D65)+'INPUT 12NC'!C65)) -> 0 | AC29: =IF(A29="","",IF(VLOOKUP(A29,'INPUT Demand'!$A$5:$BA$1004,28,FALSE)=0,0,(VLOOKUP(A29,'INPUT Demand'!$A$5:$BA$1004,28,FALSE)*'INPUT 12NC'!D65)+'INPUT 12NC'!C65)) -> 305 | AD29: =IF(A29="","",IF(VLOOKUP(A29,'INPUT Demand'!$A$5:$BA$1004,29,FALSE)=0,0,(VLOOKUP(A29,'INPUT Demand'!$A$5:$BA$1004,29,FALSE)*'INPUT 12NC'!D65)+'INPUT 12NC'!C65)) -> 0 | AE29: =IF(A29="","",IF(VLOOKUP(A29,'INPUT Demand'!$A$5:$BA$1004,30,FALSE)=0,0,(VLOOKUP(A29,'INPUT Demand'!$A$5:$BA$1004,30,FALSE)*'INPUT 12NC'!D65)+'INPUT 12NC'!C65)) -> 155 | AF29: =IF(A29="","",IF(VLOOKUP(A29,'INPUT Demand'!$A$5:$BA$1004,31,FALSE)=0,0,(VLOOKUP(A29,'INPUT Demand'!$A$5:$BA$1004,31,FALSE)*'INPUT 12NC'!D65)+'INPUT 12NC'!C65)) -> 155 | AG29: =IF(A29="","",IF(VLOOKUP(A29,'INPUT Demand'!$A$5:$BA$1004,32,FALSE)=0,0,(VLOOKUP(A29,'INPUT Demand'!$A$5:$BA$1004,32,FALSE)*'INPUT 12NC'!D65)+'INPUT 12NC'!C65)) -> 0 | AH29: =IF(A29="","",IF(VLOOKUP(A29,'INPUT Demand'!$A$5:$BA$1004,33,FALSE)=0,0,(VLOOKUP(A29,'INPUT Demand'!$A$5:$BA$1004,33,FALSE)*'INPUT 12NC'!D65)+'INPUT 12NC'!C65)) -> 305 | AI29: =IF(A29="","",IF(VLOOKUP(A29,'INPUT Demand'!$A$5:$BA$1004,34,FALSE)=0,0,(VLOOKUP(A29,'INPUT Demand'!$A$5:$BA$1004,34,FALSE)*'INPUT 12NC'!D65)+'INPUT 12NC'!C65)) -> 0 | AJ29: =IF(A29="","",IF(VLOOKUP(A29,'INPUT Demand'!$A$5:$BA$1004,35,FALSE)=0,0,(VLOOKUP(A29,'INPUT Demand'!$A$5:$BA$1004,35,FALSE)*'INPUT 12NC'!D65)+'INPUT 12NC'!C65)) -> 0 | AK29: =IF(A29="","",IF(VLOOKUP(A29,'INPUT Demand'!$A$5:$BA$1004,36,FALSE)=0,0,(VLOOKUP(A29,'INPUT Demand'!$A$5:$BA$1004,36,FALSE)*'INPUT 12NC'!D65)+'INPUT 12NC'!C65)) -> 0 | AL29: =IF(A29="","",IF(VLOOKUP(A29,'INPUT Demand'!$A$5:$BA$1004,37,FALSE)=0,0,(VLOOKUP(A29,'INPUT Demand'!$A$5:$BA$1004,37,FALSE)*'INPUT 12NC'!D65)+'INPUT 12NC'!C65)) -> 0 | AM29: =IF(A29="","",IF(VLOOKUP(A29,'INPUT Demand'!$A$5:$BA$1004,38,FALSE)=0,0,(VLOOKUP(A29,'INPUT Demand'!$A$5:$BA$1004,38,FALSE)*'INPUT 12NC'!D65)+'INPUT 12NC'!C65)) -> 0 | AN29: =IF(A29="","",IF(VLOOKUP(A29,'INPUT Demand'!$A$5:$BA$1004,39,FALSE)=0,0,(VLOOKUP(A29,'INPUT Demand'!$A$5:$BA$1004,39,FALSE)*'INPUT 12NC'!D65)+'INPUT 12NC'!C65)) -> 0 | AO29: =IF(A29="","",IF(VLOOKUP(A29,'INPUT Demand'!$A$5:$BA$1004,40,FALSE)=0,0,(VLOOKUP(A29,'INPUT Demand'!$A$5:$BA$1004,40,FALSE)*'INPUT 12NC'!D65)+'INPUT 12NC'!C65)) -> 0 | AP29: =IF(A29="","",IF(VLOOKUP(A29,'INPUT Demand'!$A$5:$BA$1004,41,FALSE)=0,0,(VLOOKUP(A29,'INPUT Demand'!$A$5:$BA$1004,41,FALSE)*'INPUT 12NC'!D65)+'INPUT 12NC'!C65)) -> 0 | AQ29: =IF(A29="","",IF(VLOOKUP(A29,'INPUT Demand'!$A$5:$BA$1004,42,FALSE)=0,0,(VLOOKUP(A29,'INPUT Demand'!$A$5:$BA$1004,42,FALSE)*'INPUT 12NC'!D65)+'INPUT 12NC'!C65)) -> 455 | AR29: =IF(A29="","",IF(VLOOKUP(A29,'INPUT Demand'!$A$5:$BA$1004,43,FALSE)=0,0,(VLOOKUP(A29,'INPUT Demand'!$A$5:$BA$1004,43,FALSE)*'INPUT 12NC'!D65)+'INPUT 12NC'!C65)) -> 0 | AS29: =IF(A29="","",IF(VLOOKUP(A29,'INPUT Demand'!$A$5:$BA$1004,44,FALSE)=0,0,(VLOOKUP(A29,'INPUT Demand'!$A$5:$BA$1004,44,FALSE)*'INPUT 12NC'!D65)+'INPUT 12NC'!C65)) -> 0 | AT29: =IF(A29="","",IF(VLOOKUP(A29,'INPUT Demand'!$A$5:$BA$1004,45,FALSE)=0,0,(VLOOKUP(A29,'INPUT Demand'!$A$5:$BA$1004,45,FALSE)*'INPUT 12NC'!D65)+'INPUT 12NC'!C65)) -> 155 | AU29: =IF(A29="","",IF(VLOOKUP(A29,'INPUT Demand'!$A$5:$BA$1004,46,FALSE)=0,0,(VLOOKUP(A29,'INPUT Demand'!$A$5:$BA$1004,46,FALSE)*'INPUT 12NC'!D65)+'INPUT 12NC'!C65)) -> 0 | AV29: =IF(A29="","",IF(VLOOKUP(A29,'INPUT Demand'!$A$5:$BA$1004,47,FALSE)=0,0,(VLOOKUP(A29,'INPUT Demand'!$A$5:$BA$1004,47,FALSE)*'INPUT 12NC'!D65)+'INPUT 12NC'!C65)) -> 155 | AW29: =IF(A29="","",IF(VLOOKUP(A29,'INPUT Demand'!$A$5:$BA$1004,48,FALSE)=0,0,(VLOOKUP(A29,'INPUT Demand'!$A$5:$BA$1004,48,FALSE)*'INPUT 12NC'!D65)+'INPUT 12NC'!C65)) -> 0 | AX29: =IF(A29="","",IF(VLOOKUP(A29,'INPUT Demand'!$A$5:$BA$1004,49,FALSE)=0,0,(VLOOKUP(A29,'INPUT Demand'!$A$5:$BA$1004,49,FALSE)*'INPUT 12NC'!D65)+'INPUT 12NC'!C65)) -> 0 | AY29: =IF(A29="","",IF(VLOOKUP(A29,'INPUT Demand'!$A$5:$BA$1004,50,FALSE)=0,0,(VLOOKUP(A29,'INPUT Demand'!$A$5:$BA$1004,50,FALSE)*'INPUT 12NC'!D65)+'INPUT 12NC'!C65)) -> 0 | AZ29: =IF(A29="","",IF(VLOOKUP(A29,'INPUT Demand'!$A$5:$BA$1004,51,FALSE)=0,0,(VLOOKUP(A29,'INPUT Demand'!$A$5:$BA$1004,51,FALSE)*'INPUT 12NC'!D65)+'INPUT 12NC'!C65)) -> 155 | BA29: =IF(A29="","",IF(VLOOKUP(A29,'INPUT Demand'!$A$5:$BA$1004,52,FALSE)=0,0,(VLOOKUP(A29,'INPUT Demand'!$A$5:$BA$1004,52,FALSE)*'INPUT 12NC'!D65)+'INPUT 12NC'!C65)) -> 155 | BB29: =IF(A29="","",IF(VLOOKUP(A29,'INPUT Demand'!$A$5:$BA$1004,53,FALSE)=0,0,(VLOOKUP(A29,'INPUT Demand'!$A$5:$BA$1004,53,FALSE)*'INPUT 12NC'!D65)+'INPUT 12NC'!C65)) -> 0 | BC29: =IF(A29="","",SUM(D29:BB29)) -> 3220 | BD29: =IF(A29="","",IF(C29=1,BC29,0)) -> 0
A30: 402248671154 | B30: 94 | C30: 0 | D30: =IF(A30="","",IF(VLOOKUP(A30,'INPUT Demand'!$A$5:$BA$1004,3,FALSE)=0,0,(VLOOKUP(A30,'INPUT Demand'!$A$5:$BA$1004,3,FALSE)*'INPUT 12NC'!D95)+'INPUT 12NC'!C95)) -> 0 | E30: =IF(A30="","",IF(VLOOKUP(A30,'INPUT Demand'!$A$5:$BA$1004,4,FALSE)=0,0,(VLOOKUP(A30,'INPUT Demand'!$A$5:$BA$1004,4,FALSE)*'INPUT 12NC'!D95)+'INPUT 12NC'!C95)) -> 178 | F30: =IF(A30="","",IF(VLOOKUP(A30,'INPUT Demand'!$A$5:$BA$1004,5,FALSE)=0,0,(VLOOKUP(A30,'INPUT Demand'!$A$5:$BA$1004,5,FALSE)*'INPUT 12NC'!D95)+'INPUT 12NC'!C95)) -> 283 | G30: =IF(A30="","",IF(VLOOKUP(A30,'INPUT Demand'!$A$5:$BA$1004,6,FALSE)=0,0,(VLOOKUP(A30,'INPUT Demand'!$A$5:$BA$1004,6,FALSE)*'INPUT 12NC'!D95)+'INPUT 12NC'!C95)) -> 0 | H30: =IF(A30="","",IF(VLOOKUP(A30,'INPUT Demand'!$A$5:$BA$1004,7,FALSE)=0,0,(VLOOKUP(A30,'INPUT Demand'!$A$5:$BA$1004,7,FALSE)*'INPUT 12NC'!D95)+'INPUT 12NC'!C95)) -> 0 | I30: =IF(A30="","",IF(VLOOKUP(A30,'INPUT Demand'!$A$5:$BA$1004,8,FALSE)=0,0,(VLOOKUP(A30,'INPUT Demand'!$A$5:$BA$1004,8,FALSE)*'INPUT 12NC'!D95)+'INPUT 12NC'!C95)) -> 163 | J30: =IF(A30="","",IF(VLOOKUP(A30,'INPUT Demand'!$A$5:$BA$1004,9,FALSE)=0,0,(VLOOKUP(A30,'INPUT Demand'!$A$5:$BA$1004,9,FALSE)*'INPUT 12NC'!D95)+'INPUT 12NC'!C95)) -> 0 | K30: =IF(A30="","",IF(VLOOKUP(A30,'INPUT Demand'!$A$5:$BA$1004,10,FALSE)=0,0,(VLOOKUP(A30,'INPUT Demand'!$A$5:$BA$1004,10,FALSE)*'INPUT 12NC'!D95)+'INPUT 12NC'!C95)) -> 0 | L30: =IF(A30="","",IF(VLOOKUP(A30,'INPUT Demand'!$A$5:$BA$1004,11,FALSE)=0,0,(VLOOKUP(A30,'INPUT Demand'!$A$5:$BA$1004,11,FALSE)*'INPUT 12NC'!D95)+'INPUT 12NC'!C95)) -> 0 | M30: =IF(A30="","",IF(VLOOKUP(A30,'INPUT Demand'!$A$5:$BA$1004,12,FALSE)=0,0,(VLOOKUP(A30,'INPUT Demand'!$A$5:$BA$1004,12,FALSE)*'INPUT 12NC'!D95)+'INPUT 12NC'!C95)) -> 0 | N30: =IF(A30="","",IF(VLOOKUP(A30,'INPUT Demand'!$A$5:$BA$1004,13,FALSE)=0,0,(VLOOKUP(A30,'INPUT Demand'!$A$5:$BA$1004,13,FALSE)*'INPUT 12NC'!D95)+'INPUT 12NC'!C95)) -> 0 | O30: =IF(A30="","",IF(VLOOKUP(A30,'INPUT Demand'!$A$5:$BA$1004,14,FALSE)=0,0,(VLOOKUP(A30,'INPUT Demand'!$A$5:$BA$1004,14,FALSE)*'INPUT 12NC'!D95)+'INPUT 12NC'!C95)) -> 0 | P30: =IF(A30="","",IF(VLOOKUP(A30,'INPUT Demand'!$A$5:$BA$1004,15,FALSE)=0,0,(VLOOKUP(A30,'INPUT Demand'!$A$5:$BA$1004,15,FALSE)*'INPUT 12NC'!D95)+'INPUT 12NC'!C95)) -> 163 | Q30: =IF(A30="","",IF(VLOOKUP(A30,'INPUT Demand'!$A$5:$BA$1004,16,FALSE)=0,0,(VLOOKUP(A30,'INPUT Demand'!$A$5:$BA$1004,16,FALSE)*'INPUT 12NC'!D95)+'INPUT 12NC'!C95)) -> 0 | R30: =IF(A30="","",IF(VLOOKUP(A30,'INPUT Demand'!$A$5:$BA$1004,17,FALSE)=0,0,(VLOOKUP(A30,'INPUT Demand'!$A$5:$BA$1004,17,FALSE)*'INPUT 12NC'!D95)+'INPUT 12NC'!C95)) -> 163 | S30: =IF(A30="","",IF(VLOOKUP(A30,'INPUT Demand'!$A$5:$BA$1004,18,FALSE)=0,0,(VLOOKUP(A30,'INPUT Demand'!$A$5:$BA$1004,18,FALSE)*'INPUT 12NC'!D95)+'INPUT 12NC'!C95)) -> 163 | T30: =IF(A30="","",IF(VLOOKUP(A30,'INPUT Demand'!$A$5:$BA$1004,19,FALSE)=0,0,(VLOOKUP(A30,'INPUT Demand'!$A$5:$BA$1004,19,FALSE)*'INPUT 12NC'!D95)+'INPUT 12NC'!C95)) -> 0 | U30: =IF(A30="","",IF(VLOOKUP(A30,'INPUT Demand'!$A$5:$BA$1004,20,FALSE)=0,0,(VLOOKUP(A30,'INPUT Demand'!$A$5:$BA$1004,20,FALSE)*'INPUT 12NC'!D95)+'INPUT 12NC'!C95)) -> 0 | V30: =IF(A30="","",IF(VLOOKUP(A30,'INPUT Demand'!$A$5:$BA$1004,21,FALSE)=0,0,(VLOOKUP(A30,'INPUT Demand'!$A$5:$BA$1004,21,FALSE)*'INPUT 12NC'!D95)+'INPUT 12NC'!C95)) -> 0 | W30: =IF(A30="","",IF(VLOOKUP(A30,'INPUT Demand'!$A$5:$BA$1004,22,FALSE)=0,0,(VLOOKUP(A30,'INPUT Demand'!$A$5:$BA$1004,22,FALSE)*'INPUT 12NC'!D95)+'INPUT 12NC'!C95)) -> 163 | X30: =IF(A30="","",IF(VLOOKUP(A30,'INPUT Demand'!$A$5:$BA$1004,23,FALSE)=0,0,(VLOOKUP(A30,'INPUT Demand'!$A$5:$BA$1004,23,FALSE)*'INPUT 12NC'!D95)+'INPUT 12NC'!C95)) -> 0 | Y30: =IF(A30="","",IF(VLOOKUP(A30,'INPUT Demand'!$A$5:$BA$1004,24,FALSE)=0,0,(VLOOKUP(A30,'INPUT Demand'!$A$5:$BA$1004,24,FALSE)*'INPUT 12NC'!D95)+'INPUT 12NC'!C95)) -> 0 | Z30: =IF(A30="","",IF(VLOOKUP(A30,'INPUT Demand'!$A$5:$BA$1004,25,FALSE)=0,0,(VLOOKUP(A30,'INPUT Demand'!$A$5:$BA$1004,25,FALSE)*'INPUT 12NC'!D95)+'INPUT 12NC'!C95)) -> 0 | AA30: =IF(A30="","",IF(VLOOKUP(A30,'INPUT Demand'!$A$5:$BA$1004,26,FALSE)=0,0,(VLOOKUP(A30,'INPUT Demand'!$A$5:$BA$1004,26,FALSE)*'INPUT 12NC'!D95)+'INPUT 12NC'!C95)) -> 163 | AB30: =IF(A30="","",IF(VLOOKUP(A30,'INPUT Demand'!$A$5:$BA$1004,27,FALSE)=0,0,(VLOOKUP(A30,'INPUT Demand'!$A$5:$BA$1004,27,FALSE)*'INPUT 12NC'!D95)+'INPUT 12NC'!C95)) -> 163 | AC30: =IF(A30="","",IF(VLOOKUP(A30,'INPUT Demand'!$A$5:$BA$1004,28,FALSE)=0,0,(VLOOKUP(A30,'INPUT Demand'!$A$5:$BA$1004,28,FALSE)*'INPUT 12NC'!D95)+'INPUT 12NC'!C95)) -> 193 | AD30: =IF(A30="","",IF(VLOOKUP(A30,'INPUT Demand'!$A$5:$BA$1004,29,FALSE)=0,0,(VLOOKUP(A30,'INPUT Demand'!$A$5:$BA$1004,29,FALSE)*'INPUT 12NC'!D95)+'INPUT 12NC'!C95)) -> 0 | AE30: =IF(A30="","",IF(VLOOKUP(A30,'INPUT Demand'!$A$5:$BA$1004,30,FALSE)=0,0,(VLOOKUP(A30,'INPUT Demand'!$A$5:$BA$1004,30,FALSE)*'INPUT 12NC'!D95)+'INPUT 12NC'!C95)) -> 0 | AF30: =IF(A30="","",IF(VLOOKUP(A30,'INPUT Demand'!$A$5:$BA$1004,31,FALSE)=0,0,(VLOOKUP(A30,'INPUT Demand'!$A$5:$BA$1004,31,FALSE)*'INPUT 12NC'!D95)+'INPUT 12NC'!C95)) -> 0 | AG30: =IF(A30="","",IF(VLOOKUP(A30,'INPUT Demand'!$A$5:$BA$1004,32,FALSE)=0,0,(VLOOKUP(A30,'INPUT Demand'!$A$5:$BA$1004,32,FALSE)*'INPUT 12NC'!D95)+'INPUT 12NC'!C95)) -> 163 | AH30: =IF(A30="","",IF(VLOOKUP(A30,'INPUT Demand'!$A$5:$BA$1004,33,FALSE)=0,0,(VLOOKUP(A30,'INPUT Demand'!$A$5:$BA$1004,33,FALSE)*'INPUT 12NC'!D95)+'INPUT 12NC'!C95)) -> 0 | AI30: =IF(A30="","",IF(VLOOKUP(A30,'INPUT Demand'!$A$5:$BA$1004,34,FALSE)=0,0,(VLOOKUP(A30,'INPUT Demand'!$A$5:$BA$1004,34,FALSE)*'INPUT 12NC'!D95)+'INPUT 12NC'!C95)) -> 0 | AJ30: =IF(A30="","",IF(VLOOKUP(A30,'INPUT Demand'!$A$5:$BA$1004,35,FALSE)=0,0,(VLOOKUP(A30,'INPUT Demand'!$A$5:$BA$1004,35,FALSE)*'INPUT 12NC'!D95)+'INPUT 12NC'!C95)) -> 163 | AK30: =IF(A30="","",IF(VLOOKUP(A30,'INPUT Demand'!$A$5:$BA$1004,36,FALSE)=0,0,(VLOOKUP(A30,'INPUT Demand'!$A$5:$BA$1004,36,FALSE)*'INPUT 12NC'!D95)+'INPUT 12NC'!C95)) -> 0 | AL30: =IF(A30="","",IF(VLOOKUP(A30,'INPUT Demand'!$A$5:$BA$1004,37,FALSE)=0,0,(VLOOKUP(A30,'INPUT Demand'!$A$5:$BA$1004,37,FALSE)*'INPUT 12NC'!D95)+'INPUT 12NC'!C95)) -> 163 | AM30: =IF(A30="","",IF(VLOOKUP(A30,'INPUT Demand'!$A$5:$BA$1004,38,FALSE)=0,0,(VLOOKUP(A30,'INPUT Demand'!$A$5:$BA$1004,38,FALSE)*'INPUT 12NC'!D95)+'INPUT 12NC'!C95)) -> 163 | AN30: =IF(A30="","",IF(VLOOKUP(A30,'INPUT Demand'!$A$5:$BA$1004,39,FALSE)=0,0,(VLOOKUP(A30,'INPUT Demand'!$A$5:$BA$1004,39,FALSE)*'INPUT 12NC'!D95)+'INPUT 12NC'!C95)) -> 0 | AO30: =IF(A30="","",IF(VLOOKUP(A30,'INPUT Demand'!$A$5:$BA$1004,40,FALSE)=0,0,(VLOOKUP(A30,'INPUT Demand'!$A$5:$BA$1004,40,FALSE)*'INPUT 12NC'!D95)+'INPUT 12NC'!C95)) -> 238 | AP30: =IF(A30="","",IF(VLOOKUP(A30,'INPUT Demand'!$A$5:$BA$1004,41,FALSE)=0,0,(VLOOKUP(A30,'INPUT Demand'!$A$5:$BA$1004,41,FALSE)*'INPUT 12NC'!D95)+'INPUT 12NC'!C95)) -> 178 | AQ30: =IF(A30="","",IF(VLOOKUP(A30,'INPUT Demand'!$A$5:$BA$1004,42,FALSE)=0,0,(VLOOKUP(A30,'INPUT Demand'!$A$5:$BA$1004,42,FALSE)*'INPUT 12NC'!D95)+'INPUT 12NC'!C95)) -> 0 | AR30: =IF(A30="","",IF(VLOOKUP(A30,'INPUT Demand'!$A$5:$BA$1004,43,FALSE)=0,0,(VLOOKUP(A30,'INPUT Demand'!$A$5:$BA$1004,43,FALSE)*'INPUT 12NC'!D95)+'INPUT 12NC'!C95)) -> 0 | AS30: =IF(A30="","",IF(VLOOKUP(A30,'INPUT Demand'!$A$5:$BA$1004,44,FALSE)=0,0,(VLOOKUP(A30,'INPUT Demand'!$A$5:$BA$1004,44,FALSE)*'INPUT 12NC'!D95)+'INPUT 12NC'!C95)) -> 0 | AT30: =IF(A30="","",IF(VLOOKUP(A30,'INPUT Demand'!$A$5:$BA$1004,45,FALSE)=0,0,(VLOOKUP(A30,'INPUT Demand'!$A$5:$BA$1004,45,FALSE)*'INPUT 12NC'!D95)+'INPUT 12NC'!C95)) -> 0 | AU30: =IF(A30="","",IF(VLOOKUP(A30,'INPUT Demand'!$A$5:$BA$1004,46,FALSE)=0,0,(VLOOKUP(A30,'INPUT Demand'!$A$5:$BA$1004,46,FALSE)*'INPUT 12NC'!D95)+'INPUT 12NC'!C95)) -> 0 | AV30: =IF(A30="","",IF(VLOOKUP(A30,'INPUT Demand'!$A$5:$BA$1004,47,FALSE)=0,0,(VLOOKUP(A30,'INPUT Demand'!$A$5:$BA$1004,47,FALSE)*'INPUT 12NC'!D95)+'INPUT 12NC'!C95)) -> 0 | AW30: =IF(A30="","",IF(VLOOKUP(A30,'INPUT Demand'!$A$5:$BA$1004,48,FALSE)=0,0,(VLOOKUP(A30,'INPUT Demand'!$A$5:$BA$1004,48,FALSE)*'INPUT 12NC'!D95)+'INPUT 12NC'!C95)) -> 0 | AX30: =IF(A30="","",IF(VLOOKUP(A30,'INPUT Demand'!$A$5:$BA$1004,49,FALSE)=0,0,(VLOOKUP(A30,'INPUT Demand'!$A$5:$BA$1004,49,FALSE)*'INPUT 12NC'!D95)+'INPUT 12NC'!C95)) -> 0 | AY30: =IF(A30="","",IF(VLOOKUP(A30,'INPUT Demand'!$A$5:$BA$1004,50,FALSE)=0,0,(VLOOKUP(A30,'INPUT Demand'!$A$5:$BA$1004,50,FALSE)*'INPUT 12NC'!D95)+'INPUT 12NC'!C95)) -> 178 | AZ30: =IF(A30="","",IF(VLOOKUP(A30,'INPUT Demand'!$A$5:$BA$1004,51,FALSE)=0,0,(VLOOKUP(A30,'INPUT Demand'!$A$5:$BA$1004,51,FALSE)*'INPUT 12NC'!D95)+'INPUT 12NC'!C95)) -> 163 | BA30: =IF(A30="","",IF(VLOOKUP(A30,'INPUT Demand'!$A$5:$BA$1004,52,FALSE)=0,0,(VLOOKUP(A30,'INPUT Demand'!$A$5:$BA$1004,52,FALSE)*'INPUT 12NC'!D95)+'INPUT 12NC'!C95)) -> 0 | BB30: =IF(A30="","",IF(VLOOKUP(A30,'INPUT Demand'!$A$5:$BA$1004,53,FALSE)=0,0,(VLOOKUP(A30,'INPUT Demand'!$A$5:$BA$1004,53,FALSE)*'INPUT 12NC'!D95)+'INPUT 12NC'!C95)) -> 0 | BC30: =IF(A30="","",SUM(D30:BB30)) -> 3204 | BD30: =IF(A30="","",IF(C30=1,BC30,0)) -> 0
A31: 402263913153 | B31: 55 | C31: 0 | D31: =IF(A31="","",IF(VLOOKUP(A31,'INPUT Demand'!$A$5:$BA$1004,3,FALSE)=0,0,(VLOOKUP(A31,'INPUT Demand'!$A$5:$BA$1004,3,FALSE)*'INPUT 12NC'!D56)+'INPUT 12NC'!C56)) -> 207 | E31: =IF(A31="","",IF(VLOOKUP(A31,'INPUT Demand'!$A$5:$BA$1004,4,FALSE)=0,0,(VLOOKUP(A31,'INPUT Demand'!$A$5:$BA$1004,4,FALSE)*'INPUT 12NC'!D56)+'INPUT 12NC'!C56)) -> 0 | F31: =IF(A31="","",IF(VLOOKUP(A31,'INPUT Demand'!$A$5:$BA$1004,5,FALSE)=0,0,(VLOOKUP(A31,'INPUT Demand'!$A$5:$BA$1004,5,FALSE)*'INPUT 12NC'!D56)+'INPUT 12NC'!C56)) -> 0 | G31: =IF(A31="","",IF(VLOOKUP(A31,'INPUT Demand'!$A$5:$BA$1004,6,FALSE)=0,0,(VLOOKUP(A31,'INPUT Demand'!$A$5:$BA$1004,6,FALSE)*'INPUT 12NC'!D56)+'INPUT 12NC'!C56)) -> 0 | H31: =IF(A31="","",IF(VLOOKUP(A31,'INPUT Demand'!$A$5:$BA$1004,7,FALSE)=0,0,(VLOOKUP(A31,'INPUT Demand'!$A$5:$BA$1004,7,FALSE)*'INPUT 12NC'!D56)+'INPUT 12NC'!C56)) -> 0 | I31: =IF(A31="","",IF(VLOOKUP(A31,'INPUT Demand'!$A$5:$BA$1004,8,FALSE)=0,0,(VLOOKUP(A31,'INPUT Demand'!$A$5:$BA$1004,8,FALSE)*'INPUT 12NC'!D56)+'INPUT 12NC'!C56)) -> 115 | J31: =IF(A31="","",IF(VLOOKUP(A31,'INPUT Demand'!$A$5:$BA$1004,9,FALSE)=0,0,(VLOOKUP(A31,'INPUT Demand'!$A$5:$BA$1004,9,FALSE)*'INPUT 12NC'!D56)+'INPUT 12NC'!C56)) -> 69 | K31: =IF(A31="","",IF(VLOOKUP(A31,'INPUT Demand'!$A$5:$BA$1004,10,FALSE)=0,0,(VLOOKUP(A31,'INPUT Demand'!$A$5:$BA$1004,10,FALSE)*'INPUT 12NC'!D56)+'INPUT 12NC'!C56)) -> 138 | L31: =IF(A31="","",IF(VLOOKUP(A31,'INPUT Demand'!$A$5:$BA$1004,11,FALSE)=0,0,(VLOOKUP(A31,'INPUT Demand'!$A$5:$BA$1004,11,FALSE)*'INPUT 12NC'!D56)+'INPUT 12NC'!C56)) -> 0 | M31: =IF(A31="","",IF(VLOOKUP(A31,'INPUT Demand'!$A$5:$BA$1004,12,FALSE)=0,0,(VLOOKUP(A31,'INPUT Demand'!$A$5:$BA$1004,12,FALSE)*'INPUT 12NC'!D56)+'INPUT 12NC'!C56)) -> 0 | N31: =IF(A31="","",IF(VLOOKUP(A31,'INPUT Demand'!$A$5:$BA$1004,13,FALSE)=0,0,(VLOOKUP(A31,'INPUT Demand'!$A$5:$BA$1004,13,FALSE)*'INPUT 12NC'!D56)+'INPUT 12NC'!C56)) -> 0 | O31: =IF(A31="","",IF(VLOOKUP(A31,'INPUT Demand'!$A$5:$BA$1004,14,FALSE)=0,0,(VLOOKUP(A31,'INPUT Demand'!$A$5:$BA$1004,14,FALSE)*'INPUT 12NC'!D56)+'INPUT 12NC'!C56)) -> 161 | P31: =IF(A31="","",IF(VLOOKUP(A31,'INPUT Demand'!$A$5:$BA$1004,15,FALSE)=0,0,(VLOOKUP(A31,'INPUT Demand'!$A$5:$BA$1004,15,FALSE)*'INPUT 12NC'!D56)+'INPUT 12NC'!C56)) -> 184 | Q31: =IF(A31="","",IF(VLOOKUP(A31,'INPUT Demand'!$A$5:$BA$1004,16,FALSE)=0,0,(VLOOKUP(A31,'INPUT Demand'!$A$5:$BA$1004,16,FALSE)*'INPUT 12NC'!D56)+'INPUT 12NC'!C56)) -> 0 | R31: =IF(A31="","",IF(VLOOKUP(A31,'INPUT Demand'!$A$5:$BA$1004,17,FALSE)=0,0,(VLOOKUP(A31,'INPUT Demand'!$A$5:$BA$1004,17,FALSE)*'INPUT 12NC'!D56)+'INPUT 12NC'!C56)) -> 138 | S31: =IF(A31="","",IF(VLOOKUP(A31,'INPUT Demand'!$A$5:$BA$1004,18,FALSE)=0,0,(VLOOKUP(A31,'INPUT Demand'!$A$5:$BA$1004,18,FALSE)*'INPUT 12NC'!D56)+'INPUT 12NC'!C56)) -> 0 | T31: =IF(A31="","",IF(VLOOKUP(A31,'INPUT Demand'!$A$5:$BA$1004,19,FALSE)=0,0,(VLOOKUP(A31,'INPUT Demand'!$A$5:$BA$1004,19,FALSE)*'INPUT 12NC'!D56)+'INPUT 12NC'!C56)) -> 138 | U31: =IF(A31="","",IF(VLOOKUP(A31,'INPUT Demand'!$A$5:$BA$1004,20,FALSE)=0,0,(VLOOKUP(A31,'INPUT Demand'!$A$5:$BA$1004,20,FALSE)*'INPUT 12NC'!D56)+'INPUT 12NC'!C56)) -> 0 | V31: =IF(A31="","",IF(VLOOKUP(A31,'INPUT Demand'!$A$5:$BA$1004,21,FALSE)=0,0,(VLOOKUP(A31,'INPUT Demand'!$A$5:$BA$1004,21,FALSE)*'INPUT 12NC'!D56)+'INPUT 12NC'!C56)) -> 0 | W31: =IF(A31="","",IF(VLOOKUP(A31,'INPUT Demand'!$A$5:$BA$1004,22,FALSE)=0,0,(VLOOKUP(A31,'INPUT Demand'!$A$5:$BA$1004,22,FALSE)*'INPUT 12NC'!D56)+'INPUT 12NC'!C56)) -> 0 | X31: =IF(A31="","",IF(VLOOKUP(A31,'INPUT Demand'!$A$5:$BA$1004,23,FALSE)=0,0,(VLOOKUP(A31,'INPUT Demand'!$A$5:$BA$1004,23,FALSE)*'INPUT 12NC'!D56)+'INPUT 12NC'!C56)) -> 0 | Y31: =IF(A31="","",IF(VLOOKUP(A31,'INPUT Demand'!$A$5:$BA$1004,24,FALSE)=0,0,(VLOOKUP(A31,'INPUT Demand'!$A$5:$BA$1004,24,FALSE)*'INPUT 12NC'!D56)+'INPUT 12NC'!C56)) -> 184 | Z31: =IF(A31="","",IF(VLOOKUP(A31,'INPUT Demand'!$A$5:$BA$1004,25,FALSE)=0,0,(VLOOKUP(A31,'INPUT Demand'!$A$5:$BA$1004,25,FALSE)*'INPUT 12NC'!D56)+'INPUT 12NC'!C56)) -> 0 | AA31: =IF(A31="","",IF(VLOOKUP(A31,'INPUT Demand'!$A$5:$BA$1004,26,FALSE)=0,0,(VLOOKUP(A31,'INPUT Demand'!$A$5:$BA$1004,26,FALSE)*'INPUT 12NC'!D56)+'INPUT 12NC'!C56)) -> 0 | AB31: =IF(A31="","",IF(VLOOKUP(A31,'INPUT Demand'!$A$5:$BA$1004,27,FALSE)=0,0,(VLOOKUP(A31,'INPUT Demand'!$A$5:$BA$1004,27,FALSE)*'INPUT 12NC'!D56)+'INPUT 12NC'!C56)) -> 161 | AC31: =IF(A31="","",IF(VLOOKUP(A31,'INPUT Demand'!$A$5:$BA$1004,28,FALSE)=0,0,(VLOOKUP(A31,'INPUT Demand'!$A$5:$BA$1004,28,FALSE)*'INPUT 12NC'!D56)+'INPUT 12NC'!C56)) -> 0 | AD31: =IF(A31="","",IF(VLOOKUP(A31,'INPUT Demand'!$A$5:$BA$1004,29,FALSE)=0,0,(VLOOKUP(A31,'INPUT Demand'!$A$5:$BA$1004,29,FALSE)*'INPUT 12NC'!D56)+'INPUT 12NC'!C56)) -> 0 | AE31: =IF(A31="","",IF(VLOOKUP(A31,'INPUT Demand'!$A$5:$BA$1004,30,FALSE)=0,0,(VLOOKUP(A31,'INPUT Demand'!$A$5:$BA$1004,30,FALSE)*'INPUT 12NC'!D56)+'INPUT 12NC'!C56)) -> 253 | AF31: =IF(A31="","",IF(VLOOKUP(A31,'INPUT Demand'!$A$5:$BA$1004,31,FALSE)=0,0,(VLOOKUP(A31,'INPUT Demand'!$A$5:$BA$1004,31,FALSE)*'INPUT 12NC'!D56)+'INPUT 12NC'!C56)) -> 0 | AG31: =IF(A31="","",IF(VLOOKUP(A31,'INPUT Demand'!$A$5:$BA$1004,32,FALSE)=0,0,(VLOOKUP(A31,'INPUT Demand'!$A$5:$BA$1004,32,FALSE)*'INPUT 12NC'!D56)+'INPUT 12NC'!C56)) -> 253 | AH31: =IF(A31="","",IF(VLOOKUP(A31,'INPUT Demand'!$A$5:$BA$1004,33,FALSE)=0,0,(VLOOKUP(A31,'INPUT Demand'!$A$5:$BA$1004,33,FALSE)*'INPUT 12NC'!D56)+'INPUT 12NC'!C56)) -> 0 | AI31: =IF(A31="","",IF(VLOOKUP(A31,'INPUT Demand'!$A$5:$BA$1004,34,FALSE)=0,0,(VLOOKUP(A31,'INPUT Demand'!$A$5:$BA$1004,34,FALSE)*'INPUT 12NC'!D56)+'INPUT 12NC'!C56)) -> 0 | AJ31: =IF(A31="","",IF(VLOOKUP(A31,'INPUT Demand'!$A$5:$BA$1004,35,FALSE)=0,0,(VLOOKUP(A31,'INPUT Demand'!$A$5:$BA$1004,35,FALSE)*'INPUT 12NC'!D56)+'INPUT 12NC'!C56)) -> 0 | AK31: =IF(A31="","",IF(VLOOKUP(A31,'INPUT Demand'!$A$5:$BA$1004,36,FALSE)=0,0,(VLOOKUP(A31,'INPUT Demand'!$A$5:$BA$1004,36,FALSE)*'INPUT 12NC'!D56)+'INPUT 12NC'!C56)) -> 368 | AL31: =IF(A31="","",IF(VLOOKUP(A31,'INPUT Demand'!$A$5:$BA$1004,37,FALSE)=0,0,(VLOOKUP(A31,'INPUT Demand'!$A$5:$BA$1004,37,FALSE)*'INPUT 12NC'!D56)+'INPUT 12NC'!C56)) -> 0 | AM31: =IF(A31="","",IF(VLOOKUP(A31,'INPUT Demand'!$A$5:$BA$1004,38,FALSE)=0,0,(VLOOKUP(A31,'INPUT Demand'!$A$5:$BA$1004,38,FALSE)*'INPUT 12NC'!D56)+'INPUT 12NC'!C56)) -> 0 | AN31: =IF(A31="","",IF(VLOOKUP(A31,'INPUT Demand'!$A$5:$BA$1004,39,FALSE)=0,0,(VLOOKUP(A31,'INPUT Demand'!$A$5:$BA$1004,39,FALSE)*'INPUT 12NC'!D56)+'INPUT 12NC'!C56)) -> 0 | AO31: =IF(A31="","",IF(VLOOKUP(A31,'INPUT Demand'!$A$5:$BA$1004,40,FALSE)=0,0,(VLOOKUP(A31,'INPUT Demand'!$A$5:$BA$1004,40,FALSE)*'INPUT 12NC'!D56)+'INPUT 12NC'!C56)) -> 0 | AP31: =IF(A31="","",IF(VLOOKUP(A31,'INPUT Demand'!$A$5:$BA$1004,41,FALSE)=0,0,(VLOOKUP(A31,'INPUT Demand'!$A$5:$BA$1004,41,FALSE)*'INPUT 12NC'!D56)+'INPUT 12NC'!C56)) -> 0 | AQ31: =IF(A31="","",IF(VLOOKUP(A31,'INPUT Demand'!$A$5:$BA$1004,42,FALSE)=0,0,(VLOOKUP(A31,'INPUT Demand'!$A$5:$BA$1004,42,FALSE)*'INPUT 12NC'!D56)+'INPUT 12NC'!C56)) -> 0 | AR31: =IF(A31="","",IF(VLOOKUP(A31,'INPUT Demand'!$A$5:$BA$1004,43,FALSE)=0,0,(VLOOKUP(A31,'INPUT Demand'!$A$5:$BA$1004,43,FALSE)*'INPUT 12NC'!D56)+'INPUT 12NC'!C56)) -> 0 | AS31: =IF(A31="","",IF(VLOOKUP(A31,'INPUT Demand'!$A$5:$BA$1004,44,FALSE)=0,0,(VLOOKUP(A31,'INPUT Demand'!$A$5:$BA$1004,44,FALSE)*'INPUT 12NC'!D56)+'INPUT 12NC'!C56)) -> 253 | AT31: =IF(A31="","",IF(VLOOKUP(A31,'INPUT Demand'!$A$5:$BA$1004,45,FALSE)=0,0,(VLOOKUP(A31,'INPUT Demand'!$A$5:$BA$1004,45,FALSE)*'INPUT 12NC'!D56)+'INPUT 12NC'!C56)) -> 0 | AU31: =IF(A31="","",IF(VLOOKUP(A31,'INPUT Demand'!$A$5:$BA$1004,46,FALSE)=0,0,(VLOOKUP(A31,'INPUT Demand'!$A$5:$BA$1004,46,FALSE)*'INPUT 12NC'!D56)+'INPUT 12NC'!C56)) -> 0 | AV31: =IF(A31="","",IF(VLOOKUP(A31,'INPUT Demand'!$A$5:$BA$1004,47,FALSE)=0,0,(VLOOKUP(A31,'INPUT Demand'!$A$5:$BA$1004,47,FALSE)*'INPUT 12NC'!D56)+'INPUT 12NC'!C56)) -> 138 | AW31: =IF(A31="","",IF(VLOOKUP(A31,'INPUT Demand'!$A$5:$BA$1004,48,FALSE)=0,0,(VLOOKUP(A31,'INPUT Demand'!$A$5:$BA$1004,48,FALSE)*'INPUT 12NC'!D56)+'INPUT 12NC'!C56)) -> 0 | AX31: =IF(A31="","",IF(VLOOKUP(A31,'INPUT Demand'!$A$5:$BA$1004,49,FALSE)=0,0,(VLOOKUP(A31,'INPUT Demand'!$A$5:$BA$1004,49,FALSE)*'INPUT 12NC'!D56)+'INPUT 12NC'!C56)) -> 0 | AY31: =IF(A31="","",IF(VLOOKUP(A31,'INPUT Demand'!$A$5:$BA$1004,50,FALSE)=0,0,(VLOOKUP(A31,'INPUT Demand'!$A$5:$BA$1004,50,FALSE)*'INPUT 12NC'!D56)+'INPUT 12NC'!C56)) -> 0 | AZ31: =IF(A31="","",IF(VLOOKUP(A31,'INPUT Demand'!$A$5:$BA$1004,51,FALSE)=0,0,(VLOOKUP(A31,'INPUT Demand'!$A$5:$BA$1004,51,FALSE)*'INPUT 12NC'!D56)+'INPUT 12NC'!C56)) -> 138 | BA31: =IF(A31="","",IF(VLOOKUP(A31,'INPUT Demand'!$A$5:$BA$1004,52,FALSE)=0,0,(VLOOKUP(A31,'INPUT Demand'!$A$5:$BA$1004,52,FALSE)*'INPUT 12NC'!D56)+'INPUT 12NC'!C56)) -> 0 | BB31: =IF(A31="","",IF(VLOOKUP(A31,'INPUT Demand'!$A$5:$BA$1004,53,FALSE)=0,0,(VLOOKUP(A31,'INPUT Demand'!$A$5:$BA$1004,53,FALSE)*'INPUT 12NC'!D56)+'INPUT 12NC'!C56)) -> 0 | BC31: =IF(A31="","",SUM(D31:BB31)) -> 2898 | BD31: =IF(A31="","",IF(C31=1,BC31,0)) -> 0
A32: 402264117172 | B32: 52 | C32: 0 | D32: =IF(A32="","",IF(VLOOKUP(A32,'INPUT Demand'!$A$5:$BA$1004,3,FALSE)=0,0,(VLOOKUP(A32,'INPUT Demand'!$A$5:$BA$1004,3,FALSE)*'INPUT 12NC'!D53)+'INPUT 12NC'!C53)) -> 0 | E32: =IF(A32="","",IF(VLOOKUP(A32,'INPUT Demand'!$A$5:$BA$1004,4,FALSE)=0,0,(VLOOKUP(A32,'INPUT Demand'!$A$5:$BA$1004,4,FALSE)*'INPUT 12NC'!D53)+'INPUT 12NC'!C53)) -> 0 | F32: =IF(A32="","",IF(VLOOKUP(A32,'INPUT Demand'!$A$5:$BA$1004,5,FALSE)=0,0,(VLOOKUP(A32,'INPUT Demand'!$A$5:$BA$1004,5,FALSE)*'INPUT 12NC'!D53)+'INPUT 12NC'!C53)) -> 0 | G32: =IF(A32="","",IF(VLOOKUP(A32,'INPUT Demand'!$A$5:$BA$1004,6,FALSE)=0,0,(VLOOKUP(A32,'INPUT Demand'!$A$5:$BA$1004,6,FALSE)*'INPUT 12NC'!D53)+'INPUT 12NC'!C53)) -> 0 | H32: =IF(A32="","",IF(VLOOKUP(A32,'INPUT Demand'!$A$5:$BA$1004,7,FALSE)=0,0,(VLOOKUP(A32,'INPUT Demand'!$A$5:$BA$1004,7,FALSE)*'INPUT 12NC'!D53)+'INPUT 12NC'!C53)) -> 701 | I32: =IF(A32="","",IF(VLOOKUP(A32,'INPUT Demand'!$A$5:$BA$1004,8,FALSE)=0,0,(VLOOKUP(A32,'INPUT Demand'!$A$5:$BA$1004,8,FALSE)*'INPUT 12NC'!D53)+'INPUT 12NC'!C53)) -> 0 | J32: =IF(A32="","",IF(VLOOKUP(A32,'INPUT Demand'!$A$5:$BA$1004,9,FALSE)=0,0,(VLOOKUP(A32,'INPUT Demand'!$A$5:$BA$1004,9,FALSE)*'INPUT 12NC'!D53)+'INPUT 12NC'!C53)) -> 0 | K32: =IF(A32="","",IF(VLOOKUP(A32,'INPUT Demand'!$A$5:$BA$1004,10,FALSE)=0,0,(VLOOKUP(A32,'INPUT Demand'!$A$5:$BA$1004,10,FALSE)*'INPUT 12NC'!D53)+'INPUT 12NC'!C53)) -> 0 | L32: =IF(A32="","",IF(VLOOKUP(A32,'INPUT Demand'!$A$5:$BA$1004,11,FALSE)=0,0,(VLOOKUP(A32,'INPUT Demand'!$A$5:$BA$1004,11,FALSE)*'INPUT 12NC'!D53)+'INPUT 12NC'!C53)) -> 0 | M32: =IF(A32="","",IF(VLOOKUP(A32,'INPUT Demand'!$A$5:$BA$1004,12,FALSE)=0,0,(VLOOKUP(A32,'INPUT Demand'!$A$5:$BA$1004,12,FALSE)*'INPUT 12NC'!D53)+'INPUT 12NC'!C53)) -> 0 | N32: =IF(A32="","",IF(VLOOKUP(A32,'INPUT Demand'!$A$5:$BA$1004,13,FALSE)=0,0,(VLOOKUP(A32,'INPUT Demand'!$A$5:$BA$1004,13,FALSE)*'INPUT 12NC'!D53)+'INPUT 12NC'!C53)) -> 527 | O32: =IF(A32="","",IF(VLOOKUP(A32,'INPUT Demand'!$A$5:$BA$1004,14,FALSE)=0,0,(VLOOKUP(A32,'INPUT Demand'!$A$5:$BA$1004,14,FALSE)*'INPUT 12NC'!D53)+'INPUT 12NC'!C53)) -> 0 | P32: =IF(A32="","",IF(VLOOKUP(A32,'INPUT Demand'!$A$5:$BA$1004,15,FALSE)=0,0,(VLOOKUP(A32,'INPUT Demand'!$A$5:$BA$1004,15,FALSE)*'INPUT 12NC'!D53)+'INPUT 12NC'!C53)) -> 0 | Q32: =IF(A32="","",IF(VLOOKUP(A32,'INPUT Demand'!$A$5:$BA$1004,16,FALSE)=0,0,(VLOOKUP(A32,'INPUT Demand'!$A$5:$BA$1004,16,FALSE)*'INPUT 12NC'!D53)+'INPUT 12NC'!C53)) -> 0 | R32: =IF(A32="","",IF(VLOOKUP(A32,'INPUT Demand'!$A$5:$BA$1004,17,FALSE)=0,0,(VLOOKUP(A32,'INPUT Demand'!$A$5:$BA$1004,17,FALSE)*'INPUT 12NC'!D53)+'INPUT 12NC'!C53)) -> 0 | S32: =IF(A32="","",IF(VLOOKUP(A32,'INPUT Demand'!$A$5:$BA$1004,18,FALSE)=0,0,(VLOOKUP(A32,'INPUT Demand'!$A$5:$BA$1004,18,FALSE)*'INPUT 12NC'!D53)+'INPUT 12NC'!C53)) -> 0 | T32: =IF(A32="","",IF(VLOOKUP(A32,'INPUT Demand'!$A$5:$BA$1004,19,FALSE)=0,0,(VLOOKUP(A32,'INPUT Demand'!$A$5:$BA$1004,19,FALSE)*'INPUT 12NC'!D53)+'INPUT 12NC'!C53)) -> 527 | U32: =IF(A32="","",IF(VLOOKUP(A32,'INPUT Demand'!$A$5:$BA$1004,20,FALSE)=0,0,(VLOOKUP(A32,'INPUT Demand'!$A$5:$BA$1004,20,FALSE)*'INPUT 12NC'!D53)+'INPUT 12NC'!C53)) -> 0 | V32: =IF(A32="","",IF(VLOOKUP(A32,'INPUT Demand'!$A$5:$BA$1004,21,FALSE)=0,0,(VLOOKUP(A32,'INPUT Demand'!$A$5:$BA$1004,21,FALSE)*'INPUT 12NC'!D53)+'INPUT 12NC'!C53)) -> 0 | W32: =IF(A32="","",IF(VLOOKUP(A32,'INPUT Demand'!$A$5:$BA$1004,22,FALSE)=0,0,(VLOOKUP(A32,'INPUT Demand'!$A$5:$BA$1004,22,FALSE)*'INPUT 12NC'!D53)+'INPUT 12NC'!C53)) -> 0 | X32: =IF(A32="","",IF(VLOOKUP(A32,'INPUT Demand'!$A$5:$BA$1004,23,FALSE)=0,0,(VLOOKUP(A32,'INPUT Demand'!$A$5:$BA$1004,23,FALSE)*'INPUT 12NC'!D53)+'INPUT 12NC'!C53)) -> 0 | Y32: =IF(A32="","",IF(VLOOKUP(A32,'INPUT Demand'!$A$5:$BA$1004,24,FALSE)=0,0,(VLOOKUP(A32,'INPUT Demand'!$A$5:$BA$1004,24,FALSE)*'INPUT 12NC'!D53)+'INPUT 12NC'!C53)) -> 0 | Z32: =IF(A32="","",IF(VLOOKUP(A32,'INPUT Demand'!$A$5:$BA$1004,25,FALSE)=0,0,(VLOOKUP(A32,'INPUT Demand'!$A$5:$BA$1004,25,FALSE)*'INPUT 12NC'!D53)+'INPUT 12NC'!C53)) -> 0 | AA32: =IF(A32="","",IF(VLOOKUP(A32,'INPUT Demand'!$A$5:$BA$1004,26,FALSE)=0,0,(VLOOKUP(A32,'INPUT Demand'!$A$5:$BA$1004,26,FALSE)*'INPUT 12NC'!D53)+'INPUT 12NC'!C53)) -> 0 | AB32: =IF(A32="","",IF(VLOOKUP(A32,'INPUT Demand'!$A$5:$BA$1004,27,FALSE)=0,0,(VLOOKUP(A32,'INPUT Demand'!$A$5:$BA$1004,27,FALSE)*'INPUT 12NC'!D53)+'INPUT 12NC'!C53)) -> 0 | AC32: =IF(A32="","",IF(VLOOKUP(A32,'INPUT Demand'!$A$5:$BA$1004,28,FALSE)=0,0,(VLOOKUP(A32,'INPUT Demand'!$A$5:$BA$1004,28,FALSE)*'INPUT 12NC'!D53)+'INPUT 12NC'!C53)) -> 0 | AD32: =IF(A32="","",IF(VLOOKUP(A32,'INPUT Demand'!$A$5:$BA$1004,29,FALSE)=0,0,(VLOOKUP(A32,'INPUT Demand'!$A$5:$BA$1004,29,FALSE)*'INPUT 12NC'!D53)+'INPUT 12NC'!C53)) -> 527 | AE32: =IF(A32="","",IF(VLOOKUP(A32,'INPUT Demand'!$A$5:$BA$1004,30,FALSE)=0,0,(VLOOKUP(A32,'INPUT Demand'!$A$5:$BA$1004,30,FALSE)*'INPUT 12NC'!D53)+'INPUT 12NC'!C53)) -> 0 | AF32: =IF(A32="","",IF(VLOOKUP(A32,'INPUT Demand'!$A$5:$BA$1004,31,FALSE)=0,0,(VLOOKUP(A32,'INPUT Demand'!$A$5:$BA$1004,31,FALSE)*'INPUT 12NC'!D53)+'INPUT 12NC'!C53)) -> 440 | AG32: =IF(A32="","",IF(VLOOKUP(A32,'INPUT Demand'!$A$5:$BA$1004,32,FALSE)=0,0,(VLOOKUP(A32,'INPUT Demand'!$A$5:$BA$1004,32,FALSE)*'INPUT 12NC'!D53)+'INPUT 12NC'!C53)) -> 0 | AH32: =IF(A32="","",IF(VLOOKUP(A32,'INPUT Demand'!$A$5:$BA$1004,33,FALSE)=0,0,(VLOOKUP(A32,'INPUT Demand'!$A$5:$BA$1004,33,FALSE)*'INPUT 12NC'!D53)+'INPUT 12NC'!C53)) -> 92 | AI32: =IF(A32="","",IF(VLOOKUP(A32,'INPUT Demand'!$A$5:$BA$1004,34,FALSE)=0,0,(VLOOKUP(A32,'INPUT Demand'!$A$5:$BA$1004,34,FALSE)*'INPUT 12NC'!D53)+'INPUT 12NC'!C53)) -> 0 | AJ32: =IF(A32="","",IF(VLOOKUP(A32,'INPUT Demand'!$A$5:$BA$1004,35,FALSE)=0,0,(VLOOKUP(A32,'INPUT Demand'!$A$5:$BA$1004,35,FALSE)*'INPUT 12NC'!D53)+'INPUT 12NC'!C53)) -> 0 | AK32: =IF(A32="","",IF(VLOOKUP(A32,'INPUT Demand'!$A$5:$BA$1004,36,FALSE)=0,0,(VLOOKUP(A32,'INPUT Demand'!$A$5:$BA$1004,36,FALSE)*'INPUT 12NC'!D53)+'INPUT 12NC'!C53)) -> 0 | AL32: =IF(A32="","",IF(VLOOKUP(A32,'INPUT Demand'!$A$5:$BA$1004,37,FALSE)=0,0,(VLOOKUP(A32,'INPUT Demand'!$A$5:$BA$1004,37,FALSE)*'INPUT 12NC'!D53)+'INPUT 12NC'!C53)) -> 0 | AM32: =IF(A32="","",IF(VLOOKUP(A32,'INPUT Demand'!$A$5:$BA$1004,38,FALSE)=0,0,(VLOOKUP(A32,'INPUT Demand'!$A$5:$BA$1004,38,FALSE)*'INPUT 12NC'!D53)+'INPUT 12NC'!C53)) -> 0 | AN32: =IF(A32="","",IF(VLOOKUP(A32,'INPUT Demand'!$A$5:$BA$1004,39,FALSE)=0,0,(VLOOKUP(A32,'INPUT Demand'!$A$5:$BA$1004,39,FALSE)*'INPUT 12NC'!D53)+'INPUT 12NC'!C53)) -> 0 | AO32: =IF(A32="","",IF(VLOOKUP(A32,'INPUT Demand'!$A$5:$BA$1004,40,FALSE)=0,0,(VLOOKUP(A32,'INPUT Demand'!$A$5:$BA$1004,40,FALSE)*'INPUT 12NC'!D53)+'INPUT 12NC'!C53)) -> 0 | AP32: =IF(A32="","",IF(VLOOKUP(A32,'INPUT Demand'!$A$5:$BA$1004,41,FALSE)=0,0,(VLOOKUP(A32,'INPUT Demand'!$A$5:$BA$1004,41,FALSE)*'INPUT 12NC'!D53)+'INPUT 12NC'!C53)) -> 0 | AQ32: =IF(A32="","",IF(VLOOKUP(A32,'INPUT Demand'!$A$5:$BA$1004,42,FALSE)=0,0,(VLOOKUP(A32,'INPUT Demand'!$A$5:$BA$1004,42,FALSE)*'INPUT 12NC'!D53)+'INPUT 12NC'!C53)) -> 0 | AR32: =IF(A32="","",IF(VLOOKUP(A32,'INPUT Demand'!$A$5:$BA$1004,43,FALSE)=0,0,(VLOOKUP(A32,'INPUT Demand'!$A$5:$BA$1004,43,FALSE)*'INPUT 12NC'!D53)+'INPUT 12NC'!C53)) -> 0 | AS32: =IF(A32="","",IF(VLOOKUP(A32,'INPUT Demand'!$A$5:$BA$1004,44,FALSE)=0,0,(VLOOKUP(A32,'INPUT Demand'!$A$5:$BA$1004,44,FALSE)*'INPUT 12NC'!D53)+'INPUT 12NC'!C53)) -> 0 | AT32: =IF(A32="","",IF(VLOOKUP(A32,'INPUT Demand'!$A$5:$BA$1004,45,FALSE)=0,0,(VLOOKUP(A32,'INPUT Demand'!$A$5:$BA$1004,45,FALSE)*'INPUT 12NC'!D53)+'INPUT 12NC'!C53)) -> 0 | AU32: =IF(A32="","",IF(VLOOKUP(A32,'INPUT Demand'!$A$5:$BA$1004,46,FALSE)=0,0,(VLOOKUP(A32,'INPUT Demand'!$A$5:$BA$1004,46,FALSE)*'INPUT 12NC'!D53)+'INPUT 12NC'!C53)) -> 0 | AV32: =IF(A32="","",IF(VLOOKUP(A32,'INPUT Demand'!$A$5:$BA$1004,47,FALSE)=0,0,(VLOOKUP(A32,'INPUT Demand'!$A$5:$BA$1004,47,FALSE)*'INPUT 12NC'!D53)+'INPUT 12NC'!C53)) -> 0 | AW32: =IF(A32="","",IF(VLOOKUP(A32,'INPUT Demand'!$A$5:$BA$1004,48,FALSE)=0,0,(VLOOKUP(A32,'INPUT Demand'!$A$5:$BA$1004,48,FALSE)*'INPUT 12NC'!D53)+'INPUT 12NC'!C53)) -> 0 | AX32: =IF(A32="","",IF(VLOOKUP(A32,'INPUT Demand'!$A$5:$BA$1004,49,FALSE)=0,0,(VLOOKUP(A32,'INPUT Demand'!$A$5:$BA$1004,49,FALSE)*'INPUT 12NC'!D53)+'INPUT 12NC'!C53)) -> 0 | AY32: =IF(A32="","",IF(VLOOKUP(A32,'INPUT Demand'!$A$5:$BA$1004,50,FALSE)=0,0,(VLOOKUP(A32,'INPUT Demand'!$A$5:$BA$1004,50,FALSE)*'INPUT 12NC'!D53)+'INPUT 12NC'!C53)) -> 0 | AZ32: =IF(A32="","",IF(VLOOKUP(A32,'INPUT Demand'!$A$5:$BA$1004,51,FALSE)=0,0,(VLOOKUP(A32,'INPUT Demand'!$A$5:$BA$1004,51,FALSE)*'INPUT 12NC'!D53)+'INPUT 12NC'!C53)) -> 0 | BA32: =IF(A32="","",IF(VLOOKUP(A32,'INPUT Demand'!$A$5:$BA$1004,52,FALSE)=0,0,(VLOOKUP(A32,'INPUT Demand'!$A$5:$BA$1004,52,FALSE)*'INPUT 12NC'!D53)+'INPUT 12NC'!C53)) -> 0 | BB32: =IF(A32="","",IF(VLOOKUP(A32,'INPUT Demand'!$A$5:$BA$1004,53,FALSE)=0,0,(VLOOKUP(A32,'INPUT Demand'!$A$5:$BA$1004,53,FALSE)*'INPUT 12NC'!D53)+'INPUT 12NC'!C53)) -> 0 | BC32: =IF(A32="","",SUM(D32:BB32)) -> 2814 | BD32: =IF(A32="","",IF(C32=1,BC32,0)) -> 0
A33: 402263743432 | B33: 62 | C33: 0 | D33: =IF(A33="","",IF(VLOOKUP(A33,'INPUT Demand'!$A$5:$BA$1004,3,FALSE)=0,0,(VLOOKUP(A33,'INPUT Demand'!$A$5:$BA$1004,3,FALSE)*'INPUT 12NC'!D63)+'INPUT 12NC'!C63)) -> 0 | E33: =IF(A33="","",IF(VLOOKUP(A33,'INPUT Demand'!$A$5:$BA$1004,4,FALSE)=0,0,(VLOOKUP(A33,'INPUT Demand'!$A$5:$BA$1004,4,FALSE)*'INPUT 12NC'!D63)+'INPUT 12NC'!C63)) -> 0 | F33: =IF(A33="","",IF(VLOOKUP(A33,'INPUT Demand'!$A$5:$BA$1004,5,FALSE)=0,0,(VLOOKUP(A33,'INPUT Demand'!$A$5:$BA$1004,5,FALSE)*'INPUT 12NC'!D63)+'INPUT 12NC'!C63)) -> 161 | G33: =IF(A33="","",IF(VLOOKUP(A33,'INPUT Demand'!$A$5:$BA$1004,6,FALSE)=0,0,(VLOOKUP(A33,'INPUT Demand'!$A$5:$BA$1004,6,FALSE)*'INPUT 12NC'!D63)+'INPUT 12NC'!C63)) -> 0 | H33: =IF(A33="","",IF(VLOOKUP(A33,'INPUT Demand'!$A$5:$BA$1004,7,FALSE)=0,0,(VLOOKUP(A33,'INPUT Demand'!$A$5:$BA$1004,7,FALSE)*'INPUT 12NC'!D63)+'INPUT 12NC'!C63)) -> 0 | I33: =IF(A33="","",IF(VLOOKUP(A33,'INPUT Demand'!$A$5:$BA$1004,8,FALSE)=0,0,(VLOOKUP(A33,'INPUT Demand'!$A$5:$BA$1004,8,FALSE)*'INPUT 12NC'!D63)+'INPUT 12NC'!C63)) -> 83 | J33: =IF(A33="","",IF(VLOOKUP(A33,'INPUT Demand'!$A$5:$BA$1004,9,FALSE)=0,0,(VLOOKUP(A33,'INPUT Demand'!$A$5:$BA$1004,9,FALSE)*'INPUT 12NC'!D63)+'INPUT 12NC'!C63)) -> 135 | K33: =IF(A33="","",IF(VLOOKUP(A33,'INPUT Demand'!$A$5:$BA$1004,10,FALSE)=0,0,(VLOOKUP(A33,'INPUT Demand'!$A$5:$BA$1004,10,FALSE)*'INPUT 12NC'!D63)+'INPUT 12NC'!C63)) -> 0 | L33: =IF(A33="","",IF(VLOOKUP(A33,'INPUT Demand'!$A$5:$BA$1004,11,FALSE)=0,0,(VLOOKUP(A33,'INPUT Demand'!$A$5:$BA$1004,11,FALSE)*'INPUT 12NC'!D63)+'INPUT 12NC'!C63)) -> 0 | M33: =IF(A33="","",IF(VLOOKUP(A33,'INPUT Demand'!$A$5:$BA$1004,12,FALSE)=0,0,(VLOOKUP(A33,'INPUT Demand'!$A$5:$BA$1004,12,FALSE)*'INPUT 12NC'!D63)+'INPUT 12NC'!C63)) -> 187 | N33: =IF(A33="","",IF(VLOOKUP(A33,'INPUT Demand'!$A$5:$BA$1004,13,FALSE)=0,0,(VLOOKUP(A33,'INPUT Demand'!$A$5:$BA$1004,13,FALSE)*'INPUT 12NC'!D63)+'INPUT 12NC'!C63)) -> 0 | O33: =IF(A33="","",IF(VLOOKUP(A33,'INPUT Demand'!$A$5:$BA$1004,14,FALSE)=0,0,(VLOOKUP(A33,'INPUT Demand'!$A$5:$BA$1004,14,FALSE)*'INPUT 12NC'!D63)+'INPUT 12NC'!C63)) -> 0 | P33: =IF(A33="","",IF(VLOOKUP(A33,'INPUT Demand'!$A$5:$BA$1004,15,FALSE)=0,0,(VLOOKUP(A33,'INPUT Demand'!$A$5:$BA$1004,15,FALSE)*'INPUT 12NC'!D63)+'INPUT 12NC'!C63)) -> 0 | Q33: =IF(A33="","",IF(VLOOKUP(A33,'INPUT Demand'!$A$5:$BA$1004,16,FALSE)=0,0,(VLOOKUP(A33,'INPUT Demand'!$A$5:$BA$1004,16,FALSE)*'INPUT 12NC'!D63)+'INPUT 12NC'!C63)) -> 161 | R33: =IF(A33="","",IF(VLOOKUP(A33,'INPUT Demand'!$A$5:$BA$1004,17,FALSE)=0,0,(VLOOKUP(A33,'INPUT Demand'!$A$5:$BA$1004,17,FALSE)*'INPUT 12NC'!D63)+'INPUT 12NC'!C63)) -> 0 | S33: =IF(A33="","",IF(VLOOKUP(A33,'INPUT Demand'!$A$5:$BA$1004,18,FALSE)=0,0,(VLOOKUP(A33,'INPUT Demand'!$A$5:$BA$1004,18,FALSE)*'INPUT 12NC'!D63)+'INPUT 12NC'!C63)) -> 57 | T33: =IF(A33="","",IF(VLOOKUP(A33,'INPUT Demand'!$A$5:$BA$1004,19,FALSE)=0,0,(VLOOKUP(A33,'INPUT Demand'!$A$5:$BA$1004,19,FALSE)*'INPUT 12NC'!D63)+'INPUT 12NC'!C63)) -> 135 | U33: =IF(A33="","",IF(VLOOKUP(A33,'INPUT Demand'!$A$5:$BA$1004,20,FALSE)=0,0,(VLOOKUP(A33,'INPUT Demand'!$A$5:$BA$1004,20,FALSE)*'INPUT 12NC'!D63)+'INPUT 12NC'!C63)) -> 0 | V33: =IF(A33="","",IF(VLOOKUP(A33,'INPUT Demand'!$A$5:$BA$1004,21,FALSE)=0,0,(VLOOKUP(A33,'INPUT Demand'!$A$5:$BA$1004,21,FALSE)*'INPUT 12NC'!D63)+'INPUT 12NC'!C63)) -> 0 | W33: =IF(A33="","",IF(VLOOKUP(A33,'INPUT Demand'!$A$5:$BA$1004,22,FALSE)=0,0,(VLOOKUP(A33,'INPUT Demand'!$A$5:$BA$1004,22,FALSE)*'INPUT 12NC'!D63)+'INPUT 12NC'!C63)) -> 0 | X33: =IF(A33="","",IF(VLOOKUP(A33,'INPUT Demand'!$A$5:$BA$1004,23,FALSE)=0,0,(VLOOKUP(A33,'INPUT Demand'!$A$5:$BA$1004,23,FALSE)*'INPUT 12NC'!D63)+'INPUT 12NC'!C63)) -> 161 | Y33: =IF(A33="","",IF(VLOOKUP(A33,'INPUT Demand'!$A$5:$BA$1004,24,FALSE)=0,0,(VLOOKUP(A33,'INPUT Demand'!$A$5:$BA$1004,24,FALSE)*'INPUT 12NC'!D63)+'INPUT 12NC'!C63)) -> 0 | Z33: =IF(A33="","",IF(VLOOKUP(A33,'INPUT Demand'!$A$5:$BA$1004,25,FALSE)=0,0,(VLOOKUP(A33,'INPUT Demand'!$A$5:$BA$1004,25,FALSE)*'INPUT 12NC'!D63)+'INPUT 12NC'!C63)) -> 0 | AA33: =IF(A33="","",IF(VLOOKUP(A33,'INPUT Demand'!$A$5:$BA$1004,26,FALSE)=0,0,(VLOOKUP(A33,'INPUT Demand'!$A$5:$BA$1004,26,FALSE)*'INPUT 12NC'!D63)+'INPUT 12NC'!C63)) -> 187 | AB33: =IF(A33="","",IF(VLOOKUP(A33,'INPUT Demand'!$A$5:$BA$1004,27,FALSE)=0,0,(VLOOKUP(A33,'INPUT Demand'!$A$5:$BA$1004,27,FALSE)*'INPUT 12NC'!D63)+'INPUT 12NC'!C63)) -> 0 | AC33: =IF(A33="","",IF(VLOOKUP(A33,'INPUT Demand'!$A$5:$BA$1004,28,FALSE)=0,0,(VLOOKUP(A33,'INPUT Demand'!$A$5:$BA$1004,28,FALSE)*'INPUT 12NC'!D63)+'INPUT 12NC'!C63)) -> 0 | AD33: =IF(A33="","",IF(VLOOKUP(A33,'INPUT Demand'!$A$5:$BA$1004,29,FALSE)=0,0,(VLOOKUP(A33,'INPUT Demand'!$A$5:$BA$1004,29,FALSE)*'INPUT 12NC'!D63)+'INPUT 12NC'!C63)) -> 265 | AE33: =IF(A33="","",IF(VLOOKUP(A33,'INPUT Demand'!$A$5:$BA$1004,30,FALSE)=0,0,(VLOOKUP(A33,'INPUT Demand'!$A$5:$BA$1004,30,FALSE)*'INPUT 12NC'!D63)+'INPUT 12NC'!C63)) -> 0 | AF33: =IF(A33="","",IF(VLOOKUP(A33,'INPUT Demand'!$A$5:$BA$1004,31,FALSE)=0,0,(VLOOKUP(A33,'INPUT Demand'!$A$5:$BA$1004,31,FALSE)*'INPUT 12NC'!D63)+'INPUT 12NC'!C63)) -> 291 | AG33: =IF(A33="","",IF(VLOOKUP(A33,'INPUT Demand'!$A$5:$BA$1004,32,FALSE)=0,0,(VLOOKUP(A33,'INPUT Demand'!$A$5:$BA$1004,32,FALSE)*'INPUT 12NC'!D63)+'INPUT 12NC'!C63)) -> 0 | AH33: =IF(A33="","",IF(VLOOKUP(A33,'INPUT Demand'!$A$5:$BA$1004,33,FALSE)=0,0,(VLOOKUP(A33,'INPUT Demand'!$A$5:$BA$1004,33,FALSE)*'INPUT 12NC'!D63)+'INPUT 12NC'!C63)) -> 0 | AI33: =IF(A33="","",IF(VLOOKUP(A33,'INPUT Demand'!$A$5:$BA$1004,34,FALSE)=0,0,(VLOOKUP(A33,'INPUT Demand'!$A$5:$BA$1004,34,FALSE)*'INPUT 12NC'!D63)+'INPUT 12NC'!C63)) -> 0 | AJ33: =IF(A33="","",IF(VLOOKUP(A33,'INPUT Demand'!$A$5:$BA$1004,35,FALSE)=0,0,(VLOOKUP(A33,'INPUT Demand'!$A$5:$BA$1004,35,FALSE)*'INPUT 12NC'!D63)+'INPUT 12NC'!C63)) -> 0 | AK33: =IF(A33="","",IF(VLOOKUP(A33,'INPUT Demand'!$A$5:$BA$1004,36,FALSE)=0,0,(VLOOKUP(A33,'INPUT Demand'!$A$5:$BA$1004,36,FALSE)*'INPUT 12NC'!D63)+'INPUT 12NC'!C63)) -> 0 | AL33: =IF(A33="","",IF(VLOOKUP(A33,'INPUT Demand'!$A$5:$BA$1004,37,FALSE)=0,0,(VLOOKUP(A33,'INPUT Demand'!$A$5:$BA$1004,37,FALSE)*'INPUT 12NC'!D63)+'INPUT 12NC'!C63)) -> 0 | AM33: =IF(A33="","",IF(VLOOKUP(A33,'INPUT Demand'!$A$5:$BA$1004,38,FALSE)=0,0,(VLOOKUP(A33,'INPUT Demand'!$A$5:$BA$1004,38,FALSE)*'INPUT 12NC'!D63)+'INPUT 12NC'!C63)) -> 0 | AN33: =IF(A33="","",IF(VLOOKUP(A33,'INPUT Demand'!$A$5:$BA$1004,39,FALSE)=0,0,(VLOOKUP(A33,'INPUT Demand'!$A$5:$BA$1004,39,FALSE)*'INPUT 12NC'!D63)+'INPUT 12NC'!C63)) -> 135 | AO33: =IF(A33="","",IF(VLOOKUP(A33,'INPUT Demand'!$A$5:$BA$1004,40,FALSE)=0,0,(VLOOKUP(A33,'INPUT Demand'!$A$5:$BA$1004,40,FALSE)*'INPUT 12NC'!D63)+'INPUT 12NC'!C63)) -> 200 | AP33: =IF(A33="","",IF(VLOOKUP(A33,'INPUT Demand'!$A$5:$BA$1004,41,FALSE)=0,0,(VLOOKUP(A33,'INPUT Demand'!$A$5:$BA$1004,41,FALSE)*'INPUT 12NC'!D63)+'INPUT 12NC'!C63)) -> 0 | AQ33: =IF(A33="","",IF(VLOOKUP(A33,'INPUT Demand'!$A$5:$BA$1004,42,FALSE)=0,0,(VLOOKUP(A33,'INPUT Demand'!$A$5:$BA$1004,42,FALSE)*'INPUT 12NC'!D63)+'INPUT 12NC'!C63)) -> 0 | AR33: =IF(A33="","",IF(VLOOKUP(A33,'INPUT Demand'!$A$5:$BA$1004,43,FALSE)=0,0,(VLOOKUP(A33,'INPUT Demand'!$A$5:$BA$1004,43,FALSE)*'INPUT 12NC'!D63)+'INPUT 12NC'!C63)) -> 0 | AS33: =IF(A33="","",IF(VLOOKUP(A33,'INPUT Demand'!$A$5:$BA$1004,44,FALSE)=0,0,(VLOOKUP(A33,'INPUT Demand'!$A$5:$BA$1004,44,FALSE)*'INPUT 12NC'!D63)+'INPUT 12NC'!C63)) -> 0 | AT33: =IF(A33="","",IF(VLOOKUP(A33,'INPUT Demand'!$A$5:$BA$1004,45,FALSE)=0,0,(VLOOKUP(A33,'INPUT Demand'!$A$5:$BA$1004,45,FALSE)*'INPUT 12NC'!D63)+'INPUT 12NC'!C63)) -> 70 | AU33: =IF(A33="","",IF(VLOOKUP(A33,'INPUT Demand'!$A$5:$BA$1004,46,FALSE)=0,0,(VLOOKUP(A33,'INPUT Demand'!$A$5:$BA$1004,46,FALSE)*'INPUT 12NC'!D63)+'INPUT 12NC'!C63)) -> 0 | AV33: =IF(A33="","",IF(VLOOKUP(A33,'INPUT Demand'!$A$5:$BA$1004,47,FALSE)=0,0,(VLOOKUP(A33,'INPUT Demand'!$A$5:$BA$1004,47,FALSE)*'INPUT 12NC'!D63)+'INPUT 12NC'!C63)) -> 265 | AW33: =IF(A33="","",IF(VLOOKUP(A33,'INPUT Demand'!$A$5:$BA$1004,48,FALSE)=0,0,(VLOOKUP(A33,'INPUT Demand'!$A$5:$BA$1004,48,FALSE)*'INPUT 12NC'!D63)+'INPUT 12NC'!C63)) -> 0 | AX33: =IF(A33="","",IF(VLOOKUP(A33,'INPUT Demand'!$A$5:$BA$1004,49,FALSE)=0,0,(VLOOKUP(A33,'INPUT Demand'!$A$5:$BA$1004,49,FALSE)*'INPUT 12NC'!D63)+'INPUT 12NC'!C63)) -> 0 | AY33: =IF(A33="","",IF(VLOOKUP(A33,'INPUT Demand'!$A$5:$BA$1004,50,FALSE)=0,0,(VLOOKUP(A33,'INPUT Demand'!$A$5:$BA$1004,50,FALSE)*'INPUT 12NC'!D63)+'INPUT 12NC'!C63)) -> 0 | AZ33: =IF(A33="","",IF(VLOOKUP(A33,'INPUT Demand'!$A$5:$BA$1004,51,FALSE)=0,0,(VLOOKUP(A33,'INPUT Demand'!$A$5:$BA$1004,51,FALSE)*'INPUT 12NC'!D63)+'INPUT 12NC'!C63)) -> 200 | BA33: =IF(A33="","",IF(VLOOKUP(A33,'INPUT Demand'!$A$5:$BA$1004,52,FALSE)=0,0,(VLOOKUP(A33,'INPUT Demand'!$A$5:$BA$1004,52,FALSE)*'INPUT 12NC'!D63)+'INPUT 12NC'!C63)) -> 0 | BB33: =IF(A33="","",IF(VLOOKUP(A33,'INPUT Demand'!$A$5:$BA$1004,53,FALSE)=0,0,(VLOOKUP(A33,'INPUT Demand'!$A$5:$BA$1004,53,FALSE)*'INPUT 12NC'!D63)+'INPUT 12NC'!C63)) -> 0 | BC33: =IF(A33="","",SUM(D33:BB33)) -> 2693 | BD33: =IF(A33="","",IF(C33=1,BC33,0)) -> 0
A34: 402248667402 | B34: 97 | C34: 0 | D34: =IF(A34="","",IF(VLOOKUP(A34,'INPUT Demand'!$A$5:$BA$1004,3,FALSE)=0,0,(VLOOKUP(A34,'INPUT Demand'!$A$5:$BA$1004,3,FALSE)*'INPUT 12NC'!D98)+'INPUT 12NC'!C98)) -> 194 | E34: =IF(A34="","",IF(VLOOKUP(A34,'INPUT Demand'!$A$5:$BA$1004,4,FALSE)=0,0,(VLOOKUP(A34,'INPUT Demand'!$A$5:$BA$1004,4,FALSE)*'INPUT 12NC'!D98)+'INPUT 12NC'!C98)) -> 0 | F34: =IF(A34="","",IF(VLOOKUP(A34,'INPUT Demand'!$A$5:$BA$1004,5,FALSE)=0,0,(VLOOKUP(A34,'INPUT Demand'!$A$5:$BA$1004,5,FALSE)*'INPUT 12NC'!D98)+'INPUT 12NC'!C98)) -> 0 | G34: =IF(A34="","",IF(VLOOKUP(A34,'INPUT Demand'!$A$5:$BA$1004,6,FALSE)=0,0,(VLOOKUP(A34,'INPUT Demand'!$A$5:$BA$1004,6,FALSE)*'INPUT 12NC'!D98)+'INPUT 12NC'!C98)) -> 0 | H34: =IF(A34="","",IF(VLOOKUP(A34,'INPUT Demand'!$A$5:$BA$1004,7,FALSE)=0,0,(VLOOKUP(A34,'INPUT Demand'!$A$5:$BA$1004,7,FALSE)*'INPUT 12NC'!D98)+'INPUT 12NC'!C98)) -> 152 | I34: =IF(A34="","",IF(VLOOKUP(A34,'INPUT Demand'!$A$5:$BA$1004,8,FALSE)=0,0,(VLOOKUP(A34,'INPUT Demand'!$A$5:$BA$1004,8,FALSE)*'INPUT 12NC'!D98)+'INPUT 12NC'!C98)) -> 68 | J34: =IF(A34="","",IF(VLOOKUP(A34,'INPUT Demand'!$A$5:$BA$1004,9,FALSE)=0,0,(VLOOKUP(A34,'INPUT Demand'!$A$5:$BA$1004,9,FALSE)*'INPUT 12NC'!D98)+'INPUT 12NC'!C98)) -> 0 | K34: =IF(A34="","",IF(VLOOKUP(A34,'INPUT Demand'!$A$5:$BA$1004,10,FALSE)=0,0,(VLOOKUP(A34,'INPUT Demand'!$A$5:$BA$1004,10,FALSE)*'INPUT 12NC'!D98)+'INPUT 12NC'!C98)) -> 0 | L34: =IF(A34="","",IF(VLOOKUP(A34,'INPUT Demand'!$A$5:$BA$1004,11,FALSE)=0,0,(VLOOKUP(A34,'INPUT Demand'!$A$5:$BA$1004,11,FALSE)*'INPUT 12NC'!D98)+'INPUT 12NC'!C98)) -> 131 | M34: =IF(A34="","",IF(VLOOKUP(A34,'INPUT Demand'!$A$5:$BA$1004,12,FALSE)=0,0,(VLOOKUP(A34,'INPUT Demand'!$A$5:$BA$1004,12,FALSE)*'INPUT 12NC'!D98)+'INPUT 12NC'!C98)) -> 0 | N34: =IF(A34="","",IF(VLOOKUP(A34,'INPUT Demand'!$A$5:$BA$1004,13,FALSE)=0,0,(VLOOKUP(A34,'INPUT Demand'!$A$5:$BA$1004,13,FALSE)*'INPUT 12NC'!D98)+'INPUT 12NC'!C98)) -> 0 | O34: =IF(A34="","",IF(VLOOKUP(A34,'INPUT Demand'!$A$5:$BA$1004,14,FALSE)=0,0,(VLOOKUP(A34,'INPUT Demand'!$A$5:$BA$1004,14,FALSE)*'INPUT 12NC'!D98)+'INPUT 12NC'!C98)) -> 0 | P34: =IF(A34="","",IF(VLOOKUP(A34,'INPUT Demand'!$A$5:$BA$1004,15,FALSE)=0,0,(VLOOKUP(A34,'INPUT Demand'!$A$5:$BA$1004,15,FALSE)*'INPUT 12NC'!D98)+'INPUT 12NC'!C98)) -> 194 | Q34: =IF(A34="","",IF(VLOOKUP(A34,'INPUT Demand'!$A$5:$BA$1004,16,FALSE)=0,0,(VLOOKUP(A34,'INPUT Demand'!$A$5:$BA$1004,16,FALSE)*'INPUT 12NC'!D98)+'INPUT 12NC'!C98)) -> 0 | R34: =IF(A34="","",IF(VLOOKUP(A34,'INPUT Demand'!$A$5:$BA$1004,17,FALSE)=0,0,(VLOOKUP(A34,'INPUT Demand'!$A$5:$BA$1004,17,FALSE)*'INPUT 12NC'!D98)+'INPUT 12NC'!C98)) -> 0 | S34: =IF(A34="","",IF(VLOOKUP(A34,'INPUT Demand'!$A$5:$BA$1004,18,FALSE)=0,0,(VLOOKUP(A34,'INPUT Demand'!$A$5:$BA$1004,18,FALSE)*'INPUT 12NC'!D98)+'INPUT 12NC'!C98)) -> 215 | T34: =IF(A34="","",IF(VLOOKUP(A34,'INPUT Demand'!$A$5:$BA$1004,19,FALSE)=0,0,(VLOOKUP(A34,'INPUT Demand'!$A$5:$BA$1004,19,FALSE)*'INPUT 12NC'!D98)+'INPUT 12NC'!C98)) -> 0 | U34: =IF(A34="","",IF(VLOOKUP(A34,'INPUT Demand'!$A$5:$BA$1004,20,FALSE)=0,0,(VLOOKUP(A34,'INPUT Demand'!$A$5:$BA$1004,20,FALSE)*'INPUT 12NC'!D98)+'INPUT 12NC'!C98)) -> 0 | V34: =IF(A34="","",IF(VLOOKUP(A34,'INPUT Demand'!$A$5:$BA$1004,21,FALSE)=0,0,(VLOOKUP(A34,'INPUT Demand'!$A$5:$BA$1004,21,FALSE)*'INPUT 12NC'!D98)+'INPUT 12NC'!C98)) -> 0 | W34: =IF(A34="","",IF(VLOOKUP(A34,'INPUT Demand'!$A$5:$BA$1004,22,FALSE)=0,0,(VLOOKUP(A34,'INPUT Demand'!$A$5:$BA$1004,22,FALSE)*'INPUT 12NC'!D98)+'INPUT 12NC'!C98)) -> 0 | X34: =IF(A34="","",IF(VLOOKUP(A34,'INPUT Demand'!$A$5:$BA$1004,23,FALSE)=0,0,(VLOOKUP(A34,'INPUT Demand'!$A$5:$BA$1004,23,FALSE)*'INPUT 12NC'!D98)+'INPUT 12NC'!C98)) -> 152 | Y34: =IF(A34="","",IF(VLOOKUP(A34,'INPUT Demand'!$A$5:$BA$1004,24,FALSE)=0,0,(VLOOKUP(A34,'INPUT Demand'!$A$5:$BA$1004,24,FALSE)*'INPUT 12NC'!D98)+'INPUT 12NC'!C98)) -> 0 | Z34: =IF(A34="","",IF(VLOOKUP(A34,'INPUT Demand'!$A$5:$BA$1004,25,FALSE)=0,0,(VLOOKUP(A34,'INPUT Demand'!$A$5:$BA$1004,25,FALSE)*'INPUT 12NC'!D98)+'INPUT 12NC'!C98)) -> 0 | AA34: =IF(A34="","",IF(VLOOKUP(A34,'INPUT Demand'!$A$5:$BA$1004,26,FALSE)=0,0,(VLOOKUP(A34,'INPUT Demand'!$A$5:$BA$1004,26,FALSE)*'INPUT 12NC'!D98)+'INPUT 12NC'!C98)) -> 0 | AB34: =IF(A34="","",IF(VLOOKUP(A34,'INPUT Demand'!$A$5:$BA$1004,27,FALSE)=0,0,(VLOOKUP(A34,'INPUT Demand'!$A$5:$BA$1004,27,FALSE)*'INPUT 12NC'!D98)+'INPUT 12NC'!C98)) -> 152 | AC34: =IF(A34="","",IF(VLOOKUP(A34,'INPUT Demand'!$A$5:$BA$1004,28,FALSE)=0,0,(VLOOKUP(A34,'INPUT Demand'!$A$5:$BA$1004,28,FALSE)*'INPUT 12NC'!D98)+'INPUT 12NC'!C98)) -> 0 | AD34: =IF(A34="","",IF(VLOOKUP(A34,'INPUT Demand'!$A$5:$BA$1004,29,FALSE)=0,0,(VLOOKUP(A34,'INPUT Demand'!$A$5:$BA$1004,29,FALSE)*'INPUT 12NC'!D98)+'INPUT 12NC'!C98)) -> 0 | AE34: =IF(A34="","",IF(VLOOKUP(A34,'INPUT Demand'!$A$5:$BA$1004,30,FALSE)=0,0,(VLOOKUP(A34,'INPUT Demand'!$A$5:$BA$1004,30,FALSE)*'INPUT 12NC'!D98)+'INPUT 12NC'!C98)) -> 299 | AF34: =IF(A34="","",IF(VLOOKUP(A34,'INPUT Demand'!$A$5:$BA$1004,31,FALSE)=0,0,(VLOOKUP(A34,'INPUT Demand'!$A$5:$BA$1004,31,FALSE)*'INPUT 12NC'!D98)+'INPUT 12NC'!C98)) -> 0 | AG34: =IF(A34="","",IF(VLOOKUP(A34,'INPUT Demand'!$A$5:$BA$1004,32,FALSE)=0,0,(VLOOKUP(A34,'INPUT Demand'!$A$5:$BA$1004,32,FALSE)*'INPUT 12NC'!D98)+'INPUT 12NC'!C98)) -> 215 | AH34: =IF(A34="","",IF(VLOOKUP(A34,'INPUT Demand'!$A$5:$BA$1004,33,FALSE)=0,0,(VLOOKUP(A34,'INPUT Demand'!$A$5:$BA$1004,33,FALSE)*'INPUT 12NC'!D98)+'INPUT 12NC'!C98)) -> 0 | AI34: =IF(A34="","",IF(VLOOKUP(A34,'INPUT Demand'!$A$5:$BA$1004,34,FALSE)=0,0,(VLOOKUP(A34,'INPUT Demand'!$A$5:$BA$1004,34,FALSE)*'INPUT 12NC'!D98)+'INPUT 12NC'!C98)) -> 0 | AJ34: =IF(A34="","",IF(VLOOKUP(A34,'INPUT Demand'!$A$5:$BA$1004,35,FALSE)=0,0,(VLOOKUP(A34,'INPUT Demand'!$A$5:$BA$1004,35,FALSE)*'INPUT 12NC'!D98)+'INPUT 12NC'!C98)) -> 0 | AK34: =IF(A34="","",IF(VLOOKUP(A34,'INPUT Demand'!$A$5:$BA$1004,36,FALSE)=0,0,(VLOOKUP(A34,'INPUT Demand'!$A$5:$BA$1004,36,FALSE)*'INPUT 12NC'!D98)+'INPUT 12NC'!C98)) -> 320 | AL34: =IF(A34="","",IF(VLOOKUP(A34,'INPUT Demand'!$A$5:$BA$1004,37,FALSE)=0,0,(VLOOKUP(A34,'INPUT Demand'!$A$5:$BA$1004,37,FALSE)*'INPUT 12NC'!D98)+'INPUT 12NC'!C98)) -> 0 | AM34: =IF(A34="","",IF(VLOOKUP(A34,'INPUT Demand'!$A$5:$BA$1004,38,FALSE)=0,0,(VLOOKUP(A34,'INPUT Demand'!$A$5:$BA$1004,38,FALSE)*'INPUT 12NC'!D98)+'INPUT 12NC'!C98)) -> 0 | AN34: =IF(A34="","",IF(VLOOKUP(A34,'INPUT Demand'!$A$5:$BA$1004,39,FALSE)=0,0,(VLOOKUP(A34,'INPUT Demand'!$A$5:$BA$1004,39,FALSE)*'INPUT 12NC'!D98)+'INPUT 12NC'!C98)) -> 0 | AO34: =IF(A34="","",IF(VLOOKUP(A34,'INPUT Demand'!$A$5:$BA$1004,40,FALSE)=0,0,(VLOOKUP(A34,'INPUT Demand'!$A$5:$BA$1004,40,FALSE)*'INPUT 12NC'!D98)+'INPUT 12NC'!C98)) -> 0 | AP34: =IF(A34="","",IF(VLOOKUP(A34,'INPUT Demand'!$A$5:$BA$1004,41,FALSE)=0,0,(VLOOKUP(A34,'INPUT Demand'!$A$5:$BA$1004,41,FALSE)*'INPUT 12NC'!D98)+'INPUT 12NC'!C98)) -> 0 | AQ34: =IF(A34="","",IF(VLOOKUP(A34,'INPUT Demand'!$A$5:$BA$1004,42,FALSE)=0,0,(VLOOKUP(A34,'INPUT Demand'!$A$5:$BA$1004,42,FALSE)*'INPUT 12NC'!D98)+'INPUT 12NC'!C98)) -> 0 | AR34: =IF(A34="","",IF(VLOOKUP(A34,'INPUT Demand'!$A$5:$BA$1004,43,FALSE)=0,0,(VLOOKUP(A34,'INPUT Demand'!$A$5:$BA$1004,43,FALSE)*'INPUT 12NC'!D98)+'INPUT 12NC'!C98)) -> 215 | AS34: =IF(A34="","",IF(VLOOKUP(A34,'INPUT Demand'!$A$5:$BA$1004,44,FALSE)=0,0,(VLOOKUP(A34,'INPUT Demand'!$A$5:$BA$1004,44,FALSE)*'INPUT 12NC'!D98)+'INPUT 12NC'!C98)) -> 0 | AT34: =IF(A34="","",IF(VLOOKUP(A34,'INPUT Demand'!$A$5:$BA$1004,45,FALSE)=0,0,(VLOOKUP(A34,'INPUT Demand'!$A$5:$BA$1004,45,FALSE)*'INPUT 12NC'!D98)+'INPUT 12NC'!C98)) -> 110 | AU34: =IF(A34="","",IF(VLOOKUP(A34,'INPUT Demand'!$A$5:$BA$1004,46,FALSE)=0,0,(VLOOKUP(A34,'INPUT Demand'!$A$5:$BA$1004,46,FALSE)*'INPUT 12NC'!D98)+'INPUT 12NC'!C98)) -> 0 | AV34: =IF(A34="","",IF(VLOOKUP(A34,'INPUT Demand'!$A$5:$BA$1004,47,FALSE)=0,0,(VLOOKUP(A34,'INPUT Demand'!$A$5:$BA$1004,47,FALSE)*'INPUT 12NC'!D98)+'INPUT 12NC'!C98)) -> 110 | AW34: =IF(A34="","",IF(VLOOKUP(A34,'INPUT Demand'!$A$5:$BA$1004,48,FALSE)=0,0,(VLOOKUP(A34,'INPUT Demand'!$A$5:$BA$1004,48,FALSE)*'INPUT 12NC'!D98)+'INPUT 12NC'!C98)) -> 0 | AX34: =IF(A34="","",IF(VLOOKUP(A34,'INPUT Demand'!$A$5:$BA$1004,49,FALSE)=0,0,(VLOOKUP(A34,'INPUT Demand'!$A$5:$BA$1004,49,FALSE)*'INPUT 12NC'!D98)+'INPUT 12NC'!C98)) -> 0 | AY34: =IF(A34="","",IF(VLOOKUP(A34,'INPUT Demand'!$A$5:$BA$1004,50,FALSE)=0,0,(VLOOKUP(A34,'INPUT Demand'!$A$5:$BA$1004,50,FALSE)*'INPUT 12NC'!D98)+'INPUT 12NC'!C98)) -> 0 | AZ34: =IF(A34="","",IF(VLOOKUP(A34,'INPUT Demand'!$A$5:$BA$1004,51,FALSE)=0,0,(VLOOKUP(A34,'INPUT Demand'!$A$5:$BA$1004,51,FALSE)*'INPUT 12NC'!D98)+'INPUT 12NC'!C98)) -> 0 | BA34: =IF(A34="","",IF(VLOOKUP(A34,'INPUT Demand'!$A$5:$BA$1004,52,FALSE)=0,0,(VLOOKUP(A34,'INPUT Demand'!$A$5:$BA$1004,52,FALSE)*'INPUT 12NC'!D98)+'INPUT 12NC'!C98)) -> 110 | BB34: =IF(A34="","",IF(VLOOKUP(A34,'INPUT Demand'!$A$5:$BA$1004,53,FALSE)=0,0,(VLOOKUP(A34,'INPUT Demand'!$A$5:$BA$1004,53,FALSE)*'INPUT 12NC'!D98)+'INPUT 12NC'!C98)) -> 0 | BC34: =IF(A34="","",SUM(D34:BB34)) -> 2637 | BD34: =IF(A34="","",IF(C34=1,BC34,0)) -> 0
A35: 402263580853 | B35: 68 | C35: 0 | D35: =IF(A35="","",IF(VLOOKUP(A35,'INPUT Demand'!$A$5:$BA$1004,3,FALSE)=0,0,(VLOOKUP(A35,'INPUT Demand'!$A$5:$BA$1004,3,FALSE)*'INPUT 12NC'!D69)+'INPUT 12NC'!C69)) -> 0 | E35: =IF(A35="","",IF(VLOOKUP(A35,'INPUT Demand'!$A$5:$BA$1004,4,FALSE)=0,0,(VLOOKUP(A35,'INPUT Demand'!$A$5:$BA$1004,4,FALSE)*'INPUT 12NC'!D69)+'INPUT 12NC'!C69)) -> 0 | F35: =IF(A35="","",IF(VLOOKUP(A35,'INPUT Demand'!$A$5:$BA$1004,5,FALSE)=0,0,(VLOOKUP(A35,'INPUT Demand'!$A$5:$BA$1004,5,FALSE)*'INPUT 12NC'!D69)+'INPUT 12NC'!C69)) -> 135 | G35: =IF(A35="","",IF(VLOOKUP(A35,'INPUT Demand'!$A$5:$BA$1004,6,FALSE)=0,0,(VLOOKUP(A35,'INPUT Demand'!$A$5:$BA$1004,6,FALSE)*'INPUT 12NC'!D69)+'INPUT 12NC'!C69)) -> 0 | H35: =IF(A35="","",IF(VLOOKUP(A35,'INPUT Demand'!$A$5:$BA$1004,7,FALSE)=0,0,(VLOOKUP(A35,'INPUT Demand'!$A$5:$BA$1004,7,FALSE)*'INPUT 12NC'!D69)+'INPUT 12NC'!C69)) -> 85 | I35: =IF(A35="","",IF(VLOOKUP(A35,'INPUT Demand'!$A$5:$BA$1004,8,FALSE)=0,0,(VLOOKUP(A35,'INPUT Demand'!$A$5:$BA$1004,8,FALSE)*'INPUT 12NC'!D69)+'INPUT 12NC'!C69)) -> 0 | J35: =IF(A35="","",IF(VLOOKUP(A35,'INPUT Demand'!$A$5:$BA$1004,9,FALSE)=0,0,(VLOOKUP(A35,'INPUT Demand'!$A$5:$BA$1004,9,FALSE)*'INPUT 12NC'!D69)+'INPUT 12NC'!C69)) -> 60 | K35: =IF(A35="","",IF(VLOOKUP(A35,'INPUT Demand'!$A$5:$BA$1004,10,FALSE)=0,0,(VLOOKUP(A35,'INPUT Demand'!$A$5:$BA$1004,10,FALSE)*'INPUT 12NC'!D69)+'INPUT 12NC'!C69)) -> 0 | L35: =IF(A35="","",IF(VLOOKUP(A35,'INPUT Demand'!$A$5:$BA$1004,11,FALSE)=0,0,(VLOOKUP(A35,'INPUT Demand'!$A$5:$BA$1004,11,FALSE)*'INPUT 12NC'!D69)+'INPUT 12NC'!C69)) -> 0 | M35: =IF(A35="","",IF(VLOOKUP(A35,'INPUT Demand'!$A$5:$BA$1004,12,FALSE)=0,0,(VLOOKUP(A35,'INPUT Demand'!$A$5:$BA$1004,12,FALSE)*'INPUT 12NC'!D69)+'INPUT 12NC'!C69)) -> 135 | N35: =IF(A35="","",IF(VLOOKUP(A35,'INPUT Demand'!$A$5:$BA$1004,13,FALSE)=0,0,(VLOOKUP(A35,'INPUT Demand'!$A$5:$BA$1004,13,FALSE)*'INPUT 12NC'!D69)+'INPUT 12NC'!C69)) -> 0 | O35: =IF(A35="","",IF(VLOOKUP(A35,'INPUT Demand'!$A$5:$BA$1004,14,FALSE)=0,0,(VLOOKUP(A35,'INPUT Demand'!$A$5:$BA$1004,14,FALSE)*'INPUT 12NC'!D69)+'INPUT 12NC'!C69)) -> 0 | P35: =IF(A35="","",IF(VLOOKUP(A35,'INPUT Demand'!$A$5:$BA$1004,15,FALSE)=0,0,(VLOOKUP(A35,'INPUT Demand'!$A$5:$BA$1004,15,FALSE)*'INPUT 12NC'!D69)+'INPUT 12NC'!C69)) -> 185 | Q35: =IF(A35="","",IF(VLOOKUP(A35,'INPUT Demand'!$A$5:$BA$1004,16,FALSE)=0,0,(VLOOKUP(A35,'INPUT Demand'!$A$5:$BA$1004,16,FALSE)*'INPUT 12NC'!D69)+'INPUT 12NC'!C69)) -> 0 | R35: =IF(A35="","",IF(VLOOKUP(A35,'INPUT Demand'!$A$5:$BA$1004,17,FALSE)=0,0,(VLOOKUP(A35,'INPUT Demand'!$A$5:$BA$1004,17,FALSE)*'INPUT 12NC'!D69)+'INPUT 12NC'!C69)) -> 0 | S35: =IF(A35="","",IF(VLOOKUP(A35,'INPUT Demand'!$A$5:$BA$1004,18,FALSE)=0,0,(VLOOKUP(A35,'INPUT Demand'!$A$5:$BA$1004,18,FALSE)*'INPUT 12NC'!D69)+'INPUT 12NC'!C69)) -> 135 | T35: =IF(A35="","",IF(VLOOKUP(A35,'INPUT Demand'!$A$5:$BA$1004,19,FALSE)=0,0,(VLOOKUP(A35,'INPUT Demand'!$A$5:$BA$1004,19,FALSE)*'INPUT 12NC'!D69)+'INPUT 12NC'!C69)) -> 0 | U35: =IF(A35="","",IF(VLOOKUP(A35,'INPUT Demand'!$A$5:$BA$1004,20,FALSE)=0,0,(VLOOKUP(A35,'INPUT Demand'!$A$5:$BA$1004,20,FALSE)*'INPUT 12NC'!D69)+'INPUT 12NC'!C69)) -> 0 | V35: =IF(A35="","",IF(VLOOKUP(A35,'INPUT Demand'!$A$5:$BA$1004,21,FALSE)=0,0,(VLOOKUP(A35,'INPUT Demand'!$A$5:$BA$1004,21,FALSE)*'INPUT 12NC'!D69)+'INPUT 12NC'!C69)) -> 0 | W35: =IF(A35="","",IF(VLOOKUP(A35,'INPUT Demand'!$A$5:$BA$1004,22,FALSE)=0,0,(VLOOKUP(A35,'INPUT Demand'!$A$5:$BA$1004,22,FALSE)*'INPUT 12NC'!D69)+'INPUT 12NC'!C69)) -> 0 | X35: =IF(A35="","",IF(VLOOKUP(A35,'INPUT Demand'!$A$5:$BA$1004,23,FALSE)=0,0,(VLOOKUP(A35,'INPUT Demand'!$A$5:$BA$1004,23,FALSE)*'INPUT 12NC'!D69)+'INPUT 12NC'!C69)) -> 160 | Y35: =IF(A35="","",IF(VLOOKUP(A35,'INPUT Demand'!$A$5:$BA$1004,24,FALSE)=0,0,(VLOOKUP(A35,'INPUT Demand'!$A$5:$BA$1004,24,FALSE)*'INPUT 12NC'!D69)+'INPUT 12NC'!C69)) -> 0 | Z35: =IF(A35="","",IF(VLOOKUP(A35,'INPUT Demand'!$A$5:$BA$1004,25,FALSE)=0,0,(VLOOKUP(A35,'INPUT Demand'!$A$5:$BA$1004,25,FALSE)*'INPUT 12NC'!D69)+'INPUT 12NC'!C69)) -> 0 | AA35: =IF(A35="","",IF(VLOOKUP(A35,'INPUT Demand'!$A$5:$BA$1004,26,FALSE)=0,0,(VLOOKUP(A35,'INPUT Demand'!$A$5:$BA$1004,26,FALSE)*'INPUT 12NC'!D69)+'INPUT 12NC'!C69)) -> 210 | AB35: =IF(A35="","",IF(VLOOKUP(A35,'INPUT Demand'!$A$5:$BA$1004,27,FALSE)=0,0,(VLOOKUP(A35,'INPUT Demand'!$A$5:$BA$1004,27,FALSE)*'INPUT 12NC'!D69)+'INPUT 12NC'!C69)) -> 0 | AC35: =IF(A35="","",IF(VLOOKUP(A35,'INPUT Demand'!$A$5:$BA$1004,28,FALSE)=0,0,(VLOOKUP(A35,'INPUT Demand'!$A$5:$BA$1004,28,FALSE)*'INPUT 12NC'!D69)+'INPUT 12NC'!C69)) -> 260 | AD35: =IF(A35="","",IF(VLOOKUP(A35,'INPUT Demand'!$A$5:$BA$1004,29,FALSE)=0,0,(VLOOKUP(A35,'INPUT Demand'!$A$5:$BA$1004,29,FALSE)*'INPUT 12NC'!D69)+'INPUT 12NC'!C69)) -> 0 | AE35: =IF(A35="","",IF(VLOOKUP(A35,'INPUT Demand'!$A$5:$BA$1004,30,FALSE)=0,0,(VLOOKUP(A35,'INPUT Demand'!$A$5:$BA$1004,30,FALSE)*'INPUT 12NC'!D69)+'INPUT 12NC'!C69)) -> 0 | AF35: =IF(A35="","",IF(VLOOKUP(A35,'INPUT Demand'!$A$5:$BA$1004,31,FALSE)=0,0,(VLOOKUP(A35,'INPUT Demand'!$A$5:$BA$1004,31,FALSE)*'INPUT 12NC'!D69)+'INPUT 12NC'!C69)) -> 0 | AG35: =IF(A35="","",IF(VLOOKUP(A35,'INPUT Demand'!$A$5:$BA$1004,32,FALSE)=0,0,(VLOOKUP(A35,'INPUT Demand'!$A$5:$BA$1004,32,FALSE)*'INPUT 12NC'!D69)+'INPUT 12NC'!C69)) -> 0 | AH35: =IF(A35="","",IF(VLOOKUP(A35,'INPUT Demand'!$A$5:$BA$1004,33,FALSE)=0,0,(VLOOKUP(A35,'INPUT Demand'!$A$5:$BA$1004,33,FALSE)*'INPUT 12NC'!D69)+'INPUT 12NC'!C69)) -> 135 | AI35: =IF(A35="","",IF(VLOOKUP(A35,'INPUT Demand'!$A$5:$BA$1004,34,FALSE)=0,0,(VLOOKUP(A35,'INPUT Demand'!$A$5:$BA$1004,34,FALSE)*'INPUT 12NC'!D69)+'INPUT 12NC'!C69)) -> 0 | AJ35: =IF(A35="","",IF(VLOOKUP(A35,'INPUT Demand'!$A$5:$BA$1004,35,FALSE)=0,0,(VLOOKUP(A35,'INPUT Demand'!$A$5:$BA$1004,35,FALSE)*'INPUT 12NC'!D69)+'INPUT 12NC'!C69)) -> 0 | AK35: =IF(A35="","",IF(VLOOKUP(A35,'INPUT Demand'!$A$5:$BA$1004,36,FALSE)=0,0,(VLOOKUP(A35,'INPUT Demand'!$A$5:$BA$1004,36,FALSE)*'INPUT 12NC'!D69)+'INPUT 12NC'!C69)) -> 0 | AL35: =IF(A35="","",IF(VLOOKUP(A35,'INPUT Demand'!$A$5:$BA$1004,37,FALSE)=0,0,(VLOOKUP(A35,'INPUT Demand'!$A$5:$BA$1004,37,FALSE)*'INPUT 12NC'!D69)+'INPUT 12NC'!C69)) -> 285 | AM35: =IF(A35="","",IF(VLOOKUP(A35,'INPUT Demand'!$A$5:$BA$1004,38,FALSE)=0,0,(VLOOKUP(A35,'INPUT Demand'!$A$5:$BA$1004,38,FALSE)*'INPUT 12NC'!D69)+'INPUT 12NC'!C69)) -> 0 | AN35: =IF(A35="","",IF(VLOOKUP(A35,'INPUT Demand'!$A$5:$BA$1004,39,FALSE)=0,0,(VLOOKUP(A35,'INPUT Demand'!$A$5:$BA$1004,39,FALSE)*'INPUT 12NC'!D69)+'INPUT 12NC'!C69)) -> 0 | AO35: =IF(A35="","",IF(VLOOKUP(A35,'INPUT Demand'!$A$5:$BA$1004,40,FALSE)=0,0,(VLOOKUP(A35,'INPUT Demand'!$A$5:$BA$1004,40,FALSE)*'INPUT 12NC'!D69)+'INPUT 12NC'!C69)) -> 260 | AP35: =IF(A35="","",IF(VLOOKUP(A35,'INPUT Demand'!$A$5:$BA$1004,41,FALSE)=0,0,(VLOOKUP(A35,'INPUT Demand'!$A$5:$BA$1004,41,FALSE)*'INPUT 12NC'!D69)+'INPUT 12NC'!C69)) -> 0 | AQ35: =IF(A35="","",IF(VLOOKUP(A35,'INPUT Demand'!$A$5:$BA$1004,42,FALSE)=0,0,(VLOOKUP(A35,'INPUT Demand'!$A$5:$BA$1004,42,FALSE)*'INPUT 12NC'!D69)+'INPUT 12NC'!C69)) -> 0 | AR35: =IF(A35="","",IF(VLOOKUP(A35,'INPUT Demand'!$A$5:$BA$1004,43,FALSE)=0,0,(VLOOKUP(A35,'INPUT Demand'!$A$5:$BA$1004,43,FALSE)*'INPUT 12NC'!D69)+'INPUT 12NC'!C69)) -> 0 | AS35: =IF(A35="","",IF(VLOOKUP(A35,'INPUT Demand'!$A$5:$BA$1004,44,FALSE)=0,0,(VLOOKUP(A35,'INPUT Demand'!$A$5:$BA$1004,44,FALSE)*'INPUT 12NC'!D69)+'INPUT 12NC'!C69)) -> 160 | AT35: =IF(A35="","",IF(VLOOKUP(A35,'INPUT Demand'!$A$5:$BA$1004,45,FALSE)=0,0,(VLOOKUP(A35,'INPUT Demand'!$A$5:$BA$1004,45,FALSE)*'INPUT 12NC'!D69)+'INPUT 12NC'!C69)) -> 0 | AU35: =IF(A35="","",IF(VLOOKUP(A35,'INPUT Demand'!$A$5:$BA$1004,46,FALSE)=0,0,(VLOOKUP(A35,'INPUT Demand'!$A$5:$BA$1004,46,FALSE)*'INPUT 12NC'!D69)+'INPUT 12NC'!C69)) -> 135 | AV35: =IF(A35="","",IF(VLOOKUP(A35,'INPUT Demand'!$A$5:$BA$1004,47,FALSE)=0,0,(VLOOKUP(A35,'INPUT Demand'!$A$5:$BA$1004,47,FALSE)*'INPUT 12NC'!D69)+'INPUT 12NC'!C69)) -> 0 | AW35: =IF(A35="","",IF(VLOOKUP(A35,'INPUT Demand'!$A$5:$BA$1004,48,FALSE)=0,0,(VLOOKUP(A35,'INPUT Demand'!$A$5:$BA$1004,48,FALSE)*'INPUT 12NC'!D69)+'INPUT 12NC'!C69)) -> 0 | AX35: =IF(A35="","",IF(VLOOKUP(A35,'INPUT Demand'!$A$5:$BA$1004,49,FALSE)=0,0,(VLOOKUP(A35,'INPUT Demand'!$A$5:$BA$1004,49,FALSE)*'INPUT 12NC'!D69)+'INPUT 12NC'!C69)) -> 135 | AY35: =IF(A35="","",IF(VLOOKUP(A35,'INPUT Demand'!$A$5:$BA$1004,50,FALSE)=0,0,(VLOOKUP(A35,'INPUT Demand'!$A$5:$BA$1004,50,FALSE)*'INPUT 12NC'!D69)+'INPUT 12NC'!C69)) -> 0 | AZ35: =IF(A35="","",IF(VLOOKUP(A35,'INPUT Demand'!$A$5:$BA$1004,51,FALSE)=0,0,(VLOOKUP(A35,'INPUT Demand'!$A$5:$BA$1004,51,FALSE)*'INPUT 12NC'!D69)+'INPUT 12NC'!C69)) -> 0 | BA35: =IF(A35="","",IF(VLOOKUP(A35,'INPUT Demand'!$A$5:$BA$1004,52,FALSE)=0,0,(VLOOKUP(A35,'INPUT Demand'!$A$5:$BA$1004,52,FALSE)*'INPUT 12NC'!D69)+'INPUT 12NC'!C69)) -> 135 | BB35: =IF(A35="","",IF(VLOOKUP(A35,'INPUT Demand'!$A$5:$BA$1004,53,FALSE)=0,0,(VLOOKUP(A35,'INPUT Demand'!$A$5:$BA$1004,53,FALSE)*'INPUT 12NC'!D69)+'INPUT 12NC'!C69)) -> 0 | BC35: =IF(A35="","",SUM(D35:BB35)) -> 2610 | BD35: =IF(A35="","",IF(C35=1,BC35,0)) -> 0
A36: 402263579753 | B36: 69 | C36: 0 | D36: =IF(A36="","",IF(VLOOKUP(A36,'INPUT Demand'!$A$5:$BA$1004,3,FALSE)=0,0,(VLOOKUP(A36,'INPUT Demand'!$A$5:$BA$1004,3,FALSE)*'INPUT 12NC'!D70)+'INPUT 12NC'!C70)) -> 0 | E36: =IF(A36="","",IF(VLOOKUP(A36,'INPUT Demand'!$A$5:$BA$1004,4,FALSE)=0,0,(VLOOKUP(A36,'INPUT Demand'!$A$5:$BA$1004,4,FALSE)*'INPUT 12NC'!D70)+'INPUT 12NC'!C70)) -> 0 | F36: =IF(A36="","",IF(VLOOKUP(A36,'INPUT Demand'!$A$5:$BA$1004,5,FALSE)=0,0,(VLOOKUP(A36,'INPUT Demand'!$A$5:$BA$1004,5,FALSE)*'INPUT 12NC'!D70)+'INPUT 12NC'!C70)) -> 0 | G36: =IF(A36="","",IF(VLOOKUP(A36,'INPUT Demand'!$A$5:$BA$1004,6,FALSE)=0,0,(VLOOKUP(A36,'INPUT Demand'!$A$5:$BA$1004,6,FALSE)*'INPUT 12NC'!D70)+'INPUT 12NC'!C70)) -> 130 | H36: =IF(A36="","",IF(VLOOKUP(A36,'INPUT Demand'!$A$5:$BA$1004,7,FALSE)=0,0,(VLOOKUP(A36,'INPUT Demand'!$A$5:$BA$1004,7,FALSE)*'INPUT 12NC'!D70)+'INPUT 12NC'!C70)) -> 0 | I36: =IF(A36="","",IF(VLOOKUP(A36,'INPUT Demand'!$A$5:$BA$1004,8,FALSE)=0,0,(VLOOKUP(A36,'INPUT Demand'!$A$5:$BA$1004,8,FALSE)*'INPUT 12NC'!D70)+'INPUT 12NC'!C70)) -> 0 | J36: =IF(A36="","",IF(VLOOKUP(A36,'INPUT Demand'!$A$5:$BA$1004,9,FALSE)=0,0,(VLOOKUP(A36,'INPUT Demand'!$A$5:$BA$1004,9,FALSE)*'INPUT 12NC'!D70)+'INPUT 12NC'!C70)) -> 55 | K36: =IF(A36="","",IF(VLOOKUP(A36,'INPUT Demand'!$A$5:$BA$1004,10,FALSE)=0,0,(VLOOKUP(A36,'INPUT Demand'!$A$5:$BA$1004,10,FALSE)*'INPUT 12NC'!D70)+'INPUT 12NC'!C70)) -> 0 | L36: =IF(A36="","",IF(VLOOKUP(A36,'INPUT Demand'!$A$5:$BA$1004,11,FALSE)=0,0,(VLOOKUP(A36,'INPUT Demand'!$A$5:$BA$1004,11,FALSE)*'INPUT 12NC'!D70)+'INPUT 12NC'!C70)) -> 0 | M36: =IF(A36="","",IF(VLOOKUP(A36,'INPUT Demand'!$A$5:$BA$1004,12,FALSE)=0,0,(VLOOKUP(A36,'INPUT Demand'!$A$5:$BA$1004,12,FALSE)*'INPUT 12NC'!D70)+'INPUT 12NC'!C70)) -> 130 | N36: =IF(A36="","",IF(VLOOKUP(A36,'INPUT Demand'!$A$5:$BA$1004,13,FALSE)=0,0,(VLOOKUP(A36,'INPUT Demand'!$A$5:$BA$1004,13,FALSE)*'INPUT 12NC'!D70)+'INPUT 12NC'!C70)) -> 0 | O36: =IF(A36="","",IF(VLOOKUP(A36,'INPUT Demand'!$A$5:$BA$1004,14,FALSE)=0,0,(VLOOKUP(A36,'INPUT Demand'!$A$5:$BA$1004,14,FALSE)*'INPUT 12NC'!D70)+'INPUT 12NC'!C70)) -> 0 | P36: =IF(A36="","",IF(VLOOKUP(A36,'INPUT Demand'!$A$5:$BA$1004,15,FALSE)=0,0,(VLOOKUP(A36,'INPUT Demand'!$A$5:$BA$1004,15,FALSE)*'INPUT 12NC'!D70)+'INPUT 12NC'!C70)) -> 180 | Q36: =IF(A36="","",IF(VLOOKUP(A36,'INPUT Demand'!$A$5:$BA$1004,16,FALSE)=0,0,(VLOOKUP(A36,'INPUT Demand'!$A$5:$BA$1004,16,FALSE)*'INPUT 12NC'!D70)+'INPUT 12NC'!C70)) -> 0 | R36: =IF(A36="","",IF(VLOOKUP(A36,'INPUT Demand'!$A$5:$BA$1004,17,FALSE)=0,0,(VLOOKUP(A36,'INPUT Demand'!$A$5:$BA$1004,17,FALSE)*'INPUT 12NC'!D70)+'INPUT 12NC'!C70)) -> 0 | S36: =IF(A36="","",IF(VLOOKUP(A36,'INPUT Demand'!$A$5:$BA$1004,18,FALSE)=0,0,(VLOOKUP(A36,'INPUT Demand'!$A$5:$BA$1004,18,FALSE)*'INPUT 12NC'!D70)+'INPUT 12NC'!C70)) -> 130 | T36: =IF(A36="","",IF(VLOOKUP(A36,'INPUT Demand'!$A$5:$BA$1004,19,FALSE)=0,0,(VLOOKUP(A36,'INPUT Demand'!$A$5:$BA$1004,19,FALSE)*'INPUT 12NC'!D70)+'INPUT 12NC'!C70)) -> 0 | U36: =IF(A36="","",IF(VLOOKUP(A36,'INPUT Demand'!$A$5:$BA$1004,20,FALSE)=0,0,(VLOOKUP(A36,'INPUT Demand'!$A$5:$BA$1004,20,FALSE)*'INPUT 12NC'!D70)+'INPUT 12NC'!C70)) -> 0 | V36: =IF(A36="","",IF(VLOOKUP(A36,'INPUT Demand'!$A$5:$BA$1004,21,FALSE)=0,0,(VLOOKUP(A36,'INPUT Demand'!$A$5:$BA$1004,21,FALSE)*'INPUT 12NC'!D70)+'INPUT 12NC'!C70)) -> 0 | W36: =IF(A36="","",IF(VLOOKUP(A36,'INPUT Demand'!$A$5:$BA$1004,22,FALSE)=0,0,(VLOOKUP(A36,'INPUT Demand'!$A$5:$BA$1004,22,FALSE)*'INPUT 12NC'!D70)+'INPUT 12NC'!C70)) -> 0 | X36: =IF(A36="","",IF(VLOOKUP(A36,'INPUT Demand'!$A$5:$BA$1004,23,FALSE)=0,0,(VLOOKUP(A36,'INPUT Demand'!$A$5:$BA$1004,23,FALSE)*'INPUT 12NC'!D70)+'INPUT 12NC'!C70)) -> 155 | Y36: =IF(A36="","",IF(VLOOKUP(A36,'INPUT Demand'!$A$5:$BA$1004,24,FALSE)=0,0,(VLOOKUP(A36,'INPUT Demand'!$A$5:$BA$1004,24,FALSE)*'INPUT 12NC'!D70)+'INPUT 12NC'!C70)) -> 0 | Z36: =IF(A36="","",IF(VLOOKUP(A36,'INPUT Demand'!$A$5:$BA$1004,25,FALSE)=0,0,(VLOOKUP(A36,'INPUT Demand'!$A$5:$BA$1004,25,FALSE)*'INPUT 12NC'!D70)+'INPUT 12NC'!C70)) -> 0 | AA36: =IF(A36="","",IF(VLOOKUP(A36,'INPUT Demand'!$A$5:$BA$1004,26,FALSE)=0,0,(VLOOKUP(A36,'INPUT Demand'!$A$5:$BA$1004,26,FALSE)*'INPUT 12NC'!D70)+'INPUT 12NC'!C70)) -> 205 | AB36: =IF(A36="","",IF(VLOOKUP(A36,'INPUT Demand'!$A$5:$BA$1004,27,FALSE)=0,0,(VLOOKUP(A36,'INPUT Demand'!$A$5:$BA$1004,27,FALSE)*'INPUT 12NC'!D70)+'INPUT 12NC'!C70)) -> 0 | AC36: =IF(A36="","",IF(VLOOKUP(A36,'INPUT Demand'!$A$5:$BA$1004,28,FALSE)=0,0,(VLOOKUP(A36,'INPUT Demand'!$A$5:$BA$1004,28,FALSE)*'INPUT 12NC'!D70)+'INPUT 12NC'!C70)) -> 255 | AD36: =IF(A36="","",IF(VLOOKUP(A36,'INPUT Demand'!$A$5:$BA$1004,29,FALSE)=0,0,(VLOOKUP(A36,'INPUT Demand'!$A$5:$BA$1004,29,FALSE)*'INPUT 12NC'!D70)+'INPUT 12NC'!C70)) -> 0 | AE36: =IF(A36="","",IF(VLOOKUP(A36,'INPUT Demand'!$A$5:$BA$1004,30,FALSE)=0,0,(VLOOKUP(A36,'INPUT Demand'!$A$5:$BA$1004,30,FALSE)*'INPUT 12NC'!D70)+'INPUT 12NC'!C70)) -> 0 | AF36: =IF(A36="","",IF(VLOOKUP(A36,'INPUT Demand'!$A$5:$BA$1004,31,FALSE)=0,0,(VLOOKUP(A36,'INPUT Demand'!$A$5:$BA$1004,31,FALSE)*'INPUT 12NC'!D70)+'INPUT 12NC'!C70)) -> 0 | AG36: =IF(A36="","",IF(VLOOKUP(A36,'INPUT Demand'!$A$5:$BA$1004,32,FALSE)=0,0,(VLOOKUP(A36,'INPUT Demand'!$A$5:$BA$1004,32,FALSE)*'INPUT 12NC'!D70)+'INPUT 12NC'!C70)) -> 0 | AH36: =IF(A36="","",IF(VLOOKUP(A36,'INPUT Demand'!$A$5:$BA$1004,33,FALSE)=0,0,(VLOOKUP(A36,'INPUT Demand'!$A$5:$BA$1004,33,FALSE)*'INPUT 12NC'!D70)+'INPUT 12NC'!C70)) -> 130 | AI36: =IF(A36="","",IF(VLOOKUP(A36,'INPUT Demand'!$A$5:$BA$1004,34,FALSE)=0,0,(VLOOKUP(A36,'INPUT Demand'!$A$5:$BA$1004,34,FALSE)*'INPUT 12NC'!D70)+'INPUT 12NC'!C70)) -> 255 | AJ36: =IF(A36="","",IF(VLOOKUP(A36,'INPUT Demand'!$A$5:$BA$1004,35,FALSE)=0,0,(VLOOKUP(A36,'INPUT Demand'!$A$5:$BA$1004,35,FALSE)*'INPUT 12NC'!D70)+'INPUT 12NC'!C70)) -> 0 | AK36: =IF(A36="","",IF(VLOOKUP(A36,'INPUT Demand'!$A$5:$BA$1004,36,FALSE)=0,0,(VLOOKUP(A36,'INPUT Demand'!$A$5:$BA$1004,36,FALSE)*'INPUT 12NC'!D70)+'INPUT 12NC'!C70)) -> 0 | AL36: =IF(A36="","",IF(VLOOKUP(A36,'INPUT Demand'!$A$5:$BA$1004,37,FALSE)=0,0,(VLOOKUP(A36,'INPUT Demand'!$A$5:$BA$1004,37,FALSE)*'INPUT 12NC'!D70)+'INPUT 12NC'!C70)) -> 0 | AM36: =IF(A36="","",IF(VLOOKUP(A36,'INPUT Demand'!$A$5:$BA$1004,38,FALSE)=0,0,(VLOOKUP(A36,'INPUT Demand'!$A$5:$BA$1004,38,FALSE)*'INPUT 12NC'!D70)+'INPUT 12NC'!C70)) -> 0 | AN36: =IF(A36="","",IF(VLOOKUP(A36,'INPUT Demand'!$A$5:$BA$1004,39,FALSE)=0,0,(VLOOKUP(A36,'INPUT Demand'!$A$5:$BA$1004,39,FALSE)*'INPUT 12NC'!D70)+'INPUT 12NC'!C70)) -> 0 | AO36: =IF(A36="","",IF(VLOOKUP(A36,'INPUT Demand'!$A$5:$BA$1004,40,FALSE)=0,0,(VLOOKUP(A36,'INPUT Demand'!$A$5:$BA$1004,40,FALSE)*'INPUT 12NC'!D70)+'INPUT 12NC'!C70)) -> 380 | AP36: =IF(A36="","",IF(VLOOKUP(A36,'INPUT Demand'!$A$5:$BA$1004,41,FALSE)=0,0,(VLOOKUP(A36,'INPUT Demand'!$A$5:$BA$1004,41,FALSE)*'INPUT 12NC'!D70)+'INPUT 12NC'!C70)) -> 0 | AQ36: =IF(A36="","",IF(VLOOKUP(A36,'INPUT Demand'!$A$5:$BA$1004,42,FALSE)=0,0,(VLOOKUP(A36,'INPUT Demand'!$A$5:$BA$1004,42,FALSE)*'INPUT 12NC'!D70)+'INPUT 12NC'!C70)) -> 0 | AR36: =IF(A36="","",IF(VLOOKUP(A36,'INPUT Demand'!$A$5:$BA$1004,43,FALSE)=0,0,(VLOOKUP(A36,'INPUT Demand'!$A$5:$BA$1004,43,FALSE)*'INPUT 12NC'!D70)+'INPUT 12NC'!C70)) -> 0 | AS36: =IF(A36="","",IF(VLOOKUP(A36,'INPUT Demand'!$A$5:$BA$1004,44,FALSE)=0,0,(VLOOKUP(A36,'INPUT Demand'!$A$5:$BA$1004,44,FALSE)*'INPUT 12NC'!D70)+'INPUT 12NC'!C70)) -> 0 | AT36: =IF(A36="","",IF(VLOOKUP(A36,'INPUT Demand'!$A$5:$BA$1004,45,FALSE)=0,0,(VLOOKUP(A36,'INPUT Demand'!$A$5:$BA$1004,45,FALSE)*'INPUT 12NC'!D70)+'INPUT 12NC'!C70)) -> 155 | AU36: =IF(A36="","",IF(VLOOKUP(A36,'INPUT Demand'!$A$5:$BA$1004,46,FALSE)=0,0,(VLOOKUP(A36,'INPUT Demand'!$A$5:$BA$1004,46,FALSE)*'INPUT 12NC'!D70)+'INPUT 12NC'!C70)) -> 0 | AV36: =IF(A36="","",IF(VLOOKUP(A36,'INPUT Demand'!$A$5:$BA$1004,47,FALSE)=0,0,(VLOOKUP(A36,'INPUT Demand'!$A$5:$BA$1004,47,FALSE)*'INPUT 12NC'!D70)+'INPUT 12NC'!C70)) -> 130 | AW36: =IF(A36="","",IF(VLOOKUP(A36,'INPUT Demand'!$A$5:$BA$1004,48,FALSE)=0,0,(VLOOKUP(A36,'INPUT Demand'!$A$5:$BA$1004,48,FALSE)*'INPUT 12NC'!D70)+'INPUT 12NC'!C70)) -> 0 | AX36: =IF(A36="","",IF(VLOOKUP(A36,'INPUT Demand'!$A$5:$BA$1004,49,FALSE)=0,0,(VLOOKUP(A36,'INPUT Demand'!$A$5:$BA$1004,49,FALSE)*'INPUT 12NC'!D70)+'INPUT 12NC'!C70)) -> 0 | AY36: =IF(A36="","",IF(VLOOKUP(A36,'INPUT Demand'!$A$5:$BA$1004,50,FALSE)=0,0,(VLOOKUP(A36,'INPUT Demand'!$A$5:$BA$1004,50,FALSE)*'INPUT 12NC'!D70)+'INPUT 12NC'!C70)) -> 0 | AZ36: =IF(A36="","",IF(VLOOKUP(A36,'INPUT Demand'!$A$5:$BA$1004,51,FALSE)=0,0,(VLOOKUP(A36,'INPUT Demand'!$A$5:$BA$1004,51,FALSE)*'INPUT 12NC'!D70)+'INPUT 12NC'!C70)) -> 0 | BA36: =IF(A36="","",IF(VLOOKUP(A36,'INPUT Demand'!$A$5:$BA$1004,52,FALSE)=0,0,(VLOOKUP(A36,'INPUT Demand'!$A$5:$BA$1004,52,FALSE)*'INPUT 12NC'!D70)+'INPUT 12NC'!C70)) -> 155 | BB36: =IF(A36="","",IF(VLOOKUP(A36,'INPUT Demand'!$A$5:$BA$1004,53,FALSE)=0,0,(VLOOKUP(A36,'INPUT Demand'!$A$5:$BA$1004,53,FALSE)*'INPUT 12NC'!D70)+'INPUT 12NC'!C70)) -> 0 | BC36: =IF(A36="","",SUM(D36:BB36)) -> 2445 | BD36: =IF(A36="","",IF(C36=1,BC36,0)) -> 0
A37: 402263560321 | B37: 71 | C37: 0 | D37: =IF(A37="","",IF(VLOOKUP(A37,'INPUT Demand'!$A$5:$BA$1004,3,FALSE)=0,0,(VLOOKUP(A37,'INPUT Demand'!$A$5:$BA$1004,3,FALSE)*'INPUT 12NC'!D72)+'INPUT 12NC'!C72)) -> 0 | E37: =IF(A37="","",IF(VLOOKUP(A37,'INPUT Demand'!$A$5:$BA$1004,4,FALSE)=0,0,(VLOOKUP(A37,'INPUT Demand'!$A$5:$BA$1004,4,FALSE)*'INPUT 12NC'!D72)+'INPUT 12NC'!C72)) -> 0 | F37: =IF(A37="","",IF(VLOOKUP(A37,'INPUT Demand'!$A$5:$BA$1004,5,FALSE)=0,0,(VLOOKUP(A37,'INPUT Demand'!$A$5:$BA$1004,5,FALSE)*'INPUT 12NC'!D72)+'INPUT 12NC'!C72)) -> 0 | G37: =IF(A37="","",IF(VLOOKUP(A37,'INPUT Demand'!$A$5:$BA$1004,6,FALSE)=0,0,(VLOOKUP(A37,'INPUT Demand'!$A$5:$BA$1004,6,FALSE)*'INPUT 12NC'!D72)+'INPUT 12NC'!C72)) -> 0 | H37: =IF(A37="","",IF(VLOOKUP(A37,'INPUT Demand'!$A$5:$BA$1004,7,FALSE)=0,0,(VLOOKUP(A37,'INPUT Demand'!$A$5:$BA$1004,7,FALSE)*'INPUT 12NC'!D72)+'INPUT 12NC'!C72)) -> 0 | I37: =IF(A37="","",IF(VLOOKUP(A37,'INPUT Demand'!$A$5:$BA$1004,8,FALSE)=0,0,(VLOOKUP(A37,'INPUT Demand'!$A$5:$BA$1004,8,FALSE)*'INPUT 12NC'!D72)+'INPUT 12NC'!C72)) -> 0 | J37: =IF(A37="","",IF(VLOOKUP(A37,'INPUT Demand'!$A$5:$BA$1004,9,FALSE)=0,0,(VLOOKUP(A37,'INPUT Demand'!$A$5:$BA$1004,9,FALSE)*'INPUT 12NC'!D72)+'INPUT 12NC'!C72)) -> 275 | K37: =IF(A37="","",IF(VLOOKUP(A37,'INPUT Demand'!$A$5:$BA$1004,10,FALSE)=0,0,(VLOOKUP(A37,'INPUT Demand'!$A$5:$BA$1004,10,FALSE)*'INPUT 12NC'!D72)+'INPUT 12NC'!C72)) -> 0 | L37: =IF(A37="","",IF(VLOOKUP(A37,'INPUT Demand'!$A$5:$BA$1004,11,FALSE)=0,0,(VLOOKUP(A37,'INPUT Demand'!$A$5:$BA$1004,11,FALSE)*'INPUT 12NC'!D72)+'INPUT 12NC'!C72)) -> 0 | M37: =IF(A37="","",IF(VLOOKUP(A37,'INPUT Demand'!$A$5:$BA$1004,12,FALSE)=0,0,(VLOOKUP(A37,'INPUT Demand'!$A$5:$BA$1004,12,FALSE)*'INPUT 12NC'!D72)+'INPUT 12NC'!C72)) -> 0 | N37: =IF(A37="","",IF(VLOOKUP(A37,'INPUT Demand'!$A$5:$BA$1004,13,FALSE)=0,0,(VLOOKUP(A37,'INPUT Demand'!$A$5:$BA$1004,13,FALSE)*'INPUT 12NC'!D72)+'INPUT 12NC'!C72)) -> 0 | O37: =IF(A37="","",IF(VLOOKUP(A37,'INPUT Demand'!$A$5:$BA$1004,14,FALSE)=0,0,(VLOOKUP(A37,'INPUT Demand'!$A$5:$BA$1004,14,FALSE)*'INPUT 12NC'!D72)+'INPUT 12NC'!C72)) -> 0 | P37: =IF(A37="","",IF(VLOOKUP(A37,'INPUT Demand'!$A$5:$BA$1004,15,FALSE)=0,0,(VLOOKUP(A37,'INPUT Demand'!$A$5:$BA$1004,15,FALSE)*'INPUT 12NC'!D72)+'INPUT 12NC'!C72)) -> 0 | Q37: =IF(A37="","",IF(VLOOKUP(A37,'INPUT Demand'!$A$5:$BA$1004,16,FALSE)=0,0,(VLOOKUP(A37,'INPUT Demand'!$A$5:$BA$1004,16,FALSE)*'INPUT 12NC'!D72)+'INPUT 12NC'!C72)) -> 0 | R37: =IF(A37="","",IF(VLOOKUP(A37,'INPUT Demand'!$A$5:$BA$1004,17,FALSE)=0,0,(VLOOKUP(A37,'INPUT Demand'!$A$5:$BA$1004,17,FALSE)*'INPUT 12NC'!D72)+'INPUT 12NC'!C72)) -> 275 | S37: =IF(A37="","",IF(VLOOKUP(A37,'INPUT Demand'!$A$5:$BA$1004,18,FALSE)=0,0,(VLOOKUP(A37,'INPUT Demand'!$A$5:$BA$1004,18,FALSE)*'INPUT 12NC'!D72)+'INPUT 12NC'!C72)) -> 0 | T37: =IF(A37="","",IF(VLOOKUP(A37,'INPUT Demand'!$A$5:$BA$1004,19,FALSE)=0,0,(VLOOKUP(A37,'INPUT Demand'!$A$5:$BA$1004,19,FALSE)*'INPUT 12NC'!D72)+'INPUT 12NC'!C72)) -> 0 | U37: =IF(A37="","",IF(VLOOKUP(A37,'INPUT Demand'!$A$5:$BA$1004,20,FALSE)=0,0,(VLOOKUP(A37,'INPUT Demand'!$A$5:$BA$1004,20,FALSE)*'INPUT 12NC'!D72)+'INPUT 12NC'!C72)) -> 0 | V37: =IF(A37="","",IF(VLOOKUP(A37,'INPUT Demand'!$A$5:$BA$1004,21,FALSE)=0,0,(VLOOKUP(A37,'INPUT Demand'!$A$5:$BA$1004,21,FALSE)*'INPUT 12NC'!D72)+'INPUT 12NC'!C72)) -> 0 | W37: =IF(A37="","",IF(VLOOKUP(A37,'INPUT Demand'!$A$5:$BA$1004,22,FALSE)=0,0,(VLOOKUP(A37,'INPUT Demand'!$A$5:$BA$1004,22,FALSE)*'INPUT 12NC'!D72)+'INPUT 12NC'!C72)) -> 0 | X37: =IF(A37="","",IF(VLOOKUP(A37,'INPUT Demand'!$A$5:$BA$1004,23,FALSE)=0,0,(VLOOKUP(A37,'INPUT Demand'!$A$5:$BA$1004,23,FALSE)*'INPUT 12NC'!D72)+'INPUT 12NC'!C72)) -> 383 | Y37: =IF(A37="","",IF(VLOOKUP(A37,'INPUT Demand'!$A$5:$BA$1004,24,FALSE)=0,0,(VLOOKUP(A37,'INPUT Demand'!$A$5:$BA$1004,24,FALSE)*'INPUT 12NC'!D72)+'INPUT 12NC'!C72)) -> 0 | Z37: =IF(A37="","",IF(VLOOKUP(A37,'INPUT Demand'!$A$5:$BA$1004,25,FALSE)=0,0,(VLOOKUP(A37,'INPUT Demand'!$A$5:$BA$1004,25,FALSE)*'INPUT 12NC'!D72)+'INPUT 12NC'!C72)) -> 0 | AA37: =IF(A37="","",IF(VLOOKUP(A37,'INPUT Demand'!$A$5:$BA$1004,26,FALSE)=0,0,(VLOOKUP(A37,'INPUT Demand'!$A$5:$BA$1004,26,FALSE)*'INPUT 12NC'!D72)+'INPUT 12NC'!C72)) -> 0 | AB37: =IF(A37="","",IF(VLOOKUP(A37,'INPUT Demand'!$A$5:$BA$1004,27,FALSE)=0,0,(VLOOKUP(A37,'INPUT Demand'!$A$5:$BA$1004,27,FALSE)*'INPUT 12NC'!D72)+'INPUT 12NC'!C72)) -> 0 | AC37: =IF(A37="","",IF(VLOOKUP(A37,'INPUT Demand'!$A$5:$BA$1004,28,FALSE)=0,0,(VLOOKUP(A37,'INPUT Demand'!$A$5:$BA$1004,28,FALSE)*'INPUT 12NC'!D72)+'INPUT 12NC'!C72)) -> 0 | AD37: =IF(A37="","",IF(VLOOKUP(A37,'INPUT Demand'!$A$5:$BA$1004,29,FALSE)=0,0,(VLOOKUP(A37,'INPUT Demand'!$A$5:$BA$1004,29,FALSE)*'INPUT 12NC'!D72)+'INPUT 12NC'!C72)) -> 275 | AE37: =IF(A37="","",IF(VLOOKUP(A37,'INPUT Demand'!$A$5:$BA$1004,30,FALSE)=0,0,(VLOOKUP(A37,'INPUT Demand'!$A$5:$BA$1004,30,FALSE)*'INPUT 12NC'!D72)+'INPUT 12NC'!C72)) -> 0 | AF37: =IF(A37="","",IF(VLOOKUP(A37,'INPUT Demand'!$A$5:$BA$1004,31,FALSE)=0,0,(VLOOKUP(A37,'INPUT Demand'!$A$5:$BA$1004,31,FALSE)*'INPUT 12NC'!D72)+'INPUT 12NC'!C72)) -> 0 | AG37: =IF(A37="","",IF(VLOOKUP(A37,'INPUT Demand'!$A$5:$BA$1004,32,FALSE)=0,0,(VLOOKUP(A37,'INPUT Demand'!$A$5:$BA$1004,32,FALSE)*'INPUT 12NC'!D72)+'INPUT 12NC'!C72)) -> 0 | AH37: =IF(A37="","",IF(VLOOKUP(A37,'INPUT Demand'!$A$5:$BA$1004,33,FALSE)=0,0,(VLOOKUP(A37,'INPUT Demand'!$A$5:$BA$1004,33,FALSE)*'INPUT 12NC'!D72)+'INPUT 12NC'!C72)) -> 0 | AI37: =IF(A37="","",IF(VLOOKUP(A37,'INPUT Demand'!$A$5:$BA$1004,34,FALSE)=0,0,(VLOOKUP(A37,'INPUT Demand'!$A$5:$BA$1004,34,FALSE)*'INPUT 12NC'!D72)+'INPUT 12NC'!C72)) -> 0 | AJ37: =IF(A37="","",IF(VLOOKUP(A37,'INPUT Demand'!$A$5:$BA$1004,35,FALSE)=0,0,(VLOOKUP(A37,'INPUT Demand'!$A$5:$BA$1004,35,FALSE)*'INPUT 12NC'!D72)+'INPUT 12NC'!C72)) -> 518 | AK37: =IF(A37="","",IF(VLOOKUP(A37,'INPUT Demand'!$A$5:$BA$1004,36,FALSE)=0,0,(VLOOKUP(A37,'INPUT Demand'!$A$5:$BA$1004,36,FALSE)*'INPUT 12NC'!D72)+'INPUT 12NC'!C72)) -> 0 | AL37: =IF(A37="","",IF(VLOOKUP(A37,'INPUT Demand'!$A$5:$BA$1004,37,FALSE)=0,0,(VLOOKUP(A37,'INPUT Demand'!$A$5:$BA$1004,37,FALSE)*'INPUT 12NC'!D72)+'INPUT 12NC'!C72)) -> 0 | AM37: =IF(A37="","",IF(VLOOKUP(A37,'INPUT Demand'!$A$5:$BA$1004,38,FALSE)=0,0,(VLOOKUP(A37,'INPUT Demand'!$A$5:$BA$1004,38,FALSE)*'INPUT 12NC'!D72)+'INPUT 12NC'!C72)) -> 0 | AN37: =IF(A37="","",IF(VLOOKUP(A37,'INPUT Demand'!$A$5:$BA$1004,39,FALSE)=0,0,(VLOOKUP(A37,'INPUT Demand'!$A$5:$BA$1004,39,FALSE)*'INPUT 12NC'!D72)+'INPUT 12NC'!C72)) -> 0 | AO37: =IF(A37="","",IF(VLOOKUP(A37,'INPUT Demand'!$A$5:$BA$1004,40,FALSE)=0,0,(VLOOKUP(A37,'INPUT Demand'!$A$5:$BA$1004,40,FALSE)*'INPUT 12NC'!D72)+'INPUT 12NC'!C72)) -> 0 | AP37: =IF(A37="","",IF(VLOOKUP(A37,'INPUT Demand'!$A$5:$BA$1004,41,FALSE)=0,0,(VLOOKUP(A37,'INPUT Demand'!$A$5:$BA$1004,41,FALSE)*'INPUT 12NC'!D72)+'INPUT 12NC'!C72)) -> 0 | AQ37: =IF(A37="","",IF(VLOOKUP(A37,'INPUT Demand'!$A$5:$BA$1004,42,FALSE)=0,0,(VLOOKUP(A37,'INPUT Demand'!$A$5:$BA$1004,42,FALSE)*'INPUT 12NC'!D72)+'INPUT 12NC'!C72)) -> 383 | AR37: =IF(A37="","",IF(VLOOKUP(A37,'INPUT Demand'!$A$5:$BA$1004,43,FALSE)=0,0,(VLOOKUP(A37,'INPUT Demand'!$A$5:$BA$1004,43,FALSE)*'INPUT 12NC'!D72)+'INPUT 12NC'!C72)) -> 0 | AS37: =IF(A37="","",IF(VLOOKUP(A37,'INPUT Demand'!$A$5:$BA$1004,44,FALSE)=0,0,(VLOOKUP(A37,'INPUT Demand'!$A$5:$BA$1004,44,FALSE)*'INPUT 12NC'!D72)+'INPUT 12NC'!C72)) -> 0 | AT37: =IF(A37="","",IF(VLOOKUP(A37,'INPUT Demand'!$A$5:$BA$1004,45,FALSE)=0,0,(VLOOKUP(A37,'INPUT Demand'!$A$5:$BA$1004,45,FALSE)*'INPUT 12NC'!D72)+'INPUT 12NC'!C72)) -> 0 | AU37: =IF(A37="","",IF(VLOOKUP(A37,'INPUT Demand'!$A$5:$BA$1004,46,FALSE)=0,0,(VLOOKUP(A37,'INPUT Demand'!$A$5:$BA$1004,46,FALSE)*'INPUT 12NC'!D72)+'INPUT 12NC'!C72)) -> 0 | AV37: =IF(A37="","",IF(VLOOKUP(A37,'INPUT Demand'!$A$5:$BA$1004,47,FALSE)=0,0,(VLOOKUP(A37,'INPUT Demand'!$A$5:$BA$1004,47,FALSE)*'INPUT 12NC'!D72)+'INPUT 12NC'!C72)) -> 0 | AW37: =IF(A37="","",IF(VLOOKUP(A37,'INPUT Demand'!$A$5:$BA$1004,48,FALSE)=0,0,(VLOOKUP(A37,'INPUT Demand'!$A$5:$BA$1004,48,FALSE)*'INPUT 12NC'!D72)+'INPUT 12NC'!C72)) -> 275 | AX37: =IF(A37="","",IF(VLOOKUP(A37,'INPUT Demand'!$A$5:$BA$1004,49,FALSE)=0,0,(VLOOKUP(A37,'INPUT Demand'!$A$5:$BA$1004,49,FALSE)*'INPUT 12NC'!D72)+'INPUT 12NC'!C72)) -> 0 | AY37: =IF(A37="","",IF(VLOOKUP(A37,'INPUT Demand'!$A$5:$BA$1004,50,FALSE)=0,0,(VLOOKUP(A37,'INPUT Demand'!$A$5:$BA$1004,50,FALSE)*'INPUT 12NC'!D72)+'INPUT 12NC'!C72)) -> 0 | AZ37: =IF(A37="","",IF(VLOOKUP(A37,'INPUT Demand'!$A$5:$BA$1004,51,FALSE)=0,0,(VLOOKUP(A37,'INPUT Demand'!$A$5:$BA$1004,51,FALSE)*'INPUT 12NC'!D72)+'INPUT 12NC'!C72)) -> 0 | BA37: =IF(A37="","",IF(VLOOKUP(A37,'INPUT Demand'!$A$5:$BA$1004,52,FALSE)=0,0,(VLOOKUP(A37,'INPUT Demand'!$A$5:$BA$1004,52,FALSE)*'INPUT 12NC'!D72)+'INPUT 12NC'!C72)) -> 0 | BB37: =IF(A37="","",IF(VLOOKUP(A37,'INPUT Demand'!$A$5:$BA$1004,53,FALSE)=0,0,(VLOOKUP(A37,'INPUT Demand'!$A$5:$BA$1004,53,FALSE)*'INPUT 12NC'!D72)+'INPUT 12NC'!C72)) -> 0 | BC37: =IF(A37="","",SUM(D37:BB37)) -> 2384 | BD37: =IF(A37="","",IF(C37=1,BC37,0)) -> 0
A38: 402247784649 | B38: 115 | C38: 0 | D38: =IF(A38="","",IF(VLOOKUP(A38,'INPUT Demand'!$A$5:$BA$1004,3,FALSE)=0,0,(VLOOKUP(A38,'INPUT Demand'!$A$5:$BA$1004,3,FALSE)*'INPUT 12NC'!D116)+'INPUT 12NC'!C116)) -> 0 | E38: =IF(A38="","",IF(VLOOKUP(A38,'INPUT Demand'!$A$5:$BA$1004,4,FALSE)=0,0,(VLOOKUP(A38,'INPUT Demand'!$A$5:$BA$1004,4,FALSE)*'INPUT 12NC'!D116)+'INPUT 12NC'!C116)) -> 0 | F38: =IF(A38="","",IF(VLOOKUP(A38,'INPUT Demand'!$A$5:$BA$1004,5,FALSE)=0,0,(VLOOKUP(A38,'INPUT Demand'!$A$5:$BA$1004,5,FALSE)*'INPUT 12NC'!D116)+'INPUT 12NC'!C116)) -> 245 | G38: =IF(A38="","",IF(VLOOKUP(A38,'INPUT Demand'!$A$5:$BA$1004,6,FALSE)=0,0,(VLOOKUP(A38,'INPUT Demand'!$A$5:$BA$1004,6,FALSE)*'INPUT 12NC'!D116)+'INPUT 12NC'!C116)) -> 0 | H38: =IF(A38="","",IF(VLOOKUP(A38,'INPUT Demand'!$A$5:$BA$1004,7,FALSE)=0,0,(VLOOKUP(A38,'INPUT Demand'!$A$5:$BA$1004,7,FALSE)*'INPUT 12NC'!D116)+'INPUT 12NC'!C116)) -> 0 | I38: =IF(A38="","",IF(VLOOKUP(A38,'INPUT Demand'!$A$5:$BA$1004,8,FALSE)=0,0,(VLOOKUP(A38,'INPUT Demand'!$A$5:$BA$1004,8,FALSE)*'INPUT 12NC'!D116)+'INPUT 12NC'!C116)) -> 0 | J38: =IF(A38="","",IF(VLOOKUP(A38,'INPUT Demand'!$A$5:$BA$1004,9,FALSE)=0,0,(VLOOKUP(A38,'INPUT Demand'!$A$5:$BA$1004,9,FALSE)*'INPUT 12NC'!D116)+'INPUT 12NC'!C116)) -> 0 | K38: =IF(A38="","",IF(VLOOKUP(A38,'INPUT Demand'!$A$5:$BA$1004,10,FALSE)=0,0,(VLOOKUP(A38,'INPUT Demand'!$A$5:$BA$1004,10,FALSE)*'INPUT 12NC'!D116)+'INPUT 12NC'!C116)) -> 245 | L38: =IF(A38="","",IF(VLOOKUP(A38,'INPUT Demand'!$A$5:$BA$1004,11,FALSE)=0,0,(VLOOKUP(A38,'INPUT Demand'!$A$5:$BA$1004,11,FALSE)*'INPUT 12NC'!D116)+'INPUT 12NC'!C116)) -> 0 | M38: =IF(A38="","",IF(VLOOKUP(A38,'INPUT Demand'!$A$5:$BA$1004,12,FALSE)=0,0,(VLOOKUP(A38,'INPUT Demand'!$A$5:$BA$1004,12,FALSE)*'INPUT 12NC'!D116)+'INPUT 12NC'!C116)) -> 0 | N38: =IF(A38="","",IF(VLOOKUP(A38,'INPUT Demand'!$A$5:$BA$1004,13,FALSE)=0,0,(VLOOKUP(A38,'INPUT Demand'!$A$5:$BA$1004,13,FALSE)*'INPUT 12NC'!D116)+'INPUT 12NC'!C116)) -> 0 | O38: =IF(A38="","",IF(VLOOKUP(A38,'INPUT Demand'!$A$5:$BA$1004,14,FALSE)=0,0,(VLOOKUP(A38,'INPUT Demand'!$A$5:$BA$1004,14,FALSE)*'INPUT 12NC'!D116)+'INPUT 12NC'!C116)) -> 0 | P38: =IF(A38="","",IF(VLOOKUP(A38,'INPUT Demand'!$A$5:$BA$1004,15,FALSE)=0,0,(VLOOKUP(A38,'INPUT Demand'!$A$5:$BA$1004,15,FALSE)*'INPUT 12NC'!D116)+'INPUT 12NC'!C116)) -> 0 | Q38: =IF(A38="","",IF(VLOOKUP(A38,'INPUT Demand'!$A$5:$BA$1004,16,FALSE)=0,0,(VLOOKUP(A38,'INPUT Demand'!$A$5:$BA$1004,16,FALSE)*'INPUT 12NC'!D116)+'INPUT 12NC'!C116)) -> 257 | R38: =IF(A38="","",IF(VLOOKUP(A38,'INPUT Demand'!$A$5:$BA$1004,17,FALSE)=0,0,(VLOOKUP(A38,'INPUT Demand'!$A$5:$BA$1004,17,FALSE)*'INPUT 12NC'!D116)+'INPUT 12NC'!C116)) -> 0 | S38: =IF(A38="","",IF(VLOOKUP(A38,'INPUT Demand'!$A$5:$BA$1004,18,FALSE)=0,0,(VLOOKUP(A38,'INPUT Demand'!$A$5:$BA$1004,18,FALSE)*'INPUT 12NC'!D116)+'INPUT 12NC'!C116)) -> 0 | T38: =IF(A38="","",IF(VLOOKUP(A38,'INPUT Demand'!$A$5:$BA$1004,19,FALSE)=0,0,(VLOOKUP(A38,'INPUT Demand'!$A$5:$BA$1004,19,FALSE)*'INPUT 12NC'!D116)+'INPUT 12NC'!C116)) -> 0 | U38: =IF(A38="","",IF(VLOOKUP(A38,'INPUT Demand'!$A$5:$BA$1004,20,FALSE)=0,0,(VLOOKUP(A38,'INPUT Demand'!$A$5:$BA$1004,20,FALSE)*'INPUT 12NC'!D116)+'INPUT 12NC'!C116)) -> 0 | V38: =IF(A38="","",IF(VLOOKUP(A38,'INPUT Demand'!$A$5:$BA$1004,21,FALSE)=0,0,(VLOOKUP(A38,'INPUT Demand'!$A$5:$BA$1004,21,FALSE)*'INPUT 12NC'!D116)+'INPUT 12NC'!C116)) -> 0 | W38: =IF(A38="","",IF(VLOOKUP(A38,'INPUT Demand'!$A$5:$BA$1004,22,FALSE)=0,0,(VLOOKUP(A38,'INPUT Demand'!$A$5:$BA$1004,22,FALSE)*'INPUT 12NC'!D116)+'INPUT 12NC'!C116)) -> 293 | X38: =IF(A38="","",IF(VLOOKUP(A38,'INPUT Demand'!$A$5:$BA$1004,23,FALSE)=0,0,(VLOOKUP(A38,'INPUT Demand'!$A$5:$BA$1004,23,FALSE)*'INPUT 12NC'!D116)+'INPUT 12NC'!C116)) -> 0 | Y38: =IF(A38="","",IF(VLOOKUP(A38,'INPUT Demand'!$A$5:$BA$1004,24,FALSE)=0,0,(VLOOKUP(A38,'INPUT Demand'!$A$5:$BA$1004,24,FALSE)*'INPUT 12NC'!D116)+'INPUT 12NC'!C116)) -> 0 | Z38: =IF(A38="","",IF(VLOOKUP(A38,'INPUT Demand'!$A$5:$BA$1004,25,FALSE)=0,0,(VLOOKUP(A38,'INPUT Demand'!$A$5:$BA$1004,25,FALSE)*'INPUT 12NC'!D116)+'INPUT 12NC'!C116)) -> 0 | AA38: =IF(A38="","",IF(VLOOKUP(A38,'INPUT Demand'!$A$5:$BA$1004,26,FALSE)=0,0,(VLOOKUP(A38,'INPUT Demand'!$A$5:$BA$1004,26,FALSE)*'INPUT 12NC'!D116)+'INPUT 12NC'!C116)) -> 0 | AB38: =IF(A38="","",IF(VLOOKUP(A38,'INPUT Demand'!$A$5:$BA$1004,27,FALSE)=0,0,(VLOOKUP(A38,'INPUT Demand'!$A$5:$BA$1004,27,FALSE)*'INPUT 12NC'!D116)+'INPUT 12NC'!C116)) -> 317 | AC38: =IF(A38="","",IF(VLOOKUP(A38,'INPUT Demand'!$A$5:$BA$1004,28,FALSE)=0,0,(VLOOKUP(A38,'INPUT Demand'!$A$5:$BA$1004,28,FALSE)*'INPUT 12NC'!D116)+'INPUT 12NC'!C116)) -> 0 | AD38: =IF(A38="","",IF(VLOOKUP(A38,'INPUT Demand'!$A$5:$BA$1004,29,FALSE)=0,0,(VLOOKUP(A38,'INPUT Demand'!$A$5:$BA$1004,29,FALSE)*'INPUT 12NC'!D116)+'INPUT 12NC'!C116)) -> 0 | AE38: =IF(A38="","",IF(VLOOKUP(A38,'INPUT Demand'!$A$5:$BA$1004,30,FALSE)=0,0,(VLOOKUP(A38,'INPUT Demand'!$A$5:$BA$1004,30,FALSE)*'INPUT 12NC'!D116)+'INPUT 12NC'!C116)) -> 0 | AF38: =IF(A38="","",IF(VLOOKUP(A38,'INPUT Demand'!$A$5:$BA$1004,31,FALSE)=0,0,(VLOOKUP(A38,'INPUT Demand'!$A$5:$BA$1004,31,FALSE)*'INPUT 12NC'!D116)+'INPUT 12NC'!C116)) -> 0 | AG38: =IF(A38="","",IF(VLOOKUP(A38,'INPUT Demand'!$A$5:$BA$1004,32,FALSE)=0,0,(VLOOKUP(A38,'INPUT Demand'!$A$5:$BA$1004,32,FALSE)*'INPUT 12NC'!D116)+'INPUT 12NC'!C116)) -> 0 | AH38: =IF(A38="","",IF(VLOOKUP(A38,'INPUT Demand'!$A$5:$BA$1004,33,FALSE)=0,0,(VLOOKUP(A38,'INPUT Demand'!$A$5:$BA$1004,33,FALSE)*'INPUT 12NC'!D116)+'INPUT 12NC'!C116)) -> 269 | AI38: =IF(A38="","",IF(VLOOKUP(A38,'INPUT Demand'!$A$5:$BA$1004,34,FALSE)=0,0,(VLOOKUP(A38,'INPUT Demand'!$A$5:$BA$1004,34,FALSE)*'INPUT 12NC'!D116)+'INPUT 12NC'!C116)) -> 0 | AJ38: =IF(A38="","",IF(VLOOKUP(A38,'INPUT Demand'!$A$5:$BA$1004,35,FALSE)=0,0,(VLOOKUP(A38,'INPUT Demand'!$A$5:$BA$1004,35,FALSE)*'INPUT 12NC'!D116)+'INPUT 12NC'!C116)) -> 0 | AK38: =IF(A38="","",IF(VLOOKUP(A38,'INPUT Demand'!$A$5:$BA$1004,36,FALSE)=0,0,(VLOOKUP(A38,'INPUT Demand'!$A$5:$BA$1004,36,FALSE)*'INPUT 12NC'!D116)+'INPUT 12NC'!C116)) -> 0 | AL38: =IF(A38="","",IF(VLOOKUP(A38,'INPUT Demand'!$A$5:$BA$1004,37,FALSE)=0,0,(VLOOKUP(A38,'INPUT Demand'!$A$5:$BA$1004,37,FALSE)*'INPUT 12NC'!D116)+'INPUT 12NC'!C116)) -> 377 | AM38: =IF(A38="","",IF(VLOOKUP(A38,'INPUT Demand'!$A$5:$BA$1004,38,FALSE)=0,0,(VLOOKUP(A38,'INPUT Demand'!$A$5:$BA$1004,38,FALSE)*'INPUT 12NC'!D116)+'INPUT 12NC'!C116)) -> 0 | AN38: =IF(A38="","",IF(VLOOKUP(A38,'INPUT Demand'!$A$5:$BA$1004,39,FALSE)=0,0,(VLOOKUP(A38,'INPUT Demand'!$A$5:$BA$1004,39,FALSE)*'INPUT 12NC'!D116)+'INPUT 12NC'!C116)) -> 0 | AO38: =IF(A38="","",IF(VLOOKUP(A38,'INPUT Demand'!$A$5:$BA$1004,40,FALSE)=0,0,(VLOOKUP(A38,'INPUT Demand'!$A$5:$BA$1004,40,FALSE)*'INPUT 12NC'!D116)+'INPUT 12NC'!C116)) -> 0 | AP38: =IF(A38="","",IF(VLOOKUP(A38,'INPUT Demand'!$A$5:$BA$1004,41,FALSE)=0,0,(VLOOKUP(A38,'INPUT Demand'!$A$5:$BA$1004,41,FALSE)*'INPUT 12NC'!D116)+'INPUT 12NC'!C116)) -> 0 | AQ38: =IF(A38="","",IF(VLOOKUP(A38,'INPUT Demand'!$A$5:$BA$1004,42,FALSE)=0,0,(VLOOKUP(A38,'INPUT Demand'!$A$5:$BA$1004,42,FALSE)*'INPUT 12NC'!D116)+'INPUT 12NC'!C116)) -> 0 | AR38: =IF(A38="","",IF(VLOOKUP(A38,'INPUT Demand'!$A$5:$BA$1004,43,FALSE)=0,0,(VLOOKUP(A38,'INPUT Demand'!$A$5:$BA$1004,43,FALSE)*'INPUT 12NC'!D116)+'INPUT 12NC'!C116)) -> 0 | AS38: =IF(A38="","",IF(VLOOKUP(A38,'INPUT Demand'!$A$5:$BA$1004,44,FALSE)=0,0,(VLOOKUP(A38,'INPUT Demand'!$A$5:$BA$1004,44,FALSE)*'INPUT 12NC'!D116)+'INPUT 12NC'!C116)) -> 245 | AT38: =IF(A38="","",IF(VLOOKUP(A38,'INPUT Demand'!$A$5:$BA$1004,45,FALSE)=0,0,(VLOOKUP(A38,'INPUT Demand'!$A$5:$BA$1004,45,FALSE)*'INPUT 12NC'!D116)+'INPUT 12NC'!C116)) -> 0 | AU38: =IF(A38="","",IF(VLOOKUP(A38,'INPUT Demand'!$A$5:$BA$1004,46,FALSE)=0,0,(VLOOKUP(A38,'INPUT Demand'!$A$5:$BA$1004,46,FALSE)*'INPUT 12NC'!D116)+'INPUT 12NC'!C116)) -> 0 | AV38: =IF(A38="","",IF(VLOOKUP(A38,'INPUT Demand'!$A$5:$BA$1004,47,FALSE)=0,0,(VLOOKUP(A38,'INPUT Demand'!$A$5:$BA$1004,47,FALSE)*'INPUT 12NC'!D116)+'INPUT 12NC'!C116)) -> 0 | AW38: =IF(A38="","",IF(VLOOKUP(A38,'INPUT Demand'!$A$5:$BA$1004,48,FALSE)=0,0,(VLOOKUP(A38,'INPUT Demand'!$A$5:$BA$1004,48,FALSE)*'INPUT 12NC'!D116)+'INPUT 12NC'!C116)) -> 0 | AX38: =IF(A38="","",IF(VLOOKUP(A38,'INPUT Demand'!$A$5:$BA$1004,49,FALSE)=0,0,(VLOOKUP(A38,'INPUT Demand'!$A$5:$BA$1004,49,FALSE)*'INPUT 12NC'!D116)+'INPUT 12NC'!C116)) -> 0 | AY38: =IF(A38="","",IF(VLOOKUP(A38,'INPUT Demand'!$A$5:$BA$1004,50,FALSE)=0,0,(VLOOKUP(A38,'INPUT Demand'!$A$5:$BA$1004,50,FALSE)*'INPUT 12NC'!D116)+'INPUT 12NC'!C116)) -> 0 | AZ38: =IF(A38="","",IF(VLOOKUP(A38,'INPUT Demand'!$A$5:$BA$1004,51,FALSE)=0,0,(VLOOKUP(A38,'INPUT Demand'!$A$5:$BA$1004,51,FALSE)*'INPUT 12NC'!D116)+'INPUT 12NC'!C116)) -> 0 | BA38: =IF(A38="","",IF(VLOOKUP(A38,'INPUT Demand'!$A$5:$BA$1004,52,FALSE)=0,0,(VLOOKUP(A38,'INPUT Demand'!$A$5:$BA$1004,52,FALSE)*'INPUT 12NC'!D116)+'INPUT 12NC'!C116)) -> 0 | BB38: =IF(A38="","",IF(VLOOKUP(A38,'INPUT Demand'!$A$5:$BA$1004,53,FALSE)=0,0,(VLOOKUP(A38,'INPUT Demand'!$A$5:$BA$1004,53,FALSE)*'INPUT 12NC'!D116)+'INPUT 12NC'!C116)) -> 0 | BC38: =IF(A38="","",SUM(D38:BB38)) -> 2248 | BD38: =IF(A38="","",IF(C38=1,BC38,0)) -> 0
